Workbook

Sheet Instructions
B2: LEA EDFacts Edit Check and Data Display Tool - IDEA Discipline
B3: The LEA EDFacts Edit Check and Data Display Tool - IDEA Discipline is designed for states to use as they prepare their data for submission via EDFacts. States use this tool to check LEA-level EDFacts data files FS005, FS006, FS007, FS088, FS143, and FS144. The tool identifies format, validation, and other errors in category sets or subtotals. State staff also can use this tool as a data display in their work with LEAs, including monitoring, performing desk audits of LEA data, and providing technical assistance and professional development to LEA staff. States cannot submit data using this tool. They must submit all data following the guidelines provided in the data file specifications at
B4: The EDFacts Initiative
B6: Please read the following instructions before using this tool:
B7: 1. | C7: To begin using this tool, you must enter the state’s LEA identifiers and LEA names in the LEA Identifiers & Names tab. You will use this list in the drop-down menu in the Select LEA tab. You can copy and paste the state’s LEA identifiers and LEA names into the table in the LEA Identifiers & Names tab from an existing list such as the state’s LEA-level Directory (FS029) file columns, LEA Identifier (State) and Education Entity Name.
C9: The LEA names will appear in the drop-down list in the order in which they are listed on the LEA Identifiers & Names tab. Please consider alphabetizing your list of LEA names and identifiers before pasting them into the table on that tab.
B11: 2. | C11: To select, copy, and paste data from your LEA FS005 EDFacts file into the tool, do the following:
C12: a. Open your LEA-level FS005 – Children with Disabilities (IDEA) Removal to Interim Alternative Educational Setting data file in Excel (or similar application).
C13: b. Select and copy all rows and columns from the EDFacts data file. i. Include the EDFacts data file header row and filler columns. ii. Do NOT use the "Select All" function in Excel.
C14: c. Paste the selected data to cell A13 in the FS005 tab in this tool.
C15: d. In the FS005 tab, click the "Check Data Format" button to run all format checks. If there are format errors, you will see pop-up boxes containing important information about the errors.
C17: The “Check Data Format” button identifies the following format errors: i. compares the text in the File Type cell in the header row (in cell A13) to the required value for the LEA FS005 file, LEA CHILDREN WITH DISAB (IDEA) DISCIPLINE; ii. compares the number of records entered in the file header row (in cell B12) to confirm it matches the actual number of rows of data in the file; iii. checks the school year date format in the header row (in cell E12); iv. checks the filler columns for any characters (all filler columns should be blank); and v. checks the file record number, state code, state agency number, LEA identifier (state), table name, total indicator, and student count columns for blanks (there should be no blanks in these columns).
C19: e. To delete the data pasted into the FS005 tab, click the "Clear Data" button.
B20: 3. | C20: Repeat steps 2.a. through 2.e. for the other IDEA LEA Discipline data files FS006, FS007, FS088, FS143, and FS144.
B21: 4. | C21: To review data for each LEA, click on the Select LEA tab.
C22: a. The "Select LEA" box should have the names of the LEAs that you copied and pasted in the LEA Identifiers & Names tab. Open the "Select LEA" box by clicking on the down arrow to the right of the box.
C23: b. Select the LEA you would like to analyze or review; then click the “Select LEA Data” button to the right of the selected LEA. The rows from the EDFacts file that match that LEA's state identifier (code) will populate in the Excel sheet.
C24: c. To select another LEA, first click on the “Clear ‘Select LEA’ Field” button to clear the current LEA out of the yellow selection box. Once the LEA has been cleared, the full list of LEAs will be available again in the "Select LEA" box when you click on the down arrow. Select another LEA, click the “Select LEA Data” button, and the table will update with the newly selected LEA’s data.
C25: d. To quickly search for an LEA in the drop-down list in the “Select LEA” field, click on the yellow box (F6) and type in the first three or more letters that appear in the name of the LEA or group of LEAs you want to locate. Next, click the carat beside the yellow box (F6) to see the list of LEA names that contain the letters you entered.
B27: 5. | C27: To check errors for each LEA, follow these steps:
C28: a. On the Select LEA tab, review the “Data quality checks" table to the right of the data displayed for the selected LEA to see (1) lists of data category sets and subtotals not included in the LEA FS005 file for the selected LEA, (2) duplicate rows, and (3) rows that contain invalid values.
C29: b. To facilitate locating data errors in the EDFacts file, data with errors displayed in the Error Messages, Disability, Racial Ethnic, Sex, English Learner Status, and Ed. Services During Expulsion tabs are highlighted in red and hyperlinked. Use the hyperlinked data to trace each highlighted error through the Error Messages, Disability, Racial Ethnic, Sex, English Learner Status, and Ed. Services During Expulsion tabs back to the EDFacts data file in the Select LEA tab where the error originates.
C30: c. Error messages in the Error Messages tab indicate computational or other errors in reporting only for the LEA selected in the Select LEA tab. Please correct all errors before submitting the data file to the U.S. Department of Education via the EDFacts Submission System.
C31: d. Please note, this tool does not identify the state-specific differences in EDFacts file contents. State-specific differences noted in the EDFacts IDEA State Supplemental Survey (SSS) may show up as error messages in this tool.
B33: 6. | C33: Review and address each triggered format check and error message. If you need to make changes to the data, make these changes in the corresponding data system and/or EDFacts file. Then check the corrected IDEA Discipline files by carefully pasting the updated data into the FS005, FS006, FS007, FS088, FS143, and FS144 tabs. Do NOT make data modifications directly in the LEA Edit Check Tool . You must make these changes in the EDFacts file that you will submit, then copy them from that file back into the LEA Edit Check Tool to recheck the data and confirm correction.
B35: If you would like assistance using this tool, please contact your IDC State Liaison or email | H35: IDEAdata@westat.com
B37: Please note, this tool is currently not 508 accessible. If you need assistance with the use of this tool, please contact your IDC State Liaison or email
B38: IDEAdata@westat.com
B40: The IDEA Data Center (IDC) created this publication under U.S. Department of Education, Office of Special Education Programs grant number H373Y190001. Richelle Davis and Rebecca Smith serve as the project officers.
B43: The views expressed herein do not necessarily represent the positions or policies of the U.S. Department of Education. No official endorsement by the U.S. Department of Education of any product, commodity, service, or enterprise mentioned in this publication is intended or should be inferred. This product is in the public domain. Authorization to reproduce it in whole or in part is granted.
B45: Westat is the lead organization for IDC. For more information about the center’s work and its partners, see
B46: ideadata.org
B48: Version Date: October 2021
B50: Suggested Citation:
B51: Long, T., Thacker, C., and Edora, F. (2021, October). LEA EDFacts Edit Check and Data Display Tool - IDEA Discipline. IDEA Data Center. Rockville, MD: Westat.

Sheet LEA Identifiers & Names
A1: LEA Identifiers and Names
B3: Instructions: Enter your state's LEA identifiers and names below. You will use this list in the drop-down menu on the Select LEA tab to select the name of the LEA for data-display in the tables on the Error Messages tab, Data Summary tab, and the five category tabs. The LEA identifiers must match those you used in your LEA FS005, FS006, FS007, FS088, FS143, and FS144 files. The LEA names will appear in the drop-down list in the order in which you list them below. Please consider alphabetizing your list of LEA names before pasting them into the table below.
B5: LEA identifier (state) | C5: LEA name

Sheet FS005
A1: ="LEA Disciplinary Removals of Children with Disabilities (IDEA) Ages 3-21"&CHAR(10)&"School Year "&'FS005'!E13 -> LEA Disciplinary Removals of Children with Disabilities (IDEA) Ages 3-21 School Year
A11: FS005 — Children with Disabilities (IDEA) Removal to Interim Alternative Educational Setting
A12: File record number | B12: State code | C12: State agency number | D12: LEA identifier (state) | E12: Filler | F12: Table name | G12: Sex (membership) | H12: Racial ethnic | I12: English learner status (both) | J12: Filler | K12: Filler | L12: Filler | M12: Filler | N12: Filler | O12: Filler | P12: Disability category (IDEA) | Q12: Filler | R12: Interim removal (IDEA) | S12: Total indicator | T12: Explanation | U12: Student count

Sheet FS006
A1: ="LEA Disciplinary Removals of Children with Disabilities (IDEA) Ages 3-21"&CHAR(10)&"School Year "&'FS005'!E13 -> LEA Disciplinary Removals of Children with Disabilities (IDEA) Ages 3-21 School Year
A11: FS006 — Children with Disabilities (IDEA) Suspensions/Expulsions
A12: File record number | B12: State code | C12: State agency number | D12: LEA identifier (state) | E12: Filler | F12: Table name | G12: Removal length (suspensions/ expulsions) | H12: Racial ethnic | I12: Sex (membership) | J12: Filler | K12: Filler | L12: Filler | M12: Filler | N12: Filler | O12: Filler | P12: Disability category (IDEA) | Q12: English learner status (both) | R12: Discipline method (suspension/ expulsion) | S12: Total indicator | T12: Explanation | U12: Student count

Sheet FS007
A1: ="LEA Disciplinary Removals of Children with Disabilities (IDEA) Ages 3-21"&CHAR(10)&"School Year "&'FS005'!E13 -> LEA Disciplinary Removals of Children with Disabilities (IDEA) Ages 3-21 School Year
A11: FS007 — Children with Disabilities (IDEA) Reasons for Unilateral Removal
A12: File record number | B12: State code | C12: State agency number | D12: LEA identifier (state) | E12: Filler | F12: Table name | G12: Filler | H12: Racial ethnic | I12: Sex (membership) | J12: Filler | K12: Filler | L12: Filler | M12: Filler | N12: Filler | O12: Filler | P12: Disability category (IDEA) | Q12: English learner status (both) | R12: Interim removal reason (IDEA) | S12: Total indicator | T12: Explanation | U12: Student count

Sheet FS088
A1: ="LEA Disciplinary Removals of Children with Disabilities (IDEA) Ages 3-21"&CHAR(10)&"School Year "&'FS005'!E13 -> LEA Disciplinary Removals of Children with Disabilities (IDEA) Ages 3-21 School Year
A11: FS088 — Children with Disabilities (IDEA) Disciplinary Removals
A12: File record number | B12: State code | C12: State agency number | D12: LEA identifier (state) | E12: Filler | F12: Table name | G12: Sex (membership) | H12: Racial ethnic | I12: Removal length (IDEA) | J12: Disability category (IDEA) | K12: English learner status (Both) | L12: Total indicator | M12: Explanation | N12: Student count

Sheet FS143
A1: ="LEA Disciplinary Removals of Children with Disabilities (IDEA) Ages 3-21"&CHAR(10)&"School Year "&'FS005'!E13 -> LEA Disciplinary Removals of Children with Disabilities (IDEA) Ages 3-21 School Year
A11: FS143 — Children with Disabilities (IDEA) Total Disciplinary Removals
A12: File record number | B12: State code | C12: State agency number | D12: LEA identifier (state) | E12: Filler | F12: Table name | G12: Sex (membership) | H12: Racial ethnic | I12: English learner status (both) | J12: Disability category (IDEA) | K12: Filler | L12: Total indicator | M12: Explanation | N12: Student count

Sheet FS144
A1: ="LEA Disciplinary Removals of Children with Disabilities (IDEA) Ages 3-21"&CHAR(10)&"School Year "&'FS005'!E13 -> LEA Disciplinary Removals of Children with Disabilities (IDEA) Ages 3-21 School Year
A11: FS144 — Educational Services During Expulsion
A12: File record number | B12: State code | C12: State agency number | D12: LEA identifier (state) | E12: Filler | F12: Table name | G12: Disability category (IDEA) | H12: Educational services | I12: Filler | J12: Total indicator | K12: Explanation | L12: Student count

Sheet Select LEA
A1: ="LEA Disciplinary Removals of Children with Disabilities (IDEA) Ages 3-21"&CHAR(10)&F6&" for School Year "&AB5 -> LEA Disciplinary Removals of Children with Disabilities (IDEA) Ages 3-21 for School Year | AE1: End of worksheet
D2: PLEASE NOTE: Scroll down to view all six discipline data tables for the selected LEA.
R3: Data quality checks | AE3: FS006 — Children with Disabilities (IDEA) Suspensions/Expulsions
R4: Type | T4: FS005 | U4: FS006 | V4: FS007 | W4: FS088 | X4: FS143 | Y4: FS144 | AE4: FS007 — Children with Disabilities (IDEA) Reasons for Unilateral Removal
T5: Total | U5: Total | V5: Total | W5: Total | X5: Total | Y5: Total | AA5: School Year from FS005 (E13) | AB5: =IF('FS005'!E13="","",'FS005'!E13) ->  | AE5: FS088 — Children with Disabilities (IDEA) Disciplinary Removals
D6: Select LEA: | R6: Data elements not included for this LEA | T6: =COUNTIF(W12:W61,"?*") -> 50 | U6: =COUNTIF(W66:W166,"?*") -> 100 | V6: =COUNTIF(W170:W245,"?*") -> 74 | W6: =COUNTIF(W249:W325,"?*") -> 75 | X6: =COUNTIF(W329:W354,"?*") -> 24 | Y6: =COUNTIF(W358:W361,"?*") -> 4 | AE6: FS143 — Children with Disabilities (IDEA) Total Disciplinary Removals
R7: Duplicate row elements | T7: =COUNTIF(X12:X61,"?*") -> 0 | U7: =COUNTIF(X66:X166,"?*") -> 0 | V7: =COUNTIF(X170:X245,"?*") -> 0 | W7: =COUNTIF(X249:X325,"?*") -> 0 | X7: =COUNTIF(X329:X354,"?*") -> 0 | Y7: =COUNTIF(X358:X361,"?*") -> 0 | AE7: FS144 — Educational Services During Expulsions
D8: LEA identifier: | F8: =IFERROR(IF(F6="", "", INDEX(LEA_identifier,MATCH($F$6,LEA_Name,0))),"") ->  | R8: Invalid data elements | T8: =COUNTIF(Y12:Y61,"?*") -> 0 | U8: =COUNTIF(Y66:Y166,"?*") -> 0 | V8: =COUNTIF(Y170:Y245,"?*") -> 0 | W8: =COUNTIF(Y249:Y325,"?*") -> 0 | X8: =COUNTIF(Y329:Y354,"?*") -> 0 | Y8: =COUNTIF(Y358:Y361,"?*") -> 0 | AN8: x=OFFSET('Select LEA'!$AN$12,,,COUNTIF('Select LEA'!$AN$12:$AN$3014,"?*"))
A10: FS005 – Children with Disabilities (IDEA) Removal to Interim Alternative Educational Setting | W10: Data quality checks | AA10: Count of Missing Data: | AB10: =SUM(AE12:AE61) -> 50 | AK10: =COUNTIF(AN12:AN3007,"?*") -> 0 | AN10: x =IFERROR(VLOOKUP(ROWS($AR$13:AR13),$AO$13:$AP$3014,2,0),"") | AV10: FS005 — Children with Disabilities (IDEA) Removal to Interim Alternative Educational Setting | BR10: FS006 — Children with Disabilities (IDEA) Suspensions/Expulsions | CN10: FS007 — Children with Disabilities (IDEA) Reasons for Unilateral Removal | DJ10: FS088 — Children with Disabilities (IDEA) Disciplinary Removals | DY10: FS143 — Children with Disabilities (IDEA) Total Disciplinary Removals | EN10: FS144 — Educational Services During Expulsions
A11: File record number | B11: State code | C11: State agency number | D11: LEA identifier (state) | E11: Filler | F11: Table name | G11: Sex (membership) | H11: Racial ethnic | I11: English learner status (both) | J11: Filler | K11: Filler | L11: Filler | M11: Filler | N11: Filler | O11: Filler | P11: Disability category (IDEA) | Q11: Filler | R11: Interim removal (IDEA) | S11: Total indicator | T11: Explanation | U11: Student count | W11: Data elements not included for this LEA (formatted) | X11: Duplicate row elements | Y11: Invalid data elements | AA11: Missing Data | AB11: Current Listing | AC11: Master Listing (For lookup) | AD11: Master Listing (For output) | AE11: Is Missing Data Element | AF11: Current Listing (For output) | AG11: Current Listing for INDEX | AJ11: LEA identifier (state) | AV11: File record number | AW11: State code | AX11: State agency number | AY11: LEA identifier (state) | AZ11: Filler | BA11: Table name | BB11: Sex (membership) | BC11: Racial ethnic | BD11: English learner status (both) | BE11: Filler | BF11: Filler | BG11: Filler | BH11: Filler | BI11: Filler | BJ11: Filler | BK11: Disability category (IDEA) | BL11: Filler | BM11: Interim removal (IDEA) | BN11: Total indicator | BO11: Explanation | BP11: Student count | BR11: File record number | BS11: State code | BT11: State agency number | BU11: LEA identifier (state) | BV11: Filler | BW11: Table name | BX11: Removal length (suspensions/ expulsions) | BY11: Racial ethnic | BZ11: Sex (membership) | CA11: Filler | CB11: Filler | CC11: Filler | CD11: Filler | CE11: Filler | CF11: Filler | CG11: Disability category (IDEA) | CH11: English learner status (both) | CI11: Discipline method (suspension/ expulsion) | CJ11: Total indicator | CK11: Explanation | CL11: Student count | CN11: File record number | CO11: State code | CP11: State agency number | CQ11: LEA identifier (state) | CR11: Filler | CS11: Table name | CT11: Filler | CU11: Racial ethnic | CV11: Sex (membership) | CW11: Filler | CX11: Filler | CY11: Filler | CZ11: Filler | DA11: Filler | DB11: Filler | DC11: Disability category (IDEA) | DD11: English learner status (both) | DE11: Interim removal reason (IDEA) | DF11: Total indicator | DG11: Explanation | DH11: Student count | DJ11: File record number | DK11: State code | DL11: State agency number | DM11: LEA identifier (state) | DN11: Filler | DO11: Table name | DP11: Sex (membership) | DQ11: Racial ethnic | DR11: Removal length (IDEA) | DS11: Disability category (IDEA) | DT11: English learner status (Both) | DU11: Total Indicator | DV11: Explanation | DW11: Student count | DY11: File record number | DZ11: State code | EA11: State agency number | EB11: LEA identifier (state) | EC11: Filler | ED11: Table name | EE11: Sex (membership) | EF11: Racial ethnic | EG11: English learner status (both) | EH11: Disability category (IDEA) | EI11: Filler | EJ11: Total indicator | EK11: Explanation | EL11: Student count | EN11: File record number | EO11: State code | EP11: State agency number | EQ11: LEA identifier (state) | ER11: Filler | ES11: Table name | ET11: Disability category (IDEA) | EU11: Educational services | EV11: Filler | EW11: Total indicator | EX11: Explanation | EY11: Student count
A12: =IF(AV12="","",AV12) ->  | B12: =IF(AW12="","",AW12) ->  | W12: =IFERROR(INDEX(MissingDataC005, SMALL(IF(ISBLANK(MissingDataC005)+ISERROR(MissingDataC005)+LEN(MissingDataC005)=0, "", ROW(MissingDataC005)-MIN(ROW(MissingDataC005))+1), ROW(1:1))),"") -> F____REMDW_N | X12: =IF(LEN(AB12)=0,"",IF(COUNTIF(CurrentListingC005,AB12)>1,AF12,"")) ->  | Y12: =IF(LEN(AB12)=0,"",IF(ISNA(MATCH(AB12,MasterListingC005,0)),AF12,"")) ->  | AA12: =IF(LEN(AD12)=0,"",IF(ISNA(MATCH(AC12,CurrentListingC005,0)),AD12,"")) -> F____REMDW_N | AB12: =G12&H12&I12&P12&R12&S12 ->  | AC12: FREMDWN | AD12: F____REMDW_N | AE12: =IF(LEN(W12)>0,1,0) -> 1 | AF12: =G12&"_"&H12&"_"&I12&"_"&P12&"_"&R12&"_"&S12 -> _____ | AG12: =IFERROR(INDEX(MissingDataC143, SMALL(IF(ISBLANK(MissingDataC143)+ISERROR(MissingDataC143)+LEN(MissingDataC143)=0, "", ROW(MissingDataC143)-MIN(ROW(MissingDataC143))+1), ROW(#REF!))),"") ->  | AJ12: =F8 ->  | AK12: =IF(ISNUMBER(SEARCH($F$6,AL12)),MAX($AK$11:AK11)+1,0) -> 1 | AL12: =LEA_Name -> 0 | AM12: =ROWS($AM$12:AM12) -> 1 | AN12: =IFERROR(VLOOKUP(ROWS($AN$12:AN12),$AK$12:$AL$3007,2,0),"") -> 0
A13: =IF(AV13="","",AV13) ->  | B13: =IF(AW13="","",AW13) ->  | C13: =IF(AX13="","",AX13) ->  | D13: =IF(AY13="","",AY13) ->  | E13: =IF(AZ13="","",AZ13) ->  | F13: =IF(BA13="","",BA13) ->  | G13: =IF(BB13="","",BB13) ->  | H13: =IF(BC13="","",BC13) ->  | I13: =IF(BD13="","",BD13) ->  | J13: =IF(BE13="","",BE13) ->  | K13: =IF(BF13="","",BF13) ->  | L13: =IF(BG13="","",BG13) ->  | M13: =IF(BH13="","",BH13) ->  | N13: =IF(BI13="","",BI13) ->  | O13: =IF(BJ13="","",BJ13) ->  | P13: =IF(BK13="","",BK13) ->  | Q13: =IF(BL13="","",BL13) ->  | R13: =IF(BM13="","",BM13) ->  | S13: =IF(BN13="","",BN13) ->  | T13: =IF(BO13="","",BO13) ->  | U13: =IF(BP13="","",BP13) ->  | W13: =IFERROR(INDEX(MissingDataC005, SMALL(IF(ISBLANK(MissingDataC005)+ISERROR(MissingDataC005)+LEN(MissingDataC005)=0, "", ROW(MissingDataC005)-MIN(ROW(MissingDataC005))+1), ROW(2:2))),"") -> F____REMHO_N | AA13: =IF(LEN(AD13)=0,"",IF(ISNA(MATCH(AC13,CurrentListingC005,0)),AD13,"")) -> F____REMHO_N | AB13: =G13&H13&I13&P13&R13&S13 ->  | AC13: FREMHON | AD13: F____REMHO_N | AE13: =IF(LEN(W13)>0,1,0) -> 1 | AF13: =G13&"_"&H13&"_"&I13&"_"&P13&"_"&R13&"_"&S13 -> _____ | AK13: =IF(ISNUMBER(SEARCH($F$6,AL13)),MAX($AK$11:AK12)+1,0) -> 2 | AL13: 0 | AM13: =ROWS($AM$12:AM13) -> 2 | AN13: =IFERROR(VLOOKUP(ROWS($AN$12:AN13),$AK$12:$AL$3007,2,0),"") -> 0
W14: =IFERROR(INDEX(MissingDataC005, SMALL(IF(ISBLANK(MissingDataC005)+ISERROR(MissingDataC005)+LEN(MissingDataC005)=0, "", ROW(MissingDataC005)-MIN(ROW(MissingDataC005))+1), ROW(3:3))),"") -> M____REMDW_N | AA14: M____REMDW_N | AC14: IDEMDWN | AD14: M____REMDW_N | AE14: 1 | AF14: _____ | AK14: =IF(ISNUMBER(SEARCH($F$6,AL14)),MAX($AK$11:AK13)+1,0) -> 3 | AL14: 0 | AM14: =ROWS($AM$12:AM14) -> 3 | AN14: =IFERROR(VLOOKUP(ROWS($AN$12:AN14),$AK$12:$AL$3007,2,0),"") -> 0
W15: =IFERROR(INDEX(MissingDataC005, SMALL(IF(ISBLANK(MissingDataC005)+ISERROR(MissingDataC005)+LEN(MissingDataC005)=0, "", ROW(MissingDataC005)-MIN(ROW(MissingDataC005))+1), ROW(4:4))),"") -> M____REMHO_N | AA15: M____REMHO_N | AC15: IDEMHON | AD15: M____REMHO_N | AE15: 1 | AF15: _____ | AK15: =IF(ISNUMBER(SEARCH($F$6,AL15)),MAX($AK$11:AK14)+1,0) -> 4 | AL15: 0 | AM15: =ROWS($AM$12:AM15) -> 4 | AN15: =IFERROR(VLOOKUP(ROWS($AN$12:AN15),$AK$12:$AL$3007,2,0),"") -> 0
W16: =IFERROR(INDEX(MissingDataC005, SMALL(IF(ISBLANK(MissingDataC005)+ISERROR(MissingDataC005)+LEN(MissingDataC005)=0, "", ROW(MissingDataC005)-MIN(ROW(MissingDataC005))+1), ROW(5:5))),"") -> _AM7___REMDW_N | AA16: _AM7___REMDW_N | AC16: AM7REMDWN | AD16: _AM7___REMDW_N | AE16: 1 | AF16: _____ | AK16: =IF(ISNUMBER(SEARCH($F$6,AL16)),MAX($AK$11:AK15)+1,0) -> 5 | AL16: 0 | AM16: =ROWS($AM$12:AM16) -> 5 | AN16: =IFERROR(VLOOKUP(ROWS($AN$12:AN16),$AK$12:$AL$3007,2,0),"") -> 0
W17: =IFERROR(INDEX(MissingDataC005, SMALL(IF(ISBLANK(MissingDataC005)+ISERROR(MissingDataC005)+LEN(MissingDataC005)=0, "", ROW(MissingDataC005)-MIN(ROW(MissingDataC005))+1), ROW(6:6))),"") -> _AM7___REMHO_N | AA17: _AM7___REMHO_N | AC17: AM7REMHON | AD17: _AM7___REMHO_N | AE17: 1 | AF17: _____ | AK17: =IF(ISNUMBER(SEARCH($F$6,AL17)),MAX($AK$11:AK16)+1,0) -> 6 | AL17: 0 | AM17: =ROWS($AM$12:AM17) -> 6 | AN17: =IFERROR(VLOOKUP(ROWS($AN$12:AN17),$AK$12:$AL$3007,2,0),"") -> 0
W18: =IFERROR(INDEX(MissingDataC005, SMALL(IF(ISBLANK(MissingDataC005)+ISERROR(MissingDataC005)+LEN(MissingDataC005)=0, "", ROW(MissingDataC005)-MIN(ROW(MissingDataC005))+1), ROW(7:7))),"") -> _AS7___REMDW_N | AA18: _AS7___REMDW_N | AC18: AS7REMDWN | AD18: _AS7___REMDW_N | AE18: 1 | AF18: _____ | AK18: =IF(ISNUMBER(SEARCH($F$6,AL18)),MAX($AK$11:AK17)+1,0) -> 7 | AL18: 0 | AM18: =ROWS($AM$12:AM18) -> 7 | AN18: =IFERROR(VLOOKUP(ROWS($AN$12:AN18),$AK$12:$AL$3007,2,0),"") -> 0
W19: =IFERROR(INDEX(MissingDataC005, SMALL(IF(ISBLANK(MissingDataC005)+ISERROR(MissingDataC005)+LEN(MissingDataC005)=0, "", ROW(MissingDataC005)-MIN(ROW(MissingDataC005))+1), ROW(8:8))),"") -> _AS7___REMHO_N | AA19: _AS7___REMHO_N | AC19: AS7REMHON | AD19: _AS7___REMHO_N | AE19: 1 | AF19: _____ | AK19: =IF(ISNUMBER(SEARCH($F$6,AL19)),MAX($AK$11:AK18)+1,0) -> 8 | AL19: 0 | AM19: =ROWS($AM$12:AM19) -> 8 | AN19: =IFERROR(VLOOKUP(ROWS($AN$12:AN19),$AK$12:$AL$3007,2,0),"") -> 0
W20: =IFERROR(INDEX(MissingDataC005, SMALL(IF(ISBLANK(MissingDataC005)+ISERROR(MissingDataC005)+LEN(MissingDataC005)=0, "", ROW(MissingDataC005)-MIN(ROW(MissingDataC005))+1), ROW(9:9))),"") -> _BL7___REMDW_N | AA20: _BL7___REMDW_N | AC20: BL7REMDWN | AD20: _BL7___REMDW_N | AE20: 1 | AF20: _____ | AK20: =IF(ISNUMBER(SEARCH($F$6,AL20)),MAX($AK$11:AK19)+1,0) -> 9 | AL20: 0 | AM20: =ROWS($AM$12:AM20) -> 9 | AN20: =IFERROR(VLOOKUP(ROWS($AN$12:AN20),$AK$12:$AL$3007,2,0),"") -> 0
W21: =IFERROR(INDEX(MissingDataC005, SMALL(IF(ISBLANK(MissingDataC005)+ISERROR(MissingDataC005)+LEN(MissingDataC005)=0, "", ROW(MissingDataC005)-MIN(ROW(MissingDataC005))+1), ROW(10:10))),"") -> _BL7___REMHO_N | AA21: _BL7___REMHO_N | AC21: BL7REMHON | AD21: _BL7___REMHO_N | AE21: 1 | AF21: _____ | AK21: =IF(ISNUMBER(SEARCH($F$6,AL21)),MAX($AK$11:AK20)+1,0) -> 10 | AL21: 0 | AM21: =ROWS($AM$12:AM21) -> 10 | AN21: =IFERROR(VLOOKUP(ROWS($AN$12:AN21),$AK$12:$AL$3007,2,0),"") -> 0
W22: =IFERROR(INDEX(MissingDataC005, SMALL(IF(ISBLANK(MissingDataC005)+ISERROR(MissingDataC005)+LEN(MissingDataC005)=0, "", ROW(MissingDataC005)-MIN(ROW(MissingDataC005))+1), ROW(11:11))),"") -> _HI7___REMDW_N | AA22: _HI7___REMDW_N | AC22: HI7REMDWN | AD22: _HI7___REMDW_N | AE22: 1 | AF22: _____ | AK22: =IF(ISNUMBER(SEARCH($F$6,AL22)),MAX($AK$11:AK21)+1,0) -> 11 | AL22: 0 | AM22: =ROWS($AM$12:AM22) -> 11 | AN22: =IFERROR(VLOOKUP(ROWS($AN$12:AN22),$AK$12:$AL$3007,2,0),"") -> 0
W23: =IFERROR(INDEX(MissingDataC005, SMALL(IF(ISBLANK(MissingDataC005)+ISERROR(MissingDataC005)+LEN(MissingDataC005)=0, "", ROW(MissingDataC005)-MIN(ROW(MissingDataC005))+1), ROW(12:12))),"") -> _HI7___REMHO_N | AA23: _HI7___REMHO_N | AC23: HI7REMHON | AD23: _HI7___REMHO_N | AE23: 1 | AF23: _____ | AK23: =IF(ISNUMBER(SEARCH($F$6,AL23)),MAX($AK$11:AK22)+1,0) -> 12 | AL23: 0 | AM23: =ROWS($AM$12:AM23) -> 12 | AN23: =IFERROR(VLOOKUP(ROWS($AN$12:AN23),$AK$12:$AL$3007,2,0),"") -> 0
W24: =IFERROR(INDEX(MissingDataC005, SMALL(IF(ISBLANK(MissingDataC005)+ISERROR(MissingDataC005)+LEN(MissingDataC005)=0, "", ROW(MissingDataC005)-MIN(ROW(MissingDataC005))+1), ROW(13:13))),"") -> _MU7___REMDW_N | AA24: _MU7___REMDW_N | AC24: MU7REMDWN | AD24: _MU7___REMDW_N | AE24: 1 | AF24: _____ | AK24: =IF(ISNUMBER(SEARCH($F$6,AL24)),MAX($AK$11:AK23)+1,0) -> 13 | AL24: 0 | AM24: =ROWS($AM$12:AM24) -> 13 | AN24: =IFERROR(VLOOKUP(ROWS($AN$12:AN24),$AK$12:$AL$3007,2,0),"") -> 0
W25: =IFERROR(INDEX(MissingDataC005, SMALL(IF(ISBLANK(MissingDataC005)+ISERROR(MissingDataC005)+LEN(MissingDataC005)=0, "", ROW(MissingDataC005)-MIN(ROW(MissingDataC005))+1), ROW(14:14))),"") -> _MU7___REMHO_N | AA25: _MU7___REMHO_N | AC25: MU7REMHON | AD25: _MU7___REMHO_N | AE25: 1 | AF25: _____ | AK25: =IF(ISNUMBER(SEARCH($F$6,AL25)),MAX($AK$11:AK24)+1,0) -> 14 | AL25: 0 | AM25: =ROWS($AM$12:AM25) -> 14 | AN25: =IFERROR(VLOOKUP(ROWS($AN$12:AN25),$AK$12:$AL$3007,2,0),"") -> 0
W26: =IFERROR(INDEX(MissingDataC005, SMALL(IF(ISBLANK(MissingDataC005)+ISERROR(MissingDataC005)+LEN(MissingDataC005)=0, "", ROW(MissingDataC005)-MIN(ROW(MissingDataC005))+1), ROW(15:15))),"") -> _PI7___REMDW_N | AA26: _PI7___REMDW_N | AC26: PI7REMDWN | AD26: _PI7___REMDW_N | AE26: 1 | AF26: _____ | AK26: =IF(ISNUMBER(SEARCH($F$6,AL26)),MAX($AK$11:AK25)+1,0) -> 15 | AL26: 0 | AM26: =ROWS($AM$12:AM26) -> 15 | AN26: =IFERROR(VLOOKUP(ROWS($AN$12:AN26),$AK$12:$AL$3007,2,0),"") -> 0
W27: =IFERROR(INDEX(MissingDataC005, SMALL(IF(ISBLANK(MissingDataC005)+ISERROR(MissingDataC005)+LEN(MissingDataC005)=0, "", ROW(MissingDataC005)-MIN(ROW(MissingDataC005))+1), ROW(16:16))),"") -> _PI7___REMHO_N | AA27: _PI7___REMHO_N | AC27: PI7REMHON | AD27: _PI7___REMHO_N | AE27: 1 | AF27: _____ | AK27: =IF(ISNUMBER(SEARCH($F$6,AL27)),MAX($AK$11:AK26)+1,0) -> 16 | AL27: 0 | AM27: =ROWS($AM$12:AM27) -> 16 | AN27: =IFERROR(VLOOKUP(ROWS($AN$12:AN27),$AK$12:$AL$3007,2,0),"") -> 0
W28: =IFERROR(INDEX(MissingDataC005, SMALL(IF(ISBLANK(MissingDataC005)+ISERROR(MissingDataC005)+LEN(MissingDataC005)=0, "", ROW(MissingDataC005)-MIN(ROW(MissingDataC005))+1), ROW(17:17))),"") -> _WH7___REMDW_N | AA28: _WH7___REMDW_N | AC28: WH7REMDWN | AD28: _WH7___REMDW_N | AE28: 1 | AF28: _____ | AK28: =IF(ISNUMBER(SEARCH($F$6,AL28)),MAX($AK$11:AK27)+1,0) -> 17 | AL28: 0 | AM28: =ROWS($AM$12:AM28) -> 17 | AN28: =IFERROR(VLOOKUP(ROWS($AN$12:AN28),$AK$12:$AL$3007,2,0),"") -> 0
W29: =IFERROR(INDEX(MissingDataC005, SMALL(IF(ISBLANK(MissingDataC005)+ISERROR(MissingDataC005)+LEN(MissingDataC005)=0, "", ROW(MissingDataC005)-MIN(ROW(MissingDataC005))+1), ROW(18:18))),"") -> _WH7___REMHO_N | AA29: _WH7___REMHO_N | AC29: WH7REMHON | AD29: _WH7___REMHO_N | AE29: 1 | AF29: _____ | AK29: =IF(ISNUMBER(SEARCH($F$6,AL29)),MAX($AK$11:AK28)+1,0) -> 18 | AL29: 0 | AM29: =ROWS($AM$12:AM29) -> 18 | AN29: =IFERROR(VLOOKUP(ROWS($AN$12:AN29),$AK$12:$AL$3007,2,0),"") -> 0
W30: =IFERROR(INDEX(MissingDataC005, SMALL(IF(ISBLANK(MissingDataC005)+ISERROR(MissingDataC005)+LEN(MissingDataC005)=0, "", ROW(MissingDataC005)-MIN(ROW(MissingDataC005))+1), ROW(19:19))),"") -> __LEP__REMDW_N | AA30: __LEP__REMDW_N | AC30: LEPREMDWN | AD30: __LEP__REMDW_N | AE30: 1 | AF30: _____ | AK30: =IF(ISNUMBER(SEARCH($F$6,AL30)),MAX($AK$11:AK29)+1,0) -> 19 | AL30: 0 | AM30: =ROWS($AM$12:AM30) -> 19 | AN30: =IFERROR(VLOOKUP(ROWS($AN$12:AN30),$AK$12:$AL$3007,2,0),"") -> 0
W31: =IFERROR(INDEX(MissingDataC005, SMALL(IF(ISBLANK(MissingDataC005)+ISERROR(MissingDataC005)+LEN(MissingDataC005)=0, "", ROW(MissingDataC005)-MIN(ROW(MissingDataC005))+1), ROW(20:20))),"") -> __LEP__REMHO_N | AA31: __LEP__REMHO_N | AC31: LEPREMHON | AD31: __LEP__REMHO_N | AE31: 1 | AF31: _____ | AK31: =IF(ISNUMBER(SEARCH($F$6,AL31)),MAX($AK$11:AK30)+1,0) -> 20 | AL31: 0 | AM31: =ROWS($AM$12:AM31) -> 20 | AN31: =IFERROR(VLOOKUP(ROWS($AN$12:AN31),$AK$12:$AL$3007,2,0),"") -> 0
W32: =IFERROR(INDEX(MissingDataC005, SMALL(IF(ISBLANK(MissingDataC005)+ISERROR(MissingDataC005)+LEN(MissingDataC005)=0, "", ROW(MissingDataC005)-MIN(ROW(MissingDataC005))+1), ROW(21:21))),"") -> __NLEP__REMDW_N | AA32: __NLEP__REMDW_N | AC32: NLEPREMDWN | AD32: __NLEP__REMDW_N | AE32: 1 | AF32: _____ | AK32: =IF(ISNUMBER(SEARCH($F$6,AL32)),MAX($AK$11:AK31)+1,0) -> 21 | AL32: 0 | AM32: =ROWS($AM$12:AM32) -> 21 | AN32: =IFERROR(VLOOKUP(ROWS($AN$12:AN32),$AK$12:$AL$3007,2,0),"") -> 0
W33: =IFERROR(INDEX(MissingDataC005, SMALL(IF(ISBLANK(MissingDataC005)+ISERROR(MissingDataC005)+LEN(MissingDataC005)=0, "", ROW(MissingDataC005)-MIN(ROW(MissingDataC005))+1), ROW(22:22))),"") -> __NLEP__REMHO_N | AA33: __NLEP__REMHO_N | AC33: NLEPREMHON | AD33: __NLEP__REMHO_N | AE33: 1 | AF33: _____ | AK33: =IF(ISNUMBER(SEARCH($F$6,AL33)),MAX($AK$11:AK32)+1,0) -> 22 | AL33: 0 | AM33: =ROWS($AM$12:AM33) -> 22 | AN33: =IFERROR(VLOOKUP(ROWS($AN$12:AN33),$AK$12:$AL$3007,2,0),"") -> 0
W34: =IFERROR(INDEX(MissingDataC005, SMALL(IF(ISBLANK(MissingDataC005)+ISERROR(MissingDataC005)+LEN(MissingDataC005)=0, "", ROW(MissingDataC005)-MIN(ROW(MissingDataC005))+1), ROW(23:23))),"") -> ___AUT_REMDW_N | AA34: ___AUT_REMDW_N | AC34: AUTREMDWN | AD34: ___AUT_REMDW_N | AE34: 1 | AF34: _____ | AK34: =IF(ISNUMBER(SEARCH($F$6,AL34)),MAX($AK$11:AK33)+1,0) -> 23 | AL34: 0 | AM34: =ROWS($AM$12:AM34) -> 23 | AN34: =IFERROR(VLOOKUP(ROWS($AN$12:AN34),$AK$12:$AL$3007,2,0),"") -> 0
W35: =IFERROR(INDEX(MissingDataC005, SMALL(IF(ISBLANK(MissingDataC005)+ISERROR(MissingDataC005)+LEN(MissingDataC005)=0, "", ROW(MissingDataC005)-MIN(ROW(MissingDataC005))+1), ROW(24:24))),"") -> ___AUT_REMHO_N | AA35: ___AUT_REMHO_N | AC35: AUTREMHON | AD35: ___AUT_REMHO_N | AE35: 1 | AF35: _____ | AK35: =IF(ISNUMBER(SEARCH($F$6,AL35)),MAX($AK$11:AK34)+1,0) -> 24 | AL35: 0 | AM35: =ROWS($AM$12:AM35) -> 24 | AN35: =IFERROR(VLOOKUP(ROWS($AN$12:AN35),$AK$12:$AL$3007,2,0),"") -> 0
W36: =IFERROR(INDEX(MissingDataC005, SMALL(IF(ISBLANK(MissingDataC005)+ISERROR(MissingDataC005)+LEN(MissingDataC005)=0, "", ROW(MissingDataC005)-MIN(ROW(MissingDataC005))+1), ROW(25:25))),"") -> ___DB_REMDW_N | AA36: ___DB_REMDW_N | AC36: DBREMDWN | AD36: ___DB_REMDW_N | AE36: 1 | AF36: _____ | AK36: =IF(ISNUMBER(SEARCH($F$6,AL36)),MAX($AK$11:AK35)+1,0) -> 25 | AL36: 0 | AM36: =ROWS($AM$12:AM36) -> 25 | AN36: =IFERROR(VLOOKUP(ROWS($AN$12:AN36),$AK$12:$AL$3007,2,0),"") -> 0
W37: =IFERROR(INDEX(MissingDataC005, SMALL(IF(ISBLANK(MissingDataC005)+ISERROR(MissingDataC005)+LEN(MissingDataC005)=0, "", ROW(MissingDataC005)-MIN(ROW(MissingDataC005))+1), ROW(26:26))),"") -> ___DB_REMHO_N | AA37: ___DB_REMHO_N | AC37: DBREMHON | AD37: ___DB_REMHO_N | AE37: 1 | AF37: _____ | AK37: =IF(ISNUMBER(SEARCH($F$6,AL37)),MAX($AK$11:AK36)+1,0) -> 26 | AL37: 0 | AM37: =ROWS($AM$12:AM37) -> 26 | AN37: =IFERROR(VLOOKUP(ROWS($AN$12:AN37),$AK$12:$AL$3007,2,0),"") -> 0
W38: =IFERROR(INDEX(MissingDataC005, SMALL(IF(ISBLANK(MissingDataC005)+ISERROR(MissingDataC005)+LEN(MissingDataC005)=0, "", ROW(MissingDataC005)-MIN(ROW(MissingDataC005))+1), ROW(27:27))),"") -> ___DD_REMDW_N | AA38: ___DD_REMDW_N | AC38: DDREMDWN | AD38: ___DD_REMDW_N | AE38: 1 | AF38: _____ | AK38: =IF(ISNUMBER(SEARCH($F$6,AL38)),MAX($AK$11:AK37)+1,0) -> 27 | AL38: 0 | AM38: =ROWS($AM$12:AM38) -> 27 | AN38: =IFERROR(VLOOKUP(ROWS($AN$12:AN38),$AK$12:$AL$3007,2,0),"") -> 0
W39: =IFERROR(INDEX(MissingDataC005, SMALL(IF(ISBLANK(MissingDataC005)+ISERROR(MissingDataC005)+LEN(MissingDataC005)=0, "", ROW(MissingDataC005)-MIN(ROW(MissingDataC005))+1), ROW(28:28))),"") -> ___DD_REMHO_N | AA39: ___DD_REMHO_N | AC39: DDREMHON | AD39: ___DD_REMHO_N | AE39: 1 | AF39: _____ | AK39: =IF(ISNUMBER(SEARCH($F$6,AL39)),MAX($AK$11:AK38)+1,0) -> 28 | AL39: 0 | AM39: =ROWS($AM$12:AM39) -> 28 | AN39: =IFERROR(VLOOKUP(ROWS($AN$12:AN39),$AK$12:$AL$3007,2,0),"") -> 0
W40: =IFERROR(INDEX(MissingDataC005, SMALL(IF(ISBLANK(MissingDataC005)+ISERROR(MissingDataC005)+LEN(MissingDataC005)=0, "", ROW(MissingDataC005)-MIN(ROW(MissingDataC005))+1), ROW(29:29))),"") -> ___EMN_REMDW_N | AA40: ___EMN_REMDW_N | AC40: EMNREMDWN | AD40: ___EMN_REMDW_N | AE40: 1 | AF40: _____ | AK40: =IF(ISNUMBER(SEARCH($F$6,AL40)),MAX($AK$11:AK39)+1,0) -> 29 | AL40: 0 | AM40: =ROWS($AM$12:AM40) -> 29 | AN40: =IFERROR(VLOOKUP(ROWS($AN$12:AN40),$AK$12:$AL$3007,2,0),"") -> 0
W41: =IFERROR(INDEX(MissingDataC005, SMALL(IF(ISBLANK(MissingDataC005)+ISERROR(MissingDataC005)+LEN(MissingDataC005)=0, "", ROW(MissingDataC005)-MIN(ROW(MissingDataC005))+1), ROW(30:30))),"") -> ___EMN_REMHO_N | AA41: ___EMN_REMHO_N | AC41: EMNREMHON | AD41: ___EMN_REMHO_N | AE41: 1 | AF41: _____ | AK41: =IF(ISNUMBER(SEARCH($F$6,AL41)),MAX($AK$11:AK40)+1,0) -> 30 | AL41: 0 | AM41: =ROWS($AM$12:AM41) -> 30 | AN41: =IFERROR(VLOOKUP(ROWS($AN$12:AN41),$AK$12:$AL$3007,2,0),"") -> 0
W42: =IFERROR(INDEX(MissingDataC005, SMALL(IF(ISBLANK(MissingDataC005)+ISERROR(MissingDataC005)+LEN(MissingDataC005)=0, "", ROW(MissingDataC005)-MIN(ROW(MissingDataC005))+1), ROW(31:31))),"") -> ___HI_REMDW_N | AA42: ___HI_REMDW_N | AC42: HIREMDWN | AD42: ___HI_REMDW_N | AE42: 1 | AF42: _____ | AK42: =IF(ISNUMBER(SEARCH($F$6,AL42)),MAX($AK$11:AK41)+1,0) -> 31 | AL42: 0 | AM42: =ROWS($AM$12:AM42) -> 31 | AN42: =IFERROR(VLOOKUP(ROWS($AN$12:AN42),$AK$12:$AL$3007,2,0),"") -> 0
W43: =IFERROR(INDEX(MissingDataC005, SMALL(IF(ISBLANK(MissingDataC005)+ISERROR(MissingDataC005)+LEN(MissingDataC005)=0, "", ROW(MissingDataC005)-MIN(ROW(MissingDataC005))+1), ROW(32:32))),"") -> ___HI_REMHO_N | AA43: ___HI_REMHO_N | AC43: HIREMHON | AD43: ___HI_REMHO_N | AE43: 1 | AF43: _____ | AK43: =IF(ISNUMBER(SEARCH($F$6,AL43)),MAX($AK$11:AK42)+1,0) -> 32 | AL43: 0 | AM43: =ROWS($AM$12:AM43) -> 32 | AN43: =IFERROR(VLOOKUP(ROWS($AN$12:AN43),$AK$12:$AL$3007,2,0),"") -> 0
W44: =IFERROR(INDEX(MissingDataC005, SMALL(IF(ISBLANK(MissingDataC005)+ISERROR(MissingDataC005)+LEN(MissingDataC005)=0, "", ROW(MissingDataC005)-MIN(ROW(MissingDataC005))+1), ROW(33:33))),"") -> ___MD_REMDW_N | AA44: ___MD_REMDW_N | AC44: MDREMDWN | AD44: ___MD_REMDW_N | AE44: 1 | AF44: _____ | AK44: =IF(ISNUMBER(SEARCH($F$6,AL44)),MAX($AK$11:AK43)+1,0) -> 33 | AL44: 0 | AM44: =ROWS($AM$12:AM44) -> 33 | AN44: =IFERROR(VLOOKUP(ROWS($AN$12:AN44),$AK$12:$AL$3007,2,0),"") -> 0
W45: =IFERROR(INDEX(MissingDataC005, SMALL(IF(ISBLANK(MissingDataC005)+ISERROR(MissingDataC005)+LEN(MissingDataC005)=0, "", ROW(MissingDataC005)-MIN(ROW(MissingDataC005))+1), ROW(34:34))),"") -> ___MD_REMHO_N | AA45: ___MD_REMHO_N | AC45: MDREMHON | AD45: ___MD_REMHO_N | AE45: 1 | AF45: _____ | AK45: =IF(ISNUMBER(SEARCH($F$6,AL45)),MAX($AK$11:AK44)+1,0) -> 34 | AL45: 0 | AM45: =ROWS($AM$12:AM45) -> 34 | AN45: =IFERROR(VLOOKUP(ROWS($AN$12:AN45),$AK$12:$AL$3007,2,0),"") -> 0
W46: =IFERROR(INDEX(MissingDataC005, SMALL(IF(ISBLANK(MissingDataC005)+ISERROR(MissingDataC005)+LEN(MissingDataC005)=0, "", ROW(MissingDataC005)-MIN(ROW(MissingDataC005))+1), ROW(35:35))),"") -> ___ID_REMDW_N | AA46: ___ID_REMDW_N | AC46: IDREMDWN | AD46: ___ID_REMDW_N | AE46: 1 | AF46: _____ | AK46: =IF(ISNUMBER(SEARCH($F$6,AL46)),MAX($AK$11:AK45)+1,0) -> 35 | AL46: 0 | AM46: =ROWS($AM$12:AM46) -> 35 | AN46: =IFERROR(VLOOKUP(ROWS($AN$12:AN46),$AK$12:$AL$3007,2,0),"") -> 0
W47: =IFERROR(INDEX(MissingDataC005, SMALL(IF(ISBLANK(MissingDataC005)+ISERROR(MissingDataC005)+LEN(MissingDataC005)=0, "", ROW(MissingDataC005)-MIN(ROW(MissingDataC005))+1), ROW(36:36))),"") -> ___ID_REMHO_N | AA47: ___ID_REMHO_N | AC47: IDREMHON | AD47: ___ID_REMHO_N | AE47: 1 | AF47: _____ | AK47: =IF(ISNUMBER(SEARCH($F$6,AL47)),MAX($AK$11:AK46)+1,0) -> 36 | AL47: 0 | AM47: =ROWS($AM$12:AM47) -> 36 | AN47: =IFERROR(VLOOKUP(ROWS($AN$12:AN47),$AK$12:$AL$3007,2,0),"") -> 0
W48: =IFERROR(INDEX(MissingDataC005, SMALL(IF(ISBLANK(MissingDataC005)+ISERROR(MissingDataC005)+LEN(MissingDataC005)=0, "", ROW(MissingDataC005)-MIN(ROW(MissingDataC005))+1), ROW(37:37))),"") -> ___OHI_REMDW_N | AA48: ___OHI_REMDW_N | AC48: OHIREMDWN | AD48: ___OHI_REMDW_N | AE48: 1 | AF48: _____ | AK48: =IF(ISNUMBER(SEARCH($F$6,AL48)),MAX($AK$11:AK47)+1,0) -> 37 | AL48: 0 | AM48: =ROWS($AM$12:AM48) -> 37 | AN48: =IFERROR(VLOOKUP(ROWS($AN$12:AN48),$AK$12:$AL$3007,2,0),"") -> 0
W49: =IFERROR(INDEX(MissingDataC005, SMALL(IF(ISBLANK(MissingDataC005)+ISERROR(MissingDataC005)+LEN(MissingDataC005)=0, "", ROW(MissingDataC005)-MIN(ROW(MissingDataC005))+1), ROW(38:38))),"") -> ___OHI_REMHO_N | AA49: ___OHI_REMHO_N | AC49: OHIREMHON | AD49: ___OHI_REMHO_N | AE49: 1 | AF49: _____ | AK49: =IF(ISNUMBER(SEARCH($F$6,AL49)),MAX($AK$11:AK48)+1,0) -> 38 | AL49: 0 | AM49: =ROWS($AM$12:AM49) -> 38 | AN49: =IFERROR(VLOOKUP(ROWS($AN$12:AN49),$AK$12:$AL$3007,2,0),"") -> 0
W50: =IFERROR(INDEX(MissingDataC005, SMALL(IF(ISBLANK(MissingDataC005)+ISERROR(MissingDataC005)+LEN(MissingDataC005)=0, "", ROW(MissingDataC005)-MIN(ROW(MissingDataC005))+1), ROW(39:39))),"") -> ___OI_REMDW_N | AA50: ___OI_REMDW_N | AC50: OIREMDWN | AD50: ___OI_REMDW_N | AE50: 1 | AF50: _____ | AK50: =IF(ISNUMBER(SEARCH($F$6,AL50)),MAX($AK$11:AK49)+1,0) -> 39 | AL50: 0 | AM50: =ROWS($AM$12:AM50) -> 39 | AN50: =IFERROR(VLOOKUP(ROWS($AN$12:AN50),$AK$12:$AL$3007,2,0),"") -> 0
W51: =IFERROR(INDEX(MissingDataC005, SMALL(IF(ISBLANK(MissingDataC005)+ISERROR(MissingDataC005)+LEN(MissingDataC005)=0, "", ROW(MissingDataC005)-MIN(ROW(MissingDataC005))+1), ROW(40:40))),"") -> ___OI_REMHO_N | AA51: ___OI_REMHO_N | AC51: OIREMHON | AD51: ___OI_REMHO_N | AE51: 1 | AF51: _____ | AK51: =IF(ISNUMBER(SEARCH($F$6,AL51)),MAX($AK$11:AK50)+1,0) -> 40 | AL51: 0 | AM51: =ROWS($AM$12:AM51) -> 40 | AN51: =IFERROR(VLOOKUP(ROWS($AN$12:AN51),$AK$12:$AL$3007,2,0),"") -> 0
W52: =IFERROR(INDEX(MissingDataC005, SMALL(IF(ISBLANK(MissingDataC005)+ISERROR(MissingDataC005)+LEN(MissingDataC005)=0, "", ROW(MissingDataC005)-MIN(ROW(MissingDataC005))+1), ROW(41:41))),"") -> ___SLD_REMDW_N | AA52: ___SLD_REMDW_N | AC52: SLDREMDWN | AD52: ___SLD_REMDW_N | AE52: 1 | AF52: _____ | AK52: =IF(ISNUMBER(SEARCH($F$6,AL52)),MAX($AK$11:AK51)+1,0) -> 41 | AL52: 0 | AM52: =ROWS($AM$12:AM52) -> 41 | AN52: =IFERROR(VLOOKUP(ROWS($AN$12:AN52),$AK$12:$AL$3007,2,0),"") -> 0
W53: =IFERROR(INDEX(MissingDataC005, SMALL(IF(ISBLANK(MissingDataC005)+ISERROR(MissingDataC005)+LEN(MissingDataC005)=0, "", ROW(MissingDataC005)-MIN(ROW(MissingDataC005))+1), ROW(42:42))),"") -> ___SLD_REMHO_N | AA53: ___SLD_REMHO_N | AC53: SLDREMHON | AD53: ___SLD_REMHO_N | AE53: 1 | AF53: _____ | AK53: =IF(ISNUMBER(SEARCH($F$6,AL53)),MAX($AK$11:AK52)+1,0) -> 42 | AL53: 0 | AM53: =ROWS($AM$12:AM53) -> 42 | AN53: =IFERROR(VLOOKUP(ROWS($AN$12:AN53),$AK$12:$AL$3007,2,0),"") -> 0
W54: =IFERROR(INDEX(MissingDataC005, SMALL(IF(ISBLANK(MissingDataC005)+ISERROR(MissingDataC005)+LEN(MissingDataC005)=0, "", ROW(MissingDataC005)-MIN(ROW(MissingDataC005))+1), ROW(43:43))),"") -> ___SLI_REMDW_N | AA54: ___SLI_REMDW_N | AC54: SLIREMDWN | AD54: ___SLI_REMDW_N | AE54: 1 | AF54: _____ | AK54: =IF(ISNUMBER(SEARCH($F$6,AL54)),MAX($AK$11:AK53)+1,0) -> 43 | AL54: 0 | AM54: =ROWS($AM$12:AM54) -> 43 | AN54: =IFERROR(VLOOKUP(ROWS($AN$12:AN54),$AK$12:$AL$3007,2,0),"") -> 0
W55: =IFERROR(INDEX(MissingDataC005, SMALL(IF(ISBLANK(MissingDataC005)+ISERROR(MissingDataC005)+LEN(MissingDataC005)=0, "", ROW(MissingDataC005)-MIN(ROW(MissingDataC005))+1), ROW(44:44))),"") -> ___SLI_REMHO_N | AA55: ___SLI_REMHO_N | AC55: SLIREMHON | AD55: ___SLI_REMHO_N | AE55: 1 | AF55: _____ | AK55: =IF(ISNUMBER(SEARCH($F$6,AL55)),MAX($AK$11:AK54)+1,0) -> 44 | AL55: 0 | AM55: =ROWS($AM$12:AM55) -> 44 | AN55: =IFERROR(VLOOKUP(ROWS($AN$12:AN55),$AK$12:$AL$3007,2,0),"") -> 0
W56: =IFERROR(INDEX(MissingDataC005, SMALL(IF(ISBLANK(MissingDataC005)+ISERROR(MissingDataC005)+LEN(MissingDataC005)=0, "", ROW(MissingDataC005)-MIN(ROW(MissingDataC005))+1), ROW(45:45))),"") -> ___TBI_REMDW_N | AA56: ___TBI_REMDW_N | AC56: TBIREMDWN | AD56: ___TBI_REMDW_N | AE56: 1 | AF56: _____ | AK56: =IF(ISNUMBER(SEARCH($F$6,AL56)),MAX($AK$11:AK55)+1,0) -> 45 | AL56: 0 | AM56: =ROWS($AM$12:AM56) -> 45 | AN56: =IFERROR(VLOOKUP(ROWS($AN$12:AN56),$AK$12:$AL$3007,2,0),"") -> 0
W57: =IFERROR(INDEX(MissingDataC005, SMALL(IF(ISBLANK(MissingDataC005)+ISERROR(MissingDataC005)+LEN(MissingDataC005)=0, "", ROW(MissingDataC005)-MIN(ROW(MissingDataC005))+1), ROW(46:46))),"") -> ___TBI_REMHO_N | AA57: ___TBI_REMHO_N | AC57: TBIREMHON | AD57: ___TBI_REMHO_N | AE57: 1 | AF57: _____ | AK57: =IF(ISNUMBER(SEARCH($F$6,AL57)),MAX($AK$11:AK56)+1,0) -> 46 | AL57: 0 | AM57: =ROWS($AM$12:AM57) -> 46 | AN57: =IFERROR(VLOOKUP(ROWS($AN$12:AN57),$AK$12:$AL$3007,2,0),"") -> 0
W58: =IFERROR(INDEX(MissingDataC005, SMALL(IF(ISBLANK(MissingDataC005)+ISERROR(MissingDataC005)+LEN(MissingDataC005)=0, "", ROW(MissingDataC005)-MIN(ROW(MissingDataC005))+1), ROW(47:47))),"") -> ___VI_REMDW_N | AA58: ___VI_REMDW_N | AC58: VIREMDWN | AD58: ___VI_REMDW_N | AE58: 1 | AF58: _____ | AK58: =IF(ISNUMBER(SEARCH($F$6,AL58)),MAX($AK$11:AK57)+1,0) -> 47 | AL58: 0 | AM58: =ROWS($AM$12:AM58) -> 47 | AN58: =IFERROR(VLOOKUP(ROWS($AN$12:AN58),$AK$12:$AL$3007,2,0),"") -> 0
W59: =IFERROR(INDEX(MissingDataC005, SMALL(IF(ISBLANK(MissingDataC005)+ISERROR(MissingDataC005)+LEN(MissingDataC005)=0, "", ROW(MissingDataC005)-MIN(ROW(MissingDataC005))+1), ROW(48:48))),"") -> ___VI_REMHO_N | AA59: ___VI_REMHO_N | AC59: VIREMHON | AD59: ___VI_REMHO_N | AE59: 1 | AF59: _____ | AK59: =IF(ISNUMBER(SEARCH($F$6,AL59)),MAX($AK$11:AK58)+1,0) -> 48 | AL59: 0 | AM59: =ROWS($AM$12:AM59) -> 48 | AN59: =IFERROR(VLOOKUP(ROWS($AN$12:AN59),$AK$12:$AL$3007,2,0),"") -> 0
W60: =IFERROR(INDEX(MissingDataC005, SMALL(IF(ISBLANK(MissingDataC005)+ISERROR(MissingDataC005)+LEN(MissingDataC005)=0, "", ROW(MissingDataC005)-MIN(ROW(MissingDataC005))+1), ROW(49:49))),"") -> ____REMDW_Y | AA60: ____REMDW_Y | AC60: REMDWY | AD60: ____REMDW_Y | AE60: 1 | AF60: _____ | AK60: =IF(ISNUMBER(SEARCH($F$6,AL60)),MAX($AK$11:AK59)+1,0) -> 49 | AL60: 0 | AM60: =ROWS($AM$12:AM60) -> 49 | AN60: =IFERROR(VLOOKUP(ROWS($AN$12:AN60),$AK$12:$AL$3007,2,0),"") -> 0
W61: =IFERROR(INDEX(MissingDataC005, SMALL(IF(ISBLANK(MissingDataC005)+ISERROR(MissingDataC005)+LEN(MissingDataC005)=0, "", ROW(MissingDataC005)-MIN(ROW(MissingDataC005))+1), ROW(50:50))),"") -> ____REMHO_Y | AA61: ____REMHO_Y | AC61: REMHOY | AD61: ____REMHO_Y | AE61: 1 | AF61: _____ | AK61: =IF(ISNUMBER(SEARCH($F$6,AL61)),MAX($AK$11:AK60)+1,0) -> 50 | AL61: 0 | AM61: =ROWS($AM$12:AM61) -> 50 | AN61: =IFERROR(VLOOKUP(ROWS($AN$12:AN61),$AK$12:$AL$3007,2,0),"") -> 0
AK62: =IF(ISNUMBER(SEARCH($F$6,AL62)),MAX($AK$11:AK61)+1,0) -> 51 | AL62: 0 | AM62: =ROWS($AM$12:AM62) -> 51 | AN62: =IFERROR(VLOOKUP(ROWS($AN$12:AN62),$AK$12:$AL$3007,2,0),"") -> 0
AK63: =IF(ISNUMBER(SEARCH($F$6,AL63)),MAX($AK$11:AK62)+1,0) -> 52 | AL63: 0 | AM63: =ROWS($AM$12:AM63) -> 52 | AN63: =IFERROR(VLOOKUP(ROWS($AN$12:AN63),$AK$12:$AL$3007,2,0),"") -> 0
A64: FS006 — Children with Disabilities (IDEA) Suspensions/Expulsions | W64: Data quality checks | AA64: Count of Missing Data: | AB64: =SUM(AE66:AE165) -> 100 | AK64: =IF(ISNUMBER(SEARCH($F$6,AL64)),MAX($AK$11:AK63)+1,0) -> 53 | AL64: 0 | AM64: =ROWS($AM$12:AM64) -> 53 | AN64: =IFERROR(VLOOKUP(ROWS($AN$12:AN64),$AK$12:$AL$3007,2,0),"") -> 0
A65: File record number | B65: State code | C65: State agency number | D65: LEA identifier (state) | E65: Filler | F65: Table name | G65: Removal length (suspensions/ expulsions) | H65: Racial ethnic | I65: Sex (membership) | J65: Filler | K65: Filler | L65: Filler | M65: Filler | N65: Filler | O65: Filler | P65: Disability category (IDEA) | Q65: English learner status (both) | R65: Discipline method (suspension/ expulsion) | S65: Total indicator | T65: Explanation | U65: Student count | W65: Data elements not included for this LEA (formatted) | X65: Duplicate row elements | Y65: Invalid data elements | AA65: Missing Data | AB65: Current Listing | AC65: Master Listing | AD65: Master Listing (For output) | AE65: Is Missing Data Element | AF65: Current Listing (For output) | AG65: Missing Data (ordered) | AK65: =IF(ISNUMBER(SEARCH($F$6,AL65)),MAX($AK$11:AK64)+1,0) -> 54 | AL65: 0 | AM65: =ROWS($AM$12:AM65) -> 54 | AN65: =IFERROR(VLOOKUP(ROWS($AN$12:AN65),$AK$12:$AL$3007,2,0),"") -> 0
A66: =IF(BR12="","",BR12) ->  | B66: =IF(BS12="","",BS12) ->  | W66: =IFERROR(INDEX(MissingDataC006, SMALL(IF(ISBLANK(MissingDataC006)+ISERROR(MissingDataC006)+LEN(MissingDataC006)=0, "", ROW(MissingDataC006)-MIN(ROW(MissingDataC006))+1), ROW(1:1))),"") -> GREATER10___AUT__INSCHOOL_N | AA66: =IF(LEN(AD66)=0,"",IF(ISNA(MATCH(AC66,CurrentListingC006,0)),AD66,"")) -> GREATER10___AUT__INSCHOOL_N | AB66: =G66&H66&I66&P66&Q66&R66&S66 ->  | AC66: GREATER10AUTINSCHOOLN | AD66: GREATER10___AUT__INSCHOOL_N | AE66: =IF(LEN(W66)>0,1,0) -> 1 | AF66: ='FS006'!G13&"_"&'FS006'!H13&"_"&'FS006'!I13&"_"&'FS006'!P13&"_"&'FS006'!Q13&"_"&'FS006'!R13&"_"&'FS006'!S13 -> ______ | AK66: =IF(ISNUMBER(SEARCH($F$6,AL66)),MAX($AK$11:AK65)+1,0) -> 55 | AL66: 0 | AM66: =ROWS($AM$12:AM66) -> 55 | AN66: =IFERROR(VLOOKUP(ROWS($AN$12:AN66),$AK$12:$AL$3007,2,0),"") -> 0
A67: =IF(BR13="","",BR13) ->  | B67: =IF(BS13="","",BS13) ->  | C67: =IF(BT13="","",BT13) ->  | D67: =IF(BU13="","",BU13) ->  | E67: =IF(BV13="","",BV13) ->  | F67: =IF(BW13="","",BW13) ->  | G67: =IF(BX13="","",BX13) ->  | H67: =IF(BY13="","",BY13) ->  | I67: =IF(BZ13="","",BZ13) ->  | J67: =IF(CA13="","",CA13) ->  | K67: =IF(CB13="","",CB13) ->  | L67: =IF(CC13="","",CC13) ->  | M67: =IF(CD13="","",CD13) ->  | N67: =IF(CE13="","",CE13) ->  | O67: =IF(CF13="","",CF13) ->  | P67: =IF(CG13="","",CG13) ->  | Q67: =IF(CH13="","",CH13) ->  | R67: =IF(CI13="","",CI13) ->  | S67: =IF(CJ13="","",CJ13) ->  | T67: =IF(CK13="","",CK13) ->  | U67: =IF(CL13="","",CL13) ->  | W67: =IFERROR(INDEX(MissingDataC006, SMALL(IF(ISBLANK(MissingDataC006)+ISERROR(MissingDataC006)+LEN(MissingDataC006)=0, "", ROW(MissingDataC006)-MIN(ROW(MissingDataC006))+1), ROW(2:2))),"") -> GREATER10___DB__INSCHOOL_N | X67: =IF(LEN(AB67)=0,"",IF(COUNTIF(CurrentListingC006,AB67)>1,AF67,"")) ->  | Y67: =IF(LEN(AB67)=0,"",IF(ISNA(MATCH(AB67,MasterListingC006,0)),AF67,"")) ->  | AA67: GREATER10___DB__INSCHOOL_N | AB67: =G67&H67&I67&P67&Q67&R67&S67 ->  | AC67: GREATER10DBINSCHOOLN | AD67: GREATER10___DB__INSCHOOL_N | AE67: =IF(LEN(W67)>0,1,0) -> 1 | AF67: ='FS006'!G14&"_"&'FS006'!H14&"_"&'FS006'!I14&"_"&'FS006'!P14&"_"&'FS006'!Q14&"_"&'FS006'!R14&"_"&'FS006'!S14 -> ______ | AG67: =IFERROR(INDEX(MissingDataC143, SMALL(IF(ISBLANK(MissingDataC143)+ISERROR(MissingDataC143)+LEN(MissingDataC143)=0, "", ROW(MissingDataC143)-MIN(ROW(MissingDataC143))+1), ROW(54:54))),"") ->  | AK67: =IF(ISNUMBER(SEARCH($F$6,AL67)),MAX($AK$11:AK66)+1,0) -> 56 | AL67: 0 | AM67: =ROWS($AM$12:AM67) -> 56 | AN67: =IFERROR(VLOOKUP(ROWS($AN$12:AN67),$AK$12:$AL$3007,2,0),"") -> 0
W68: =IFERROR(INDEX(MissingDataC006, SMALL(IF(ISBLANK(MissingDataC006)+ISERROR(MissingDataC006)+LEN(MissingDataC006)=0, "", ROW(MissingDataC006)-MIN(ROW(MissingDataC006))+1), ROW(3:3))),"") -> GREATER10___DD__INSCHOOL_N | AA68: GREATER10___DD__INSCHOOL_N | AC68: GREATER10DDINSCHOOLN | AD68: GREATER10___DD__INSCHOOL_N | AE68: =IF(LEN(W68)>0,1,0) -> 1 | AF68: ='FS006'!G15&"_"&'FS006'!H15&"_"&'FS006'!I15&"_"&'FS006'!P15&"_"&'FS006'!Q15&"_"&'FS006'!R15&"_"&'FS006'!S15 -> ______ | AG68: =IFERROR(INDEX(MissingDataC143, SMALL(IF(ISBLANK(MissingDataC143)+ISERROR(MissingDataC143)+LEN(MissingDataC143)=0, "", ROW(MissingDataC143)-MIN(ROW(MissingDataC143))+1), ROW(55:55))),"") ->  | AK68: =IF(ISNUMBER(SEARCH($F$6,AL68)),MAX($AK$11:AK67)+1,0) -> 57 | AL68: 0 | AM68: =ROWS($AM$12:AM68) -> 57 | AN68: =IFERROR(VLOOKUP(ROWS($AN$12:AN68),$AK$12:$AL$3007,2,0),"") -> 0
W69: =IFERROR(INDEX(MissingDataC006, SMALL(IF(ISBLANK(MissingDataC006)+ISERROR(MissingDataC006)+LEN(MissingDataC006)=0, "", ROW(MissingDataC006)-MIN(ROW(MissingDataC006))+1), ROW(4:4))),"") -> GREATER10___EMN__INSCHOOL_N | AA69: GREATER10___EMN__INSCHOOL_N | AC69: GREATER10EMNINSCHOOLN | AD69: GREATER10___EMN__INSCHOOL_N | AE69: 1 | AF69: ='FS006'!G16&"_"&'FS006'!H16&"_"&'FS006'!I16&"_"&'FS006'!P16&"_"&'FS006'!Q16&"_"&'FS006'!R16&"_"&'FS006'!S16 -> ______ | AG69: =IFERROR(INDEX(MissingDataC143, SMALL(IF(ISBLANK(MissingDataC143)+ISERROR(MissingDataC143)+LEN(MissingDataC143)=0, "", ROW(MissingDataC143)-MIN(ROW(MissingDataC143))+1), ROW(56:56))),"") ->  | AK69: =IF(ISNUMBER(SEARCH($F$6,AL69)),MAX($AK$11:AK68)+1,0) -> 58 | AL69: 0 | AM69: =ROWS($AM$12:AM69) -> 58 | AN69: =IFERROR(VLOOKUP(ROWS($AN$12:AN69),$AK$12:$AL$3007,2,0),"") -> 0
W70: =IFERROR(INDEX(MissingDataC006, SMALL(IF(ISBLANK(MissingDataC006)+ISERROR(MissingDataC006)+LEN(MissingDataC006)=0, "", ROW(MissingDataC006)-MIN(ROW(MissingDataC006))+1), ROW(5:5))),"") -> GREATER10___HI__INSCHOOL_N | AA70: GREATER10___HI__INSCHOOL_N | AC70: GREATER10HIINSCHOOLN | AD70: GREATER10___HI__INSCHOOL_N | AE70: 1 | AF70: ='FS006'!G17&"_"&'FS006'!H17&"_"&'FS006'!I17&"_"&'FS006'!P17&"_"&'FS006'!Q17&"_"&'FS006'!R17&"_"&'FS006'!S17 -> ______ | AG70: =IFERROR(INDEX(MissingDataC143, SMALL(IF(ISBLANK(MissingDataC143)+ISERROR(MissingDataC143)+LEN(MissingDataC143)=0, "", ROW(MissingDataC143)-MIN(ROW(MissingDataC143))+1), ROW(57:57))),"") ->  | AK70: =IF(ISNUMBER(SEARCH($F$6,AL70)),MAX($AK$11:AK69)+1,0) -> 59 | AL70: 0 | AM70: =ROWS($AM$12:AM70) -> 59 | AN70: =IFERROR(VLOOKUP(ROWS($AN$12:AN70),$AK$12:$AL$3007,2,0),"") -> 0
W71: =IFERROR(INDEX(MissingDataC006, SMALL(IF(ISBLANK(MissingDataC006)+ISERROR(MissingDataC006)+LEN(MissingDataC006)=0, "", ROW(MissingDataC006)-MIN(ROW(MissingDataC006))+1), ROW(6:6))),"") -> GREATER10___MD__INSCHOOL_N | AA71: GREATER10___MD__INSCHOOL_N | AC71: GREATER10MDINSCHOOLN | AD71: GREATER10___MD__INSCHOOL_N | AE71: 1 | AF71: ='FS006'!G18&"_"&'FS006'!H18&"_"&'FS006'!I18&"_"&'FS006'!P18&"_"&'FS006'!Q18&"_"&'FS006'!R18&"_"&'FS006'!S18 -> ______ | AG71: =IFERROR(INDEX(MissingDataC143, SMALL(IF(ISBLANK(MissingDataC143)+ISERROR(MissingDataC143)+LEN(MissingDataC143)=0, "", ROW(MissingDataC143)-MIN(ROW(MissingDataC143))+1), ROW(58:58))),"") ->  | AK71: =IF(ISNUMBER(SEARCH($F$6,AL71)),MAX($AK$11:AK70)+1,0) -> 60 | AL71: 0 | AM71: =ROWS($AM$12:AM71) -> 60 | AN71: =IFERROR(VLOOKUP(ROWS($AN$12:AN71),$AK$12:$AL$3007,2,0),"") -> 0
W72: =IFERROR(INDEX(MissingDataC006, SMALL(IF(ISBLANK(MissingDataC006)+ISERROR(MissingDataC006)+LEN(MissingDataC006)=0, "", ROW(MissingDataC006)-MIN(ROW(MissingDataC006))+1), ROW(7:7))),"") -> GREATER10___ID__INSCHOOL_N | AA72: GREATER10___ID__INSCHOOL_N | AC72: GREATER10IDINSCHOOLN | AD72: GREATER10___ID__INSCHOOL_N | AE72: 1 | AF72: ='FS006'!G19&"_"&'FS006'!H19&"_"&'FS006'!I19&"_"&'FS006'!P19&"_"&'FS006'!Q19&"_"&'FS006'!R19&"_"&'FS006'!S19 -> ______ | AG72: =IFERROR(INDEX(MissingDataC143, SMALL(IF(ISBLANK(MissingDataC143)+ISERROR(MissingDataC143)+LEN(MissingDataC143)=0, "", ROW(MissingDataC143)-MIN(ROW(MissingDataC143))+1), ROW(59:59))),"") ->  | AK72: =IF(ISNUMBER(SEARCH($F$6,AL72)),MAX($AK$11:AK71)+1,0) -> 61 | AL72: 0 | AM72: =ROWS($AM$12:AM72) -> 61 | AN72: =IFERROR(VLOOKUP(ROWS($AN$12:AN72),$AK$12:$AL$3007,2,0),"") -> 0
W73: =IFERROR(INDEX(MissingDataC006, SMALL(IF(ISBLANK(MissingDataC006)+ISERROR(MissingDataC006)+LEN(MissingDataC006)=0, "", ROW(MissingDataC006)-MIN(ROW(MissingDataC006))+1), ROW(8:8))),"") -> GREATER10___OHI__INSCHOOL_N | AA73: GREATER10___OHI__INSCHOOL_N | AC73: GREATER10OHIINSCHOOLN | AD73: GREATER10___OHI__INSCHOOL_N | AE73: 1 | AF73: ='FS006'!G20&"_"&'FS006'!H20&"_"&'FS006'!I20&"_"&'FS006'!P20&"_"&'FS006'!Q20&"_"&'FS006'!R20&"_"&'FS006'!S20 -> ______ | AG73: =IFERROR(INDEX(MissingDataC143, SMALL(IF(ISBLANK(MissingDataC143)+ISERROR(MissingDataC143)+LEN(MissingDataC143)=0, "", ROW(MissingDataC143)-MIN(ROW(MissingDataC143))+1), ROW(60:60))),"") ->  | AK73: =IF(ISNUMBER(SEARCH($F$6,AL73)),MAX($AK$11:AK72)+1,0) -> 62 | AL73: 0 | AM73: =ROWS($AM$12:AM73) -> 62 | AN73: =IFERROR(VLOOKUP(ROWS($AN$12:AN73),$AK$12:$AL$3007,2,0),"") -> 0
W74: =IFERROR(INDEX(MissingDataC006, SMALL(IF(ISBLANK(MissingDataC006)+ISERROR(MissingDataC006)+LEN(MissingDataC006)=0, "", ROW(MissingDataC006)-MIN(ROW(MissingDataC006))+1), ROW(9:9))),"") -> GREATER10___OI__INSCHOOL_N | AA74: GREATER10___OI__INSCHOOL_N | AC74: GREATER10OIINSCHOOLN | AD74: GREATER10___OI__INSCHOOL_N | AE74: 1 | AF74: ='FS006'!G21&"_"&'FS006'!H21&"_"&'FS006'!I21&"_"&'FS006'!P21&"_"&'FS006'!Q21&"_"&'FS006'!R21&"_"&'FS006'!S21 -> ______ | AG74: =IFERROR(INDEX(MissingDataC143, SMALL(IF(ISBLANK(MissingDataC143)+ISERROR(MissingDataC143)+LEN(MissingDataC143)=0, "", ROW(MissingDataC143)-MIN(ROW(MissingDataC143))+1), ROW(61:61))),"") ->  | AK74: =IF(ISNUMBER(SEARCH($F$6,AL74)),MAX($AK$11:AK73)+1,0) -> 63 | AL74: 0 | AM74: =ROWS($AM$12:AM74) -> 63 | AN74: =IFERROR(VLOOKUP(ROWS($AN$12:AN74),$AK$12:$AL$3007,2,0),"") -> 0
W75: =IFERROR(INDEX(MissingDataC006, SMALL(IF(ISBLANK(MissingDataC006)+ISERROR(MissingDataC006)+LEN(MissingDataC006)=0, "", ROW(MissingDataC006)-MIN(ROW(MissingDataC006))+1), ROW(10:10))),"") -> GREATER10___SLD__INSCHOOL_N | AA75: GREATER10___SLD__INSCHOOL_N | AC75: GREATER10SLDINSCHOOLN | AD75: GREATER10___SLD__INSCHOOL_N | AE75: 1 | AF75: ='FS006'!G22&"_"&'FS006'!H22&"_"&'FS006'!I22&"_"&'FS006'!P22&"_"&'FS006'!Q22&"_"&'FS006'!R22&"_"&'FS006'!S22 -> ______ | AG75: =IFERROR(INDEX(MissingDataC143, SMALL(IF(ISBLANK(MissingDataC143)+ISERROR(MissingDataC143)+LEN(MissingDataC143)=0, "", ROW(MissingDataC143)-MIN(ROW(MissingDataC143))+1), ROW(62:62))),"") ->  | AK75: =IF(ISNUMBER(SEARCH($F$6,AL75)),MAX($AK$11:AK74)+1,0) -> 64 | AL75: 0 | AM75: =ROWS($AM$12:AM75) -> 64 | AN75: =IFERROR(VLOOKUP(ROWS($AN$12:AN75),$AK$12:$AL$3007,2,0),"") -> 0
W76: =IFERROR(INDEX(MissingDataC006, SMALL(IF(ISBLANK(MissingDataC006)+ISERROR(MissingDataC006)+LEN(MissingDataC006)=0, "", ROW(MissingDataC006)-MIN(ROW(MissingDataC006))+1), ROW(11:11))),"") -> GREATER10___SLI__INSCHOOL_N | AA76: GREATER10___SLI__INSCHOOL_N | AC76: GREATER10SLIINSCHOOLN | AD76: GREATER10___SLI__INSCHOOL_N | AE76: 1 | AF76: ='FS006'!G23&"_"&'FS006'!H23&"_"&'FS006'!I23&"_"&'FS006'!P23&"_"&'FS006'!Q23&"_"&'FS006'!R23&"_"&'FS006'!S23 -> ______ | AG76: =IFERROR(INDEX(MissingDataC143, SMALL(IF(ISBLANK(MissingDataC143)+ISERROR(MissingDataC143)+LEN(MissingDataC143)=0, "", ROW(MissingDataC143)-MIN(ROW(MissingDataC143))+1), ROW(63:63))),"") ->  | AK76: =IF(ISNUMBER(SEARCH($F$6,AL76)),MAX($AK$11:AK75)+1,0) -> 65 | AL76: 0 | AM76: =ROWS($AM$12:AM76) -> 65 | AN76: =IFERROR(VLOOKUP(ROWS($AN$12:AN76),$AK$12:$AL$3007,2,0),"") -> 0
W77: =IFERROR(INDEX(MissingDataC006, SMALL(IF(ISBLANK(MissingDataC006)+ISERROR(MissingDataC006)+LEN(MissingDataC006)=0, "", ROW(MissingDataC006)-MIN(ROW(MissingDataC006))+1), ROW(12:12))),"") -> GREATER10___TBI__INSCHOOL_N | AA77: GREATER10___TBI__INSCHOOL_N | AC77: GREATER10TBIINSCHOOLN | AD77: GREATER10___TBI__INSCHOOL_N | AE77: 1 | AF77: ='FS006'!G24&"_"&'FS006'!H24&"_"&'FS006'!I24&"_"&'FS006'!P24&"_"&'FS006'!Q24&"_"&'FS006'!R24&"_"&'FS006'!S24 -> ______ | AG77: =IFERROR(INDEX(MissingDataC143, SMALL(IF(ISBLANK(MissingDataC143)+ISERROR(MissingDataC143)+LEN(MissingDataC143)=0, "", ROW(MissingDataC143)-MIN(ROW(MissingDataC143))+1), ROW(64:64))),"") ->  | AK77: =IF(ISNUMBER(SEARCH($F$6,AL77)),MAX($AK$11:AK76)+1,0) -> 66 | AL77: 0 | AM77: =ROWS($AM$12:AM77) -> 66 | AN77: =IFERROR(VLOOKUP(ROWS($AN$12:AN77),$AK$12:$AL$3007,2,0),"") -> 0
W78: =IFERROR(INDEX(MissingDataC006, SMALL(IF(ISBLANK(MissingDataC006)+ISERROR(MissingDataC006)+LEN(MissingDataC006)=0, "", ROW(MissingDataC006)-MIN(ROW(MissingDataC006))+1), ROW(13:13))),"") -> GREATER10___VI__INSCHOOL_N | AA78: GREATER10___VI__INSCHOOL_N | AC78: GREATER10VIINSCHOOLN | AD78: GREATER10___VI__INSCHOOL_N | AE78: 1 | AF78: ='FS006'!G25&"_"&'FS006'!H25&"_"&'FS006'!I25&"_"&'FS006'!P25&"_"&'FS006'!Q25&"_"&'FS006'!R25&"_"&'FS006'!S25 -> ______ | AG78: =IFERROR(INDEX(MissingDataC143, SMALL(IF(ISBLANK(MissingDataC143)+ISERROR(MissingDataC143)+LEN(MissingDataC143)=0, "", ROW(MissingDataC143)-MIN(ROW(MissingDataC143))+1), ROW(65:65))),"") ->  | AK78: =IF(ISNUMBER(SEARCH($F$6,AL78)),MAX($AK$11:AK77)+1,0) -> 67 | AL78: 0 | AM78: =ROWS($AM$12:AM78) -> 67 | AN78: =IFERROR(VLOOKUP(ROWS($AN$12:AN78),$AK$12:$AL$3007,2,0),"") -> 0
W79: =IFERROR(INDEX(MissingDataC006, SMALL(IF(ISBLANK(MissingDataC006)+ISERROR(MissingDataC006)+LEN(MissingDataC006)=0, "", ROW(MissingDataC006)-MIN(ROW(MissingDataC006))+1), ROW(14:14))),"") -> GREATER10_AM7____INSCHOOL_N | AA79: GREATER10_AM7____INSCHOOL_N | AC79: GREATER10AM7INSCHOOLN | AD79: GREATER10_AM7____INSCHOOL_N | AE79: 1 | AF79: ='FS006'!G26&"_"&'FS006'!H26&"_"&'FS006'!I26&"_"&'FS006'!P26&"_"&'FS006'!Q26&"_"&'FS006'!R26&"_"&'FS006'!S26 -> ______ | AG79: =IFERROR(INDEX(MissingDataC143, SMALL(IF(ISBLANK(MissingDataC143)+ISERROR(MissingDataC143)+LEN(MissingDataC143)=0, "", ROW(MissingDataC143)-MIN(ROW(MissingDataC143))+1), ROW(66:66))),"") ->  | AK79: =IF(ISNUMBER(SEARCH($F$6,AL79)),MAX($AK$11:AK78)+1,0) -> 68 | AL79: 0 | AM79: =ROWS($AM$12:AM79) -> 68 | AN79: =IFERROR(VLOOKUP(ROWS($AN$12:AN79),$AK$12:$AL$3007,2,0),"") -> 0
W80: =IFERROR(INDEX(MissingDataC006, SMALL(IF(ISBLANK(MissingDataC006)+ISERROR(MissingDataC006)+LEN(MissingDataC006)=0, "", ROW(MissingDataC006)-MIN(ROW(MissingDataC006))+1), ROW(15:15))),"") -> GREATER10_AS7____INSCHOOL_N | AA80: GREATER10_AS7____INSCHOOL_N | AC80: GREATER10AS7INSCHOOLN | AD80: GREATER10_AS7____INSCHOOL_N | AE80: 1 | AF80: ='FS006'!G27&"_"&'FS006'!H27&"_"&'FS006'!I27&"_"&'FS006'!P27&"_"&'FS006'!Q27&"_"&'FS006'!R27&"_"&'FS006'!S27 -> ______ | AG80: =IFERROR(INDEX(MissingDataC143, SMALL(IF(ISBLANK(MissingDataC143)+ISERROR(MissingDataC143)+LEN(MissingDataC143)=0, "", ROW(MissingDataC143)-MIN(ROW(MissingDataC143))+1), ROW(67:67))),"") ->  | AK80: =IF(ISNUMBER(SEARCH($F$6,AL80)),MAX($AK$11:AK79)+1,0) -> 69 | AL80: 0 | AM80: =ROWS($AM$12:AM80) -> 69 | AN80: =IFERROR(VLOOKUP(ROWS($AN$12:AN80),$AK$12:$AL$3007,2,0),"") -> 0
W81: =IFERROR(INDEX(MissingDataC006, SMALL(IF(ISBLANK(MissingDataC006)+ISERROR(MissingDataC006)+LEN(MissingDataC006)=0, "", ROW(MissingDataC006)-MIN(ROW(MissingDataC006))+1), ROW(16:16))),"") -> GREATER10_BL7____INSCHOOL_N | AA81: GREATER10_BL7____INSCHOOL_N | AC81: GREATER10BL7INSCHOOLN | AD81: GREATER10_BL7____INSCHOOL_N | AE81: 1 | AF81: ='FS006'!G28&"_"&'FS006'!H28&"_"&'FS006'!I28&"_"&'FS006'!P28&"_"&'FS006'!Q28&"_"&'FS006'!R28&"_"&'FS006'!S28 -> ______ | AG81: =IFERROR(INDEX(MissingDataC143, SMALL(IF(ISBLANK(MissingDataC143)+ISERROR(MissingDataC143)+LEN(MissingDataC143)=0, "", ROW(MissingDataC143)-MIN(ROW(MissingDataC143))+1), ROW(68:68))),"") ->  | AK81: =IF(ISNUMBER(SEARCH($F$6,AL81)),MAX($AK$11:AK80)+1,0) -> 70 | AL81: 0 | AM81: =ROWS($AM$12:AM81) -> 70 | AN81: =IFERROR(VLOOKUP(ROWS($AN$12:AN81),$AK$12:$AL$3007,2,0),"") -> 0
W82: =IFERROR(INDEX(MissingDataC006, SMALL(IF(ISBLANK(MissingDataC006)+ISERROR(MissingDataC006)+LEN(MissingDataC006)=0, "", ROW(MissingDataC006)-MIN(ROW(MissingDataC006))+1), ROW(17:17))),"") -> GREATER10_HI7____INSCHOOL_N | AA82: GREATER10_HI7____INSCHOOL_N | AC82: GREATER10HI7INSCHOOLN | AD82: GREATER10_HI7____INSCHOOL_N | AE82: 1 | AF82: ='FS006'!G29&"_"&'FS006'!H29&"_"&'FS006'!I29&"_"&'FS006'!P29&"_"&'FS006'!Q29&"_"&'FS006'!R29&"_"&'FS006'!S29 -> ______ | AG82: =IFERROR(INDEX(MissingDataC143, SMALL(IF(ISBLANK(MissingDataC143)+ISERROR(MissingDataC143)+LEN(MissingDataC143)=0, "", ROW(MissingDataC143)-MIN(ROW(MissingDataC143))+1), ROW(69:69))),"") ->  | AK82: =IF(ISNUMBER(SEARCH($F$6,AL82)),MAX($AK$11:AK81)+1,0) -> 71 | AL82: 0 | AM82: =ROWS($AM$12:AM82) -> 71 | AN82: =IFERROR(VLOOKUP(ROWS($AN$12:AN82),$AK$12:$AL$3007,2,0),"") -> 0
W83: =IFERROR(INDEX(MissingDataC006, SMALL(IF(ISBLANK(MissingDataC006)+ISERROR(MissingDataC006)+LEN(MissingDataC006)=0, "", ROW(MissingDataC006)-MIN(ROW(MissingDataC006))+1), ROW(18:18))),"") -> GREATER10_MU7____INSCHOOL_N | AA83: GREATER10_MU7____INSCHOOL_N | AC83: GREATER10MU7INSCHOOLN | AD83: GREATER10_MU7____INSCHOOL_N | AE83: 1 | AF83: ='FS006'!G30&"_"&'FS006'!H30&"_"&'FS006'!I30&"_"&'FS006'!P30&"_"&'FS006'!Q30&"_"&'FS006'!R30&"_"&'FS006'!S30 -> ______ | AG83: =IFERROR(INDEX(MissingDataC143, SMALL(IF(ISBLANK(MissingDataC143)+ISERROR(MissingDataC143)+LEN(MissingDataC143)=0, "", ROW(MissingDataC143)-MIN(ROW(MissingDataC143))+1), ROW(70:70))),"") ->  | AK83: =IF(ISNUMBER(SEARCH($F$6,AL83)),MAX($AK$11:AK82)+1,0) -> 72 | AL83: 0 | AM83: =ROWS($AM$12:AM83) -> 72 | AN83: =IFERROR(VLOOKUP(ROWS($AN$12:AN83),$AK$12:$AL$3007,2,0),"") -> 0
W84: =IFERROR(INDEX(MissingDataC006, SMALL(IF(ISBLANK(MissingDataC006)+ISERROR(MissingDataC006)+LEN(MissingDataC006)=0, "", ROW(MissingDataC006)-MIN(ROW(MissingDataC006))+1), ROW(19:19))),"") -> GREATER10_PI7____INSCHOOL_N | AA84: GREATER10_PI7____INSCHOOL_N | AC84: GREATER10PI7INSCHOOLN | AD84: GREATER10_PI7____INSCHOOL_N | AE84: 1 | AF84: ='FS006'!G31&"_"&'FS006'!H31&"_"&'FS006'!I31&"_"&'FS006'!P31&"_"&'FS006'!Q31&"_"&'FS006'!R31&"_"&'FS006'!S31 -> ______ | AG84: =IFERROR(INDEX(MissingDataC143, SMALL(IF(ISBLANK(MissingDataC143)+ISERROR(MissingDataC143)+LEN(MissingDataC143)=0, "", ROW(MissingDataC143)-MIN(ROW(MissingDataC143))+1), ROW(71:71))),"") ->  | AK84: =IF(ISNUMBER(SEARCH($F$6,AL84)),MAX($AK$11:AK83)+1,0) -> 73 | AL84: 0 | AM84: =ROWS($AM$12:AM84) -> 73 | AN84: =IFERROR(VLOOKUP(ROWS($AN$12:AN84),$AK$12:$AL$3007,2,0),"") -> 0
W85: =IFERROR(INDEX(MissingDataC006, SMALL(IF(ISBLANK(MissingDataC006)+ISERROR(MissingDataC006)+LEN(MissingDataC006)=0, "", ROW(MissingDataC006)-MIN(ROW(MissingDataC006))+1), ROW(20:20))),"") -> GREATER10_WH7____INSCHOOL_N | AA85: GREATER10_WH7____INSCHOOL_N | AC85: GREATER10WH7INSCHOOLN | AD85: GREATER10_WH7____INSCHOOL_N | AE85: 1 | AF85: ='FS006'!G32&"_"&'FS006'!H32&"_"&'FS006'!I32&"_"&'FS006'!P32&"_"&'FS006'!Q32&"_"&'FS006'!R32&"_"&'FS006'!S32 -> ______ | AG85: =IFERROR(INDEX(MissingDataC143, SMALL(IF(ISBLANK(MissingDataC143)+ISERROR(MissingDataC143)+LEN(MissingDataC143)=0, "", ROW(MissingDataC143)-MIN(ROW(MissingDataC143))+1), ROW(72:72))),"") ->  | AK85: =IF(ISNUMBER(SEARCH($F$6,AL85)),MAX($AK$11:AK84)+1,0) -> 74 | AL85: 0 | AM85: =ROWS($AM$12:AM85) -> 74 | AN85: =IFERROR(VLOOKUP(ROWS($AN$12:AN85),$AK$12:$AL$3007,2,0),"") -> 0
W86: =IFERROR(INDEX(MissingDataC006, SMALL(IF(ISBLANK(MissingDataC006)+ISERROR(MissingDataC006)+LEN(MissingDataC006)=0, "", ROW(MissingDataC006)-MIN(ROW(MissingDataC006))+1), ROW(21:21))),"") -> GREATER10____LEP_INSCHOOL_N | AA86: GREATER10____LEP_INSCHOOL_N | AC86: GREATER10LEPINSCHOOLN | AD86: GREATER10____LEP_INSCHOOL_N | AE86: 1 | AF86: ='FS006'!G33&"_"&'FS006'!H33&"_"&'FS006'!I33&"_"&'FS006'!P33&"_"&'FS006'!Q33&"_"&'FS006'!R33&"_"&'FS006'!S33 -> ______ | AG86: =IFERROR(INDEX(MissingDataC143, SMALL(IF(ISBLANK(MissingDataC143)+ISERROR(MissingDataC143)+LEN(MissingDataC143)=0, "", ROW(MissingDataC143)-MIN(ROW(MissingDataC143))+1), ROW(73:73))),"") ->  | AK86: =IF(ISNUMBER(SEARCH($F$6,AL86)),MAX($AK$11:AK85)+1,0) -> 75 | AL86: 0 | AM86: =ROWS($AM$12:AM86) -> 75 | AN86: =IFERROR(VLOOKUP(ROWS($AN$12:AN86),$AK$12:$AL$3007,2,0),"") -> 0
W87: =IFERROR(INDEX(MissingDataC006, SMALL(IF(ISBLANK(MissingDataC006)+ISERROR(MissingDataC006)+LEN(MissingDataC006)=0, "", ROW(MissingDataC006)-MIN(ROW(MissingDataC006))+1), ROW(22:22))),"") -> GREATER10____NLEP_INSCHOOL_N | AA87: GREATER10____NLEP_INSCHOOL_N | AC87: GREATER10NLEPINSCHOOLN | AD87: GREATER10____NLEP_INSCHOOL_N | AE87: 1 | AF87: ='FS006'!G34&"_"&'FS006'!H34&"_"&'FS006'!I34&"_"&'FS006'!P34&"_"&'FS006'!Q34&"_"&'FS006'!R34&"_"&'FS006'!S34 -> ______ | AG87: =IFERROR(INDEX(MissingDataC143, SMALL(IF(ISBLANK(MissingDataC143)+ISERROR(MissingDataC143)+LEN(MissingDataC143)=0, "", ROW(MissingDataC143)-MIN(ROW(MissingDataC143))+1), ROW(74:74))),"") ->  | AK87: =IF(ISNUMBER(SEARCH($F$6,AL87)),MAX($AK$11:AK86)+1,0) -> 76 | AL87: 0 | AM87: =ROWS($AM$12:AM87) -> 76 | AN87: =IFERROR(VLOOKUP(ROWS($AN$12:AN87),$AK$12:$AL$3007,2,0),"") -> 0
W88: =IFERROR(INDEX(MissingDataC006, SMALL(IF(ISBLANK(MissingDataC006)+ISERROR(MissingDataC006)+LEN(MissingDataC006)=0, "", ROW(MissingDataC006)-MIN(ROW(MissingDataC006))+1), ROW(23:23))),"") -> GREATER10__F___INSCHOOL_N | AA88: GREATER10__F___INSCHOOL_N | AC88: GREATER10FINSCHOOLN | AD88: GREATER10__F___INSCHOOL_N | AE88: 1 | AF88: ='FS006'!G35&"_"&'FS006'!H35&"_"&'FS006'!I35&"_"&'FS006'!P35&"_"&'FS006'!Q35&"_"&'FS006'!R35&"_"&'FS006'!S35 -> ______ | AG88: =IFERROR(INDEX(MissingDataC143, SMALL(IF(ISBLANK(MissingDataC143)+ISERROR(MissingDataC143)+LEN(MissingDataC143)=0, "", ROW(MissingDataC143)-MIN(ROW(MissingDataC143))+1), ROW(75:75))),"") ->  | AK88: =IF(ISNUMBER(SEARCH($F$6,AL88)),MAX($AK$11:AK87)+1,0) -> 77 | AL88: 0 | AM88: =ROWS($AM$12:AM88) -> 77 | AN88: =IFERROR(VLOOKUP(ROWS($AN$12:AN88),$AK$12:$AL$3007,2,0),"") -> 0
W89: =IFERROR(INDEX(MissingDataC006, SMALL(IF(ISBLANK(MissingDataC006)+ISERROR(MissingDataC006)+LEN(MissingDataC006)=0, "", ROW(MissingDataC006)-MIN(ROW(MissingDataC006))+1), ROW(24:24))),"") -> GREATER10__M___INSCHOOL_N | AA89: GREATER10__M___INSCHOOL_N | AC89: GREATER10MINSCHOOLN | AD89: GREATER10__M___INSCHOOL_N | AE89: 1 | AF89: ='FS006'!G36&"_"&'FS006'!H36&"_"&'FS006'!I36&"_"&'FS006'!P36&"_"&'FS006'!Q36&"_"&'FS006'!R36&"_"&'FS006'!S36 -> ______ | AG89: =IFERROR(INDEX(MissingDataC143, SMALL(IF(ISBLANK(MissingDataC143)+ISERROR(MissingDataC143)+LEN(MissingDataC143)=0, "", ROW(MissingDataC143)-MIN(ROW(MissingDataC143))+1), ROW(76:76))),"") ->  | AK89: =IF(ISNUMBER(SEARCH($F$6,AL89)),MAX($AK$11:AK88)+1,0) -> 78 | AL89: 0 | AM89: =ROWS($AM$12:AM89) -> 78 | AN89: =IFERROR(VLOOKUP(ROWS($AN$12:AN89),$AK$12:$AL$3007,2,0),"") -> 0
W90: =IFERROR(INDEX(MissingDataC006, SMALL(IF(ISBLANK(MissingDataC006)+ISERROR(MissingDataC006)+LEN(MissingDataC006)=0, "", ROW(MissingDataC006)-MIN(ROW(MissingDataC006))+1), ROW(25:25))),"") -> GREATER10_____INSCHOOL_Y | AA90: GREATER10_____INSCHOOL_Y | AC90: GREATER10INSCHOOLY | AD90: GREATER10_____INSCHOOL_Y | AE90: 1 | AF90: ='FS006'!G37&"_"&'FS006'!H37&"_"&'FS006'!I37&"_"&'FS006'!P37&"_"&'FS006'!Q37&"_"&'FS006'!R37&"_"&'FS006'!S37 -> ______ | AG90: =IFERROR(INDEX(MissingDataC143, SMALL(IF(ISBLANK(MissingDataC143)+ISERROR(MissingDataC143)+LEN(MissingDataC143)=0, "", ROW(MissingDataC143)-MIN(ROW(MissingDataC143))+1), ROW(77:77))),"") ->  | AK90: =IF(ISNUMBER(SEARCH($F$6,AL90)),MAX($AK$11:AK89)+1,0) -> 79 | AL90: 0 | AM90: =ROWS($AM$12:AM90) -> 79 | AN90: =IFERROR(VLOOKUP(ROWS($AN$12:AN90),$AK$12:$AL$3007,2,0),"") -> 0
W91: =IFERROR(INDEX(MissingDataC006, SMALL(IF(ISBLANK(MissingDataC006)+ISERROR(MissingDataC006)+LEN(MissingDataC006)=0, "", ROW(MissingDataC006)-MIN(ROW(MissingDataC006))+1), ROW(26:26))),"") -> LTOREQ10___AUT__INSCHOOL_N | AA91: LTOREQ10___AUT__INSCHOOL_N | AC91: LTOREQ10AUTINSCHOOLN | AD91: LTOREQ10___AUT__INSCHOOL_N | AE91: 1 | AF91: ='FS006'!G38&"_"&'FS006'!H38&"_"&'FS006'!I38&"_"&'FS006'!P38&"_"&'FS006'!Q38&"_"&'FS006'!R38&"_"&'FS006'!S38 -> ______ | AG91: =IFERROR(INDEX(MissingDataC143, SMALL(IF(ISBLANK(MissingDataC143)+ISERROR(MissingDataC143)+LEN(MissingDataC143)=0, "", ROW(MissingDataC143)-MIN(ROW(MissingDataC143))+1), ROW(78:78))),"") ->  | AK91: =IF(ISNUMBER(SEARCH($F$6,AL91)),MAX($AK$11:AK90)+1,0) -> 80 | AL91: 0 | AM91: =ROWS($AM$12:AM91) -> 80 | AN91: =IFERROR(VLOOKUP(ROWS($AN$12:AN91),$AK$12:$AL$3007,2,0),"") -> 0
W92: =IFERROR(INDEX(MissingDataC006, SMALL(IF(ISBLANK(MissingDataC006)+ISERROR(MissingDataC006)+LEN(MissingDataC006)=0, "", ROW(MissingDataC006)-MIN(ROW(MissingDataC006))+1), ROW(27:27))),"") -> LTOREQ10___DB__INSCHOOL_N | AA92: LTOREQ10___DB__INSCHOOL_N | AC92: LTOREQ10DBINSCHOOLN | AD92: LTOREQ10___DB__INSCHOOL_N | AE92: 1 | AF92: ='FS006'!G39&"_"&'FS006'!H39&"_"&'FS006'!I39&"_"&'FS006'!P39&"_"&'FS006'!Q39&"_"&'FS006'!R39&"_"&'FS006'!S39 -> ______ | AG92: =IFERROR(INDEX(MissingDataC143, SMALL(IF(ISBLANK(MissingDataC143)+ISERROR(MissingDataC143)+LEN(MissingDataC143)=0, "", ROW(MissingDataC143)-MIN(ROW(MissingDataC143))+1), ROW(79:79))),"") ->  | AK92: =IF(ISNUMBER(SEARCH($F$6,AL92)),MAX($AK$11:AK91)+1,0) -> 81 | AL92: 0 | AM92: =ROWS($AM$12:AM92) -> 81 | AN92: =IFERROR(VLOOKUP(ROWS($AN$12:AN92),$AK$12:$AL$3007,2,0),"") -> 0
W93: =IFERROR(INDEX(MissingDataC006, SMALL(IF(ISBLANK(MissingDataC006)+ISERROR(MissingDataC006)+LEN(MissingDataC006)=0, "", ROW(MissingDataC006)-MIN(ROW(MissingDataC006))+1), ROW(28:28))),"") -> LTOREQ10___DD__INSCHOOL_N | AA93: LTOREQ10___DD__INSCHOOL_N | AC93: LTOREQ10DDINSCHOOLN | AD93: LTOREQ10___DD__INSCHOOL_N | AE93: 1 | AF93: ='FS006'!G40&"_"&'FS006'!H40&"_"&'FS006'!I40&"_"&'FS006'!P40&"_"&'FS006'!Q40&"_"&'FS006'!R40&"_"&'FS006'!S40 -> ______ | AG93: =IFERROR(INDEX(MissingDataC143, SMALL(IF(ISBLANK(MissingDataC143)+ISERROR(MissingDataC143)+LEN(MissingDataC143)=0, "", ROW(MissingDataC143)-MIN(ROW(MissingDataC143))+1), ROW(80:80))),"") ->  | AK93: =IF(ISNUMBER(SEARCH($F$6,AL93)),MAX($AK$11:AK92)+1,0) -> 82 | AL93: 0 | AM93: =ROWS($AM$12:AM93) -> 82 | AN93: =IFERROR(VLOOKUP(ROWS($AN$12:AN93),$AK$12:$AL$3007,2,0),"") -> 0
W94: =IFERROR(INDEX(MissingDataC006, SMALL(IF(ISBLANK(MissingDataC006)+ISERROR(MissingDataC006)+LEN(MissingDataC006)=0, "", ROW(MissingDataC006)-MIN(ROW(MissingDataC006))+1), ROW(29:29))),"") -> LTOREQ10___EMN__INSCHOOL_N | AA94: LTOREQ10___EMN__INSCHOOL_N | AC94: LTOREQ10EMNINSCHOOLN | AD94: LTOREQ10___EMN__INSCHOOL_N | AE94: 1 | AF94: ='FS006'!G41&"_"&'FS006'!H41&"_"&'FS006'!I41&"_"&'FS006'!P41&"_"&'FS006'!Q41&"_"&'FS006'!R41&"_"&'FS006'!S41 -> ______ | AG94: =IFERROR(INDEX(MissingDataC143, SMALL(IF(ISBLANK(MissingDataC143)+ISERROR(MissingDataC143)+LEN(MissingDataC143)=0, "", ROW(MissingDataC143)-MIN(ROW(MissingDataC143))+1), ROW(81:81))),"") ->  | AK94: =IF(ISNUMBER(SEARCH($F$6,AL94)),MAX($AK$11:AK93)+1,0) -> 83 | AL94: 0 | AM94: =ROWS($AM$12:AM94) -> 83 | AN94: =IFERROR(VLOOKUP(ROWS($AN$12:AN94),$AK$12:$AL$3007,2,0),"") -> 0
W95: =IFERROR(INDEX(MissingDataC006, SMALL(IF(ISBLANK(MissingDataC006)+ISERROR(MissingDataC006)+LEN(MissingDataC006)=0, "", ROW(MissingDataC006)-MIN(ROW(MissingDataC006))+1), ROW(30:30))),"") -> LTOREQ10___HI__INSCHOOL_N | AA95: LTOREQ10___HI__INSCHOOL_N | AC95: LTOREQ10HIINSCHOOLN | AD95: LTOREQ10___HI__INSCHOOL_N | AE95: 1 | AF95: ='FS006'!G42&"_"&'FS006'!H42&"_"&'FS006'!I42&"_"&'FS006'!P42&"_"&'FS006'!Q42&"_"&'FS006'!R42&"_"&'FS006'!S42 -> ______ | AG95: =IFERROR(INDEX(MissingDataC143, SMALL(IF(ISBLANK(MissingDataC143)+ISERROR(MissingDataC143)+LEN(MissingDataC143)=0, "", ROW(MissingDataC143)-MIN(ROW(MissingDataC143))+1), ROW(82:82))),"") ->  | AK95: =IF(ISNUMBER(SEARCH($F$6,AL95)),MAX($AK$11:AK94)+1,0) -> 84 | AL95: 0 | AM95: =ROWS($AM$12:AM95) -> 84 | AN95: =IFERROR(VLOOKUP(ROWS($AN$12:AN95),$AK$12:$AL$3007,2,0),"") -> 0
W96: =IFERROR(INDEX(MissingDataC006, SMALL(IF(ISBLANK(MissingDataC006)+ISERROR(MissingDataC006)+LEN(MissingDataC006)=0, "", ROW(MissingDataC006)-MIN(ROW(MissingDataC006))+1), ROW(31:31))),"") -> LTOREQ10___MD__INSCHOOL_N | AA96: LTOREQ10___MD__INSCHOOL_N | AC96: LTOREQ10MDINSCHOOLN | AD96: LTOREQ10___MD__INSCHOOL_N | AE96: 1 | AF96: ='FS006'!G43&"_"&'FS006'!H43&"_"&'FS006'!I43&"_"&'FS006'!P43&"_"&'FS006'!Q43&"_"&'FS006'!R43&"_"&'FS006'!S43 -> ______ | AG96: =IFERROR(INDEX(MissingDataC143, SMALL(IF(ISBLANK(MissingDataC143)+ISERROR(MissingDataC143)+LEN(MissingDataC143)=0, "", ROW(MissingDataC143)-MIN(ROW(MissingDataC143))+1), ROW(83:83))),"") ->  | AK96: =IF(ISNUMBER(SEARCH($F$6,AL96)),MAX($AK$11:AK95)+1,0) -> 85 | AL96: 0 | AM96: =ROWS($AM$12:AM96) -> 85 | AN96: =IFERROR(VLOOKUP(ROWS($AN$12:AN96),$AK$12:$AL$3007,2,0),"") -> 0
W97: =IFERROR(INDEX(MissingDataC006, SMALL(IF(ISBLANK(MissingDataC006)+ISERROR(MissingDataC006)+LEN(MissingDataC006)=0, "", ROW(MissingDataC006)-MIN(ROW(MissingDataC006))+1), ROW(32:32))),"") -> LTOREQ10___ID__INSCHOOL_N | AA97: LTOREQ10___ID__INSCHOOL_N | AC97: LTOREQ10IDINSCHOOLN | AD97: LTOREQ10___ID__INSCHOOL_N | AE97: 1 | AF97: ='FS006'!G44&"_"&'FS006'!H44&"_"&'FS006'!I44&"_"&'FS006'!P44&"_"&'FS006'!Q44&"_"&'FS006'!R44&"_"&'FS006'!S44 -> ______ | AG97: =IFERROR(INDEX(MissingDataC143, SMALL(IF(ISBLANK(MissingDataC143)+ISERROR(MissingDataC143)+LEN(MissingDataC143)=0, "", ROW(MissingDataC143)-MIN(ROW(MissingDataC143))+1), ROW(84:84))),"") ->  | AK97: =IF(ISNUMBER(SEARCH($F$6,AL97)),MAX($AK$11:AK96)+1,0) -> 86 | AL97: 0 | AM97: =ROWS($AM$12:AM97) -> 86 | AN97: =IFERROR(VLOOKUP(ROWS($AN$12:AN97),$AK$12:$AL$3007,2,0),"") -> 0
W98: =IFERROR(INDEX(MissingDataC006, SMALL(IF(ISBLANK(MissingDataC006)+ISERROR(MissingDataC006)+LEN(MissingDataC006)=0, "", ROW(MissingDataC006)-MIN(ROW(MissingDataC006))+1), ROW(33:33))),"") -> LTOREQ10___OHI__INSCHOOL_N | AA98: =IF(LEN(AD98)=0,"",IF(ISNA(MATCH(AC98,CurrentListingC006,0)),AD98,"")) -> LTOREQ10___OHI__INSCHOOL_N | AC98: LTOREQ10OHIINSCHOOLN | AD98: LTOREQ10___OHI__INSCHOOL_N | AE98: 1 | AF98: ='FS006'!G45&"_"&'FS006'!H45&"_"&'FS006'!I45&"_"&'FS006'!P45&"_"&'FS006'!Q45&"_"&'FS006'!R45&"_"&'FS006'!S45 -> ______ | AG98: =IFERROR(INDEX(MissingDataC143, SMALL(IF(ISBLANK(MissingDataC143)+ISERROR(MissingDataC143)+LEN(MissingDataC143)=0, "", ROW(MissingDataC143)-MIN(ROW(MissingDataC143))+1), ROW(85:85))),"") ->  | AK98: =IF(ISNUMBER(SEARCH($F$6,AL98)),MAX($AK$11:AK97)+1,0) -> 87 | AL98: 0 | AM98: =ROWS($AM$12:AM98) -> 87 | AN98: =IFERROR(VLOOKUP(ROWS($AN$12:AN98),$AK$12:$AL$3007,2,0),"") -> 0
W99: =IFERROR(INDEX(MissingDataC006, SMALL(IF(ISBLANK(MissingDataC006)+ISERROR(MissingDataC006)+LEN(MissingDataC006)=0, "", ROW(MissingDataC006)-MIN(ROW(MissingDataC006))+1), ROW(34:34))),"") -> LTOREQ10___OI__INSCHOOL_N | AA99: LTOREQ10___OI__INSCHOOL_N | AC99: LTOREQ10OIINSCHOOLN | AD99: LTOREQ10___OI__INSCHOOL_N | AE99: 1 | AF99: ='FS006'!G46&"_"&'FS006'!H46&"_"&'FS006'!I46&"_"&'FS006'!P46&"_"&'FS006'!Q46&"_"&'FS006'!R46&"_"&'FS006'!S46 -> ______ | AG99: =IFERROR(INDEX(MissingDataC143, SMALL(IF(ISBLANK(MissingDataC143)+ISERROR(MissingDataC143)+LEN(MissingDataC143)=0, "", ROW(MissingDataC143)-MIN(ROW(MissingDataC143))+1), ROW(86:86))),"") ->  | AK99: =IF(ISNUMBER(SEARCH($F$6,AL99)),MAX($AK$11:AK98)+1,0) -> 88 | AL99: 0 | AM99: =ROWS($AM$12:AM99) -> 88 | AN99: =IFERROR(VLOOKUP(ROWS($AN$12:AN99),$AK$12:$AL$3007,2,0),"") -> 0
W100: =IFERROR(INDEX(MissingDataC006, SMALL(IF(ISBLANK(MissingDataC006)+ISERROR(MissingDataC006)+LEN(MissingDataC006)=0, "", ROW(MissingDataC006)-MIN(ROW(MissingDataC006))+1), ROW(35:35))),"") -> LTOREQ10___SLD__INSCHOOL_N | AA100: LTOREQ10___SLD__INSCHOOL_N | AC100: LTOREQ10SLDINSCHOOLN | AD100: LTOREQ10___SLD__INSCHOOL_N | AE100: 1 | AF100: ='FS006'!G47&"_"&'FS006'!H47&"_"&'FS006'!I47&"_"&'FS006'!P47&"_"&'FS006'!Q47&"_"&'FS006'!R47&"_"&'FS006'!S47 -> ______ | AG100: =IFERROR(INDEX(MissingDataC143, SMALL(IF(ISBLANK(MissingDataC143)+ISERROR(MissingDataC143)+LEN(MissingDataC143)=0, "", ROW(MissingDataC143)-MIN(ROW(MissingDataC143))+1), ROW(87:87))),"") ->  | AK100: =IF(ISNUMBER(SEARCH($F$6,AL100)),MAX($AK$11:AK99)+1,0) -> 89 | AL100: 0 | AM100: =ROWS($AM$12:AM100) -> 89 | AN100: =IFERROR(VLOOKUP(ROWS($AN$12:AN100),$AK$12:$AL$3007,2,0),"") -> 0
W101: =IFERROR(INDEX(MissingDataC006, SMALL(IF(ISBLANK(MissingDataC006)+ISERROR(MissingDataC006)+LEN(MissingDataC006)=0, "", ROW(MissingDataC006)-MIN(ROW(MissingDataC006))+1), ROW(36:36))),"") -> LTOREQ10___SLI__INSCHOOL_N | AA101: LTOREQ10___SLI__INSCHOOL_N | AC101: LTOREQ10SLIINSCHOOLN | AD101: LTOREQ10___SLI__INSCHOOL_N | AE101: 1 | AF101: ='FS006'!G48&"_"&'FS006'!H48&"_"&'FS006'!I48&"_"&'FS006'!P48&"_"&'FS006'!Q48&"_"&'FS006'!R48&"_"&'FS006'!S48 -> ______ | AG101: =IFERROR(INDEX(MissingDataC143, SMALL(IF(ISBLANK(MissingDataC143)+ISERROR(MissingDataC143)+LEN(MissingDataC143)=0, "", ROW(MissingDataC143)-MIN(ROW(MissingDataC143))+1), ROW(88:88))),"") ->  | AK101: =IF(ISNUMBER(SEARCH($F$6,AL101)),MAX($AK$11:AK100)+1,0) -> 90 | AL101: 0 | AM101: =ROWS($AM$12:AM101) -> 90 | AN101: =IFERROR(VLOOKUP(ROWS($AN$12:AN101),$AK$12:$AL$3007,2,0),"") -> 0
W102: =IFERROR(INDEX(MissingDataC006, SMALL(IF(ISBLANK(MissingDataC006)+ISERROR(MissingDataC006)+LEN(MissingDataC006)=0, "", ROW(MissingDataC006)-MIN(ROW(MissingDataC006))+1), ROW(37:37))),"") -> LTOREQ10___TBI__INSCHOOL_N | AA102: LTOREQ10___TBI__INSCHOOL_N | AC102: LTOREQ10TBIINSCHOOLN | AD102: LTOREQ10___TBI__INSCHOOL_N | AE102: 1 | AF102: ='FS006'!G49&"_"&'FS006'!H49&"_"&'FS006'!I49&"_"&'FS006'!P49&"_"&'FS006'!Q49&"_"&'FS006'!R49&"_"&'FS006'!S49 -> ______ | AG102: =IFERROR(INDEX(MissingDataC143, SMALL(IF(ISBLANK(MissingDataC143)+ISERROR(MissingDataC143)+LEN(MissingDataC143)=0, "", ROW(MissingDataC143)-MIN(ROW(MissingDataC143))+1), ROW(89:89))),"") ->  | AK102: =IF(ISNUMBER(SEARCH($F$6,AL102)),MAX($AK$11:AK101)+1,0) -> 91 | AL102: 0 | AM102: =ROWS($AM$12:AM102) -> 91 | AN102: =IFERROR(VLOOKUP(ROWS($AN$12:AN102),$AK$12:$AL$3007,2,0),"") -> 0
W103: =IFERROR(INDEX(MissingDataC006, SMALL(IF(ISBLANK(MissingDataC006)+ISERROR(MissingDataC006)+LEN(MissingDataC006)=0, "", ROW(MissingDataC006)-MIN(ROW(MissingDataC006))+1), ROW(38:38))),"") -> LTOREQ10___VI__INSCHOOL_N | AA103: LTOREQ10___VI__INSCHOOL_N | AC103: LTOREQ10VIINSCHOOLN | AD103: LTOREQ10___VI__INSCHOOL_N | AE103: 1 | AF103: ='FS006'!G50&"_"&'FS006'!H50&"_"&'FS006'!I50&"_"&'FS006'!P50&"_"&'FS006'!Q50&"_"&'FS006'!R50&"_"&'FS006'!S50 -> ______ | AG103: =IFERROR(INDEX(MissingDataC143, SMALL(IF(ISBLANK(MissingDataC143)+ISERROR(MissingDataC143)+LEN(MissingDataC143)=0, "", ROW(MissingDataC143)-MIN(ROW(MissingDataC143))+1), ROW(90:90))),"") ->  | AK103: =IF(ISNUMBER(SEARCH($F$6,AL103)),MAX($AK$11:AK102)+1,0) -> 92 | AL103: 0 | AM103: =ROWS($AM$12:AM103) -> 92 | AN103: =IFERROR(VLOOKUP(ROWS($AN$12:AN103),$AK$12:$AL$3007,2,0),"") -> 0
W104: =IFERROR(INDEX(MissingDataC006, SMALL(IF(ISBLANK(MissingDataC006)+ISERROR(MissingDataC006)+LEN(MissingDataC006)=0, "", ROW(MissingDataC006)-MIN(ROW(MissingDataC006))+1), ROW(39:39))),"") -> LTOREQ10_AM7____INSCHOOL_N | AA104: LTOREQ10_AM7____INSCHOOL_N | AC104: LTOREQ10AM7INSCHOOLN | AD104: LTOREQ10_AM7____INSCHOOL_N | AE104: 1 | AF104: ='FS006'!G51&"_"&'FS006'!H51&"_"&'FS006'!I51&"_"&'FS006'!P51&"_"&'FS006'!Q51&"_"&'FS006'!R51&"_"&'FS006'!S51 -> ______ | AG104: =IFERROR(INDEX(MissingDataC143, SMALL(IF(ISBLANK(MissingDataC143)+ISERROR(MissingDataC143)+LEN(MissingDataC143)=0, "", ROW(MissingDataC143)-MIN(ROW(MissingDataC143))+1), ROW(91:91))),"") ->  | AK104: =IF(ISNUMBER(SEARCH($F$6,AL104)),MAX($AK$11:AK103)+1,0) -> 93 | AL104: 0 | AM104: =ROWS($AM$12:AM104) -> 93 | AN104: =IFERROR(VLOOKUP(ROWS($AN$12:AN104),$AK$12:$AL$3007,2,0),"") -> 0
W105: =IFERROR(INDEX(MissingDataC006, SMALL(IF(ISBLANK(MissingDataC006)+ISERROR(MissingDataC006)+LEN(MissingDataC006)=0, "", ROW(MissingDataC006)-MIN(ROW(MissingDataC006))+1), ROW(40:40))),"") -> LTOREQ10_AS7____INSCHOOL_N | AA105: LTOREQ10_AS7____INSCHOOL_N | AC105: LTOREQ10AS7INSCHOOLN | AD105: LTOREQ10_AS7____INSCHOOL_N | AE105: 1 | AF105: ='FS006'!G52&"_"&'FS006'!H52&"_"&'FS006'!I52&"_"&'FS006'!P52&"_"&'FS006'!Q52&"_"&'FS006'!R52&"_"&'FS006'!S52 -> ______ | AG105: =IFERROR(INDEX(MissingDataC143, SMALL(IF(ISBLANK(MissingDataC143)+ISERROR(MissingDataC143)+LEN(MissingDataC143)=0, "", ROW(MissingDataC143)-MIN(ROW(MissingDataC143))+1), ROW(92:92))),"") ->  | AK105: =IF(ISNUMBER(SEARCH($F$6,AL105)),MAX($AK$11:AK104)+1,0) -> 94 | AL105: 0 | AM105: =ROWS($AM$12:AM105) -> 94 | AN105: =IFERROR(VLOOKUP(ROWS($AN$12:AN105),$AK$12:$AL$3007,2,0),"") -> 0
W106: =IFERROR(INDEX(MissingDataC006, SMALL(IF(ISBLANK(MissingDataC006)+ISERROR(MissingDataC006)+LEN(MissingDataC006)=0, "", ROW(MissingDataC006)-MIN(ROW(MissingDataC006))+1), ROW(41:41))),"") -> LTOREQ10_BL7____INSCHOOL_N | AA106: LTOREQ10_BL7____INSCHOOL_N | AC106: LTOREQ10BL7INSCHOOLN | AD106: LTOREQ10_BL7____INSCHOOL_N | AE106: 1 | AF106: ='FS006'!G53&"_"&'FS006'!H53&"_"&'FS006'!I53&"_"&'FS006'!P53&"_"&'FS006'!Q53&"_"&'FS006'!R53&"_"&'FS006'!S53 -> ______ | AG106: =IFERROR(INDEX(MissingDataC143, SMALL(IF(ISBLANK(MissingDataC143)+ISERROR(MissingDataC143)+LEN(MissingDataC143)=0, "", ROW(MissingDataC143)-MIN(ROW(MissingDataC143))+1), ROW(93:93))),"") ->  | AK106: =IF(ISNUMBER(SEARCH($F$6,AL106)),MAX($AK$11:AK105)+1,0) -> 95 | AL106: 0 | AM106: =ROWS($AM$12:AM106) -> 95 | AN106: =IFERROR(VLOOKUP(ROWS($AN$12:AN106),$AK$12:$AL$3007,2,0),"") -> 0
W107: =IFERROR(INDEX(MissingDataC006, SMALL(IF(ISBLANK(MissingDataC006)+ISERROR(MissingDataC006)+LEN(MissingDataC006)=0, "", ROW(MissingDataC006)-MIN(ROW(MissingDataC006))+1), ROW(42:42))),"") -> LTOREQ10_HI7____INSCHOOL_N | AA107: LTOREQ10_HI7____INSCHOOL_N | AC107: LTOREQ10HI7INSCHOOLN | AD107: LTOREQ10_HI7____INSCHOOL_N | AE107: 1 | AF107: ='FS006'!G54&"_"&'FS006'!H54&"_"&'FS006'!I54&"_"&'FS006'!P54&"_"&'FS006'!Q54&"_"&'FS006'!R54&"_"&'FS006'!S54 -> ______ | AG107: =IFERROR(INDEX(MissingDataC143, SMALL(IF(ISBLANK(MissingDataC143)+ISERROR(MissingDataC143)+LEN(MissingDataC143)=0, "", ROW(MissingDataC143)-MIN(ROW(MissingDataC143))+1), ROW(94:94))),"") ->  | AK107: =IF(ISNUMBER(SEARCH($F$6,AL107)),MAX($AK$11:AK106)+1,0) -> 96 | AL107: 0 | AM107: =ROWS($AM$12:AM107) -> 96 | AN107: =IFERROR(VLOOKUP(ROWS($AN$12:AN107),$AK$12:$AL$3007,2,0),"") -> 0
W108: =IFERROR(INDEX(MissingDataC006, SMALL(IF(ISBLANK(MissingDataC006)+ISERROR(MissingDataC006)+LEN(MissingDataC006)=0, "", ROW(MissingDataC006)-MIN(ROW(MissingDataC006))+1), ROW(43:43))),"") -> LTOREQ10_MU7____INSCHOOL_N | AA108: LTOREQ10_MU7____INSCHOOL_N | AC108: LTOREQ10MU7INSCHOOLN | AD108: LTOREQ10_MU7____INSCHOOL_N | AE108: 1 | AF108: ='FS006'!G55&"_"&'FS006'!H55&"_"&'FS006'!I55&"_"&'FS006'!P55&"_"&'FS006'!Q55&"_"&'FS006'!R55&"_"&'FS006'!S55 -> ______ | AG108: =IFERROR(INDEX(MissingDataC143, SMALL(IF(ISBLANK(MissingDataC143)+ISERROR(MissingDataC143)+LEN(MissingDataC143)=0, "", ROW(MissingDataC143)-MIN(ROW(MissingDataC143))+1), ROW(95:95))),"") ->  | AK108: =IF(ISNUMBER(SEARCH($F$6,AL108)),MAX($AK$11:AK107)+1,0) -> 97 | AL108: 0 | AM108: =ROWS($AM$12:AM108) -> 97 | AN108: =IFERROR(VLOOKUP(ROWS($AN$12:AN108),$AK$12:$AL$3007,2,0),"") -> 0
W109: =IFERROR(INDEX(MissingDataC006, SMALL(IF(ISBLANK(MissingDataC006)+ISERROR(MissingDataC006)+LEN(MissingDataC006)=0, "", ROW(MissingDataC006)-MIN(ROW(MissingDataC006))+1), ROW(44:44))),"") -> LTOREQ10_PI7____INSCHOOL_N | AA109: LTOREQ10_PI7____INSCHOOL_N | AC109: LTOREQ10PI7INSCHOOLN | AD109: LTOREQ10_PI7____INSCHOOL_N | AE109: 1 | AF109: ='FS006'!G56&"_"&'FS006'!H56&"_"&'FS006'!I56&"_"&'FS006'!P56&"_"&'FS006'!Q56&"_"&'FS006'!R56&"_"&'FS006'!S56 -> ______ | AG109: =IFERROR(INDEX(MissingDataC143, SMALL(IF(ISBLANK(MissingDataC143)+ISERROR(MissingDataC143)+LEN(MissingDataC143)=0, "", ROW(MissingDataC143)-MIN(ROW(MissingDataC143))+1), ROW(96:96))),"") ->  | AK109: =IF(ISNUMBER(SEARCH($F$6,AL109)),MAX($AK$11:AK108)+1,0) -> 98 | AL109: 0 | AM109: =ROWS($AM$12:AM109) -> 98 | AN109: =IFERROR(VLOOKUP(ROWS($AN$12:AN109),$AK$12:$AL$3007,2,0),"") -> 0
W110: =IFERROR(INDEX(MissingDataC006, SMALL(IF(ISBLANK(MissingDataC006)+ISERROR(MissingDataC006)+LEN(MissingDataC006)=0, "", ROW(MissingDataC006)-MIN(ROW(MissingDataC006))+1), ROW(45:45))),"") -> LTOREQ10_WH7____INSCHOOL_N | AA110: LTOREQ10_WH7____INSCHOOL_N | AC110: LTOREQ10WH7INSCHOOLN | AD110: LTOREQ10_WH7____INSCHOOL_N | AE110: 1 | AF110: ='FS006'!G57&"_"&'FS006'!H57&"_"&'FS006'!I57&"_"&'FS006'!P57&"_"&'FS006'!Q57&"_"&'FS006'!R57&"_"&'FS006'!S57 -> ______ | AG110: =IFERROR(INDEX(MissingDataC143, SMALL(IF(ISBLANK(MissingDataC143)+ISERROR(MissingDataC143)+LEN(MissingDataC143)=0, "", ROW(MissingDataC143)-MIN(ROW(MissingDataC143))+1), ROW(97:97))),"") ->  | AK110: =IF(ISNUMBER(SEARCH($F$6,AL110)),MAX($AK$11:AK109)+1,0) -> 99 | AL110: 0 | AM110: =ROWS($AM$12:AM110) -> 99 | AN110: =IFERROR(VLOOKUP(ROWS($AN$12:AN110),$AK$12:$AL$3007,2,0),"") -> 0
W111: =IFERROR(INDEX(MissingDataC006, SMALL(IF(ISBLANK(MissingDataC006)+ISERROR(MissingDataC006)+LEN(MissingDataC006)=0, "", ROW(MissingDataC006)-MIN(ROW(MissingDataC006))+1), ROW(46:46))),"") -> LTOREQ10____LEP_INSCHOOL_N | AA111: LTOREQ10____LEP_INSCHOOL_N | AC111: LTOREQ10LEPINSCHOOLN | AD111: LTOREQ10____LEP_INSCHOOL_N | AE111: 1 | AF111: ='FS006'!G58&"_"&'FS006'!H58&"_"&'FS006'!I58&"_"&'FS006'!P58&"_"&'FS006'!Q58&"_"&'FS006'!R58&"_"&'FS006'!S58 -> ______ | AG111: =IFERROR(INDEX(MissingDataC143, SMALL(IF(ISBLANK(MissingDataC143)+ISERROR(MissingDataC143)+LEN(MissingDataC143)=0, "", ROW(MissingDataC143)-MIN(ROW(MissingDataC143))+1), ROW(98:98))),"") ->  | AK111: =IF(ISNUMBER(SEARCH($F$6,AL111)),MAX($AK$11:AK110)+1,0) -> 100 | AL111: 0 | AM111: =ROWS($AM$12:AM111) -> 100 | AN111: =IFERROR(VLOOKUP(ROWS($AN$12:AN111),$AK$12:$AL$3007,2,0),"") -> 0
W112: =IFERROR(INDEX(MissingDataC006, SMALL(IF(ISBLANK(MissingDataC006)+ISERROR(MissingDataC006)+LEN(MissingDataC006)=0, "", ROW(MissingDataC006)-MIN(ROW(MissingDataC006))+1), ROW(47:47))),"") -> LTOREQ10____NLEP_INSCHOOL_N | AA112: LTOREQ10____NLEP_INSCHOOL_N | AC112: LTOREQ10NLEPINSCHOOLN | AD112: LTOREQ10____NLEP_INSCHOOL_N | AE112: 1 | AF112: ='FS006'!G59&"_"&'FS006'!H59&"_"&'FS006'!I59&"_"&'FS006'!P59&"_"&'FS006'!Q59&"_"&'FS006'!R59&"_"&'FS006'!S59 -> ______ | AG112: =IFERROR(INDEX(MissingDataC143, SMALL(IF(ISBLANK(MissingDataC143)+ISERROR(MissingDataC143)+LEN(MissingDataC143)=0, "", ROW(MissingDataC143)-MIN(ROW(MissingDataC143))+1), ROW(99:99))),"") ->  | AK112: =IF(ISNUMBER(SEARCH($F$6,AL112)),MAX($AK$11:AK111)+1,0) -> 101 | AL112: 0 | AM112: =ROWS($AM$12:AM112) -> 101 | AN112: =IFERROR(VLOOKUP(ROWS($AN$12:AN112),$AK$12:$AL$3007,2,0),"") -> 0
W113: =IFERROR(INDEX(MissingDataC006, SMALL(IF(ISBLANK(MissingDataC006)+ISERROR(MissingDataC006)+LEN(MissingDataC006)=0, "", ROW(MissingDataC006)-MIN(ROW(MissingDataC006))+1), ROW(48:48))),"") -> LTOREQ10__F___INSCHOOL_N | AA113: LTOREQ10__F___INSCHOOL_N | AC113: LTOREQ10FINSCHOOLN | AD113: LTOREQ10__F___INSCHOOL_N | AE113: 1 | AF113: ='FS006'!G60&"_"&'FS006'!H60&"_"&'FS006'!I60&"_"&'FS006'!P60&"_"&'FS006'!Q60&"_"&'FS006'!R60&"_"&'FS006'!S60 -> ______ | AG113: =IFERROR(INDEX(MissingDataC143, SMALL(IF(ISBLANK(MissingDataC143)+ISERROR(MissingDataC143)+LEN(MissingDataC143)=0, "", ROW(MissingDataC143)-MIN(ROW(MissingDataC143))+1), ROW(100:100))),"") ->  | AK113: =IF(ISNUMBER(SEARCH($F$6,AL113)),MAX($AK$11:AK112)+1,0) -> 102 | AL113: 0 | AM113: =ROWS($AM$12:AM113) -> 102 | AN113: =IFERROR(VLOOKUP(ROWS($AN$12:AN113),$AK$12:$AL$3007,2,0),"") -> 0
W114: =IFERROR(INDEX(MissingDataC006, SMALL(IF(ISBLANK(MissingDataC006)+ISERROR(MissingDataC006)+LEN(MissingDataC006)=0, "", ROW(MissingDataC006)-MIN(ROW(MissingDataC006))+1), ROW(49:49))),"") -> LTOREQ10__M___INSCHOOL_N | AA114: LTOREQ10__M___INSCHOOL_N | AC114: LTOREQ10MINSCHOOLN | AD114: LTOREQ10__M___INSCHOOL_N | AE114: 1 | AF114: ='FS006'!G61&"_"&'FS006'!H61&"_"&'FS006'!I61&"_"&'FS006'!P61&"_"&'FS006'!Q61&"_"&'FS006'!R61&"_"&'FS006'!S61 -> ______ | AG114: =IFERROR(INDEX(MissingDataC143, SMALL(IF(ISBLANK(MissingDataC143)+ISERROR(MissingDataC143)+LEN(MissingDataC143)=0, "", ROW(MissingDataC143)-MIN(ROW(MissingDataC143))+1), ROW(101:101))),"") ->  | AK114: =IF(ISNUMBER(SEARCH($F$6,AL114)),MAX($AK$11:AK113)+1,0) -> 103 | AL114: 0 | AM114: =ROWS($AM$12:AM114) -> 103 | AN114: =IFERROR(VLOOKUP(ROWS($AN$12:AN114),$AK$12:$AL$3007,2,0),"") -> 0
W115: =IFERROR(INDEX(MissingDataC006, SMALL(IF(ISBLANK(MissingDataC006)+ISERROR(MissingDataC006)+LEN(MissingDataC006)=0, "", ROW(MissingDataC006)-MIN(ROW(MissingDataC006))+1), ROW(50:50))),"") -> LTOREQ10_____INSCHOOL_Y | AA115: LTOREQ10_____INSCHOOL_Y | AC115: LTOREQ10INSCHOOLY | AD115: LTOREQ10_____INSCHOOL_Y | AE115: 1 | AF115: ='FS006'!G62&"_"&'FS006'!H62&"_"&'FS006'!I62&"_"&'FS006'!P62&"_"&'FS006'!Q62&"_"&'FS006'!R62&"_"&'FS006'!S62 -> ______ | AG115: =IFERROR(INDEX(MissingDataC143, SMALL(IF(ISBLANK(MissingDataC143)+ISERROR(MissingDataC143)+LEN(MissingDataC143)=0, "", ROW(MissingDataC143)-MIN(ROW(MissingDataC143))+1), ROW(102:102))),"") ->  | AK115: =IF(ISNUMBER(SEARCH($F$6,AL115)),MAX($AK$11:AK114)+1,0) -> 104 | AL115: 0 | AM115: =ROWS($AM$12:AM115) -> 104 | AN115: =IFERROR(VLOOKUP(ROWS($AN$12:AN115),$AK$12:$AL$3007,2,0),"") -> 0
W116: =IFERROR(INDEX(MissingDataC006, SMALL(IF(ISBLANK(MissingDataC006)+ISERROR(MissingDataC006)+LEN(MissingDataC006)=0, "", ROW(MissingDataC006)-MIN(ROW(MissingDataC006))+1), ROW(51:51))),"") -> GREATER10___AUT__OUTOFSCHOOL_N | AA116: GREATER10___AUT__OUTOFSCHOOL_N | AC116: GREATER10AUTOUTOFSCHOOLN | AD116: GREATER10___AUT__OUTOFSCHOOL_N | AE116: 1 | AF116: ='FS006'!G63&"_"&'FS006'!H63&"_"&'FS006'!I63&"_"&'FS006'!P63&"_"&'FS006'!Q63&"_"&'FS006'!R63&"_"&'FS006'!S63 -> ______ | AG116: =IFERROR(INDEX(MissingDataC143, SMALL(IF(ISBLANK(MissingDataC143)+ISERROR(MissingDataC143)+LEN(MissingDataC143)=0, "", ROW(MissingDataC143)-MIN(ROW(MissingDataC143))+1), ROW(103:103))),"") ->  | AK116: =IF(ISNUMBER(SEARCH($F$6,AL116)),MAX($AK$11:AK115)+1,0) -> 105 | AL116: 0 | AM116: =ROWS($AM$12:AM116) -> 105 | AN116: =IFERROR(VLOOKUP(ROWS($AN$12:AN116),$AK$12:$AL$3007,2,0),"") -> 0
W117: =IFERROR(INDEX(MissingDataC006, SMALL(IF(ISBLANK(MissingDataC006)+ISERROR(MissingDataC006)+LEN(MissingDataC006)=0, "", ROW(MissingDataC006)-MIN(ROW(MissingDataC006))+1), ROW(52:52))),"") -> GREATER10___DB__OUTOFSCHOOL_N | AA117: GREATER10___DB__OUTOFSCHOOL_N | AC117: GREATER10DBOUTOFSCHOOLN | AD117: GREATER10___DB__OUTOFSCHOOL_N | AE117: 1 | AF117: ='FS006'!G64&"_"&'FS006'!H64&"_"&'FS006'!I64&"_"&'FS006'!P64&"_"&'FS006'!Q64&"_"&'FS006'!R64&"_"&'FS006'!S64 -> ______ | AG117: =IFERROR(INDEX(MissingDataC143, SMALL(IF(ISBLANK(MissingDataC143)+ISERROR(MissingDataC143)+LEN(MissingDataC143)=0, "", ROW(MissingDataC143)-MIN(ROW(MissingDataC143))+1), ROW(104:104))),"") ->  | AK117: =IF(ISNUMBER(SEARCH($F$6,AL117)),MAX($AK$11:AK116)+1,0) -> 106 | AL117: 0 | AM117: =ROWS($AM$12:AM117) -> 106 | AN117: =IFERROR(VLOOKUP(ROWS($AN$12:AN117),$AK$12:$AL$3007,2,0),"") -> 0
W118: =IFERROR(INDEX(MissingDataC006, SMALL(IF(ISBLANK(MissingDataC006)+ISERROR(MissingDataC006)+LEN(MissingDataC006)=0, "", ROW(MissingDataC006)-MIN(ROW(MissingDataC006))+1), ROW(53:53))),"") -> GREATER10___DD__OUTOFSCHOOL_N | AA118: GREATER10___DD__OUTOFSCHOOL_N | AC118: GREATER10DDOUTOFSCHOOLN | AD118: GREATER10___DD__OUTOFSCHOOL_N | AE118: 1 | AF118: ='FS006'!G65&"_"&'FS006'!H65&"_"&'FS006'!I65&"_"&'FS006'!P65&"_"&'FS006'!Q65&"_"&'FS006'!R65&"_"&'FS006'!S65 -> ______ | AG118: =IFERROR(INDEX(MissingDataC143, SMALL(IF(ISBLANK(MissingDataC143)+ISERROR(MissingDataC143)+LEN(MissingDataC143)=0, "", ROW(MissingDataC143)-MIN(ROW(MissingDataC143))+1), ROW(105:105))),"") ->  | AK118: =IF(ISNUMBER(SEARCH($F$6,AL118)),MAX($AK$11:AK117)+1,0) -> 107 | AL118: 0 | AM118: =ROWS($AM$12:AM118) -> 107 | AN118: =IFERROR(VLOOKUP(ROWS($AN$12:AN118),$AK$12:$AL$3007,2,0),"") -> 0
W119: =IFERROR(INDEX(MissingDataC006, SMALL(IF(ISBLANK(MissingDataC006)+ISERROR(MissingDataC006)+LEN(MissingDataC006)=0, "", ROW(MissingDataC006)-MIN(ROW(MissingDataC006))+1), ROW(54:54))),"") -> GREATER10___EMN__OUTOFSCHOOL_N | AA119: GREATER10___EMN__OUTOFSCHOOL_N | AC119: GREATER10EMNOUTOFSCHOOLN | AD119: GREATER10___EMN__OUTOFSCHOOL_N | AE119: 1 | AF119: ='FS006'!G66&"_"&'FS006'!H66&"_"&'FS006'!I66&"_"&'FS006'!P66&"_"&'FS006'!Q66&"_"&'FS006'!R66&"_"&'FS006'!S66 -> ______ | AG119: =IFERROR(INDEX(MissingDataC143, SMALL(IF(ISBLANK(MissingDataC143)+ISERROR(MissingDataC143)+LEN(MissingDataC143)=0, "", ROW(MissingDataC143)-MIN(ROW(MissingDataC143))+1), ROW(106:106))),"") ->  | AK119: =IF(ISNUMBER(SEARCH($F$6,AL119)),MAX($AK$11:AK118)+1,0) -> 108 | AL119: 0 | AM119: =ROWS($AM$12:AM119) -> 108 | AN119: =IFERROR(VLOOKUP(ROWS($AN$12:AN119),$AK$12:$AL$3007,2,0),"") -> 0
W120: =IFERROR(INDEX(MissingDataC006, SMALL(IF(ISBLANK(MissingDataC006)+ISERROR(MissingDataC006)+LEN(MissingDataC006)=0, "", ROW(MissingDataC006)-MIN(ROW(MissingDataC006))+1), ROW(55:55))),"") -> GREATER10___HI__OUTOFSCHOOL_N | AA120: GREATER10___HI__OUTOFSCHOOL_N | AC120: GREATER10HIOUTOFSCHOOLN | AD120: GREATER10___HI__OUTOFSCHOOL_N | AE120: 1 | AF120: ='FS006'!G67&"_"&'FS006'!H67&"_"&'FS006'!I67&"_"&'FS006'!P67&"_"&'FS006'!Q67&"_"&'FS006'!R67&"_"&'FS006'!S67 -> ______ | AG120: =IFERROR(INDEX(MissingDataC143, SMALL(IF(ISBLANK(MissingDataC143)+ISERROR(MissingDataC143)+LEN(MissingDataC143)=0, "", ROW(MissingDataC143)-MIN(ROW(MissingDataC143))+1), ROW(107:107))),"") ->  | AK120: =IF(ISNUMBER(SEARCH($F$6,AL120)),MAX($AK$11:AK119)+1,0) -> 109 | AL120: 0 | AM120: =ROWS($AM$12:AM120) -> 109 | AN120: =IFERROR(VLOOKUP(ROWS($AN$12:AN120),$AK$12:$AL$3007,2,0),"") -> 0
W121: =IFERROR(INDEX(MissingDataC006, SMALL(IF(ISBLANK(MissingDataC006)+ISERROR(MissingDataC006)+LEN(MissingDataC006)=0, "", ROW(MissingDataC006)-MIN(ROW(MissingDataC006))+1), ROW(56:56))),"") -> GREATER10___MD__OUTOFSCHOOL_N | AA121: GREATER10___MD__OUTOFSCHOOL_N | AC121: GREATER10MDOUTOFSCHOOLN | AD121: GREATER10___MD__OUTOFSCHOOL_N | AE121: 1 | AF121: ='FS006'!G68&"_"&'FS006'!H68&"_"&'FS006'!I68&"_"&'FS006'!P68&"_"&'FS006'!Q68&"_"&'FS006'!R68&"_"&'FS006'!S68 -> ______ | AG121: =IFERROR(INDEX(MissingDataC143, SMALL(IF(ISBLANK(MissingDataC143)+ISERROR(MissingDataC143)+LEN(MissingDataC143)=0, "", ROW(MissingDataC143)-MIN(ROW(MissingDataC143))+1), ROW(108:108))),"") ->  | AK121: =IF(ISNUMBER(SEARCH($F$6,AL121)),MAX($AK$11:AK120)+1,0) -> 110 | AL121: 0 | AM121: =ROWS($AM$12:AM121) -> 110 | AN121: =IFERROR(VLOOKUP(ROWS($AN$12:AN121),$AK$12:$AL$3007,2,0),"") -> 0
W122: =IFERROR(INDEX(MissingDataC006, SMALL(IF(ISBLANK(MissingDataC006)+ISERROR(MissingDataC006)+LEN(MissingDataC006)=0, "", ROW(MissingDataC006)-MIN(ROW(MissingDataC006))+1), ROW(57:57))),"") -> GREATER10___ID__OUTOFSCHOOL_N | AA122: GREATER10___ID__OUTOFSCHOOL_N | AC122: GREATER10IDOUTOFSCHOOLN | AD122: GREATER10___ID__OUTOFSCHOOL_N | AE122: 1 | AF122: ='FS006'!G69&"_"&'FS006'!H69&"_"&'FS006'!I69&"_"&'FS006'!P69&"_"&'FS006'!Q69&"_"&'FS006'!R69&"_"&'FS006'!S69 -> ______ | AG122: =IFERROR(INDEX(MissingDataC143, SMALL(IF(ISBLANK(MissingDataC143)+ISERROR(MissingDataC143)+LEN(MissingDataC143)=0, "", ROW(MissingDataC143)-MIN(ROW(MissingDataC143))+1), ROW(109:109))),"") ->  | AK122: =IF(ISNUMBER(SEARCH($F$6,AL122)),MAX($AK$11:AK121)+1,0) -> 111 | AL122: 0 | AM122: =ROWS($AM$12:AM122) -> 111 | AN122: =IFERROR(VLOOKUP(ROWS($AN$12:AN122),$AK$12:$AL$3007,2,0),"") -> 0
W123: =IFERROR(INDEX(MissingDataC006, SMALL(IF(ISBLANK(MissingDataC006)+ISERROR(MissingDataC006)+LEN(MissingDataC006)=0, "", ROW(MissingDataC006)-MIN(ROW(MissingDataC006))+1), ROW(58:58))),"") -> GREATER10___OHI__OUTOFSCHOOL_N | AA123: GREATER10___OHI__OUTOFSCHOOL_N | AC123: GREATER10OHIOUTOFSCHOOLN | AD123: GREATER10___OHI__OUTOFSCHOOL_N | AE123: 1 | AF123: ='FS006'!G70&"_"&'FS006'!H70&"_"&'FS006'!I70&"_"&'FS006'!P70&"_"&'FS006'!Q70&"_"&'FS006'!R70&"_"&'FS006'!S70 -> ______ | AG123: =IFERROR(INDEX(MissingDataC143, SMALL(IF(ISBLANK(MissingDataC143)+ISERROR(MissingDataC143)+LEN(MissingDataC143)=0, "", ROW(MissingDataC143)-MIN(ROW(MissingDataC143))+1), ROW(110:110))),"") ->  | AK123: =IF(ISNUMBER(SEARCH($F$6,AL123)),MAX($AK$11:AK122)+1,0) -> 112 | AL123: 0 | AM123: =ROWS($AM$12:AM123) -> 112 | AN123: =IFERROR(VLOOKUP(ROWS($AN$12:AN123),$AK$12:$AL$3007,2,0),"") -> 0
W124: =IFERROR(INDEX(MissingDataC006, SMALL(IF(ISBLANK(MissingDataC006)+ISERROR(MissingDataC006)+LEN(MissingDataC006)=0, "", ROW(MissingDataC006)-MIN(ROW(MissingDataC006))+1), ROW(59:59))),"") -> GREATER10___OI__OUTOFSCHOOL_N | AA124: GREATER10___OI__OUTOFSCHOOL_N | AC124: GREATER10OIOUTOFSCHOOLN | AD124: GREATER10___OI__OUTOFSCHOOL_N | AE124: 1 | AF124: ='FS006'!G71&"_"&'FS006'!H71&"_"&'FS006'!I71&"_"&'FS006'!P71&"_"&'FS006'!Q71&"_"&'FS006'!R71&"_"&'FS006'!S71 -> ______ | AG124: =IFERROR(INDEX(MissingDataC143, SMALL(IF(ISBLANK(MissingDataC143)+ISERROR(MissingDataC143)+LEN(MissingDataC143)=0, "", ROW(MissingDataC143)-MIN(ROW(MissingDataC143))+1), ROW(111:111))),"") ->  | AK124: =IF(ISNUMBER(SEARCH($F$6,AL124)),MAX($AK$11:AK123)+1,0) -> 113 | AL124: 0 | AM124: =ROWS($AM$12:AM124) -> 113 | AN124: =IFERROR(VLOOKUP(ROWS($AN$12:AN124),$AK$12:$AL$3007,2,0),"") -> 0
W125: =IFERROR(INDEX(MissingDataC006, SMALL(IF(ISBLANK(MissingDataC006)+ISERROR(MissingDataC006)+LEN(MissingDataC006)=0, "", ROW(MissingDataC006)-MIN(ROW(MissingDataC006))+1), ROW(60:60))),"") -> GREATER10___SLD__OUTOFSCHOOL_N | AA125: GREATER10___SLD__OUTOFSCHOOL_N | AC125: GREATER10SLDOUTOFSCHOOLN | AD125: GREATER10___SLD__OUTOFSCHOOL_N | AE125: 1 | AF125: ='FS006'!G72&"_"&'FS006'!H72&"_"&'FS006'!I72&"_"&'FS006'!P72&"_"&'FS006'!Q72&"_"&'FS006'!R72&"_"&'FS006'!S72 -> ______ | AG125: =IFERROR(INDEX(MissingDataC143, SMALL(IF(ISBLANK(MissingDataC143)+ISERROR(MissingDataC143)+LEN(MissingDataC143)=0, "", ROW(MissingDataC143)-MIN(ROW(MissingDataC143))+1), ROW(112:112))),"") ->  | AK125: =IF(ISNUMBER(SEARCH($F$6,AL125)),MAX($AK$11:AK124)+1,0) -> 114 | AL125: 0 | AM125: =ROWS($AM$12:AM125) -> 114 | AN125: =IFERROR(VLOOKUP(ROWS($AN$12:AN125),$AK$12:$AL$3007,2,0),"") -> 0
W126: =IFERROR(INDEX(MissingDataC006, SMALL(IF(ISBLANK(MissingDataC006)+ISERROR(MissingDataC006)+LEN(MissingDataC006)=0, "", ROW(MissingDataC006)-MIN(ROW(MissingDataC006))+1), ROW(61:61))),"") -> GREATER10___SLI__OUTOFSCHOOL_N | AA126: GREATER10___SLI__OUTOFSCHOOL_N | AC126: GREATER10SLIOUTOFSCHOOLN | AD126: GREATER10___SLI__OUTOFSCHOOL_N | AE126: 1 | AF126: ='FS006'!G73&"_"&'FS006'!H73&"_"&'FS006'!I73&"_"&'FS006'!P73&"_"&'FS006'!Q73&"_"&'FS006'!R73&"_"&'FS006'!S73 -> ______ | AG126: =IFERROR(INDEX(MissingDataC143, SMALL(IF(ISBLANK(MissingDataC143)+ISERROR(MissingDataC143)+LEN(MissingDataC143)=0, "", ROW(MissingDataC143)-MIN(ROW(MissingDataC143))+1), ROW(113:113))),"") ->  | AK126: =IF(ISNUMBER(SEARCH($F$6,AL126)),MAX($AK$11:AK125)+1,0) -> 115 | AL126: 0 | AM126: =ROWS($AM$12:AM126) -> 115 | AN126: =IFERROR(VLOOKUP(ROWS($AN$12:AN126),$AK$12:$AL$3007,2,0),"") -> 0
W127: =IFERROR(INDEX(MissingDataC006, SMALL(IF(ISBLANK(MissingDataC006)+ISERROR(MissingDataC006)+LEN(MissingDataC006)=0, "", ROW(MissingDataC006)-MIN(ROW(MissingDataC006))+1), ROW(62:62))),"") -> GREATER10___TBI__OUTOFSCHOOL_N | AA127: GREATER10___TBI__OUTOFSCHOOL_N | AC127: GREATER10TBIOUTOFSCHOOLN | AD127: GREATER10___TBI__OUTOFSCHOOL_N | AE127: 1 | AF127: ='FS006'!G74&"_"&'FS006'!H74&"_"&'FS006'!I74&"_"&'FS006'!P74&"_"&'FS006'!Q74&"_"&'FS006'!R74&"_"&'FS006'!S74 -> ______ | AG127: =IFERROR(INDEX(MissingDataC143, SMALL(IF(ISBLANK(MissingDataC143)+ISERROR(MissingDataC143)+LEN(MissingDataC143)=0, "", ROW(MissingDataC143)-MIN(ROW(MissingDataC143))+1), ROW(114:114))),"") ->  | AK127: =IF(ISNUMBER(SEARCH($F$6,AL127)),MAX($AK$11:AK126)+1,0) -> 116 | AL127: 0 | AM127: =ROWS($AM$12:AM127) -> 116 | AN127: =IFERROR(VLOOKUP(ROWS($AN$12:AN127),$AK$12:$AL$3007,2,0),"") -> 0
W128: =IFERROR(INDEX(MissingDataC006, SMALL(IF(ISBLANK(MissingDataC006)+ISERROR(MissingDataC006)+LEN(MissingDataC006)=0, "", ROW(MissingDataC006)-MIN(ROW(MissingDataC006))+1), ROW(63:63))),"") -> GREATER10___VI__OUTOFSCHOOL_N | AA128: GREATER10___VI__OUTOFSCHOOL_N | AC128: GREATER10VIOUTOFSCHOOLN | AD128: GREATER10___VI__OUTOFSCHOOL_N | AE128: 1 | AF128: ='FS006'!G75&"_"&'FS006'!H75&"_"&'FS006'!I75&"_"&'FS006'!P75&"_"&'FS006'!Q75&"_"&'FS006'!R75&"_"&'FS006'!S75 -> ______ | AG128: =IFERROR(INDEX(MissingDataC143, SMALL(IF(ISBLANK(MissingDataC143)+ISERROR(MissingDataC143)+LEN(MissingDataC143)=0, "", ROW(MissingDataC143)-MIN(ROW(MissingDataC143))+1), ROW(115:115))),"") ->  | AK128: =IF(ISNUMBER(SEARCH($F$6,AL128)),MAX($AK$11:AK127)+1,0) -> 117 | AL128: 0 | AM128: =ROWS($AM$12:AM128) -> 117 | AN128: =IFERROR(VLOOKUP(ROWS($AN$12:AN128),$AK$12:$AL$3007,2,0),"") -> 0
W129: =IFERROR(INDEX(MissingDataC006, SMALL(IF(ISBLANK(MissingDataC006)+ISERROR(MissingDataC006)+LEN(MissingDataC006)=0, "", ROW(MissingDataC006)-MIN(ROW(MissingDataC006))+1), ROW(64:64))),"") -> GREATER10_AM7____OUTOFSCHOOL_N | AA129: GREATER10_AM7____OUTOFSCHOOL_N | AC129: GREATER10AM7OUTOFSCHOOLN | AD129: GREATER10_AM7____OUTOFSCHOOL_N | AE129: 1 | AF129: ='FS006'!G76&"_"&'FS006'!H76&"_"&'FS006'!I76&"_"&'FS006'!P76&"_"&'FS006'!Q76&"_"&'FS006'!R76&"_"&'FS006'!S76 -> ______ | AG129: =IFERROR(INDEX(MissingDataC143, SMALL(IF(ISBLANK(MissingDataC143)+ISERROR(MissingDataC143)+LEN(MissingDataC143)=0, "", ROW(MissingDataC143)-MIN(ROW(MissingDataC143))+1), ROW(116:116))),"") ->  | AK129: =IF(ISNUMBER(SEARCH($F$6,AL129)),MAX($AK$11:AK128)+1,0) -> 118 | AL129: 0 | AM129: =ROWS($AM$12:AM129) -> 118 | AN129: =IFERROR(VLOOKUP(ROWS($AN$12:AN129),$AK$12:$AL$3007,2,0),"") -> 0
W130: =IFERROR(INDEX(MissingDataC006, SMALL(IF(ISBLANK(MissingDataC006)+ISERROR(MissingDataC006)+LEN(MissingDataC006)=0, "", ROW(MissingDataC006)-MIN(ROW(MissingDataC006))+1), ROW(65:65))),"") -> GREATER10_AS7____OUTOFSCHOOL_N | AA130: =IF(LEN(AD130)=0,"",IF(ISNA(MATCH(AC130,CurrentListingC006,0)),AD130,"")) -> GREATER10_AS7____OUTOFSCHOOL_N | AC130: GREATER10AS7OUTOFSCHOOLN | AD130: GREATER10_AS7____OUTOFSCHOOL_N | AE130: 1 | AF130: ='FS006'!G77&"_"&'FS006'!H77&"_"&'FS006'!I77&"_"&'FS006'!P77&"_"&'FS006'!Q77&"_"&'FS006'!R77&"_"&'FS006'!S77 -> ______ | AG130: =IFERROR(INDEX(MissingDataC143, SMALL(IF(ISBLANK(MissingDataC143)+ISERROR(MissingDataC143)+LEN(MissingDataC143)=0, "", ROW(MissingDataC143)-MIN(ROW(MissingDataC143))+1), ROW(117:117))),"") ->  | AK130: =IF(ISNUMBER(SEARCH($F$6,AL130)),MAX($AK$11:AK129)+1,0) -> 119 | AL130: 0 | AM130: =ROWS($AM$12:AM130) -> 119 | AN130: =IFERROR(VLOOKUP(ROWS($AN$12:AN130),$AK$12:$AL$3007,2,0),"") -> 0
A131: =IF(BR77="","",BR77) ->  | B131: =IF(BS77="","",BS77) ->  | C131: =IF(BT77="","",BT77) ->  | D131: =IF(BU77="","",BU77) ->  | E131: =IF(BV77="","",BV77) ->  | F131: =IF(BW77="","",BW77) ->  | G131: =IF(BX77="","",BX77) ->  | H131: =IF(BY77="","",BY77) ->  | I131: =IF(BZ77="","",BZ77) ->  | J131: =IF(CA77="","",CA77) ->  | K131: =IF(CB77="","",CB77) ->  | L131: =IF(CC77="","",CC77) ->  | M131: =IF(CD77="","",CD77) ->  | N131: =IF(CE77="","",CE77) ->  | O131: =IF(CF77="","",CF77) ->  | P131: =IF(CG77="","",CG77) ->  | Q131: =IF(CH77="","",CH77) ->  | R131: =IF(CI77="","",CI77) ->  | S131: =IF(CJ77="","",CJ77) ->  | T131: =IF(CK77="","",CK77) ->  | U131: =IF(CL77="","",CL77) ->  | W131: =IFERROR(INDEX(MissingDataC006, SMALL(IF(ISBLANK(MissingDataC006)+ISERROR(MissingDataC006)+LEN(MissingDataC006)=0, "", ROW(MissingDataC006)-MIN(ROW(MissingDataC006))+1), ROW(66:66))),"") -> GREATER10_BL7____OUTOFSCHOOL_N | X131: =IF(LEN(AB131)=0,"",IF(COUNTIF(CurrentListingC006,AB131)>1,AF131,"")) ->  | Y131: =IF(LEN(AB131)=0,"",IF(ISNA(MATCH(AB131,MasterListingC006,0)),AF131,"")) ->  | AA131: GREATER10_BL7____OUTOFSCHOOL_N | AB131: =G131&H131&I131&P131&Q131&R131&S131 ->  | AC131: GREATER10BL7OUTOFSCHOOLN | AD131: GREATER10_BL7____OUTOFSCHOOL_N | AE131: 1 | AF131: ='FS006'!G78&"_"&'FS006'!H78&"_"&'FS006'!I78&"_"&'FS006'!P78&"_"&'FS006'!Q78&"_"&'FS006'!R78&"_"&'FS006'!S78 -> ______ | AG131: =IFERROR(INDEX(MissingDataC143, SMALL(IF(ISBLANK(MissingDataC143)+ISERROR(MissingDataC143)+LEN(MissingDataC143)=0, "", ROW(MissingDataC143)-MIN(ROW(MissingDataC143))+1), ROW(118:118))),"") ->  | AK131: =IF(ISNUMBER(SEARCH($F$6,AL131)),MAX($AK$11:AK130)+1,0) -> 120 | AL131: 0 | AM131: =ROWS($AM$12:AM131) -> 120 | AN131: =IFERROR(VLOOKUP(ROWS($AN$12:AN131),$AK$12:$AL$3007,2,0),"") -> 0
W132: =IFERROR(INDEX(MissingDataC006, SMALL(IF(ISBLANK(MissingDataC006)+ISERROR(MissingDataC006)+LEN(MissingDataC006)=0, "", ROW(MissingDataC006)-MIN(ROW(MissingDataC006))+1), ROW(67:67))),"") -> GREATER10_HI7____OUTOFSCHOOL_N | AA132: GREATER10_HI7____OUTOFSCHOOL_N | AC132: GREATER10HI7OUTOFSCHOOLN | AD132: GREATER10_HI7____OUTOFSCHOOL_N | AE132: =IF(LEN(W132)>0,1,0) -> 1 | AF132: ='FS006'!G79&"_"&'FS006'!H79&"_"&'FS006'!I79&"_"&'FS006'!P79&"_"&'FS006'!Q79&"_"&'FS006'!R79&"_"&'FS006'!S79 -> ______ | AG132: =IFERROR(INDEX(MissingDataC143, SMALL(IF(ISBLANK(MissingDataC143)+ISERROR(MissingDataC143)+LEN(MissingDataC143)=0, "", ROW(MissingDataC143)-MIN(ROW(MissingDataC143))+1), ROW(119:119))),"") ->  | AK132: =IF(ISNUMBER(SEARCH($F$6,AL132)),MAX($AK$11:AK131)+1,0) -> 121 | AL132: 0 | AM132: =ROWS($AM$12:AM132) -> 121 | AN132: =IFERROR(VLOOKUP(ROWS($AN$12:AN132),$AK$12:$AL$3007,2,0),"") -> 0
W133: =IFERROR(INDEX(MissingDataC006, SMALL(IF(ISBLANK(MissingDataC006)+ISERROR(MissingDataC006)+LEN(MissingDataC006)=0, "", ROW(MissingDataC006)-MIN(ROW(MissingDataC006))+1), ROW(68:68))),"") -> GREATER10_MU7____OUTOFSCHOOL_N | AA133: GREATER10_MU7____OUTOFSCHOOL_N | AC133: GREATER10MU7OUTOFSCHOOLN | AD133: GREATER10_MU7____OUTOFSCHOOL_N | AE133: 1 | AF133: ='FS006'!G80&"_"&'FS006'!H80&"_"&'FS006'!I80&"_"&'FS006'!P80&"_"&'FS006'!Q80&"_"&'FS006'!R80&"_"&'FS006'!S80 -> ______ | AG133: =IFERROR(INDEX(MissingDataC143, SMALL(IF(ISBLANK(MissingDataC143)+ISERROR(MissingDataC143)+LEN(MissingDataC143)=0, "", ROW(MissingDataC143)-MIN(ROW(MissingDataC143))+1), ROW(120:120))),"") ->  | AK133: =IF(ISNUMBER(SEARCH($F$6,AL133)),MAX($AK$11:AK132)+1,0) -> 122 | AL133: 0 | AM133: =ROWS($AM$12:AM133) -> 122 | AN133: =IFERROR(VLOOKUP(ROWS($AN$12:AN133),$AK$12:$AL$3007,2,0),"") -> 0
W134: =IFERROR(INDEX(MissingDataC006, SMALL(IF(ISBLANK(MissingDataC006)+ISERROR(MissingDataC006)+LEN(MissingDataC006)=0, "", ROW(MissingDataC006)-MIN(ROW(MissingDataC006))+1), ROW(69:69))),"") -> GREATER10_PI7____OUTOFSCHOOL_N | AA134: GREATER10_PI7____OUTOFSCHOOL_N | AC134: GREATER10PI7OUTOFSCHOOLN | AD134: GREATER10_PI7____OUTOFSCHOOL_N | AE134: 1 | AF134: ='FS006'!G81&"_"&'FS006'!H81&"_"&'FS006'!I81&"_"&'FS006'!P81&"_"&'FS006'!Q81&"_"&'FS006'!R81&"_"&'FS006'!S81 -> ______ | AG134: =IFERROR(INDEX(MissingDataC143, SMALL(IF(ISBLANK(MissingDataC143)+ISERROR(MissingDataC143)+LEN(MissingDataC143)=0, "", ROW(MissingDataC143)-MIN(ROW(MissingDataC143))+1), ROW(121:121))),"") ->  | AK134: =IF(ISNUMBER(SEARCH($F$6,AL134)),MAX($AK$11:AK133)+1,0) -> 123 | AL134: 0 | AM134: =ROWS($AM$12:AM134) -> 123 | AN134: =IFERROR(VLOOKUP(ROWS($AN$12:AN134),$AK$12:$AL$3007,2,0),"") -> 0
W135: =IFERROR(INDEX(MissingDataC006, SMALL(IF(ISBLANK(MissingDataC006)+ISERROR(MissingDataC006)+LEN(MissingDataC006)=0, "", ROW(MissingDataC006)-MIN(ROW(MissingDataC006))+1), ROW(70:70))),"") -> GREATER10_WH7____OUTOFSCHOOL_N | AA135: GREATER10_WH7____OUTOFSCHOOL_N | AC135: GREATER10WH7OUTOFSCHOOLN | AD135: GREATER10_WH7____OUTOFSCHOOL_N | AE135: 1 | AF135: ='FS006'!G82&"_"&'FS006'!H82&"_"&'FS006'!I82&"_"&'FS006'!P82&"_"&'FS006'!Q82&"_"&'FS006'!R82&"_"&'FS006'!S82 -> ______ | AG135: =IFERROR(INDEX(MissingDataC143, SMALL(IF(ISBLANK(MissingDataC143)+ISERROR(MissingDataC143)+LEN(MissingDataC143)=0, "", ROW(MissingDataC143)-MIN(ROW(MissingDataC143))+1), ROW(122:122))),"") ->  | AK135: =IF(ISNUMBER(SEARCH($F$6,AL135)),MAX($AK$11:AK134)+1,0) -> 124 | AL135: 0 | AM135: =ROWS($AM$12:AM135) -> 124 | AN135: =IFERROR(VLOOKUP(ROWS($AN$12:AN135),$AK$12:$AL$3007,2,0),"") -> 0
W136: =IFERROR(INDEX(MissingDataC006, SMALL(IF(ISBLANK(MissingDataC006)+ISERROR(MissingDataC006)+LEN(MissingDataC006)=0, "", ROW(MissingDataC006)-MIN(ROW(MissingDataC006))+1), ROW(71:71))),"") -> GREATER10____LEP_OUTOFSCHOOL_N | AA136: GREATER10____LEP_OUTOFSCHOOL_N | AC136: GREATER10LEPOUTOFSCHOOLN | AD136: GREATER10____LEP_OUTOFSCHOOL_N | AE136: 1 | AF136: ='FS006'!G83&"_"&'FS006'!H83&"_"&'FS006'!I83&"_"&'FS006'!P83&"_"&'FS006'!Q83&"_"&'FS006'!R83&"_"&'FS006'!S83 -> ______ | AG136: =IFERROR(INDEX(MissingDataC143, SMALL(IF(ISBLANK(MissingDataC143)+ISERROR(MissingDataC143)+LEN(MissingDataC143)=0, "", ROW(MissingDataC143)-MIN(ROW(MissingDataC143))+1), ROW(123:123))),"") ->  | AK136: =IF(ISNUMBER(SEARCH($F$6,AL136)),MAX($AK$11:AK135)+1,0) -> 125 | AL136: 0 | AM136: =ROWS($AM$12:AM136) -> 125 | AN136: =IFERROR(VLOOKUP(ROWS($AN$12:AN136),$AK$12:$AL$3007,2,0),"") -> 0
W137: =IFERROR(INDEX(MissingDataC006, SMALL(IF(ISBLANK(MissingDataC006)+ISERROR(MissingDataC006)+LEN(MissingDataC006)=0, "", ROW(MissingDataC006)-MIN(ROW(MissingDataC006))+1), ROW(72:72))),"") -> GREATER10____NLEP_OUTOFSCHOOL_N | AA137: GREATER10____NLEP_OUTOFSCHOOL_N | AC137: GREATER10NLEPOUTOFSCHOOLN | AD137: GREATER10____NLEP_OUTOFSCHOOL_N | AE137: 1 | AF137: ='FS006'!G84&"_"&'FS006'!H84&"_"&'FS006'!I84&"_"&'FS006'!P84&"_"&'FS006'!Q84&"_"&'FS006'!R84&"_"&'FS006'!S84 -> ______ | AG137: =IFERROR(INDEX(MissingDataC143, SMALL(IF(ISBLANK(MissingDataC143)+ISERROR(MissingDataC143)+LEN(MissingDataC143)=0, "", ROW(MissingDataC143)-MIN(ROW(MissingDataC143))+1), ROW(124:124))),"") ->  | AK137: =IF(ISNUMBER(SEARCH($F$6,AL137)),MAX($AK$11:AK136)+1,0) -> 126 | AL137: 0 | AM137: =ROWS($AM$12:AM137) -> 126 | AN137: =IFERROR(VLOOKUP(ROWS($AN$12:AN137),$AK$12:$AL$3007,2,0),"") -> 0
W138: =IFERROR(INDEX(MissingDataC006, SMALL(IF(ISBLANK(MissingDataC006)+ISERROR(MissingDataC006)+LEN(MissingDataC006)=0, "", ROW(MissingDataC006)-MIN(ROW(MissingDataC006))+1), ROW(73:73))),"") -> GREATER10__F___OUTOFSCHOOL_N | AA138: GREATER10__F___OUTOFSCHOOL_N | AC138: GREATER10FOUTOFSCHOOLN | AD138: GREATER10__F___OUTOFSCHOOL_N | AE138: 1 | AF138: ='FS006'!G85&"_"&'FS006'!H85&"_"&'FS006'!I85&"_"&'FS006'!P85&"_"&'FS006'!Q85&"_"&'FS006'!R85&"_"&'FS006'!S85 -> ______ | AG138: =IFERROR(INDEX(MissingDataC143, SMALL(IF(ISBLANK(MissingDataC143)+ISERROR(MissingDataC143)+LEN(MissingDataC143)=0, "", ROW(MissingDataC143)-MIN(ROW(MissingDataC143))+1), ROW(125:125))),"") ->  | AK138: =IF(ISNUMBER(SEARCH($F$6,AL138)),MAX($AK$11:AK137)+1,0) -> 127 | AL138: 0 | AM138: =ROWS($AM$12:AM138) -> 127 | AN138: =IFERROR(VLOOKUP(ROWS($AN$12:AN138),$AK$12:$AL$3007,2,0),"") -> 0
W139: =IFERROR(INDEX(MissingDataC006, SMALL(IF(ISBLANK(MissingDataC006)+ISERROR(MissingDataC006)+LEN(MissingDataC006)=0, "", ROW(MissingDataC006)-MIN(ROW(MissingDataC006))+1), ROW(74:74))),"") -> GREATER10__M___OUTOFSCHOOL_N | AA139: GREATER10__M___OUTOFSCHOOL_N | AC139: GREATER10MOUTOFSCHOOLN | AD139: GREATER10__M___OUTOFSCHOOL_N | AE139: 1 | AF139: ='FS006'!G86&"_"&'FS006'!H86&"_"&'FS006'!I86&"_"&'FS006'!P86&"_"&'FS006'!Q86&"_"&'FS006'!R86&"_"&'FS006'!S86 -> ______ | AG139: =IFERROR(INDEX(MissingDataC143, SMALL(IF(ISBLANK(MissingDataC143)+ISERROR(MissingDataC143)+LEN(MissingDataC143)=0, "", ROW(MissingDataC143)-MIN(ROW(MissingDataC143))+1), ROW(126:126))),"") ->  | AK139: =IF(ISNUMBER(SEARCH($F$6,AL139)),MAX($AK$11:AK138)+1,0) -> 128 | AL139: 0 | AM139: =ROWS($AM$12:AM139) -> 128 | AN139: =IFERROR(VLOOKUP(ROWS($AN$12:AN139),$AK$12:$AL$3007,2,0),"") -> 0
W140: =IFERROR(INDEX(MissingDataC006, SMALL(IF(ISBLANK(MissingDataC006)+ISERROR(MissingDataC006)+LEN(MissingDataC006)=0, "", ROW(MissingDataC006)-MIN(ROW(MissingDataC006))+1), ROW(75:75))),"") -> GREATER10_____OUTOFSCHOOL_Y | AA140: GREATER10_____OUTOFSCHOOL_Y | AC140: GREATER10OUTOFSCHOOLY | AD140: GREATER10_____OUTOFSCHOOL_Y | AE140: 1 | AF140: ='FS006'!G87&"_"&'FS006'!H87&"_"&'FS006'!I87&"_"&'FS006'!P87&"_"&'FS006'!Q87&"_"&'FS006'!R87&"_"&'FS006'!S87 -> ______ | AG140: =IFERROR(INDEX(MissingDataC143, SMALL(IF(ISBLANK(MissingDataC143)+ISERROR(MissingDataC143)+LEN(MissingDataC143)=0, "", ROW(MissingDataC143)-MIN(ROW(MissingDataC143))+1), ROW(127:127))),"") ->  | AK140: =IF(ISNUMBER(SEARCH($F$6,AL140)),MAX($AK$11:AK139)+1,0) -> 129 | AL140: 0 | AM140: =ROWS($AM$12:AM140) -> 129 | AN140: =IFERROR(VLOOKUP(ROWS($AN$12:AN140),$AK$12:$AL$3007,2,0),"") -> 0
W141: =IFERROR(INDEX(MissingDataC006, SMALL(IF(ISBLANK(MissingDataC006)+ISERROR(MissingDataC006)+LEN(MissingDataC006)=0, "", ROW(MissingDataC006)-MIN(ROW(MissingDataC006))+1), ROW(76:76))),"") -> LTOREQ10___AUT__OUTOFSCHOOL_N | AA141: LTOREQ10___AUT__OUTOFSCHOOL_N | AC141: LTOREQ10AUTOUTOFSCHOOLN | AD141: LTOREQ10___AUT__OUTOFSCHOOL_N | AE141: 1 | AF141: ='FS006'!G88&"_"&'FS006'!H88&"_"&'FS006'!I88&"_"&'FS006'!P88&"_"&'FS006'!Q88&"_"&'FS006'!R88&"_"&'FS006'!S88 -> ______ | AG141: =IFERROR(INDEX(MissingDataC143, SMALL(IF(ISBLANK(MissingDataC143)+ISERROR(MissingDataC143)+LEN(MissingDataC143)=0, "", ROW(MissingDataC143)-MIN(ROW(MissingDataC143))+1), ROW(128:128))),"") ->  | AK141: =IF(ISNUMBER(SEARCH($F$6,AL141)),MAX($AK$11:AK140)+1,0) -> 130 | AL141: 0 | AM141: =ROWS($AM$12:AM141) -> 130 | AN141: =IFERROR(VLOOKUP(ROWS($AN$12:AN141),$AK$12:$AL$3007,2,0),"") -> 0
W142: =IFERROR(INDEX(MissingDataC006, SMALL(IF(ISBLANK(MissingDataC006)+ISERROR(MissingDataC006)+LEN(MissingDataC006)=0, "", ROW(MissingDataC006)-MIN(ROW(MissingDataC006))+1), ROW(77:77))),"") -> LTOREQ10___DB__OUTOFSCHOOL_N | AA142: LTOREQ10___DB__OUTOFSCHOOL_N | AC142: LTOREQ10DBOUTOFSCHOOLN | AD142: LTOREQ10___DB__OUTOFSCHOOL_N | AE142: 1 | AF142: ='FS006'!G89&"_"&'FS006'!H89&"_"&'FS006'!I89&"_"&'FS006'!P89&"_"&'FS006'!Q89&"_"&'FS006'!R89&"_"&'FS006'!S89 -> ______ | AG142: =IFERROR(INDEX(MissingDataC143, SMALL(IF(ISBLANK(MissingDataC143)+ISERROR(MissingDataC143)+LEN(MissingDataC143)=0, "", ROW(MissingDataC143)-MIN(ROW(MissingDataC143))+1), ROW(129:129))),"") ->  | AK142: =IF(ISNUMBER(SEARCH($F$6,AL142)),MAX($AK$11:AK141)+1,0) -> 131 | AL142: 0 | AM142: =ROWS($AM$12:AM142) -> 131 | AN142: =IFERROR(VLOOKUP(ROWS($AN$12:AN142),$AK$12:$AL$3007,2,0),"") -> 0
W143: =IFERROR(INDEX(MissingDataC006, SMALL(IF(ISBLANK(MissingDataC006)+ISERROR(MissingDataC006)+LEN(MissingDataC006)=0, "", ROW(MissingDataC006)-MIN(ROW(MissingDataC006))+1), ROW(78:78))),"") -> LTOREQ10___DD__OUTOFSCHOOL_N | AA143: LTOREQ10___DD__OUTOFSCHOOL_N | AC143: LTOREQ10DDOUTOFSCHOOLN | AD143: LTOREQ10___DD__OUTOFSCHOOL_N | AE143: 1 | AF143: ='FS006'!G90&"_"&'FS006'!H90&"_"&'FS006'!I90&"_"&'FS006'!P90&"_"&'FS006'!Q90&"_"&'FS006'!R90&"_"&'FS006'!S90 -> ______ | AG143: =IFERROR(INDEX(MissingDataC143, SMALL(IF(ISBLANK(MissingDataC143)+ISERROR(MissingDataC143)+LEN(MissingDataC143)=0, "", ROW(MissingDataC143)-MIN(ROW(MissingDataC143))+1), ROW(130:130))),"") ->  | AK143: =IF(ISNUMBER(SEARCH($F$6,AL143)),MAX($AK$11:AK142)+1,0) -> 132 | AL143: 0 | AM143: =ROWS($AM$12:AM143) -> 132 | AN143: =IFERROR(VLOOKUP(ROWS($AN$12:AN143),$AK$12:$AL$3007,2,0),"") -> 0
W144: =IFERROR(INDEX(MissingDataC006, SMALL(IF(ISBLANK(MissingDataC006)+ISERROR(MissingDataC006)+LEN(MissingDataC006)=0, "", ROW(MissingDataC006)-MIN(ROW(MissingDataC006))+1), ROW(79:79))),"") -> LTOREQ10___EMN__OUTOFSCHOOL_N | AA144: LTOREQ10___EMN__OUTOFSCHOOL_N | AC144: LTOREQ10EMNOUTOFSCHOOLN | AD144: LTOREQ10___EMN__OUTOFSCHOOL_N | AE144: 1 | AF144: ='FS006'!G91&"_"&'FS006'!H91&"_"&'FS006'!I91&"_"&'FS006'!P91&"_"&'FS006'!Q91&"_"&'FS006'!R91&"_"&'FS006'!S91 -> ______ | AG144: =IFERROR(INDEX(MissingDataC143, SMALL(IF(ISBLANK(MissingDataC143)+ISERROR(MissingDataC143)+LEN(MissingDataC143)=0, "", ROW(MissingDataC143)-MIN(ROW(MissingDataC143))+1), ROW(131:131))),"") ->  | AK144: =IF(ISNUMBER(SEARCH($F$6,AL144)),MAX($AK$11:AK143)+1,0) -> 133 | AL144: 0 | AM144: =ROWS($AM$12:AM144) -> 133 | AN144: =IFERROR(VLOOKUP(ROWS($AN$12:AN144),$AK$12:$AL$3007,2,0),"") -> 0
W145: =IFERROR(INDEX(MissingDataC006, SMALL(IF(ISBLANK(MissingDataC006)+ISERROR(MissingDataC006)+LEN(MissingDataC006)=0, "", ROW(MissingDataC006)-MIN(ROW(MissingDataC006))+1), ROW(80:80))),"") -> LTOREQ10___HI__OUTOFSCHOOL_N | AA145: LTOREQ10___HI__OUTOFSCHOOL_N | AC145: LTOREQ10HIOUTOFSCHOOLN | AD145: LTOREQ10___HI__OUTOFSCHOOL_N | AE145: 1 | AF145: ='FS006'!G92&"_"&'FS006'!H92&"_"&'FS006'!I92&"_"&'FS006'!P92&"_"&'FS006'!Q92&"_"&'FS006'!R92&"_"&'FS006'!S92 -> ______ | AG145: =IFERROR(INDEX(MissingDataC143, SMALL(IF(ISBLANK(MissingDataC143)+ISERROR(MissingDataC143)+LEN(MissingDataC143)=0, "", ROW(MissingDataC143)-MIN(ROW(MissingDataC143))+1), ROW(132:132))),"") ->  | AK145: =IF(ISNUMBER(SEARCH($F$6,AL145)),MAX($AK$11:AK144)+1,0) -> 134 | AL145: 0 | AM145: =ROWS($AM$12:AM145) -> 134 | AN145: =IFERROR(VLOOKUP(ROWS($AN$12:AN145),$AK$12:$AL$3007,2,0),"") -> 0
W146: =IFERROR(INDEX(MissingDataC006, SMALL(IF(ISBLANK(MissingDataC006)+ISERROR(MissingDataC006)+LEN(MissingDataC006)=0, "", ROW(MissingDataC006)-MIN(ROW(MissingDataC006))+1), ROW(81:81))),"") -> LTOREQ10___MD__OUTOFSCHOOL_N | AA146: LTOREQ10___MD__OUTOFSCHOOL_N | AC146: LTOREQ10MDOUTOFSCHOOLN | AD146: LTOREQ10___MD__OUTOFSCHOOL_N | AE146: 1 | AF146: ='FS006'!G93&"_"&'FS006'!H93&"_"&'FS006'!I93&"_"&'FS006'!P93&"_"&'FS006'!Q93&"_"&'FS006'!R93&"_"&'FS006'!S93 -> ______ | AG146: =IFERROR(INDEX(MissingDataC143, SMALL(IF(ISBLANK(MissingDataC143)+ISERROR(MissingDataC143)+LEN(MissingDataC143)=0, "", ROW(MissingDataC143)-MIN(ROW(MissingDataC143))+1), ROW(133:133))),"") ->  | AK146: =IF(ISNUMBER(SEARCH($F$6,AL146)),MAX($AK$11:AK145)+1,0) -> 135 | AL146: 0 | AM146: =ROWS($AM$12:AM146) -> 135 | AN146: =IFERROR(VLOOKUP(ROWS($AN$12:AN146),$AK$12:$AL$3007,2,0),"") -> 0
W147: =IFERROR(INDEX(MissingDataC006, SMALL(IF(ISBLANK(MissingDataC006)+ISERROR(MissingDataC006)+LEN(MissingDataC006)=0, "", ROW(MissingDataC006)-MIN(ROW(MissingDataC006))+1), ROW(82:82))),"") -> LTOREQ10___ID__OUTOFSCHOOL_N | AA147: LTOREQ10___ID__OUTOFSCHOOL_N | AC147: LTOREQ10IDOUTOFSCHOOLN | AD147: LTOREQ10___ID__OUTOFSCHOOL_N | AE147: 1 | AF147: ='FS006'!G94&"_"&'FS006'!H94&"_"&'FS006'!I94&"_"&'FS006'!P94&"_"&'FS006'!Q94&"_"&'FS006'!R94&"_"&'FS006'!S94 -> ______ | AG147: =IFERROR(INDEX(MissingDataC143, SMALL(IF(ISBLANK(MissingDataC143)+ISERROR(MissingDataC143)+LEN(MissingDataC143)=0, "", ROW(MissingDataC143)-MIN(ROW(MissingDataC143))+1), ROW(134:134))),"") ->  | AK147: =IF(ISNUMBER(SEARCH($F$6,AL147)),MAX($AK$11:AK146)+1,0) -> 136 | AL147: 0 | AM147: =ROWS($AM$12:AM147) -> 136 | AN147: =IFERROR(VLOOKUP(ROWS($AN$12:AN147),$AK$12:$AL$3007,2,0),"") -> 0
W148: =IFERROR(INDEX(MissingDataC006, SMALL(IF(ISBLANK(MissingDataC006)+ISERROR(MissingDataC006)+LEN(MissingDataC006)=0, "", ROW(MissingDataC006)-MIN(ROW(MissingDataC006))+1), ROW(83:83))),"") -> LTOREQ10___OHI__OUTOFSCHOOL_N | AA148: LTOREQ10___OHI__OUTOFSCHOOL_N | AC148: LTOREQ10OHIOUTOFSCHOOLN | AD148: LTOREQ10___OHI__OUTOFSCHOOL_N | AE148: 1 | AF148: ='FS006'!G95&"_"&'FS006'!H95&"_"&'FS006'!I95&"_"&'FS006'!P95&"_"&'FS006'!Q95&"_"&'FS006'!R95&"_"&'FS006'!S95 -> ______ | AG148: =IFERROR(INDEX(MissingDataC143, SMALL(IF(ISBLANK(MissingDataC143)+ISERROR(MissingDataC143)+LEN(MissingDataC143)=0, "", ROW(MissingDataC143)-MIN(ROW(MissingDataC143))+1), ROW(135:135))),"") ->  | AK148: =IF(ISNUMBER(SEARCH($F$6,AL148)),MAX($AK$11:AK147)+1,0) -> 137 | AL148: 0 | AM148: =ROWS($AM$12:AM148) -> 137 | AN148: =IFERROR(VLOOKUP(ROWS($AN$12:AN148),$AK$12:$AL$3007,2,0),"") -> 0
W149: =IFERROR(INDEX(MissingDataC006, SMALL(IF(ISBLANK(MissingDataC006)+ISERROR(MissingDataC006)+LEN(MissingDataC006)=0, "", ROW(MissingDataC006)-MIN(ROW(MissingDataC006))+1), ROW(84:84))),"") -> LTOREQ10___OI__OUTOFSCHOOL_N | AA149: LTOREQ10___OI__OUTOFSCHOOL_N | AC149: LTOREQ10OIOUTOFSCHOOLN | AD149: LTOREQ10___OI__OUTOFSCHOOL_N | AE149: 1 | AF149: ='FS006'!G96&"_"&'FS006'!H96&"_"&'FS006'!I96&"_"&'FS006'!P96&"_"&'FS006'!Q96&"_"&'FS006'!R96&"_"&'FS006'!S96 -> ______ | AG149: =IFERROR(INDEX(MissingDataC143, SMALL(IF(ISBLANK(MissingDataC143)+ISERROR(MissingDataC143)+LEN(MissingDataC143)=0, "", ROW(MissingDataC143)-MIN(ROW(MissingDataC143))+1), ROW(136:136))),"") ->  | AK149: =IF(ISNUMBER(SEARCH($F$6,AL149)),MAX($AK$11:AK148)+1,0) -> 138 | AL149: 0 | AM149: =ROWS($AM$12:AM149) -> 138 | AN149: =IFERROR(VLOOKUP(ROWS($AN$12:AN149),$AK$12:$AL$3007,2,0),"") -> 0
W150: =IFERROR(INDEX(MissingDataC006, SMALL(IF(ISBLANK(MissingDataC006)+ISERROR(MissingDataC006)+LEN(MissingDataC006)=0, "", ROW(MissingDataC006)-MIN(ROW(MissingDataC006))+1), ROW(85:85))),"") -> LTOREQ10___SLD__OUTOFSCHOOL_N | AA150: LTOREQ10___SLD__OUTOFSCHOOL_N | AC150: LTOREQ10SLDOUTOFSCHOOLN | AD150: LTOREQ10___SLD__OUTOFSCHOOL_N | AE150: 1 | AF150: ='FS006'!G97&"_"&'FS006'!H97&"_"&'FS006'!I97&"_"&'FS006'!P97&"_"&'FS006'!Q97&"_"&'FS006'!R97&"_"&'FS006'!S97 -> ______ | AG150: =IFERROR(INDEX(MissingDataC143, SMALL(IF(ISBLANK(MissingDataC143)+ISERROR(MissingDataC143)+LEN(MissingDataC143)=0, "", ROW(MissingDataC143)-MIN(ROW(MissingDataC143))+1), ROW(137:137))),"") ->  | AK150: =IF(ISNUMBER(SEARCH($F$6,AL150)),MAX($AK$11:AK149)+1,0) -> 139 | AL150: 0 | AM150: =ROWS($AM$12:AM150) -> 139 | AN150: =IFERROR(VLOOKUP(ROWS($AN$12:AN150),$AK$12:$AL$3007,2,0),"") -> 0
W151: =IFERROR(INDEX(MissingDataC006, SMALL(IF(ISBLANK(MissingDataC006)+ISERROR(MissingDataC006)+LEN(MissingDataC006)=0, "", ROW(MissingDataC006)-MIN(ROW(MissingDataC006))+1), ROW(86:86))),"") -> LTOREQ10___SLI__OUTOFSCHOOL_N | AA151: LTOREQ10___SLI__OUTOFSCHOOL_N | AC151: LTOREQ10SLIOUTOFSCHOOLN | AD151: LTOREQ10___SLI__OUTOFSCHOOL_N | AE151: 1 | AF151: ='FS006'!G98&"_"&'FS006'!H98&"_"&'FS006'!I98&"_"&'FS006'!P98&"_"&'FS006'!Q98&"_"&'FS006'!R98&"_"&'FS006'!S98 -> ______ | AG151: =IFERROR(INDEX(MissingDataC143, SMALL(IF(ISBLANK(MissingDataC143)+ISERROR(MissingDataC143)+LEN(MissingDataC143)=0, "", ROW(MissingDataC143)-MIN(ROW(MissingDataC143))+1), ROW(138:138))),"") ->  | AK151: =IF(ISNUMBER(SEARCH($F$6,AL151)),MAX($AK$11:AK150)+1,0) -> 140 | AL151: 0 | AM151: =ROWS($AM$12:AM151) -> 140 | AN151: =IFERROR(VLOOKUP(ROWS($AN$12:AN151),$AK$12:$AL$3007,2,0),"") -> 0
W152: =IFERROR(INDEX(MissingDataC006, SMALL(IF(ISBLANK(MissingDataC006)+ISERROR(MissingDataC006)+LEN(MissingDataC006)=0, "", ROW(MissingDataC006)-MIN(ROW(MissingDataC006))+1), ROW(87:87))),"") -> LTOREQ10___TBI__OUTOFSCHOOL_N | AA152: LTOREQ10___TBI__OUTOFSCHOOL_N | AC152: LTOREQ10TBIOUTOFSCHOOLN | AD152: LTOREQ10___TBI__OUTOFSCHOOL_N | AE152: 1 | AF152: ='FS006'!G99&"_"&'FS006'!H99&"_"&'FS006'!I99&"_"&'FS006'!P99&"_"&'FS006'!Q99&"_"&'FS006'!R99&"_"&'FS006'!S99 -> ______ | AG152: =IFERROR(INDEX(MissingDataC143, SMALL(IF(ISBLANK(MissingDataC143)+ISERROR(MissingDataC143)+LEN(MissingDataC143)=0, "", ROW(MissingDataC143)-MIN(ROW(MissingDataC143))+1), ROW(139:139))),"") ->  | AK152: =IF(ISNUMBER(SEARCH($F$6,AL152)),MAX($AK$11:AK151)+1,0) -> 141 | AL152: 0 | AM152: =ROWS($AM$12:AM152) -> 141 | AN152: =IFERROR(VLOOKUP(ROWS($AN$12:AN152),$AK$12:$AL$3007,2,0),"") -> 0
W153: =IFERROR(INDEX(MissingDataC006, SMALL(IF(ISBLANK(MissingDataC006)+ISERROR(MissingDataC006)+LEN(MissingDataC006)=0, "", ROW(MissingDataC006)-MIN(ROW(MissingDataC006))+1), ROW(88:88))),"") -> LTOREQ10___VI__OUTOFSCHOOL_N | AA153: LTOREQ10___VI__OUTOFSCHOOL_N | AC153: LTOREQ10VIOUTOFSCHOOLN | AD153: LTOREQ10___VI__OUTOFSCHOOL_N | AE153: 1 | AF153: ='FS006'!G100&"_"&'FS006'!H100&"_"&'FS006'!I100&"_"&'FS006'!P100&"_"&'FS006'!Q100&"_"&'FS006'!R100&"_"&'FS006'!S100 -> ______ | AG153: =IFERROR(INDEX(MissingDataC143, SMALL(IF(ISBLANK(MissingDataC143)+ISERROR(MissingDataC143)+LEN(MissingDataC143)=0, "", ROW(MissingDataC143)-MIN(ROW(MissingDataC143))+1), ROW(140:140))),"") ->  | AK153: =IF(ISNUMBER(SEARCH($F$6,AL153)),MAX($AK$11:AK152)+1,0) -> 142 | AL153: 0 | AM153: =ROWS($AM$12:AM153) -> 142 | AN153: =IFERROR(VLOOKUP(ROWS($AN$12:AN153),$AK$12:$AL$3007,2,0),"") -> 0
W154: =IFERROR(INDEX(MissingDataC006, SMALL(IF(ISBLANK(MissingDataC006)+ISERROR(MissingDataC006)+LEN(MissingDataC006)=0, "", ROW(MissingDataC006)-MIN(ROW(MissingDataC006))+1), ROW(89:89))),"") -> LTOREQ10_AM7____OUTOFSCHOOL_N | AA154: LTOREQ10_AM7____OUTOFSCHOOL_N | AC154: LTOREQ10AM7OUTOFSCHOOLN | AD154: LTOREQ10_AM7____OUTOFSCHOOL_N | AE154: 1 | AF154: ='FS006'!G101&"_"&'FS006'!H101&"_"&'FS006'!I101&"_"&'FS006'!P101&"_"&'FS006'!Q101&"_"&'FS006'!R101&"_"&'FS006'!S101 -> ______ | AG154: =IFERROR(INDEX(MissingDataC143, SMALL(IF(ISBLANK(MissingDataC143)+ISERROR(MissingDataC143)+LEN(MissingDataC143)=0, "", ROW(MissingDataC143)-MIN(ROW(MissingDataC143))+1), ROW(141:141))),"") ->  | AK154: =IF(ISNUMBER(SEARCH($F$6,AL154)),MAX($AK$11:AK153)+1,0) -> 143 | AL154: 0 | AM154: =ROWS($AM$12:AM154) -> 143 | AN154: =IFERROR(VLOOKUP(ROWS($AN$12:AN154),$AK$12:$AL$3007,2,0),"") -> 0
W155: =IFERROR(INDEX(MissingDataC006, SMALL(IF(ISBLANK(MissingDataC006)+ISERROR(MissingDataC006)+LEN(MissingDataC006)=0, "", ROW(MissingDataC006)-MIN(ROW(MissingDataC006))+1), ROW(90:90))),"") -> LTOREQ10_AS7____OUTOFSCHOOL_N | AA155: LTOREQ10_AS7____OUTOFSCHOOL_N | AC155: LTOREQ10AS7OUTOFSCHOOLN | AD155: LTOREQ10_AS7____OUTOFSCHOOL_N | AE155: 1 | AF155: ='FS006'!G102&"_"&'FS006'!H102&"_"&'FS006'!I102&"_"&'FS006'!P102&"_"&'FS006'!Q102&"_"&'FS006'!R102&"_"&'FS006'!S102 -> ______ | AG155: =IFERROR(INDEX(MissingDataC143, SMALL(IF(ISBLANK(MissingDataC143)+ISERROR(MissingDataC143)+LEN(MissingDataC143)=0, "", ROW(MissingDataC143)-MIN(ROW(MissingDataC143))+1), ROW(142:142))),"") ->  | AK155: =IF(ISNUMBER(SEARCH($F$6,AL155)),MAX($AK$11:AK154)+1,0) -> 144 | AL155: 0 | AM155: =ROWS($AM$12:AM155) -> 144 | AN155: =IFERROR(VLOOKUP(ROWS($AN$12:AN155),$AK$12:$AL$3007,2,0),"") -> 0
W156: =IFERROR(INDEX(MissingDataC006, SMALL(IF(ISBLANK(MissingDataC006)+ISERROR(MissingDataC006)+LEN(MissingDataC006)=0, "", ROW(MissingDataC006)-MIN(ROW(MissingDataC006))+1), ROW(91:91))),"") -> LTOREQ10_BL7____OUTOFSCHOOL_N | AA156: LTOREQ10_BL7____OUTOFSCHOOL_N | AC156: LTOREQ10BL7OUTOFSCHOOLN | AD156: LTOREQ10_BL7____OUTOFSCHOOL_N | AE156: 1 | AF156: ='FS006'!G103&"_"&'FS006'!H103&"_"&'FS006'!I103&"_"&'FS006'!P103&"_"&'FS006'!Q103&"_"&'FS006'!R103&"_"&'FS006'!S103 -> ______ | AG156: =IFERROR(INDEX(MissingDataC143, SMALL(IF(ISBLANK(MissingDataC143)+ISERROR(MissingDataC143)+LEN(MissingDataC143)=0, "", ROW(MissingDataC143)-MIN(ROW(MissingDataC143))+1), ROW(143:143))),"") ->  | AK156: =IF(ISNUMBER(SEARCH($F$6,AL156)),MAX($AK$11:AK155)+1,0) -> 145 | AL156: 0 | AM156: =ROWS($AM$12:AM156) -> 145 | AN156: =IFERROR(VLOOKUP(ROWS($AN$12:AN156),$AK$12:$AL$3007,2,0),"") -> 0
W157: =IFERROR(INDEX(MissingDataC006, SMALL(IF(ISBLANK(MissingDataC006)+ISERROR(MissingDataC006)+LEN(MissingDataC006)=0, "", ROW(MissingDataC006)-MIN(ROW(MissingDataC006))+1), ROW(92:92))),"") -> LTOREQ10_HI7____OUTOFSCHOOL_N | AA157: LTOREQ10_HI7____OUTOFSCHOOL_N | AC157: LTOREQ10HI7OUTOFSCHOOLN | AD157: LTOREQ10_HI7____OUTOFSCHOOL_N | AE157: 1 | AF157: ='FS006'!G104&"_"&'FS006'!H104&"_"&'FS006'!I104&"_"&'FS006'!P104&"_"&'FS006'!Q104&"_"&'FS006'!R104&"_"&'FS006'!S104 -> ______ | AG157: =IFERROR(INDEX(MissingDataC143, SMALL(IF(ISBLANK(MissingDataC143)+ISERROR(MissingDataC143)+LEN(MissingDataC143)=0, "", ROW(MissingDataC143)-MIN(ROW(MissingDataC143))+1), ROW(144:144))),"") ->  | AK157: =IF(ISNUMBER(SEARCH($F$6,AL157)),MAX($AK$11:AK156)+1,0) -> 146 | AL157: 0 | AM157: =ROWS($AM$12:AM157) -> 146 | AN157: =IFERROR(VLOOKUP(ROWS($AN$12:AN157),$AK$12:$AL$3007,2,0),"") -> 0
W158: =IFERROR(INDEX(MissingDataC006, SMALL(IF(ISBLANK(MissingDataC006)+ISERROR(MissingDataC006)+LEN(MissingDataC006)=0, "", ROW(MissingDataC006)-MIN(ROW(MissingDataC006))+1), ROW(93:93))),"") -> LTOREQ10_MU7____OUTOFSCHOOL_N | AA158: LTOREQ10_MU7____OUTOFSCHOOL_N | AC158: LTOREQ10MU7OUTOFSCHOOLN | AD158: LTOREQ10_MU7____OUTOFSCHOOL_N | AE158: 1 | AF158: ='FS006'!G105&"_"&'FS006'!H105&"_"&'FS006'!I105&"_"&'FS006'!P105&"_"&'FS006'!Q105&"_"&'FS006'!R105&"_"&'FS006'!S105 -> ______ | AG158: =IFERROR(INDEX(MissingDataC143, SMALL(IF(ISBLANK(MissingDataC143)+ISERROR(MissingDataC143)+LEN(MissingDataC143)=0, "", ROW(MissingDataC143)-MIN(ROW(MissingDataC143))+1), ROW(145:145))),"") ->  | AK158: =IF(ISNUMBER(SEARCH($F$6,AL158)),MAX($AK$11:AK157)+1,0) -> 147 | AL158: 0 | AM158: =ROWS($AM$12:AM158) -> 147 | AN158: =IFERROR(VLOOKUP(ROWS($AN$12:AN158),$AK$12:$AL$3007,2,0),"") -> 0
W159: =IFERROR(INDEX(MissingDataC006, SMALL(IF(ISBLANK(MissingDataC006)+ISERROR(MissingDataC006)+LEN(MissingDataC006)=0, "", ROW(MissingDataC006)-MIN(ROW(MissingDataC006))+1), ROW(94:94))),"") -> LTOREQ10_PI7____OUTOFSCHOOL_N | AA159: LTOREQ10_PI7____OUTOFSCHOOL_N | AC159: LTOREQ10PI7OUTOFSCHOOLN | AD159: LTOREQ10_PI7____OUTOFSCHOOL_N | AE159: 1 | AF159: ='FS006'!G106&"_"&'FS006'!H106&"_"&'FS006'!I106&"_"&'FS006'!P106&"_"&'FS006'!Q106&"_"&'FS006'!R106&"_"&'FS006'!S106 -> ______ | AG159: =IFERROR(INDEX(MissingDataC143, SMALL(IF(ISBLANK(MissingDataC143)+ISERROR(MissingDataC143)+LEN(MissingDataC143)=0, "", ROW(MissingDataC143)-MIN(ROW(MissingDataC143))+1), ROW(146:146))),"") ->  | AK159: =IF(ISNUMBER(SEARCH($F$6,AL159)),MAX($AK$11:AK158)+1,0) -> 148 | AL159: 0 | AM159: =ROWS($AM$12:AM159) -> 148 | AN159: =IFERROR(VLOOKUP(ROWS($AN$12:AN159),$AK$12:$AL$3007,2,0),"") -> 0
W160: =IFERROR(INDEX(MissingDataC006, SMALL(IF(ISBLANK(MissingDataC006)+ISERROR(MissingDataC006)+LEN(MissingDataC006)=0, "", ROW(MissingDataC006)-MIN(ROW(MissingDataC006))+1), ROW(95:95))),"") -> LTOREQ10_WH7____OUTOFSCHOOL_N | AA160: LTOREQ10_WH7____OUTOFSCHOOL_N | AC160: LTOREQ10WH7OUTOFSCHOOLN | AD160: LTOREQ10_WH7____OUTOFSCHOOL_N | AE160: 1 | AF160: ='FS006'!G107&"_"&'FS006'!H107&"_"&'FS006'!I107&"_"&'FS006'!P107&"_"&'FS006'!Q107&"_"&'FS006'!R107&"_"&'FS006'!S107 -> ______ | AG160: =IFERROR(INDEX(MissingDataC143, SMALL(IF(ISBLANK(MissingDataC143)+ISERROR(MissingDataC143)+LEN(MissingDataC143)=0, "", ROW(MissingDataC143)-MIN(ROW(MissingDataC143))+1), ROW(147:147))),"") ->  | AK160: =IF(ISNUMBER(SEARCH($F$6,AL160)),MAX($AK$11:AK159)+1,0) -> 149 | AL160: 0 | AM160: =ROWS($AM$12:AM160) -> 149 | AN160: =IFERROR(VLOOKUP(ROWS($AN$12:AN160),$AK$12:$AL$3007,2,0),"") -> 0
W161: =IFERROR(INDEX(MissingDataC006, SMALL(IF(ISBLANK(MissingDataC006)+ISERROR(MissingDataC006)+LEN(MissingDataC006)=0, "", ROW(MissingDataC006)-MIN(ROW(MissingDataC006))+1), ROW(96:96))),"") -> LTOREQ10____LEP_OUTOFSCHOOL_N | AA161: LTOREQ10____LEP_OUTOFSCHOOL_N | AC161: LTOREQ10LEPOUTOFSCHOOLN | AD161: LTOREQ10____LEP_OUTOFSCHOOL_N | AE161: 1 | AF161: ='FS006'!G108&"_"&'FS006'!H108&"_"&'FS006'!I108&"_"&'FS006'!P108&"_"&'FS006'!Q108&"_"&'FS006'!R108&"_"&'FS006'!S108 -> ______ | AG161: =IFERROR(INDEX(MissingDataC143, SMALL(IF(ISBLANK(MissingDataC143)+ISERROR(MissingDataC143)+LEN(MissingDataC143)=0, "", ROW(MissingDataC143)-MIN(ROW(MissingDataC143))+1), ROW(148:148))),"") ->  | AK161: =IF(ISNUMBER(SEARCH($F$6,AL161)),MAX($AK$11:AK160)+1,0) -> 150 | AL161: 0 | AM161: =ROWS($AM$12:AM161) -> 150 | AN161: =IFERROR(VLOOKUP(ROWS($AN$12:AN161),$AK$12:$AL$3007,2,0),"") -> 0
W162: =IFERROR(INDEX(MissingDataC006, SMALL(IF(ISBLANK(MissingDataC006)+ISERROR(MissingDataC006)+LEN(MissingDataC006)=0, "", ROW(MissingDataC006)-MIN(ROW(MissingDataC006))+1), ROW(97:97))),"") -> LTOREQ10____NLEP_OUTOFSCHOOL_N | AA162: LTOREQ10____NLEP_OUTOFSCHOOL_N | AC162: LTOREQ10NLEPOUTOFSCHOOLN | AD162: LTOREQ10____NLEP_OUTOFSCHOOL_N | AE162: 1 | AF162: ='FS006'!G109&"_"&'FS006'!H109&"_"&'FS006'!I109&"_"&'FS006'!P109&"_"&'FS006'!Q109&"_"&'FS006'!R109&"_"&'FS006'!S109 -> ______ | AG162: =IFERROR(INDEX(MissingDataC143, SMALL(IF(ISBLANK(MissingDataC143)+ISERROR(MissingDataC143)+LEN(MissingDataC143)=0, "", ROW(MissingDataC143)-MIN(ROW(MissingDataC143))+1), ROW(149:149))),"") ->  | AK162: =IF(ISNUMBER(SEARCH($F$6,AL162)),MAX($AK$11:AK161)+1,0) -> 151 | AL162: 0 | AM162: =ROWS($AM$12:AM162) -> 151 | AN162: =IFERROR(VLOOKUP(ROWS($AN$12:AN162),$AK$12:$AL$3007,2,0),"") -> 0
W163: =IFERROR(INDEX(MissingDataC006, SMALL(IF(ISBLANK(MissingDataC006)+ISERROR(MissingDataC006)+LEN(MissingDataC006)=0, "", ROW(MissingDataC006)-MIN(ROW(MissingDataC006))+1), ROW(98:98))),"") -> LTOREQ10__F___OUTOFSCHOOL_N | AA163: LTOREQ10__F___OUTOFSCHOOL_N | AC163: LTOREQ10FOUTOFSCHOOLN | AD163: LTOREQ10__F___OUTOFSCHOOL_N | AE163: 1 | AF163: ='FS006'!G110&"_"&'FS006'!H110&"_"&'FS006'!I110&"_"&'FS006'!P110&"_"&'FS006'!Q110&"_"&'FS006'!R110&"_"&'FS006'!S110 -> ______ | AG163: =IFERROR(INDEX(MissingDataC143, SMALL(IF(ISBLANK(MissingDataC143)+ISERROR(MissingDataC143)+LEN(MissingDataC143)=0, "", ROW(MissingDataC143)-MIN(ROW(MissingDataC143))+1), ROW(150:150))),"") ->  | AK163: =IF(ISNUMBER(SEARCH($F$6,AL163)),MAX($AK$11:AK162)+1,0) -> 152 | AL163: 0 | AM163: =ROWS($AM$12:AM163) -> 152 | AN163: =IFERROR(VLOOKUP(ROWS($AN$12:AN163),$AK$12:$AL$3007,2,0),"") -> 0
W164: =IFERROR(INDEX(MissingDataC006, SMALL(IF(ISBLANK(MissingDataC006)+ISERROR(MissingDataC006)+LEN(MissingDataC006)=0, "", ROW(MissingDataC006)-MIN(ROW(MissingDataC006))+1), ROW(99:99))),"") -> LTOREQ10__M___OUTOFSCHOOL_N | AA164: LTOREQ10__M___OUTOFSCHOOL_N | AC164: LTOREQ10MOUTOFSCHOOLN | AD164: LTOREQ10__M___OUTOFSCHOOL_N | AE164: 1 | AF164: ='FS006'!G111&"_"&'FS006'!H111&"_"&'FS006'!I111&"_"&'FS006'!P111&"_"&'FS006'!Q111&"_"&'FS006'!R111&"_"&'FS006'!S111 -> ______ | AG164: =IFERROR(INDEX(MissingDataC143, SMALL(IF(ISBLANK(MissingDataC143)+ISERROR(MissingDataC143)+LEN(MissingDataC143)=0, "", ROW(MissingDataC143)-MIN(ROW(MissingDataC143))+1), ROW(151:151))),"") ->  | AK164: =IF(ISNUMBER(SEARCH($F$6,AL164)),MAX($AK$11:AK163)+1,0) -> 153 | AL164: 0 | AM164: =ROWS($AM$12:AM164) -> 153 | AN164: =IFERROR(VLOOKUP(ROWS($AN$12:AN164),$AK$12:$AL$3007,2,0),"") -> 0
W165: =IFERROR(INDEX(MissingDataC006, SMALL(IF(ISBLANK(MissingDataC006)+ISERROR(MissingDataC006)+LEN(MissingDataC006)=0, "", ROW(MissingDataC006)-MIN(ROW(MissingDataC006))+1), ROW(100:100))),"") -> LTOREQ10_____OUTOFSCHOOL_Y | AA165: LTOREQ10_____OUTOFSCHOOL_Y | AC165: LTOREQ10OUTOFSCHOOLY | AD165: LTOREQ10_____OUTOFSCHOOL_Y | AE165: 1 | AF165: ='FS006'!G112&"_"&'FS006'!H112&"_"&'FS006'!I112&"_"&'FS006'!P112&"_"&'FS006'!Q112&"_"&'FS006'!R112&"_"&'FS006'!S112 -> ______ | AG165: =IFERROR(INDEX(MissingDataC143, SMALL(IF(ISBLANK(MissingDataC143)+ISERROR(MissingDataC143)+LEN(MissingDataC143)=0, "", ROW(MissingDataC143)-MIN(ROW(MissingDataC143))+1), ROW(152:152))),"") ->  | AK165: =IF(ISNUMBER(SEARCH($F$6,AL165)),MAX($AK$11:AK164)+1,0) -> 154 | AL165: 0 | AM165: =ROWS($AM$12:AM165) -> 154 | AN165: =IFERROR(VLOOKUP(ROWS($AN$12:AN165),$AK$12:$AL$3007,2,0),"") -> 0
AG166: =IFERROR(INDEX(MissingDataC143, SMALL(IF(ISBLANK(MissingDataC143)+ISERROR(MissingDataC143)+LEN(MissingDataC143)=0, "", ROW(MissingDataC143)-MIN(ROW(MissingDataC143))+1), ROW(153:153))),"") ->  | AK166: =IF(ISNUMBER(SEARCH($F$6,AL166)),MAX($AK$11:AK165)+1,0) -> 155 | AL166: 0 | AM166: =ROWS($AM$12:AM166) -> 155 | AN166: =IFERROR(VLOOKUP(ROWS($AN$12:AN166),$AK$12:$AL$3007,2,0),"") -> 0
AK167: =IF(ISNUMBER(SEARCH($F$6,AL167)),MAX($AK$11:AK166)+1,0) -> 156 | AL167: 0 | AM167: =ROWS($AM$12:AM167) -> 156 | AN167: =IFERROR(VLOOKUP(ROWS($AN$12:AN167),$AK$12:$AL$3007,2,0),"") -> 0
A168: FS007 — Children with Disabilities (IDEA) Reasons for Unilateral Removal | W168: Data quality checks | AA168: Count of Missing Data: | AB168: =SUM(AE170:AE244) -> 74 | AK168: =IF(ISNUMBER(SEARCH($F$6,AL168)),MAX($AK$11:AK167)+1,0) -> 157 | AL168: 0 | AM168: =ROWS($AM$12:AM168) -> 157 | AN168: =IFERROR(VLOOKUP(ROWS($AN$12:AN168),$AK$12:$AL$3007,2,0),"") -> 0
A169: File record number | B169: State code | C169: State agency number | D169: LEA identifier (state) | E169: Filler | F169: Table name | G169: Filler | H169: Racial ethnic | I169: Sex (membership) | J169: Filler | K169: Filler | L169: Filler | M169: Filler | N169: Filler | O169: Filler | P169: Disability category (IDEA) | Q169: English learner status (both) | R169: Interim removal reason (IDEA) | S169: Total indicator | T169: Explanation | U169: Student count | W169: Data elements not included for this LEA (formatted) | X169: Duplicate row elements | Y169: Invalid data elements | AA169: Missing Data | AB169: Current Listing | AC169: Master Listing | AD169: Master Listing (For output) | AE169: Is Missing Data Element | AF169: Current Listing (For output) | AG169: Missing Data (ordered) | AK169: =IF(ISNUMBER(SEARCH($F$6,AL169)),MAX($AK$11:AK168)+1,0) -> 158 | AL169: 0 | AM169: =ROWS($AM$12:AM169) -> 158 | AN169: =IFERROR(VLOOKUP(ROWS($AN$12:AN169),$AK$12:$AL$3007,2,0),"") -> 0
A170: =IF(CN12="","",CN12) ->  | B170: =IF(CO12="","",CO12) ->  | C170: =IF(CP12="","",CP12) ->  | D170: =IF(CQ12="","",CQ12) ->  | E170: =IF(CR12="","",CR12) ->  | F170: =IF(CS12="","",CS12) ->  | G170: =IF(CT12="","",CT12) ->  | H170: =IF(CU12="","",CU12) ->  | I170: =IF(CV12="","",CV12) ->  | J170: =IF(CW12="","",CW12) ->  | K170: =IF(CX12="","",CX12) ->  | L170: =IF(CY12="","",CY12) ->  | M170: =IF(CZ12="","",CZ12) ->  | N170: =IF(DA12="","",DA12) ->  | O170: =IF(DB12="","",DB12) ->  | P170: =IF(DC12="","",DC12) ->  | Q170: =IF(DD12="","",DD12) ->  | R170: =IF(DE12="","",DE12) ->  | S170: =IF(DF12="","",DF12) ->  | T170: =IF(DG12="","",DG12) ->  | U170: =IF(DH12="","",DH12) ->  | W170: =IFERROR(INDEX(MissingDataC007, SMALL(IF(ISBLANK(MissingDataC007)+ISERROR(MissingDataC007)+LEN(MissingDataC007)=0, "", ROW(MissingDataC007)-MIN(ROW(MissingDataC007))+1), ROW(1:1))),"") -> AM7____SBI_N | AA170: =IF(LEN(AD170)=0,"",IF(ISNA(MATCH(AC170,CurrentListingC007,0)),AD170,"")) -> AM7____D_N | AB170: =H170&I170&P170&Q170&R170&S170 ->  | AC170: AM7DN | AD170: AM7____D_N | AE170: =IF(LEN(W170)>0,1,0) -> 1 | AF170: ='FS007'!H13&"_"&'FS007'!I13&"_"&'FS007'!P13&"_"&'FS007'!Q13&"_"&'FS007'!R13&"_"&'FS007'!S13 -> _____ | AK170: =IF(ISNUMBER(SEARCH($F$6,AL170)),MAX($AK$11:AK169)+1,0) -> 159 | AL170: 0 | AM170: =ROWS($AM$12:AM170) -> 159 | AN170: =IFERROR(VLOOKUP(ROWS($AN$12:AN170),$AK$12:$AL$3007,2,0),"") -> 0
W171: =IFERROR(INDEX(MissingDataC007, SMALL(IF(ISBLANK(MissingDataC007)+ISERROR(MissingDataC007)+LEN(MissingDataC007)=0, "", ROW(MissingDataC007)-MIN(ROW(MissingDataC007))+1), ROW(2:2))),"") -> AM7____W_N | X171: =IF(LEN(AB171)=0,"",IF(COUNTIF(CurrentListingC007,AB171)>1,AF171,"")) ->  | Y171: =IF(LEN(AB171)=0,"",IF(ISNA(MATCH(AB171,MasterListingC007,0)),AF171,"")) ->  | AA171: AM7____SBI_N | AB171: =H171&I171&P171&Q171&R171&S171 ->  | AC171: AM7SBIN | AD171: AM7____SBI_N | AE171: =IF(LEN(W171)>0,1,0) -> 1 | AF171: ='FS007'!H14&"_"&'FS007'!I14&"_"&'FS007'!P14&"_"&'FS007'!Q14&"_"&'FS007'!R14&"_"&'FS007'!S14 -> _____ | AG171: =IFERROR(INDEX(MissingDataC143, SMALL(IF(ISBLANK(MissingDataC143)+ISERROR(MissingDataC143)+LEN(MissingDataC143)=0, "", ROW(MissingDataC143)-MIN(ROW(MissingDataC143))+1), ROW(160:160))),"") ->  | AK171: =IF(ISNUMBER(SEARCH($F$6,AL171)),MAX($AK$11:AK170)+1,0) -> 160 | AL171: 0 | AM171: =ROWS($AM$12:AM171) -> 160 | AN171: =IFERROR(VLOOKUP(ROWS($AN$12:AN171),$AK$12:$AL$3007,2,0),"") -> 0
W172: =IFERROR(INDEX(MissingDataC007, SMALL(IF(ISBLANK(MissingDataC007)+ISERROR(MissingDataC007)+LEN(MissingDataC007)=0, "", ROW(MissingDataC007)-MIN(ROW(MissingDataC007))+1), ROW(3:3))),"") -> AS7____D_N | AA172: AM7____W_N | AC172: AM7WN | AD172: AM7____W_N | AE172: =IF(LEN(W172)>0,1,0) -> 1 | AF172: ='FS007'!H15&"_"&'FS007'!I15&"_"&'FS007'!P15&"_"&'FS007'!Q15&"_"&'FS007'!R15&"_"&'FS007'!S15 -> _____ | AG172: =IFERROR(INDEX(MissingDataC143, SMALL(IF(ISBLANK(MissingDataC143)+ISERROR(MissingDataC143)+LEN(MissingDataC143)=0, "", ROW(MissingDataC143)-MIN(ROW(MissingDataC143))+1), ROW(161:161))),"") ->  | AK172: =IF(ISNUMBER(SEARCH($F$6,AL172)),MAX($AK$11:AK171)+1,0) -> 161 | AL172: 0 | AM172: =ROWS($AM$12:AM172) -> 161 | AN172: =IFERROR(VLOOKUP(ROWS($AN$12:AN172),$AK$12:$AL$3007,2,0),"") -> 0
W173: =IFERROR(INDEX(MissingDataC007, SMALL(IF(ISBLANK(MissingDataC007)+ISERROR(MissingDataC007)+LEN(MissingDataC007)=0, "", ROW(MissingDataC007)-MIN(ROW(MissingDataC007))+1), ROW(4:4))),"") -> AS7____SBI_N | AA173: AS7____D_N | AC173: AS7DN | AD173: AS7____D_N | AE173: 1 | AF173: ='FS007'!H16&"_"&'FS007'!I16&"_"&'FS007'!P16&"_"&'FS007'!Q16&"_"&'FS007'!R16&"_"&'FS007'!S16 -> _____ | AG173: =IFERROR(INDEX(MissingDataC143, SMALL(IF(ISBLANK(MissingDataC143)+ISERROR(MissingDataC143)+LEN(MissingDataC143)=0, "", ROW(MissingDataC143)-MIN(ROW(MissingDataC143))+1), ROW(162:162))),"") ->  | AK173: =IF(ISNUMBER(SEARCH($F$6,AL173)),MAX($AK$11:AK172)+1,0) -> 162 | AL173: 0 | AM173: =ROWS($AM$12:AM173) -> 162 | AN173: =IFERROR(VLOOKUP(ROWS($AN$12:AN173),$AK$12:$AL$3007,2,0),"") -> 0
W174: =IFERROR(INDEX(MissingDataC007, SMALL(IF(ISBLANK(MissingDataC007)+ISERROR(MissingDataC007)+LEN(MissingDataC007)=0, "", ROW(MissingDataC007)-MIN(ROW(MissingDataC007))+1), ROW(5:5))),"") -> AS7____W_N | AA174: AS7____SBI_N | AC174: AS7SBIN | AD174: AS7____SBI_N | AE174: 1 | AF174: ='FS007'!H17&"_"&'FS007'!I17&"_"&'FS007'!P17&"_"&'FS007'!Q17&"_"&'FS007'!R17&"_"&'FS007'!S17 -> _____ | AG174: =IFERROR(INDEX(MissingDataC143, SMALL(IF(ISBLANK(MissingDataC143)+ISERROR(MissingDataC143)+LEN(MissingDataC143)=0, "", ROW(MissingDataC143)-MIN(ROW(MissingDataC143))+1), ROW(163:163))),"") ->  | AK174: =IF(ISNUMBER(SEARCH($F$6,AL174)),MAX($AK$11:AK173)+1,0) -> 163 | AL174: 0 | AM174: =ROWS($AM$12:AM174) -> 163 | AN174: =IFERROR(VLOOKUP(ROWS($AN$12:AN174),$AK$12:$AL$3007,2,0),"") -> 0
W175: =IFERROR(INDEX(MissingDataC007, SMALL(IF(ISBLANK(MissingDataC007)+ISERROR(MissingDataC007)+LEN(MissingDataC007)=0, "", ROW(MissingDataC007)-MIN(ROW(MissingDataC007))+1), ROW(6:6))),"") -> BL7____D_N | AA175: AS7____W_N | AC175: AS7WN | AD175: AS7____W_N | AE175: 1 | AF175: ='FS007'!H18&"_"&'FS007'!I18&"_"&'FS007'!P18&"_"&'FS007'!Q18&"_"&'FS007'!R18&"_"&'FS007'!S18 -> _____ | AG175: =IFERROR(INDEX(MissingDataC143, SMALL(IF(ISBLANK(MissingDataC143)+ISERROR(MissingDataC143)+LEN(MissingDataC143)=0, "", ROW(MissingDataC143)-MIN(ROW(MissingDataC143))+1), ROW(164:164))),"") ->  | AK175: =IF(ISNUMBER(SEARCH($F$6,AL175)),MAX($AK$11:AK174)+1,0) -> 164 | AL175: 0 | AM175: =ROWS($AM$12:AM175) -> 164 | AN175: =IFERROR(VLOOKUP(ROWS($AN$12:AN175),$AK$12:$AL$3007,2,0),"") -> 0
W176: =IFERROR(INDEX(MissingDataC007, SMALL(IF(ISBLANK(MissingDataC007)+ISERROR(MissingDataC007)+LEN(MissingDataC007)=0, "", ROW(MissingDataC007)-MIN(ROW(MissingDataC007))+1), ROW(7:7))),"") -> BL7____SBI_N | AA176: BL7____D_N | AC176: BL7DN | AD176: BL7____D_N | AE176: 1 | AF176: ='FS007'!H19&"_"&'FS007'!I19&"_"&'FS007'!P19&"_"&'FS007'!Q19&"_"&'FS007'!R19&"_"&'FS007'!S19 -> _____ | AG176: =IFERROR(INDEX(MissingDataC143, SMALL(IF(ISBLANK(MissingDataC143)+ISERROR(MissingDataC143)+LEN(MissingDataC143)=0, "", ROW(MissingDataC143)-MIN(ROW(MissingDataC143))+1), ROW(165:165))),"") ->  | AK176: =IF(ISNUMBER(SEARCH($F$6,AL176)),MAX($AK$11:AK175)+1,0) -> 165 | AL176: 0 | AM176: =ROWS($AM$12:AM176) -> 165 | AN176: =IFERROR(VLOOKUP(ROWS($AN$12:AN176),$AK$12:$AL$3007,2,0),"") -> 0
W177: =IFERROR(INDEX(MissingDataC007, SMALL(IF(ISBLANK(MissingDataC007)+ISERROR(MissingDataC007)+LEN(MissingDataC007)=0, "", ROW(MissingDataC007)-MIN(ROW(MissingDataC007))+1), ROW(8:8))),"") -> BL7____W_N | AA177: BL7____SBI_N | AC177: BL7SBIN | AD177: BL7____SBI_N | AE177: 1 | AF177: ='FS007'!H20&"_"&'FS007'!I20&"_"&'FS007'!P20&"_"&'FS007'!Q20&"_"&'FS007'!R20&"_"&'FS007'!S20 -> _____ | AG177: =IFERROR(INDEX(MissingDataC143, SMALL(IF(ISBLANK(MissingDataC143)+ISERROR(MissingDataC143)+LEN(MissingDataC143)=0, "", ROW(MissingDataC143)-MIN(ROW(MissingDataC143))+1), ROW(166:166))),"") ->  | AK177: =IF(ISNUMBER(SEARCH($F$6,AL177)),MAX($AK$11:AK176)+1,0) -> 166 | AL177: 0 | AM177: =ROWS($AM$12:AM177) -> 166 | AN177: =IFERROR(VLOOKUP(ROWS($AN$12:AN177),$AK$12:$AL$3007,2,0),"") -> 0
W178: =IFERROR(INDEX(MissingDataC007, SMALL(IF(ISBLANK(MissingDataC007)+ISERROR(MissingDataC007)+LEN(MissingDataC007)=0, "", ROW(MissingDataC007)-MIN(ROW(MissingDataC007))+1), ROW(9:9))),"") -> HI7____D_N | AA178: BL7____W_N | AC178: BL7WN | AD178: BL7____W_N | AE178: 1 | AF178: ='FS007'!H21&"_"&'FS007'!I21&"_"&'FS007'!P21&"_"&'FS007'!Q21&"_"&'FS007'!R21&"_"&'FS007'!S21 -> _____ | AG178: =IFERROR(INDEX(MissingDataC143, SMALL(IF(ISBLANK(MissingDataC143)+ISERROR(MissingDataC143)+LEN(MissingDataC143)=0, "", ROW(MissingDataC143)-MIN(ROW(MissingDataC143))+1), ROW(#REF!))),"") ->  | AK178: =IF(ISNUMBER(SEARCH($F$6,AL178)),MAX($AK$11:AK177)+1,0) -> 167 | AL178: 0 | AM178: =ROWS($AM$12:AM178) -> 167 | AN178: =IFERROR(VLOOKUP(ROWS($AN$12:AN178),$AK$12:$AL$3007,2,0),"") -> 0
W179: =IFERROR(INDEX(MissingDataC007, SMALL(IF(ISBLANK(MissingDataC007)+ISERROR(MissingDataC007)+LEN(MissingDataC007)=0, "", ROW(MissingDataC007)-MIN(ROW(MissingDataC007))+1), ROW(10:10))),"") -> HI7____SBI_N | AA179: HI7____D_N | AC179: HI7DN | AD179: HI7____D_N | AE179: 1 | AF179: ='FS007'!H22&"_"&'FS007'!I22&"_"&'FS007'!P22&"_"&'FS007'!Q22&"_"&'FS007'!R22&"_"&'FS007'!S22 -> _____ | AG179: =IFERROR(INDEX(MissingDataC143, SMALL(IF(ISBLANK(MissingDataC143)+ISERROR(MissingDataC143)+LEN(MissingDataC143)=0, "", ROW(MissingDataC143)-MIN(ROW(MissingDataC143))+1), ROW(#REF!))),"") ->  | AK179: =IF(ISNUMBER(SEARCH($F$6,AL179)),MAX($AK$11:AK178)+1,0) -> 168 | AL179: 0 | AM179: =ROWS($AM$12:AM179) -> 168 | AN179: =IFERROR(VLOOKUP(ROWS($AN$12:AN179),$AK$12:$AL$3007,2,0),"") -> 0
W180: =IFERROR(INDEX(MissingDataC007, SMALL(IF(ISBLANK(MissingDataC007)+ISERROR(MissingDataC007)+LEN(MissingDataC007)=0, "", ROW(MissingDataC007)-MIN(ROW(MissingDataC007))+1), ROW(11:11))),"") -> HI7____W_N | AA180: HI7____SBI_N | AC180: HI7SBIN | AD180: HI7____SBI_N | AE180: 1 | AF180: ='FS007'!H23&"_"&'FS007'!I23&"_"&'FS007'!P23&"_"&'FS007'!Q23&"_"&'FS007'!R23&"_"&'FS007'!S23 -> _____ | AG180: =IFERROR(INDEX(MissingDataC143, SMALL(IF(ISBLANK(MissingDataC143)+ISERROR(MissingDataC143)+LEN(MissingDataC143)=0, "", ROW(MissingDataC143)-MIN(ROW(MissingDataC143))+1), ROW(167:167))),"") ->  | AK180: =IF(ISNUMBER(SEARCH($F$6,AL180)),MAX($AK$11:AK179)+1,0) -> 169 | AL180: 0 | AM180: =ROWS($AM$12:AM180) -> 169 | AN180: =IFERROR(VLOOKUP(ROWS($AN$12:AN180),$AK$12:$AL$3007,2,0),"") -> 0
W181: =IFERROR(INDEX(MissingDataC007, SMALL(IF(ISBLANK(MissingDataC007)+ISERROR(MissingDataC007)+LEN(MissingDataC007)=0, "", ROW(MissingDataC007)-MIN(ROW(MissingDataC007))+1), ROW(12:12))),"") -> MU7____D_N | AA181: HI7____W_N | AC181: HI7WN | AD181: HI7____W_N | AE181: 1 | AF181: ='FS007'!H24&"_"&'FS007'!I24&"_"&'FS007'!P24&"_"&'FS007'!Q24&"_"&'FS007'!R24&"_"&'FS007'!S24 -> _____ | AG181: =IFERROR(INDEX(MissingDataC143, SMALL(IF(ISBLANK(MissingDataC143)+ISERROR(MissingDataC143)+LEN(MissingDataC143)=0, "", ROW(MissingDataC143)-MIN(ROW(MissingDataC143))+1), ROW(168:168))),"") ->  | AK181: =IF(ISNUMBER(SEARCH($F$6,AL181)),MAX($AK$11:AK180)+1,0) -> 170 | AL181: 0 | AM181: =ROWS($AM$12:AM181) -> 170 | AN181: =IFERROR(VLOOKUP(ROWS($AN$12:AN181),$AK$12:$AL$3007,2,0),"") -> 0
W182: =IFERROR(INDEX(MissingDataC007, SMALL(IF(ISBLANK(MissingDataC007)+ISERROR(MissingDataC007)+LEN(MissingDataC007)=0, "", ROW(MissingDataC007)-MIN(ROW(MissingDataC007))+1), ROW(13:13))),"") -> MU7____SBI_N | AA182: MU7____D_N | AC182: MU7DN | AD182: MU7____D_N | AE182: 1 | AF182: ='FS007'!H25&"_"&'FS007'!I25&"_"&'FS007'!P25&"_"&'FS007'!Q25&"_"&'FS007'!R25&"_"&'FS007'!S25 -> _____ | AG182: =IFERROR(INDEX(MissingDataC143, SMALL(IF(ISBLANK(MissingDataC143)+ISERROR(MissingDataC143)+LEN(MissingDataC143)=0, "", ROW(MissingDataC143)-MIN(ROW(MissingDataC143))+1), ROW(169:169))),"") ->  | AK182: =IF(ISNUMBER(SEARCH($F$6,AL182)),MAX($AK$11:AK181)+1,0) -> 171 | AL182: 0 | AM182: =ROWS($AM$12:AM182) -> 171 | AN182: =IFERROR(VLOOKUP(ROWS($AN$12:AN182),$AK$12:$AL$3007,2,0),"") -> 0
W183: =IFERROR(INDEX(MissingDataC007, SMALL(IF(ISBLANK(MissingDataC007)+ISERROR(MissingDataC007)+LEN(MissingDataC007)=0, "", ROW(MissingDataC007)-MIN(ROW(MissingDataC007))+1), ROW(14:14))),"") -> MU7____W_N | AA183: MU7____SBI_N | AC183: MU7SBIN | AD183: MU7____SBI_N | AE183: 1 | AF183: ='FS007'!H26&"_"&'FS007'!I26&"_"&'FS007'!P26&"_"&'FS007'!Q26&"_"&'FS007'!R26&"_"&'FS007'!S26 -> _____ | AG183: =IFERROR(INDEX(MissingDataC143, SMALL(IF(ISBLANK(MissingDataC143)+ISERROR(MissingDataC143)+LEN(MissingDataC143)=0, "", ROW(MissingDataC143)-MIN(ROW(MissingDataC143))+1), ROW(170:170))),"") ->  | AK183: =IF(ISNUMBER(SEARCH($F$6,AL183)),MAX($AK$11:AK182)+1,0) -> 172 | AL183: 0 | AM183: =ROWS($AM$12:AM183) -> 172 | AN183: =IFERROR(VLOOKUP(ROWS($AN$12:AN183),$AK$12:$AL$3007,2,0),"") -> 0
W184: =IFERROR(INDEX(MissingDataC007, SMALL(IF(ISBLANK(MissingDataC007)+ISERROR(MissingDataC007)+LEN(MissingDataC007)=0, "", ROW(MissingDataC007)-MIN(ROW(MissingDataC007))+1), ROW(15:15))),"") -> PI7____D_N | AA184: MU7____W_N | AC184: MU7WN | AD184: MU7____W_N | AE184: 1 | AF184: ='FS007'!H27&"_"&'FS007'!I27&"_"&'FS007'!P27&"_"&'FS007'!Q27&"_"&'FS007'!R27&"_"&'FS007'!S27 -> _____ | AG184: =IFERROR(INDEX(MissingDataC143, SMALL(IF(ISBLANK(MissingDataC143)+ISERROR(MissingDataC143)+LEN(MissingDataC143)=0, "", ROW(MissingDataC143)-MIN(ROW(MissingDataC143))+1), ROW(171:171))),"") ->  | AK184: =IF(ISNUMBER(SEARCH($F$6,AL184)),MAX($AK$11:AK183)+1,0) -> 173 | AL184: 0 | AM184: =ROWS($AM$12:AM184) -> 173 | AN184: =IFERROR(VLOOKUP(ROWS($AN$12:AN184),$AK$12:$AL$3007,2,0),"") -> 0
W185: =IFERROR(INDEX(MissingDataC007, SMALL(IF(ISBLANK(MissingDataC007)+ISERROR(MissingDataC007)+LEN(MissingDataC007)=0, "", ROW(MissingDataC007)-MIN(ROW(MissingDataC007))+1), ROW(16:16))),"") -> PI7____SBI_N | AA185: PI7____D_N | AC185: PI7DN | AD185: PI7____D_N | AE185: 1 | AF185: ='FS007'!H28&"_"&'FS007'!I28&"_"&'FS007'!P28&"_"&'FS007'!Q28&"_"&'FS007'!R28&"_"&'FS007'!S28 -> _____ | AG185: =IFERROR(INDEX(MissingDataC143, SMALL(IF(ISBLANK(MissingDataC143)+ISERROR(MissingDataC143)+LEN(MissingDataC143)=0, "", ROW(MissingDataC143)-MIN(ROW(MissingDataC143))+1), ROW(172:172))),"") ->  | AK185: =IF(ISNUMBER(SEARCH($F$6,AL185)),MAX($AK$11:AK184)+1,0) -> 174 | AL185: 0 | AM185: =ROWS($AM$12:AM185) -> 174 | AN185: =IFERROR(VLOOKUP(ROWS($AN$12:AN185),$AK$12:$AL$3007,2,0),"") -> 0
W186: =IFERROR(INDEX(MissingDataC007, SMALL(IF(ISBLANK(MissingDataC007)+ISERROR(MissingDataC007)+LEN(MissingDataC007)=0, "", ROW(MissingDataC007)-MIN(ROW(MissingDataC007))+1), ROW(17:17))),"") -> PI7____W_N | AA186: PI7____SBI_N | AC186: PI7SBIN | AD186: PI7____SBI_N | AE186: 1 | AF186: ='FS007'!H29&"_"&'FS007'!I29&"_"&'FS007'!P29&"_"&'FS007'!Q29&"_"&'FS007'!R29&"_"&'FS007'!S29 -> _____ | AG186: =IFERROR(INDEX(MissingDataC143, SMALL(IF(ISBLANK(MissingDataC143)+ISERROR(MissingDataC143)+LEN(MissingDataC143)=0, "", ROW(MissingDataC143)-MIN(ROW(MissingDataC143))+1), ROW(173:173))),"") ->  | AK186: =IF(ISNUMBER(SEARCH($F$6,AL186)),MAX($AK$11:AK185)+1,0) -> 175 | AL186: 0 | AM186: =ROWS($AM$12:AM186) -> 175 | AN186: =IFERROR(VLOOKUP(ROWS($AN$12:AN186),$AK$12:$AL$3007,2,0),"") -> 0
W187: =IFERROR(INDEX(MissingDataC007, SMALL(IF(ISBLANK(MissingDataC007)+ISERROR(MissingDataC007)+LEN(MissingDataC007)=0, "", ROW(MissingDataC007)-MIN(ROW(MissingDataC007))+1), ROW(18:18))),"") -> WH7____D_N | AA187: PI7____W_N | AC187: PI7WN | AD187: PI7____W_N | AE187: 1 | AF187: ='FS007'!H30&"_"&'FS007'!I30&"_"&'FS007'!P30&"_"&'FS007'!Q30&"_"&'FS007'!R30&"_"&'FS007'!S30 -> _____ | AG187: =IFERROR(INDEX(MissingDataC143, SMALL(IF(ISBLANK(MissingDataC143)+ISERROR(MissingDataC143)+LEN(MissingDataC143)=0, "", ROW(MissingDataC143)-MIN(ROW(MissingDataC143))+1), ROW(174:174))),"") ->  | AK187: =IF(ISNUMBER(SEARCH($F$6,AL187)),MAX($AK$11:AK186)+1,0) -> 176 | AL187: 0 | AM187: =ROWS($AM$12:AM187) -> 176 | AN187: =IFERROR(VLOOKUP(ROWS($AN$12:AN187),$AK$12:$AL$3007,2,0),"") -> 0
W188: =IFERROR(INDEX(MissingDataC007, SMALL(IF(ISBLANK(MissingDataC007)+ISERROR(MissingDataC007)+LEN(MissingDataC007)=0, "", ROW(MissingDataC007)-MIN(ROW(MissingDataC007))+1), ROW(19:19))),"") -> WH7____SBI_N | AA188: WH7____D_N | AC188: WH7DN | AD188: WH7____D_N | AE188: 1 | AF188: ='FS007'!H31&"_"&'FS007'!I31&"_"&'FS007'!P31&"_"&'FS007'!Q31&"_"&'FS007'!R31&"_"&'FS007'!S31 -> _____ | AG188: =IFERROR(INDEX(MissingDataC143, SMALL(IF(ISBLANK(MissingDataC143)+ISERROR(MissingDataC143)+LEN(MissingDataC143)=0, "", ROW(MissingDataC143)-MIN(ROW(MissingDataC143))+1), ROW(175:175))),"") ->  | AK188: =IF(ISNUMBER(SEARCH($F$6,AL188)),MAX($AK$11:AK187)+1,0) -> 177 | AL188: 0 | AM188: =ROWS($AM$12:AM188) -> 177 | AN188: =IFERROR(VLOOKUP(ROWS($AN$12:AN188),$AK$12:$AL$3007,2,0),"") -> 0
W189: =IFERROR(INDEX(MissingDataC007, SMALL(IF(ISBLANK(MissingDataC007)+ISERROR(MissingDataC007)+LEN(MissingDataC007)=0, "", ROW(MissingDataC007)-MIN(ROW(MissingDataC007))+1), ROW(20:20))),"") -> WH7____W_N | AA189: WH7____SBI_N | AC189: WH7SBIN | AD189: WH7____SBI_N | AE189: 1 | AF189: ='FS007'!H32&"_"&'FS007'!I32&"_"&'FS007'!P32&"_"&'FS007'!Q32&"_"&'FS007'!R32&"_"&'FS007'!S32 -> _____ | AG189: =IFERROR(INDEX(MissingDataC143, SMALL(IF(ISBLANK(MissingDataC143)+ISERROR(MissingDataC143)+LEN(MissingDataC143)=0, "", ROW(MissingDataC143)-MIN(ROW(MissingDataC143))+1), ROW(176:176))),"") ->  | AK189: =IF(ISNUMBER(SEARCH($F$6,AL189)),MAX($AK$11:AK188)+1,0) -> 178 | AL189: 0 | AM189: =ROWS($AM$12:AM189) -> 178 | AN189: =IFERROR(VLOOKUP(ROWS($AN$12:AN189),$AK$12:$AL$3007,2,0),"") -> 0
W190: =IFERROR(INDEX(MissingDataC007, SMALL(IF(ISBLANK(MissingDataC007)+ISERROR(MissingDataC007)+LEN(MissingDataC007)=0, "", ROW(MissingDataC007)-MIN(ROW(MissingDataC007))+1), ROW(21:21))),"") -> _F___D_N | AA190: WH7____W_N | AC190: WH7WN | AD190: WH7____W_N | AE190: 1 | AF190: ='FS007'!H33&"_"&'FS007'!I33&"_"&'FS007'!P33&"_"&'FS007'!Q33&"_"&'FS007'!R33&"_"&'FS007'!S33 -> _____ | AG190: =IFERROR(INDEX(MissingDataC143, SMALL(IF(ISBLANK(MissingDataC143)+ISERROR(MissingDataC143)+LEN(MissingDataC143)=0, "", ROW(MissingDataC143)-MIN(ROW(MissingDataC143))+1), ROW(177:177))),"") ->  | AK190: =IF(ISNUMBER(SEARCH($F$6,AL190)),MAX($AK$11:AK189)+1,0) -> 179 | AL190: 0 | AM190: =ROWS($AM$12:AM190) -> 179 | AN190: =IFERROR(VLOOKUP(ROWS($AN$12:AN190),$AK$12:$AL$3007,2,0),"") -> 0
W191: =IFERROR(INDEX(MissingDataC007, SMALL(IF(ISBLANK(MissingDataC007)+ISERROR(MissingDataC007)+LEN(MissingDataC007)=0, "", ROW(MissingDataC007)-MIN(ROW(MissingDataC007))+1), ROW(22:22))),"") -> _F___SBI_N | AA191: _F___D_N | AC191: FDN | AD191: _F___D_N | AE191: 1 | AF191: ='FS007'!H34&"_"&'FS007'!I34&"_"&'FS007'!P34&"_"&'FS007'!Q34&"_"&'FS007'!R34&"_"&'FS007'!S34 -> _____ | AG191: =IFERROR(INDEX(MissingDataC143, SMALL(IF(ISBLANK(MissingDataC143)+ISERROR(MissingDataC143)+LEN(MissingDataC143)=0, "", ROW(MissingDataC143)-MIN(ROW(MissingDataC143))+1), ROW(178:178))),"") ->  | AK191: =IF(ISNUMBER(SEARCH($F$6,AL191)),MAX($AK$11:AK190)+1,0) -> 180 | AL191: 0 | AM191: =ROWS($AM$12:AM191) -> 180 | AN191: =IFERROR(VLOOKUP(ROWS($AN$12:AN191),$AK$12:$AL$3007,2,0),"") -> 0
W192: =IFERROR(INDEX(MissingDataC007, SMALL(IF(ISBLANK(MissingDataC007)+ISERROR(MissingDataC007)+LEN(MissingDataC007)=0, "", ROW(MissingDataC007)-MIN(ROW(MissingDataC007))+1), ROW(23:23))),"") -> _F___W_N | AA192: _F___SBI_N | AC192: FSBIN | AD192: _F___SBI_N | AE192: 1 | AF192: ='FS007'!H35&"_"&'FS007'!I35&"_"&'FS007'!P35&"_"&'FS007'!Q35&"_"&'FS007'!R35&"_"&'FS007'!S35 -> _____ | AG192: =IFERROR(INDEX(MissingDataC143, SMALL(IF(ISBLANK(MissingDataC143)+ISERROR(MissingDataC143)+LEN(MissingDataC143)=0, "", ROW(MissingDataC143)-MIN(ROW(MissingDataC143))+1), ROW(179:179))),"") ->  | AK192: =IF(ISNUMBER(SEARCH($F$6,AL192)),MAX($AK$11:AK191)+1,0) -> 181 | AL192: 0 | AM192: =ROWS($AM$12:AM192) -> 181 | AN192: =IFERROR(VLOOKUP(ROWS($AN$12:AN192),$AK$12:$AL$3007,2,0),"") -> 0
W193: =IFERROR(INDEX(MissingDataC007, SMALL(IF(ISBLANK(MissingDataC007)+ISERROR(MissingDataC007)+LEN(MissingDataC007)=0, "", ROW(MissingDataC007)-MIN(ROW(MissingDataC007))+1), ROW(24:24))),"") -> _M___D_N | AA193: _F___W_N | AC193: FWN | AD193: _F___W_N | AE193: 1 | AF193: ='FS007'!H36&"_"&'FS007'!I36&"_"&'FS007'!P36&"_"&'FS007'!Q36&"_"&'FS007'!R36&"_"&'FS007'!S36 -> _____ | AG193: =IFERROR(INDEX(MissingDataC143, SMALL(IF(ISBLANK(MissingDataC143)+ISERROR(MissingDataC143)+LEN(MissingDataC143)=0, "", ROW(MissingDataC143)-MIN(ROW(MissingDataC143))+1), ROW(180:180))),"") ->  | AK193: =IF(ISNUMBER(SEARCH($F$6,AL193)),MAX($AK$11:AK192)+1,0) -> 182 | AL193: 0 | AM193: =ROWS($AM$12:AM193) -> 182 | AN193: =IFERROR(VLOOKUP(ROWS($AN$12:AN193),$AK$12:$AL$3007,2,0),"") -> 0
W194: =IFERROR(INDEX(MissingDataC007, SMALL(IF(ISBLANK(MissingDataC007)+ISERROR(MissingDataC007)+LEN(MissingDataC007)=0, "", ROW(MissingDataC007)-MIN(ROW(MissingDataC007))+1), ROW(25:25))),"") -> _M___SBI_N | AA194: _M___D_N | AC194: MDN | AD194: _M___D_N | AE194: 1 | AF194: ='FS007'!H37&"_"&'FS007'!I37&"_"&'FS007'!P37&"_"&'FS007'!Q37&"_"&'FS007'!R37&"_"&'FS007'!S37 -> _____ | AG194: =IFERROR(INDEX(MissingDataC143, SMALL(IF(ISBLANK(MissingDataC143)+ISERROR(MissingDataC143)+LEN(MissingDataC143)=0, "", ROW(MissingDataC143)-MIN(ROW(MissingDataC143))+1), ROW(181:181))),"") ->  | AK194: =IF(ISNUMBER(SEARCH($F$6,AL194)),MAX($AK$11:AK193)+1,0) -> 183 | AL194: 0 | AM194: =ROWS($AM$12:AM194) -> 183 | AN194: =IFERROR(VLOOKUP(ROWS($AN$12:AN194),$AK$12:$AL$3007,2,0),"") -> 0
W195: =IFERROR(INDEX(MissingDataC007, SMALL(IF(ISBLANK(MissingDataC007)+ISERROR(MissingDataC007)+LEN(MissingDataC007)=0, "", ROW(MissingDataC007)-MIN(ROW(MissingDataC007))+1), ROW(26:26))),"") -> _M___W_N | AA195: _M___SBI_N | AC195: MSBIN | AD195: _M___SBI_N | AE195: 1 | AF195: ='FS007'!H38&"_"&'FS007'!I38&"_"&'FS007'!P38&"_"&'FS007'!Q38&"_"&'FS007'!R38&"_"&'FS007'!S38 -> _____ | AG195: =IFERROR(INDEX(MissingDataC143, SMALL(IF(ISBLANK(MissingDataC143)+ISERROR(MissingDataC143)+LEN(MissingDataC143)=0, "", ROW(MissingDataC143)-MIN(ROW(MissingDataC143))+1), ROW(182:182))),"") ->  | AK195: =IF(ISNUMBER(SEARCH($F$6,AL195)),MAX($AK$11:AK194)+1,0) -> 184 | AL195: 0 | AM195: =ROWS($AM$12:AM195) -> 184 | AN195: =IFERROR(VLOOKUP(ROWS($AN$12:AN195),$AK$12:$AL$3007,2,0),"") -> 0
W196: =IFERROR(INDEX(MissingDataC007, SMALL(IF(ISBLANK(MissingDataC007)+ISERROR(MissingDataC007)+LEN(MissingDataC007)=0, "", ROW(MissingDataC007)-MIN(ROW(MissingDataC007))+1), ROW(27:27))),"") -> __AUT__D_N | AA196: _M___W_N | AC196: MWN | AD196: _M___W_N | AE196: 1 | AF196: ='FS007'!H39&"_"&'FS007'!I39&"_"&'FS007'!P39&"_"&'FS007'!Q39&"_"&'FS007'!R39&"_"&'FS007'!S39 -> _____ | AG196: =IFERROR(INDEX(MissingDataC143, SMALL(IF(ISBLANK(MissingDataC143)+ISERROR(MissingDataC143)+LEN(MissingDataC143)=0, "", ROW(MissingDataC143)-MIN(ROW(MissingDataC143))+1), ROW(183:183))),"") ->  | AK196: =IF(ISNUMBER(SEARCH($F$6,AL196)),MAX($AK$11:AK195)+1,0) -> 185 | AL196: 0 | AM196: =ROWS($AM$12:AM196) -> 185 | AN196: =IFERROR(VLOOKUP(ROWS($AN$12:AN196),$AK$12:$AL$3007,2,0),"") -> 0
W197: =IFERROR(INDEX(MissingDataC007, SMALL(IF(ISBLANK(MissingDataC007)+ISERROR(MissingDataC007)+LEN(MissingDataC007)=0, "", ROW(MissingDataC007)-MIN(ROW(MissingDataC007))+1), ROW(28:28))),"") -> __AUT__SBI_N | AA197: __AUT__D_N | AC197: AUTDN | AD197: __AUT__D_N | AE197: 1 | AF197: ='FS007'!H40&"_"&'FS007'!I40&"_"&'FS007'!P40&"_"&'FS007'!Q40&"_"&'FS007'!R40&"_"&'FS007'!S40 -> _____ | AG197: =IFERROR(INDEX(MissingDataC143, SMALL(IF(ISBLANK(MissingDataC143)+ISERROR(MissingDataC143)+LEN(MissingDataC143)=0, "", ROW(MissingDataC143)-MIN(ROW(MissingDataC143))+1), ROW(184:184))),"") ->  | AK197: =IF(ISNUMBER(SEARCH($F$6,AL197)),MAX($AK$11:AK196)+1,0) -> 186 | AL197: 0 | AM197: =ROWS($AM$12:AM197) -> 186 | AN197: =IFERROR(VLOOKUP(ROWS($AN$12:AN197),$AK$12:$AL$3007,2,0),"") -> 0
W198: =IFERROR(INDEX(MissingDataC007, SMALL(IF(ISBLANK(MissingDataC007)+ISERROR(MissingDataC007)+LEN(MissingDataC007)=0, "", ROW(MissingDataC007)-MIN(ROW(MissingDataC007))+1), ROW(29:29))),"") -> __AUT__W_N | AA198: __AUT__SBI_N | AC198: AUTSBIN | AD198: __AUT__SBI_N | AE198: 1 | AF198: ='FS007'!H41&"_"&'FS007'!I41&"_"&'FS007'!P41&"_"&'FS007'!Q41&"_"&'FS007'!R41&"_"&'FS007'!S41 -> _____ | AG198: =IFERROR(INDEX(MissingDataC143, SMALL(IF(ISBLANK(MissingDataC143)+ISERROR(MissingDataC143)+LEN(MissingDataC143)=0, "", ROW(MissingDataC143)-MIN(ROW(MissingDataC143))+1), ROW(185:185))),"") ->  | AK198: =IF(ISNUMBER(SEARCH($F$6,AL198)),MAX($AK$11:AK197)+1,0) -> 187 | AL198: 0 | AM198: =ROWS($AM$12:AM198) -> 187 | AN198: =IFERROR(VLOOKUP(ROWS($AN$12:AN198),$AK$12:$AL$3007,2,0),"") -> 0
W199: =IFERROR(INDEX(MissingDataC007, SMALL(IF(ISBLANK(MissingDataC007)+ISERROR(MissingDataC007)+LEN(MissingDataC007)=0, "", ROW(MissingDataC007)-MIN(ROW(MissingDataC007))+1), ROW(30:30))),"") -> __DB__D_N | AA199: __AUT__W_N | AC199: AUTWN | AD199: __AUT__W_N | AE199: 1 | AF199: ='FS007'!H42&"_"&'FS007'!I42&"_"&'FS007'!P42&"_"&'FS007'!Q42&"_"&'FS007'!R42&"_"&'FS007'!S42 -> _____ | AG199: =IFERROR(INDEX(MissingDataC143, SMALL(IF(ISBLANK(MissingDataC143)+ISERROR(MissingDataC143)+LEN(MissingDataC143)=0, "", ROW(MissingDataC143)-MIN(ROW(MissingDataC143))+1), ROW(186:186))),"") ->  | AK199: =IF(ISNUMBER(SEARCH($F$6,AL199)),MAX($AK$11:AK198)+1,0) -> 188 | AL199: 0 | AM199: =ROWS($AM$12:AM199) -> 188 | AN199: =IFERROR(VLOOKUP(ROWS($AN$12:AN199),$AK$12:$AL$3007,2,0),"") -> 0
W200: =IFERROR(INDEX(MissingDataC007, SMALL(IF(ISBLANK(MissingDataC007)+ISERROR(MissingDataC007)+LEN(MissingDataC007)=0, "", ROW(MissingDataC007)-MIN(ROW(MissingDataC007))+1), ROW(31:31))),"") -> __DB__SBI_N | AA200: __DB__D_N | AC200: DBDN | AD200: __DB__D_N | AE200: 1 | AF200: ='FS007'!H43&"_"&'FS007'!I43&"_"&'FS007'!P43&"_"&'FS007'!Q43&"_"&'FS007'!R43&"_"&'FS007'!S43 -> _____ | AG200: =IFERROR(INDEX(MissingDataC143, SMALL(IF(ISBLANK(MissingDataC143)+ISERROR(MissingDataC143)+LEN(MissingDataC143)=0, "", ROW(MissingDataC143)-MIN(ROW(MissingDataC143))+1), ROW(187:187))),"") ->  | AK200: =IF(ISNUMBER(SEARCH($F$6,AL200)),MAX($AK$11:AK199)+1,0) -> 189 | AL200: 0 | AM200: =ROWS($AM$12:AM200) -> 189 | AN200: =IFERROR(VLOOKUP(ROWS($AN$12:AN200),$AK$12:$AL$3007,2,0),"") -> 0
W201: =IFERROR(INDEX(MissingDataC007, SMALL(IF(ISBLANK(MissingDataC007)+ISERROR(MissingDataC007)+LEN(MissingDataC007)=0, "", ROW(MissingDataC007)-MIN(ROW(MissingDataC007))+1), ROW(32:32))),"") -> __DB__W_N | AA201: __DB__SBI_N | AC201: DBSBIN | AD201: __DB__SBI_N | AE201: 1 | AF201: ='FS007'!H44&"_"&'FS007'!I44&"_"&'FS007'!P44&"_"&'FS007'!Q44&"_"&'FS007'!R44&"_"&'FS007'!S44 -> _____ | AG201: =IFERROR(INDEX(MissingDataC143, SMALL(IF(ISBLANK(MissingDataC143)+ISERROR(MissingDataC143)+LEN(MissingDataC143)=0, "", ROW(MissingDataC143)-MIN(ROW(MissingDataC143))+1), ROW(188:188))),"") ->  | AK201: =IF(ISNUMBER(SEARCH($F$6,AL201)),MAX($AK$11:AK200)+1,0) -> 190 | AL201: 0 | AM201: =ROWS($AM$12:AM201) -> 190 | AN201: =IFERROR(VLOOKUP(ROWS($AN$12:AN201),$AK$12:$AL$3007,2,0),"") -> 0
... 2049 more rows

Sheet Data Summary
A1: ="LEA Disciplinary Removals of Children with Disabilities (IDEA) Ages 3-21"&CHAR(10)&'Select LEA'!F6&" for School Year "&'Select LEA'!AB5 -> LEA Disciplinary Removals of Children with Disabilities (IDEA) Ages 3-21 for School Year | Q1: End of worksheet
D7: Unilateral removals to an interim alternative educational setting by school personnel | H7: Removals to an interim alternative educational setting based on a hearing officer determination regarding likely injury | I7: Out-of-school suspensions or expulsions | K7: In-school suspensions | M7: Disciplinary removals
I9: Number of children with out-of-school suspensions/expulsions totaling | K9: Number of children with in-school suspensions totaling
M11: Total disciplinary removals (FS143) | N11: Number of children with disciplinary removals totaling | W11: 1
A12: Category | D12: Number of children (FS005) | E12: Number of removals for | H12: Number of children (FS005) | T12: =IFERROR(INDEX(AllMessages!$E$1:$E$260, SMALL(IF($W$11=AllMessages!$F$1:$F$260, ROW(AllMessages!$F$1:$F$260)-MIN(ROW(AllMessages!$F$1:$F$260))+1, ""), ROW(A1))),"") -> 
E13: Drugs (FS007) | F13: Weapons (FS007) | G13: Serious bodily injury (FS007) | I13: 10 days or less (FS006) | J13: > 10 days (FS006) | K13: 10 days or less (FS006) | L13: > 10 days (FS006) | N13: 1 day (FS088) | O13: 2-10 days (FS088) | P13: > 10 days (FS088)
A14: Disability | D14: =Disability!D27 ->  | E14: =Disability!E27 ->  | F14: =Disability!F27 ->  | G14: =Disability!G27 ->  | H14: =Disability!H27 ->  | I14: =Disability!I27 ->  | J14: =Disability!J27 ->  | K14: =Disability!K27 ->  | L14: =Disability!L27 ->  | M14: =Disability!M27 ->  | N14: =Disability!N27 ->  | O14: =Disability!O27 ->  | P14: =Disability!P27 -> 
A15: Racial ethnic | D15: ='Racial Ethnic'!D21 ->  | E15: ='Racial Ethnic'!E21 ->  | F15: ='Racial Ethnic'!F21 ->  | G15: ='Racial Ethnic'!G21 ->  | H15: ='Racial Ethnic'!H21 ->  | I15: ='Racial Ethnic'!I21 ->  | J15: ='Racial Ethnic'!J21 ->  | K15: ='Racial Ethnic'!K21 ->  | L15: ='Racial Ethnic'!L21 ->  | M15: ='Racial Ethnic'!M21 ->  | N15: ='Racial Ethnic'!N21 ->  | O15: ='Racial Ethnic'!O21 ->  | P15: ='Racial Ethnic'!P21 -> 
A16: Sex | D16: =Sex!D16 ->  | E16: =Sex!E16 ->  | F16: =Sex!F16 ->  | G16: =Sex!G16 ->  | H16: =Sex!H16 ->  | I16: =Sex!I16 ->  | J16: =Sex!J16 ->  | K16: =Sex!K16 ->  | L16: =Sex!L16 ->  | M16: =Sex!M16 ->  | N16: =Sex!N16 ->  | O16: =Sex!O16 ->  | P16: =Sex!P16 -> 
A17: English learner status | D17: ='English Learner Status'!D16 ->  | E17: ='English Learner Status'!E16 ->  | F17: ='English Learner Status'!F16 ->  | G17: ='English Learner Status'!G16 ->  | H17: ='English Learner Status'!H16 ->  | I17: ='English Learner Status'!I16 ->  | J17: ='English Learner Status'!J16 ->  | K17: ='English Learner Status'!K16 ->  | L17: ='English Learner Status'!L16 ->  | M17: ='English Learner Status'!M16 ->  | N17: ='English Learner Status'!N16 ->  | O17: ='English Learner Status'!O16 ->  | P17: ='English Learner Status'!P16 -> 
D18: 1A | E18: 1B | F18: 1C | G18: 1D | H18: 2 | I18: 3A | J18: 3B | K18: 4A | L18: 4B | M18: 5A | N18: 5B | O18: 5C | P18: 5D
D20: Children subject to expulsion
D21: Number
A22: Category | D22: Received educational services during expulsion (FS144) | F22: Did not receive educational services during expulsion (FS144)
A23: Children with disabilities ages 3-21 | D23: ='Ed. Services During Expulsion'!J12 ->  | F23: ='Ed. Services During Expulsion'!K12 -> 
A24: Children without disabilities, grades K-12 | D24: ='Ed. Services During Expulsion'!J13 ->  | F24: ='Ed. Services During Expulsion'!K13 -> 
A28: End of worksheet

Sheet Error Messages
A1: ="LEA Disciplinary Removals of Children with Disabilities (IDEA) Ages 3-21"&CHAR(10)&'Select LEA'!F6&" for School Year "&'Select LEA'!AB5 -> LEA Disciplinary Removals of Children with Disabilities (IDEA) Ages 3-21 for School Year | P1: End of worksheet
I4: Triggered edit checks
I5: Data file | O5: Count
I6: FS005 — Children with Disabilities (IDEA) Removal to Interim Alternative Educational Setting | O6: =SUMPRODUCT((AllMessages!B2:B260="C005")*(AllMessages!F2:F260=1)) + SUMPRODUCT((AllMessages!C2:C260="C005")*(AllMessages!F2:F260=1)) -> 0 | U6: =IFERROR(INDEX(Dashboard!$T$16:$T$20, SMALL(IF($U$7=Dashboard!$S$16:$S$20, ROW(Dashboard!$S$16:$S$20)-MIN(ROW(Dashboard!$S$16:$S$20))+1, ""), ROW(A1))),"")
I7: FS006 — Children with Disabilities (IDEA) Suspensions/Expulsions | O7: =SUMPRODUCT((AllMessages!B2:B260="C006")*(AllMessages!F2:F260=1)) + SUMPRODUCT((AllMessages!C2:C260="C006")*(AllMessages!F2:F260=1)) -> 0
I8: FS007 — Children with Disabilities (IDEA) Reasons for Unilateral Removal | O8: =SUMPRODUCT((AllMessages!B2:B260="C007")*(AllMessages!F2:F260=1)) + SUMPRODUCT((AllMessages!C2:C260="C007")*(AllMessages!F2:F260=1)) -> 0
I9: FS088 — Children with Disabilities (IDEA) Disciplinary Removals | O9: =SUMPRODUCT((AllMessages!B2:B260="C088")*(AllMessages!F2:F260=1)) + SUMPRODUCT((AllMessages!C2:C260="C088")*(AllMessages!F2:F260=1)) -> 0
I10: FS143 — Children with Disabilities (IDEA) Total Disciplinary Removals | O10: =SUMPRODUCT((AllMessages!B2:B260="C143")*(AllMessages!F2:F260=1)) + SUMPRODUCT((AllMessages!C2:C260="C143")*(AllMessages!F2:F260=1)) -> 0
I11: Total | O11: =SUM(O6:O10) -> 0 | T11: =IFERROR(INDEX(AllMessages!$E$1:$E$246, SMALL(IF($W$10=AllMessages!$F$1:$F$246, ROW(AllMessages!$F$1:$F$246)-MIN(ROW(AllMessages!$F$1:$F$246))+1, ""), ROW(#REF!))),"") ->  | U11: =IFERROR(INDEX(AllMessages!$D$1:$D$246, SMALL(IF($W$10=AllMessages!$F$1:$F$246, ROW(AllMessages!$F$1:$F$246)-MIN(ROW(AllMessages!$F$1:$F$246))+1, ""), ROW(#REF!))),"") ->  | V11: =IFERROR(INDEX(AllMessages!$K$1:$K$246, SMALL(IF($W$10=AllMessages!$F$1:$F$246, ROW(AllMessages!$F$1:$F$246)-MIN(ROW(AllMessages!$F$1:$F$246))+1, ""), ROW(#REF!))),"") ->  | W11: 1 | X11: =IFERROR(INDEX(AllMessages!$H$1:$H$246, SMALL(IF($W$10=AllMessages!$F$1:$F$246, ROW(AllMessages!$F$1:$F$246)-MIN(ROW(AllMessages!$F$1:$F$246))+1, ""), ROW(#REF!))),"") ->  | Y11: =IFERROR(INDEX(AllMessages!$I$1:$I$246, SMALL(IF($W$10=AllMessages!$F$1:$F$246, ROW(AllMessages!$F$1:$F$246)-MIN(ROW(AllMessages!$F$1:$F$246))+1, ""), ROW(#REF!))),"") ->  | Z11: =IFERROR(INDEX(AllMessages!$B$1:$B$246, SMALL(IF($W$10=AllMessages!$F$1:$F$246, ROW(AllMessages!$F$1:$F$246)-MIN(ROW(AllMessages!$F$1:$F$246))+1, ""), ROW(#REF!))),"") ->  | AA11: =IFERROR(INDEX(AllMessages!$C$1:$C$246, SMALL(IF($W$10=AllMessages!$F$1:$F$246, ROW(AllMessages!$F$1:$F$246)-MIN(ROW(AllMessages!$F$1:$F$246))+1, ""), ROW(#REF!))),"") -> 
T12: =IFERROR(INDEX(AllMessages!$D$1:$D$260, SMALL(IF($W$11=AllMessages!$F$1:$F$260, ROW(AllMessages!$F$1:$F$260)-MIN(ROW(AllMessages!$F$1:$F$260))+1, ""), ROW(A1))),"") ->  | U12: =IFERROR(INDEX(AllMessages!$E$1:$E$260, SMALL(IF($W$11=AllMessages!$F$1:$F$260, ROW(AllMessages!$F$1:$F$260)-MIN(ROW(AllMessages!$F$1:$F$260))+1, ""), ROW(A1))),"") ->  | V12: =IFERROR(INDEX(AllMessages!$K$1:$K$260, SMALL(IF($W$11=AllMessages!$F$1:$F$260, ROW(AllMessages!$F$1:$F$260)-MIN(ROW(AllMessages!$F$1:$F$260))+1, ""), ROW(A1))),"") ->  | W12: =IFERROR(INDEX(AllMessages!$G$1:$G$260, SMALL(IF($W$11=AllMessages!$F$1:$F$260, ROW(AllMessages!$F$1:$F$260)-MIN(ROW(AllMessages!$F$1:$F$260))+1, ""), ROW(A1))),"") ->  | X12: =IFERROR(INDEX(AllMessages!$H$1:$H$260, SMALL(IF($W$11=AllMessages!$F$1:$F$260, ROW(AllMessages!$F$1:$F$260)-MIN(ROW(AllMessages!$F$1:$F$260))+1, ""), ROW(A1))),"") ->  | Y12: =IFERROR(INDEX(AllMessages!$I$1:$I$260, SMALL(IF($W$11=AllMessages!$F$1:$F$260, ROW(AllMessages!$F$1:$F$260)-MIN(ROW(AllMessages!$F$1:$F$260))+1, ""), ROW(A1))),"") ->  | Z12: =IFERROR(INDEX(AllMessages!$B$1:$B$260, SMALL(IF($W$11=AllMessages!$F$1:$F$260, ROW(AllMessages!$F$1:$F$260)-MIN(ROW(AllMessages!$F$1:$F$260))+1, ""), ROW(A1))),"") ->  | AA12: =IFERROR(INDEX(AllMessages!$C$1:$C$260, SMALL(IF($W$11=AllMessages!$F$1:$F$260, ROW(AllMessages!$F$1:$F$260)-MIN(ROW(AllMessages!$F$1:$F$260))+1, ""), ROW(A1))),"") ->  | AB12: =IF(W12="No Data",1,0) -> 0
T13: =IFERROR(INDEX(AllMessages!$D$1:$D$260, SMALL(IF($W$11=AllMessages!$F$1:$F$260, ROW(AllMessages!$F$1:$F$260)-MIN(ROW(AllMessages!$F$1:$F$260))+1, ""), ROW(A2))),"") ->  | U13: =IFERROR(INDEX(AllMessages!$E$1:$E$260, SMALL(IF($W$11=AllMessages!$F$1:$F$260, ROW(AllMessages!$F$1:$F$260)-MIN(ROW(AllMessages!$F$1:$F$260))+1, ""), ROW(A2))),"") ->  | V13: =IFERROR(INDEX(AllMessages!$K$1:$K$260, SMALL(IF($W$11=AllMessages!$F$1:$F$260, ROW(AllMessages!$F$1:$F$260)-MIN(ROW(AllMessages!$F$1:$F$260))+1, ""), ROW(A2))),"") ->  | W13: =IFERROR(INDEX(AllMessages!$G$1:$G$260, SMALL(IF($W$11=AllMessages!$F$1:$F$260, ROW(AllMessages!$F$1:$F$260)-MIN(ROW(AllMessages!$F$1:$F$260))+1, ""), ROW(A2))),"") ->  | X13: =IFERROR(INDEX(AllMessages!$H$1:$H$260, SMALL(IF($W$11=AllMessages!$F$1:$F$260, ROW(AllMessages!$F$1:$F$260)-MIN(ROW(AllMessages!$F$1:$F$260))+1, ""), ROW(A2))),"") ->  | Y13: =IFERROR(INDEX(AllMessages!$I$1:$I$260, SMALL(IF($W$11=AllMessages!$F$1:$F$260, ROW(AllMessages!$F$1:$F$260)-MIN(ROW(AllMessages!$F$1:$F$260))+1, ""), ROW(A2))),"") ->  | Z13: =IFERROR(INDEX(AllMessages!$B$1:$B$260, SMALL(IF($W$11=AllMessages!$F$1:$F$260, ROW(AllMessages!$F$1:$F$260)-MIN(ROW(AllMessages!$F$1:$F$260))+1, ""), ROW(A2))),"") ->  | AA13: =IFERROR(INDEX(AllMessages!$C$1:$C$260, SMALL(IF($W$11=AllMessages!$F$1:$F$260, ROW(AllMessages!$F$1:$F$260)-MIN(ROW(AllMessages!$F$1:$F$260))+1, ""), ROW(A2))),"") ->  | AB13: =IF(W13="No Data",1,0) -> 0
A14: File 1 | B14: Count 1 | C14: File 2 | D14: Count 2 | E14: Triggered edit checks | T14: =IFERROR(INDEX(AllMessages!$D$1:$D$260, SMALL(IF($W$11=AllMessages!$F$1:$F$260, ROW(AllMessages!$F$1:$F$260)-MIN(ROW(AllMessages!$F$1:$F$260))+1, ""), ROW(A3))),"") ->  | U14: =IFERROR(INDEX(AllMessages!$E$1:$E$260, SMALL(IF($W$11=AllMessages!$F$1:$F$260, ROW(AllMessages!$F$1:$F$260)-MIN(ROW(AllMessages!$F$1:$F$260))+1, ""), ROW(A3))),"") ->  | V14: =IFERROR(INDEX(AllMessages!$K$1:$K$260, SMALL(IF($W$11=AllMessages!$F$1:$F$260, ROW(AllMessages!$F$1:$F$260)-MIN(ROW(AllMessages!$F$1:$F$260))+1, ""), ROW(A3))),"") ->  | W14: =IFERROR(INDEX(AllMessages!$G$1:$G$260, SMALL(IF($W$11=AllMessages!$F$1:$F$260, ROW(AllMessages!$F$1:$F$260)-MIN(ROW(AllMessages!$F$1:$F$260))+1, ""), ROW(A3))),"") ->  | X14: =IFERROR(INDEX(AllMessages!$H$1:$H$260, SMALL(IF($W$11=AllMessages!$F$1:$F$260, ROW(AllMessages!$F$1:$F$260)-MIN(ROW(AllMessages!$F$1:$F$260))+1, ""), ROW(A3))),"") ->  | Y14: =IFERROR(INDEX(AllMessages!$I$1:$I$260, SMALL(IF($W$11=AllMessages!$F$1:$F$260, ROW(AllMessages!$F$1:$F$260)-MIN(ROW(AllMessages!$F$1:$F$260))+1, ""), ROW(A3))),"") ->  | Z14: =IFERROR(INDEX(AllMessages!$B$1:$B$260, SMALL(IF($W$11=AllMessages!$F$1:$F$260, ROW(AllMessages!$F$1:$F$260)-MIN(ROW(AllMessages!$F$1:$F$260))+1, ""), ROW(A3))),"") ->  | AA14: =IFERROR(INDEX(AllMessages!$C$1:$C$260, SMALL(IF($W$11=AllMessages!$F$1:$F$260, ROW(AllMessages!$F$1:$F$260)-MIN(ROW(AllMessages!$F$1:$F$260))+1, ""), ROW(A3))),"") ->  | AB14: 0
A15: =Z12 ->  | B15: =IF(T12="","",IF(Y12="Disability",HYPERLINK(CONCATENATE("#","'Disability'!",T12),W12),IF(Y12="RaceEthnicity",HYPERLINK(CONCATENATE("#","'Racial Ethnic'!",T12),W12),IF(Y12="Gender",HYPERLINK(CONCATENATE("#","'Sex'!",T12),W12),IF(Y12="LEP",HYPERLINK(CONCATENATE("#","'English Learner Status'!",T12),W12),""))))) ->  | C15: =IF(U12="","",IF(Y12="Disability",HYPERLINK(CONCATENATE("#","'Disability'!",U12),AA12),IF(Y12="RaceEthnicity",HYPERLINK(CONCATENATE("#","'Racial Ethnic'!",U12),AA12),IF(Y12="Gender",HYPERLINK(CONCATENATE("#","'Sex'!",U12),AA12),IF(Y12="LEP",HYPERLINK(CONCATENATE("#","'English Learner Status'!",U12),AA12),""))))) ->  | D15: =IF(U12="","",IF(Y12="Disability",HYPERLINK(CONCATENATE("#","'Disability'!",U12),X12),IF(Y12="RaceEthnicity",HYPERLINK(CONCATENATE("#","'Racial Ethnic'!",U12),X12),IF(Y12="Gender",HYPERLINK(CONCATENATE("#","'Sex'!",U12),X12),IF(Y12="LEP",HYPERLINK(CONCATENATE("#","'English Learner Status'!",U12),X12),""))))) ->  | E15: =IF(AB12=1,"No Data",V12) ->  | T15: =IFERROR(INDEX(AllMessages!$D$1:$D$260, SMALL(IF($W$11=AllMessages!$F$1:$F$260, ROW(AllMessages!$F$1:$F$260)-MIN(ROW(AllMessages!$F$1:$F$260))+1, ""), ROW(A4))),"") ->  | U15: =IFERROR(INDEX(AllMessages!$E$1:$E$260, SMALL(IF($W$11=AllMessages!$F$1:$F$260, ROW(AllMessages!$F$1:$F$260)-MIN(ROW(AllMessages!$F$1:$F$260))+1, ""), ROW(A4))),"") ->  | V15: =IFERROR(INDEX(AllMessages!$K$1:$K$260, SMALL(IF($W$11=AllMessages!$F$1:$F$260, ROW(AllMessages!$F$1:$F$260)-MIN(ROW(AllMessages!$F$1:$F$260))+1, ""), ROW(A4))),"") ->  | W15: =IFERROR(INDEX(AllMessages!$G$1:$G$260, SMALL(IF($W$11=AllMessages!$F$1:$F$260, ROW(AllMessages!$F$1:$F$260)-MIN(ROW(AllMessages!$F$1:$F$260))+1, ""), ROW(A4))),"") ->  | X15: =IFERROR(INDEX(AllMessages!$H$1:$H$260, SMALL(IF($W$11=AllMessages!$F$1:$F$260, ROW(AllMessages!$F$1:$F$260)-MIN(ROW(AllMessages!$F$1:$F$260))+1, ""), ROW(A4))),"") ->  | Y15: =IFERROR(INDEX(AllMessages!$I$1:$I$260, SMALL(IF($W$11=AllMessages!$F$1:$F$260, ROW(AllMessages!$F$1:$F$260)-MIN(ROW(AllMessages!$F$1:$F$260))+1, ""), ROW(A4))),"") ->  | Z15: =IFERROR(INDEX(AllMessages!$B$1:$B$260, SMALL(IF($W$11=AllMessages!$F$1:$F$260, ROW(AllMessages!$F$1:$F$260)-MIN(ROW(AllMessages!$F$1:$F$260))+1, ""), ROW(A4))),"") ->  | AA15: =IFERROR(INDEX(AllMessages!$C$1:$C$260, SMALL(IF($W$11=AllMessages!$F$1:$F$260, ROW(AllMessages!$F$1:$F$260)-MIN(ROW(AllMessages!$F$1:$F$260))+1, ""), ROW(A4))),"") ->  | AB15: 0
A16: =Z13 ->  | E16: =IF(AB13=1,"No Data",V13) ->  | T16: =IFERROR(INDEX(AllMessages!$D$1:$D$260, SMALL(IF($W$11=AllMessages!$F$1:$F$260, ROW(AllMessages!$F$1:$F$260)-MIN(ROW(AllMessages!$F$1:$F$260))+1, ""), ROW(A5))),"") ->  | U16: =IFERROR(INDEX(AllMessages!$E$1:$E$260, SMALL(IF($W$11=AllMessages!$F$1:$F$260, ROW(AllMessages!$F$1:$F$260)-MIN(ROW(AllMessages!$F$1:$F$260))+1, ""), ROW(A5))),"") ->  | V16: =IFERROR(INDEX(AllMessages!$K$1:$K$260, SMALL(IF($W$11=AllMessages!$F$1:$F$260, ROW(AllMessages!$F$1:$F$260)-MIN(ROW(AllMessages!$F$1:$F$260))+1, ""), ROW(A5))),"") ->  | W16: =IFERROR(INDEX(AllMessages!$G$1:$G$260, SMALL(IF($W$11=AllMessages!$F$1:$F$260, ROW(AllMessages!$F$1:$F$260)-MIN(ROW(AllMessages!$F$1:$F$260))+1, ""), ROW(A5))),"") ->  | X16: =IFERROR(INDEX(AllMessages!$H$1:$H$260, SMALL(IF($W$11=AllMessages!$F$1:$F$260, ROW(AllMessages!$F$1:$F$260)-MIN(ROW(AllMessages!$F$1:$F$260))+1, ""), ROW(A5))),"") ->  | Y16: =IFERROR(INDEX(AllMessages!$I$1:$I$260, SMALL(IF($W$11=AllMessages!$F$1:$F$260, ROW(AllMessages!$F$1:$F$260)-MIN(ROW(AllMessages!$F$1:$F$260))+1, ""), ROW(A5))),"") ->  | Z16: =IFERROR(INDEX(AllMessages!$B$1:$B$260, SMALL(IF($W$11=AllMessages!$F$1:$F$260, ROW(AllMessages!$F$1:$F$260)-MIN(ROW(AllMessages!$F$1:$F$260))+1, ""), ROW(A5))),"") ->  | AA16: =IFERROR(INDEX(AllMessages!$C$1:$C$260, SMALL(IF($W$11=AllMessages!$F$1:$F$260, ROW(AllMessages!$F$1:$F$260)-MIN(ROW(AllMessages!$F$1:$F$260))+1, ""), ROW(A5))),"") ->  | AB16: 0
T17: =IFERROR(INDEX(AllMessages!$D$1:$D$260, SMALL(IF($W$11=AllMessages!$F$1:$F$260, ROW(AllMessages!$F$1:$F$260)-MIN(ROW(AllMessages!$F$1:$F$260))+1, ""), ROW(A6))),"") ->  | U17: =IFERROR(INDEX(AllMessages!$E$1:$E$260, SMALL(IF($W$11=AllMessages!$F$1:$F$260, ROW(AllMessages!$F$1:$F$260)-MIN(ROW(AllMessages!$F$1:$F$260))+1, ""), ROW(A6))),"") ->  | V17: =IFERROR(INDEX(AllMessages!$K$1:$K$260, SMALL(IF($W$11=AllMessages!$F$1:$F$260, ROW(AllMessages!$F$1:$F$260)-MIN(ROW(AllMessages!$F$1:$F$260))+1, ""), ROW(A6))),"") ->  | W17: =IFERROR(INDEX(AllMessages!$G$1:$G$260, SMALL(IF($W$11=AllMessages!$F$1:$F$260, ROW(AllMessages!$F$1:$F$260)-MIN(ROW(AllMessages!$F$1:$F$260))+1, ""), ROW(A6))),"") ->  | X17: =IFERROR(INDEX(AllMessages!$H$1:$H$260, SMALL(IF($W$11=AllMessages!$F$1:$F$260, ROW(AllMessages!$F$1:$F$260)-MIN(ROW(AllMessages!$F$1:$F$260))+1, ""), ROW(A6))),"") ->  | Y17: =IFERROR(INDEX(AllMessages!$I$1:$I$260, SMALL(IF($W$11=AllMessages!$F$1:$F$260, ROW(AllMessages!$F$1:$F$260)-MIN(ROW(AllMessages!$F$1:$F$260))+1, ""), ROW(A6))),"") ->  | Z17: =IFERROR(INDEX(AllMessages!$B$1:$B$260, SMALL(IF($W$11=AllMessages!$F$1:$F$260, ROW(AllMessages!$F$1:$F$260)-MIN(ROW(AllMessages!$F$1:$F$260))+1, ""), ROW(A6))),"") ->  | AA17: =IFERROR(INDEX(AllMessages!$C$1:$C$260, SMALL(IF($W$11=AllMessages!$F$1:$F$260, ROW(AllMessages!$F$1:$F$260)-MIN(ROW(AllMessages!$F$1:$F$260))+1, ""), ROW(A6))),"") ->  | AB17: 0
T18: =IFERROR(INDEX(AllMessages!$D$1:$D$260, SMALL(IF($W$11=AllMessages!$F$1:$F$260, ROW(AllMessages!$F$1:$F$260)-MIN(ROW(AllMessages!$F$1:$F$260))+1, ""), ROW(A7))),"") ->  | U18: =IFERROR(INDEX(AllMessages!$E$1:$E$260, SMALL(IF($W$11=AllMessages!$F$1:$F$260, ROW(AllMessages!$F$1:$F$260)-MIN(ROW(AllMessages!$F$1:$F$260))+1, ""), ROW(A7))),"") ->  | V18: =IFERROR(INDEX(AllMessages!$K$1:$K$260, SMALL(IF($W$11=AllMessages!$F$1:$F$260, ROW(AllMessages!$F$1:$F$260)-MIN(ROW(AllMessages!$F$1:$F$260))+1, ""), ROW(A7))),"") ->  | W18: =IFERROR(INDEX(AllMessages!$G$1:$G$260, SMALL(IF($W$11=AllMessages!$F$1:$F$260, ROW(AllMessages!$F$1:$F$260)-MIN(ROW(AllMessages!$F$1:$F$260))+1, ""), ROW(A7))),"") ->  | X18: =IFERROR(INDEX(AllMessages!$H$1:$H$260, SMALL(IF($W$11=AllMessages!$F$1:$F$260, ROW(AllMessages!$F$1:$F$260)-MIN(ROW(AllMessages!$F$1:$F$260))+1, ""), ROW(A7))),"") ->  | Y18: =IFERROR(INDEX(AllMessages!$I$1:$I$260, SMALL(IF($W$11=AllMessages!$F$1:$F$260, ROW(AllMessages!$F$1:$F$260)-MIN(ROW(AllMessages!$F$1:$F$260))+1, ""), ROW(A7))),"") ->  | Z18: =IFERROR(INDEX(AllMessages!$B$1:$B$260, SMALL(IF($W$11=AllMessages!$F$1:$F$260, ROW(AllMessages!$F$1:$F$260)-MIN(ROW(AllMessages!$F$1:$F$260))+1, ""), ROW(A7))),"") ->  | AA18: =IFERROR(INDEX(AllMessages!$C$1:$C$260, SMALL(IF($W$11=AllMessages!$F$1:$F$260, ROW(AllMessages!$F$1:$F$260)-MIN(ROW(AllMessages!$F$1:$F$260))+1, ""), ROW(A7))),"") ->  | AB18: 0
T19: =IFERROR(INDEX(AllMessages!$D$1:$D$260, SMALL(IF($W$11=AllMessages!$F$1:$F$260, ROW(AllMessages!$F$1:$F$260)-MIN(ROW(AllMessages!$F$1:$F$260))+1, ""), ROW(A8))),"") ->  | U19: =IFERROR(INDEX(AllMessages!$E$1:$E$260, SMALL(IF($W$11=AllMessages!$F$1:$F$260, ROW(AllMessages!$F$1:$F$260)-MIN(ROW(AllMessages!$F$1:$F$260))+1, ""), ROW(A8))),"") ->  | V19: =IFERROR(INDEX(AllMessages!$K$1:$K$260, SMALL(IF($W$11=AllMessages!$F$1:$F$260, ROW(AllMessages!$F$1:$F$260)-MIN(ROW(AllMessages!$F$1:$F$260))+1, ""), ROW(A8))),"") ->  | W19: =IFERROR(INDEX(AllMessages!$G$1:$G$260, SMALL(IF($W$11=AllMessages!$F$1:$F$260, ROW(AllMessages!$F$1:$F$260)-MIN(ROW(AllMessages!$F$1:$F$260))+1, ""), ROW(A8))),"") ->  | X19: =IFERROR(INDEX(AllMessages!$H$1:$H$260, SMALL(IF($W$11=AllMessages!$F$1:$F$260, ROW(AllMessages!$F$1:$F$260)-MIN(ROW(AllMessages!$F$1:$F$260))+1, ""), ROW(A8))),"") ->  | Y19: =IFERROR(INDEX(AllMessages!$I$1:$I$260, SMALL(IF($W$11=AllMessages!$F$1:$F$260, ROW(AllMessages!$F$1:$F$260)-MIN(ROW(AllMessages!$F$1:$F$260))+1, ""), ROW(A8))),"") ->  | Z19: =IFERROR(INDEX(AllMessages!$B$1:$B$260, SMALL(IF($W$11=AllMessages!$F$1:$F$260, ROW(AllMessages!$F$1:$F$260)-MIN(ROW(AllMessages!$F$1:$F$260))+1, ""), ROW(A8))),"") ->  | AA19: =IFERROR(INDEX(AllMessages!$C$1:$C$260, SMALL(IF($W$11=AllMessages!$F$1:$F$260, ROW(AllMessages!$F$1:$F$260)-MIN(ROW(AllMessages!$F$1:$F$260))+1, ""), ROW(A8))),"") ->  | AB19: 0
T20: =IFERROR(INDEX(AllMessages!$D$1:$D$260, SMALL(IF($W$11=AllMessages!$F$1:$F$260, ROW(AllMessages!$F$1:$F$260)-MIN(ROW(AllMessages!$F$1:$F$260))+1, ""), ROW(A9))),"") ->  | U20: =IFERROR(INDEX(AllMessages!$E$1:$E$260, SMALL(IF($W$11=AllMessages!$F$1:$F$260, ROW(AllMessages!$F$1:$F$260)-MIN(ROW(AllMessages!$F$1:$F$260))+1, ""), ROW(A9))),"") ->  | V20: =IFERROR(INDEX(AllMessages!$K$1:$K$260, SMALL(IF($W$11=AllMessages!$F$1:$F$260, ROW(AllMessages!$F$1:$F$260)-MIN(ROW(AllMessages!$F$1:$F$260))+1, ""), ROW(A9))),"") ->  | W20: =IFERROR(INDEX(AllMessages!$G$1:$G$260, SMALL(IF($W$11=AllMessages!$F$1:$F$260, ROW(AllMessages!$F$1:$F$260)-MIN(ROW(AllMessages!$F$1:$F$260))+1, ""), ROW(A9))),"") ->  | X20: =IFERROR(INDEX(AllMessages!$H$1:$H$260, SMALL(IF($W$11=AllMessages!$F$1:$F$260, ROW(AllMessages!$F$1:$F$260)-MIN(ROW(AllMessages!$F$1:$F$260))+1, ""), ROW(A9))),"") ->  | Y20: =IFERROR(INDEX(AllMessages!$I$1:$I$260, SMALL(IF($W$11=AllMessages!$F$1:$F$260, ROW(AllMessages!$F$1:$F$260)-MIN(ROW(AllMessages!$F$1:$F$260))+1, ""), ROW(A9))),"") ->  | Z20: =IFERROR(INDEX(AllMessages!$B$1:$B$260, SMALL(IF($W$11=AllMessages!$F$1:$F$260, ROW(AllMessages!$F$1:$F$260)-MIN(ROW(AllMessages!$F$1:$F$260))+1, ""), ROW(A9))),"") ->  | AA20: =IFERROR(INDEX(AllMessages!$C$1:$C$260, SMALL(IF($W$11=AllMessages!$F$1:$F$260, ROW(AllMessages!$F$1:$F$260)-MIN(ROW(AllMessages!$F$1:$F$260))+1, ""), ROW(A9))),"") ->  | AB20: 0
T21: =IFERROR(INDEX(AllMessages!$D$1:$D$260, SMALL(IF($W$11=AllMessages!$F$1:$F$260, ROW(AllMessages!$F$1:$F$260)-MIN(ROW(AllMessages!$F$1:$F$260))+1, ""), ROW(A10))),"") ->  | U21: =IFERROR(INDEX(AllMessages!$E$1:$E$260, SMALL(IF($W$11=AllMessages!$F$1:$F$260, ROW(AllMessages!$F$1:$F$260)-MIN(ROW(AllMessages!$F$1:$F$260))+1, ""), ROW(A10))),"") ->  | V21: =IFERROR(INDEX(AllMessages!$K$1:$K$260, SMALL(IF($W$11=AllMessages!$F$1:$F$260, ROW(AllMessages!$F$1:$F$260)-MIN(ROW(AllMessages!$F$1:$F$260))+1, ""), ROW(A10))),"") ->  | W21: =IFERROR(INDEX(AllMessages!$G$1:$G$260, SMALL(IF($W$11=AllMessages!$F$1:$F$260, ROW(AllMessages!$F$1:$F$260)-MIN(ROW(AllMessages!$F$1:$F$260))+1, ""), ROW(A10))),"") ->  | X21: =IFERROR(INDEX(AllMessages!$H$1:$H$260, SMALL(IF($W$11=AllMessages!$F$1:$F$260, ROW(AllMessages!$F$1:$F$260)-MIN(ROW(AllMessages!$F$1:$F$260))+1, ""), ROW(A10))),"") ->  | Y21: =IFERROR(INDEX(AllMessages!$I$1:$I$260, SMALL(IF($W$11=AllMessages!$F$1:$F$260, ROW(AllMessages!$F$1:$F$260)-MIN(ROW(AllMessages!$F$1:$F$260))+1, ""), ROW(A10))),"") ->  | Z21: =IFERROR(INDEX(AllMessages!$B$1:$B$260, SMALL(IF($W$11=AllMessages!$F$1:$F$260, ROW(AllMessages!$F$1:$F$260)-MIN(ROW(AllMessages!$F$1:$F$260))+1, ""), ROW(A10))),"") ->  | AA21: =IFERROR(INDEX(AllMessages!$C$1:$C$260, SMALL(IF($W$11=AllMessages!$F$1:$F$260, ROW(AllMessages!$F$1:$F$260)-MIN(ROW(AllMessages!$F$1:$F$260))+1, ""), ROW(A10))),"") ->  | AB21: 0
T22: =IFERROR(INDEX(AllMessages!$D$1:$D$260, SMALL(IF($W$11=AllMessages!$F$1:$F$260, ROW(AllMessages!$F$1:$F$260)-MIN(ROW(AllMessages!$F$1:$F$260))+1, ""), ROW(A11))),"") ->  | U22: =IFERROR(INDEX(AllMessages!$E$1:$E$260, SMALL(IF($W$11=AllMessages!$F$1:$F$260, ROW(AllMessages!$F$1:$F$260)-MIN(ROW(AllMessages!$F$1:$F$260))+1, ""), ROW(A11))),"") ->  | V22: =IFERROR(INDEX(AllMessages!$K$1:$K$260, SMALL(IF($W$11=AllMessages!$F$1:$F$260, ROW(AllMessages!$F$1:$F$260)-MIN(ROW(AllMessages!$F$1:$F$260))+1, ""), ROW(A11))),"") ->  | W22: =IFERROR(INDEX(AllMessages!$G$1:$G$260, SMALL(IF($W$11=AllMessages!$F$1:$F$260, ROW(AllMessages!$F$1:$F$260)-MIN(ROW(AllMessages!$F$1:$F$260))+1, ""), ROW(A11))),"") ->  | X22: =IFERROR(INDEX(AllMessages!$H$1:$H$260, SMALL(IF($W$11=AllMessages!$F$1:$F$260, ROW(AllMessages!$F$1:$F$260)-MIN(ROW(AllMessages!$F$1:$F$260))+1, ""), ROW(A11))),"") ->  | Y22: =IFERROR(INDEX(AllMessages!$I$1:$I$260, SMALL(IF($W$11=AllMessages!$F$1:$F$260, ROW(AllMessages!$F$1:$F$260)-MIN(ROW(AllMessages!$F$1:$F$260))+1, ""), ROW(A11))),"") ->  | Z22: =IFERROR(INDEX(AllMessages!$B$1:$B$260, SMALL(IF($W$11=AllMessages!$F$1:$F$260, ROW(AllMessages!$F$1:$F$260)-MIN(ROW(AllMessages!$F$1:$F$260))+1, ""), ROW(A11))),"") ->  | AA22: =IFERROR(INDEX(AllMessages!$C$1:$C$260, SMALL(IF($W$11=AllMessages!$F$1:$F$260, ROW(AllMessages!$F$1:$F$260)-MIN(ROW(AllMessages!$F$1:$F$260))+1, ""), ROW(A11))),"") ->  | AB22: 0
T23: =IFERROR(INDEX(AllMessages!$D$1:$D$260, SMALL(IF($W$11=AllMessages!$F$1:$F$260, ROW(AllMessages!$F$1:$F$260)-MIN(ROW(AllMessages!$F$1:$F$260))+1, ""), ROW(A12))),"") ->  | U23: =IFERROR(INDEX(AllMessages!$E$1:$E$260, SMALL(IF($W$11=AllMessages!$F$1:$F$260, ROW(AllMessages!$F$1:$F$260)-MIN(ROW(AllMessages!$F$1:$F$260))+1, ""), ROW(A12))),"") ->  | V23: =IFERROR(INDEX(AllMessages!$K$1:$K$260, SMALL(IF($W$11=AllMessages!$F$1:$F$260, ROW(AllMessages!$F$1:$F$260)-MIN(ROW(AllMessages!$F$1:$F$260))+1, ""), ROW(A12))),"") ->  | W23: =IFERROR(INDEX(AllMessages!$G$1:$G$260, SMALL(IF($W$11=AllMessages!$F$1:$F$260, ROW(AllMessages!$F$1:$F$260)-MIN(ROW(AllMessages!$F$1:$F$260))+1, ""), ROW(A12))),"") ->  | X23: =IFERROR(INDEX(AllMessages!$H$1:$H$260, SMALL(IF($W$11=AllMessages!$F$1:$F$260, ROW(AllMessages!$F$1:$F$260)-MIN(ROW(AllMessages!$F$1:$F$260))+1, ""), ROW(A12))),"") ->  | Y23: =IFERROR(INDEX(AllMessages!$I$1:$I$260, SMALL(IF($W$11=AllMessages!$F$1:$F$260, ROW(AllMessages!$F$1:$F$260)-MIN(ROW(AllMessages!$F$1:$F$260))+1, ""), ROW(A12))),"") ->  | Z23: =IFERROR(INDEX(AllMessages!$B$1:$B$260, SMALL(IF($W$11=AllMessages!$F$1:$F$260, ROW(AllMessages!$F$1:$F$260)-MIN(ROW(AllMessages!$F$1:$F$260))+1, ""), ROW(A12))),"") ->  | AA23: =IFERROR(INDEX(AllMessages!$C$1:$C$260, SMALL(IF($W$11=AllMessages!$F$1:$F$260, ROW(AllMessages!$F$1:$F$260)-MIN(ROW(AllMessages!$F$1:$F$260))+1, ""), ROW(A12))),"") ->  | AB23: 0
T24: =IFERROR(INDEX(AllMessages!$D$1:$D$260, SMALL(IF($W$11=AllMessages!$F$1:$F$260, ROW(AllMessages!$F$1:$F$260)-MIN(ROW(AllMessages!$F$1:$F$260))+1, ""), ROW(A13))),"") ->  | U24: =IFERROR(INDEX(AllMessages!$E$1:$E$260, SMALL(IF($W$11=AllMessages!$F$1:$F$260, ROW(AllMessages!$F$1:$F$260)-MIN(ROW(AllMessages!$F$1:$F$260))+1, ""), ROW(A13))),"") ->  | V24: =IFERROR(INDEX(AllMessages!$K$1:$K$260, SMALL(IF($W$11=AllMessages!$F$1:$F$260, ROW(AllMessages!$F$1:$F$260)-MIN(ROW(AllMessages!$F$1:$F$260))+1, ""), ROW(A13))),"") ->  | W24: =IFERROR(INDEX(AllMessages!$G$1:$G$260, SMALL(IF($W$11=AllMessages!$F$1:$F$260, ROW(AllMessages!$F$1:$F$260)-MIN(ROW(AllMessages!$F$1:$F$260))+1, ""), ROW(A13))),"") ->  | X24: =IFERROR(INDEX(AllMessages!$H$1:$H$260, SMALL(IF($W$11=AllMessages!$F$1:$F$260, ROW(AllMessages!$F$1:$F$260)-MIN(ROW(AllMessages!$F$1:$F$260))+1, ""), ROW(A13))),"") ->  | Y24: =IFERROR(INDEX(AllMessages!$I$1:$I$260, SMALL(IF($W$11=AllMessages!$F$1:$F$260, ROW(AllMessages!$F$1:$F$260)-MIN(ROW(AllMessages!$F$1:$F$260))+1, ""), ROW(A13))),"") ->  | Z24: =IFERROR(INDEX(AllMessages!$B$1:$B$260, SMALL(IF($W$11=AllMessages!$F$1:$F$260, ROW(AllMessages!$F$1:$F$260)-MIN(ROW(AllMessages!$F$1:$F$260))+1, ""), ROW(A13))),"") ->  | AA24: =IFERROR(INDEX(AllMessages!$C$1:$C$260, SMALL(IF($W$11=AllMessages!$F$1:$F$260, ROW(AllMessages!$F$1:$F$260)-MIN(ROW(AllMessages!$F$1:$F$260))+1, ""), ROW(A13))),"") ->  | AB24: 0
T25: =IFERROR(INDEX(AllMessages!$D$1:$D$260, SMALL(IF($W$11=AllMessages!$F$1:$F$260, ROW(AllMessages!$F$1:$F$260)-MIN(ROW(AllMessages!$F$1:$F$260))+1, ""), ROW(A14))),"") ->  | U25: =IFERROR(INDEX(AllMessages!$E$1:$E$260, SMALL(IF($W$11=AllMessages!$F$1:$F$260, ROW(AllMessages!$F$1:$F$260)-MIN(ROW(AllMessages!$F$1:$F$260))+1, ""), ROW(A14))),"") ->  | V25: =IFERROR(INDEX(AllMessages!$K$1:$K$260, SMALL(IF($W$11=AllMessages!$F$1:$F$260, ROW(AllMessages!$F$1:$F$260)-MIN(ROW(AllMessages!$F$1:$F$260))+1, ""), ROW(A14))),"") ->  | W25: =IFERROR(INDEX(AllMessages!$G$1:$G$260, SMALL(IF($W$11=AllMessages!$F$1:$F$260, ROW(AllMessages!$F$1:$F$260)-MIN(ROW(AllMessages!$F$1:$F$260))+1, ""), ROW(A14))),"") ->  | X25: =IFERROR(INDEX(AllMessages!$H$1:$H$260, SMALL(IF($W$11=AllMessages!$F$1:$F$260, ROW(AllMessages!$F$1:$F$260)-MIN(ROW(AllMessages!$F$1:$F$260))+1, ""), ROW(A14))),"") ->  | Y25: =IFERROR(INDEX(AllMessages!$I$1:$I$260, SMALL(IF($W$11=AllMessages!$F$1:$F$260, ROW(AllMessages!$F$1:$F$260)-MIN(ROW(AllMessages!$F$1:$F$260))+1, ""), ROW(A14))),"") ->  | Z25: =IFERROR(INDEX(AllMessages!$B$1:$B$260, SMALL(IF($W$11=AllMessages!$F$1:$F$260, ROW(AllMessages!$F$1:$F$260)-MIN(ROW(AllMessages!$F$1:$F$260))+1, ""), ROW(A14))),"") ->  | AA25: =IFERROR(INDEX(AllMessages!$C$1:$C$260, SMALL(IF($W$11=AllMessages!$F$1:$F$260, ROW(AllMessages!$F$1:$F$260)-MIN(ROW(AllMessages!$F$1:$F$260))+1, ""), ROW(A14))),"") ->  | AB25: 0
T26: =IFERROR(INDEX(AllMessages!$D$1:$D$260, SMALL(IF($W$11=AllMessages!$F$1:$F$260, ROW(AllMessages!$F$1:$F$260)-MIN(ROW(AllMessages!$F$1:$F$260))+1, ""), ROW(A15))),"") ->  | U26: =IFERROR(INDEX(AllMessages!$E$1:$E$260, SMALL(IF($W$11=AllMessages!$F$1:$F$260, ROW(AllMessages!$F$1:$F$260)-MIN(ROW(AllMessages!$F$1:$F$260))+1, ""), ROW(A15))),"") ->  | V26: =IFERROR(INDEX(AllMessages!$K$1:$K$260, SMALL(IF($W$11=AllMessages!$F$1:$F$260, ROW(AllMessages!$F$1:$F$260)-MIN(ROW(AllMessages!$F$1:$F$260))+1, ""), ROW(A15))),"") ->  | W26: =IFERROR(INDEX(AllMessages!$G$1:$G$260, SMALL(IF($W$11=AllMessages!$F$1:$F$260, ROW(AllMessages!$F$1:$F$260)-MIN(ROW(AllMessages!$F$1:$F$260))+1, ""), ROW(A15))),"") ->  | X26: =IFERROR(INDEX(AllMessages!$H$1:$H$260, SMALL(IF($W$11=AllMessages!$F$1:$F$260, ROW(AllMessages!$F$1:$F$260)-MIN(ROW(AllMessages!$F$1:$F$260))+1, ""), ROW(A15))),"") ->  | Y26: =IFERROR(INDEX(AllMessages!$I$1:$I$260, SMALL(IF($W$11=AllMessages!$F$1:$F$260, ROW(AllMessages!$F$1:$F$260)-MIN(ROW(AllMessages!$F$1:$F$260))+1, ""), ROW(A15))),"") ->  | Z26: =IFERROR(INDEX(AllMessages!$B$1:$B$260, SMALL(IF($W$11=AllMessages!$F$1:$F$260, ROW(AllMessages!$F$1:$F$260)-MIN(ROW(AllMessages!$F$1:$F$260))+1, ""), ROW(A15))),"") ->  | AA26: =IFERROR(INDEX(AllMessages!$C$1:$C$260, SMALL(IF($W$11=AllMessages!$F$1:$F$260, ROW(AllMessages!$F$1:$F$260)-MIN(ROW(AllMessages!$F$1:$F$260))+1, ""), ROW(A15))),"") ->  | AB26: 0
T27: =IFERROR(INDEX(AllMessages!$D$1:$D$260, SMALL(IF($W$11=AllMessages!$F$1:$F$260, ROW(AllMessages!$F$1:$F$260)-MIN(ROW(AllMessages!$F$1:$F$260))+1, ""), ROW(A16))),"") ->  | U27: =IFERROR(INDEX(AllMessages!$E$1:$E$260, SMALL(IF($W$11=AllMessages!$F$1:$F$260, ROW(AllMessages!$F$1:$F$260)-MIN(ROW(AllMessages!$F$1:$F$260))+1, ""), ROW(A16))),"") ->  | V27: =IFERROR(INDEX(AllMessages!$K$1:$K$260, SMALL(IF($W$11=AllMessages!$F$1:$F$260, ROW(AllMessages!$F$1:$F$260)-MIN(ROW(AllMessages!$F$1:$F$260))+1, ""), ROW(A16))),"") ->  | W27: =IFERROR(INDEX(AllMessages!$G$1:$G$260, SMALL(IF($W$11=AllMessages!$F$1:$F$260, ROW(AllMessages!$F$1:$F$260)-MIN(ROW(AllMessages!$F$1:$F$260))+1, ""), ROW(A16))),"") ->  | X27: =IFERROR(INDEX(AllMessages!$H$1:$H$260, SMALL(IF($W$11=AllMessages!$F$1:$F$260, ROW(AllMessages!$F$1:$F$260)-MIN(ROW(AllMessages!$F$1:$F$260))+1, ""), ROW(A16))),"") ->  | Y27: =IFERROR(INDEX(AllMessages!$I$1:$I$260, SMALL(IF($W$11=AllMessages!$F$1:$F$260, ROW(AllMessages!$F$1:$F$260)-MIN(ROW(AllMessages!$F$1:$F$260))+1, ""), ROW(A16))),"") ->  | Z27: =IFERROR(INDEX(AllMessages!$B$1:$B$260, SMALL(IF($W$11=AllMessages!$F$1:$F$260, ROW(AllMessages!$F$1:$F$260)-MIN(ROW(AllMessages!$F$1:$F$260))+1, ""), ROW(A16))),"") ->  | AA27: =IFERROR(INDEX(AllMessages!$C$1:$C$260, SMALL(IF($W$11=AllMessages!$F$1:$F$260, ROW(AllMessages!$F$1:$F$260)-MIN(ROW(AllMessages!$F$1:$F$260))+1, ""), ROW(A16))),"") ->  | AB27: 0
T28: =IFERROR(INDEX(AllMessages!$D$1:$D$260, SMALL(IF($W$11=AllMessages!$F$1:$F$260, ROW(AllMessages!$F$1:$F$260)-MIN(ROW(AllMessages!$F$1:$F$260))+1, ""), ROW(A17))),"") ->  | U28: =IFERROR(INDEX(AllMessages!$E$1:$E$260, SMALL(IF($W$11=AllMessages!$F$1:$F$260, ROW(AllMessages!$F$1:$F$260)-MIN(ROW(AllMessages!$F$1:$F$260))+1, ""), ROW(A17))),"") ->  | V28: =IFERROR(INDEX(AllMessages!$K$1:$K$260, SMALL(IF($W$11=AllMessages!$F$1:$F$260, ROW(AllMessages!$F$1:$F$260)-MIN(ROW(AllMessages!$F$1:$F$260))+1, ""), ROW(A17))),"") ->  | W28: =IFERROR(INDEX(AllMessages!$G$1:$G$260, SMALL(IF($W$11=AllMessages!$F$1:$F$260, ROW(AllMessages!$F$1:$F$260)-MIN(ROW(AllMessages!$F$1:$F$260))+1, ""), ROW(A17))),"") ->  | X28: =IFERROR(INDEX(AllMessages!$H$1:$H$260, SMALL(IF($W$11=AllMessages!$F$1:$F$260, ROW(AllMessages!$F$1:$F$260)-MIN(ROW(AllMessages!$F$1:$F$260))+1, ""), ROW(A17))),"") ->  | Y28: =IFERROR(INDEX(AllMessages!$I$1:$I$260, SMALL(IF($W$11=AllMessages!$F$1:$F$260, ROW(AllMessages!$F$1:$F$260)-MIN(ROW(AllMessages!$F$1:$F$260))+1, ""), ROW(A17))),"") ->  | Z28: =IFERROR(INDEX(AllMessages!$B$1:$B$260, SMALL(IF($W$11=AllMessages!$F$1:$F$260, ROW(AllMessages!$F$1:$F$260)-MIN(ROW(AllMessages!$F$1:$F$260))+1, ""), ROW(A17))),"") ->  | AA28: =IFERROR(INDEX(AllMessages!$C$1:$C$260, SMALL(IF($W$11=AllMessages!$F$1:$F$260, ROW(AllMessages!$F$1:$F$260)-MIN(ROW(AllMessages!$F$1:$F$260))+1, ""), ROW(A17))),"") ->  | AB28: 0
T29: =IFERROR(INDEX(AllMessages!$D$1:$D$260, SMALL(IF($W$11=AllMessages!$F$1:$F$260, ROW(AllMessages!$F$1:$F$260)-MIN(ROW(AllMessages!$F$1:$F$260))+1, ""), ROW(A18))),"") ->  | U29: =IFERROR(INDEX(AllMessages!$E$1:$E$260, SMALL(IF($W$11=AllMessages!$F$1:$F$260, ROW(AllMessages!$F$1:$F$260)-MIN(ROW(AllMessages!$F$1:$F$260))+1, ""), ROW(A18))),"") ->  | V29: =IFERROR(INDEX(AllMessages!$K$1:$K$260, SMALL(IF($W$11=AllMessages!$F$1:$F$260, ROW(AllMessages!$F$1:$F$260)-MIN(ROW(AllMessages!$F$1:$F$260))+1, ""), ROW(A18))),"") ->  | W29: =IFERROR(INDEX(AllMessages!$G$1:$G$260, SMALL(IF($W$11=AllMessages!$F$1:$F$260, ROW(AllMessages!$F$1:$F$260)-MIN(ROW(AllMessages!$F$1:$F$260))+1, ""), ROW(A18))),"") ->  | X29: =IFERROR(INDEX(AllMessages!$H$1:$H$260, SMALL(IF($W$11=AllMessages!$F$1:$F$260, ROW(AllMessages!$F$1:$F$260)-MIN(ROW(AllMessages!$F$1:$F$260))+1, ""), ROW(A18))),"") ->  | Y29: =IFERROR(INDEX(AllMessages!$I$1:$I$260, SMALL(IF($W$11=AllMessages!$F$1:$F$260, ROW(AllMessages!$F$1:$F$260)-MIN(ROW(AllMessages!$F$1:$F$260))+1, ""), ROW(A18))),"") ->  | Z29: =IFERROR(INDEX(AllMessages!$B$1:$B$260, SMALL(IF($W$11=AllMessages!$F$1:$F$260, ROW(AllMessages!$F$1:$F$260)-MIN(ROW(AllMessages!$F$1:$F$260))+1, ""), ROW(A18))),"") ->  | AA29: =IFERROR(INDEX(AllMessages!$C$1:$C$260, SMALL(IF($W$11=AllMessages!$F$1:$F$260, ROW(AllMessages!$F$1:$F$260)-MIN(ROW(AllMessages!$F$1:$F$260))+1, ""), ROW(A18))),"") ->  | AB29: 0
T30: =IFERROR(INDEX(AllMessages!$D$1:$D$260, SMALL(IF($W$11=AllMessages!$F$1:$F$260, ROW(AllMessages!$F$1:$F$260)-MIN(ROW(AllMessages!$F$1:$F$260))+1, ""), ROW(A19))),"") ->  | U30: =IFERROR(INDEX(AllMessages!$E$1:$E$260, SMALL(IF($W$11=AllMessages!$F$1:$F$260, ROW(AllMessages!$F$1:$F$260)-MIN(ROW(AllMessages!$F$1:$F$260))+1, ""), ROW(A19))),"") ->  | V30: =IFERROR(INDEX(AllMessages!$K$1:$K$260, SMALL(IF($W$11=AllMessages!$F$1:$F$260, ROW(AllMessages!$F$1:$F$260)-MIN(ROW(AllMessages!$F$1:$F$260))+1, ""), ROW(A19))),"") ->  | W30: =IFERROR(INDEX(AllMessages!$G$1:$G$260, SMALL(IF($W$11=AllMessages!$F$1:$F$260, ROW(AllMessages!$F$1:$F$260)-MIN(ROW(AllMessages!$F$1:$F$260))+1, ""), ROW(A19))),"") ->  | X30: =IFERROR(INDEX(AllMessages!$H$1:$H$260, SMALL(IF($W$11=AllMessages!$F$1:$F$260, ROW(AllMessages!$F$1:$F$260)-MIN(ROW(AllMessages!$F$1:$F$260))+1, ""), ROW(A19))),"") ->  | Y30: =IFERROR(INDEX(AllMessages!$I$1:$I$260, SMALL(IF($W$11=AllMessages!$F$1:$F$260, ROW(AllMessages!$F$1:$F$260)-MIN(ROW(AllMessages!$F$1:$F$260))+1, ""), ROW(A19))),"") ->  | Z30: =IFERROR(INDEX(AllMessages!$B$1:$B$260, SMALL(IF($W$11=AllMessages!$F$1:$F$260, ROW(AllMessages!$F$1:$F$260)-MIN(ROW(AllMessages!$F$1:$F$260))+1, ""), ROW(A19))),"") ->  | AA30: =IFERROR(INDEX(AllMessages!$C$1:$C$260, SMALL(IF($W$11=AllMessages!$F$1:$F$260, ROW(AllMessages!$F$1:$F$260)-MIN(ROW(AllMessages!$F$1:$F$260))+1, ""), ROW(A19))),"") ->  | AB30: 0
T31: =IFERROR(INDEX(AllMessages!$D$1:$D$260, SMALL(IF($W$11=AllMessages!$F$1:$F$260, ROW(AllMessages!$F$1:$F$260)-MIN(ROW(AllMessages!$F$1:$F$260))+1, ""), ROW(A20))),"") ->  | U31: =IFERROR(INDEX(AllMessages!$E$1:$E$260, SMALL(IF($W$11=AllMessages!$F$1:$F$260, ROW(AllMessages!$F$1:$F$260)-MIN(ROW(AllMessages!$F$1:$F$260))+1, ""), ROW(A20))),"") ->  | V31: =IFERROR(INDEX(AllMessages!$K$1:$K$260, SMALL(IF($W$11=AllMessages!$F$1:$F$260, ROW(AllMessages!$F$1:$F$260)-MIN(ROW(AllMessages!$F$1:$F$260))+1, ""), ROW(A20))),"") ->  | W31: =IFERROR(INDEX(AllMessages!$G$1:$G$260, SMALL(IF($W$11=AllMessages!$F$1:$F$260, ROW(AllMessages!$F$1:$F$260)-MIN(ROW(AllMessages!$F$1:$F$260))+1, ""), ROW(A20))),"") ->  | X31: =IFERROR(INDEX(AllMessages!$H$1:$H$260, SMALL(IF($W$11=AllMessages!$F$1:$F$260, ROW(AllMessages!$F$1:$F$260)-MIN(ROW(AllMessages!$F$1:$F$260))+1, ""), ROW(A20))),"") ->  | Y31: =IFERROR(INDEX(AllMessages!$I$1:$I$260, SMALL(IF($W$11=AllMessages!$F$1:$F$260, ROW(AllMessages!$F$1:$F$260)-MIN(ROW(AllMessages!$F$1:$F$260))+1, ""), ROW(A20))),"") ->  | Z31: =IFERROR(INDEX(AllMessages!$B$1:$B$260, SMALL(IF($W$11=AllMessages!$F$1:$F$260, ROW(AllMessages!$F$1:$F$260)-MIN(ROW(AllMessages!$F$1:$F$260))+1, ""), ROW(A20))),"") ->  | AA31: =IFERROR(INDEX(AllMessages!$C$1:$C$260, SMALL(IF($W$11=AllMessages!$F$1:$F$260, ROW(AllMessages!$F$1:$F$260)-MIN(ROW(AllMessages!$F$1:$F$260))+1, ""), ROW(A20))),"") ->  | AB31: 0
T32: =IFERROR(INDEX(AllMessages!$D$1:$D$260, SMALL(IF($W$11=AllMessages!$F$1:$F$260, ROW(AllMessages!$F$1:$F$260)-MIN(ROW(AllMessages!$F$1:$F$260))+1, ""), ROW(A21))),"") ->  | U32: =IFERROR(INDEX(AllMessages!$E$1:$E$260, SMALL(IF($W$11=AllMessages!$F$1:$F$260, ROW(AllMessages!$F$1:$F$260)-MIN(ROW(AllMessages!$F$1:$F$260))+1, ""), ROW(A21))),"") ->  | V32: =IFERROR(INDEX(AllMessages!$K$1:$K$260, SMALL(IF($W$11=AllMessages!$F$1:$F$260, ROW(AllMessages!$F$1:$F$260)-MIN(ROW(AllMessages!$F$1:$F$260))+1, ""), ROW(A21))),"") ->  | W32: =IFERROR(INDEX(AllMessages!$G$1:$G$260, SMALL(IF($W$11=AllMessages!$F$1:$F$260, ROW(AllMessages!$F$1:$F$260)-MIN(ROW(AllMessages!$F$1:$F$260))+1, ""), ROW(A21))),"") ->  | X32: =IFERROR(INDEX(AllMessages!$H$1:$H$260, SMALL(IF($W$11=AllMessages!$F$1:$F$260, ROW(AllMessages!$F$1:$F$260)-MIN(ROW(AllMessages!$F$1:$F$260))+1, ""), ROW(A21))),"") ->  | Y32: =IFERROR(INDEX(AllMessages!$I$1:$I$260, SMALL(IF($W$11=AllMessages!$F$1:$F$260, ROW(AllMessages!$F$1:$F$260)-MIN(ROW(AllMessages!$F$1:$F$260))+1, ""), ROW(A21))),"") ->  | Z32: =IFERROR(INDEX(AllMessages!$B$1:$B$260, SMALL(IF($W$11=AllMessages!$F$1:$F$260, ROW(AllMessages!$F$1:$F$260)-MIN(ROW(AllMessages!$F$1:$F$260))+1, ""), ROW(A21))),"") ->  | AA32: =IFERROR(INDEX(AllMessages!$C$1:$C$260, SMALL(IF($W$11=AllMessages!$F$1:$F$260, ROW(AllMessages!$F$1:$F$260)-MIN(ROW(AllMessages!$F$1:$F$260))+1, ""), ROW(A21))),"") ->  | AB32: 0
T33: =IFERROR(INDEX(AllMessages!$D$1:$D$260, SMALL(IF($W$11=AllMessages!$F$1:$F$260, ROW(AllMessages!$F$1:$F$260)-MIN(ROW(AllMessages!$F$1:$F$260))+1, ""), ROW(A22))),"") ->  | U33: =IFERROR(INDEX(AllMessages!$E$1:$E$260, SMALL(IF($W$11=AllMessages!$F$1:$F$260, ROW(AllMessages!$F$1:$F$260)-MIN(ROW(AllMessages!$F$1:$F$260))+1, ""), ROW(A22))),"") ->  | V33: =IFERROR(INDEX(AllMessages!$K$1:$K$260, SMALL(IF($W$11=AllMessages!$F$1:$F$260, ROW(AllMessages!$F$1:$F$260)-MIN(ROW(AllMessages!$F$1:$F$260))+1, ""), ROW(A22))),"") ->  | W33: =IFERROR(INDEX(AllMessages!$G$1:$G$260, SMALL(IF($W$11=AllMessages!$F$1:$F$260, ROW(AllMessages!$F$1:$F$260)-MIN(ROW(AllMessages!$F$1:$F$260))+1, ""), ROW(A22))),"") ->  | X33: =IFERROR(INDEX(AllMessages!$H$1:$H$260, SMALL(IF($W$11=AllMessages!$F$1:$F$260, ROW(AllMessages!$F$1:$F$260)-MIN(ROW(AllMessages!$F$1:$F$260))+1, ""), ROW(A22))),"") ->  | Y33: =IFERROR(INDEX(AllMessages!$I$1:$I$260, SMALL(IF($W$11=AllMessages!$F$1:$F$260, ROW(AllMessages!$F$1:$F$260)-MIN(ROW(AllMessages!$F$1:$F$260))+1, ""), ROW(A22))),"") ->  | Z33: =IFERROR(INDEX(AllMessages!$B$1:$B$260, SMALL(IF($W$11=AllMessages!$F$1:$F$260, ROW(AllMessages!$F$1:$F$260)-MIN(ROW(AllMessages!$F$1:$F$260))+1, ""), ROW(A22))),"") ->  | AA33: =IFERROR(INDEX(AllMessages!$C$1:$C$260, SMALL(IF($W$11=AllMessages!$F$1:$F$260, ROW(AllMessages!$F$1:$F$260)-MIN(ROW(AllMessages!$F$1:$F$260))+1, ""), ROW(A22))),"") ->  | AB33: 0
T34: =IFERROR(INDEX(AllMessages!$D$1:$D$260, SMALL(IF($W$11=AllMessages!$F$1:$F$260, ROW(AllMessages!$F$1:$F$260)-MIN(ROW(AllMessages!$F$1:$F$260))+1, ""), ROW(A23))),"") ->  | U34: =IFERROR(INDEX(AllMessages!$E$1:$E$260, SMALL(IF($W$11=AllMessages!$F$1:$F$260, ROW(AllMessages!$F$1:$F$260)-MIN(ROW(AllMessages!$F$1:$F$260))+1, ""), ROW(A23))),"") ->  | V34: =IFERROR(INDEX(AllMessages!$K$1:$K$260, SMALL(IF($W$11=AllMessages!$F$1:$F$260, ROW(AllMessages!$F$1:$F$260)-MIN(ROW(AllMessages!$F$1:$F$260))+1, ""), ROW(A23))),"") ->  | W34: =IFERROR(INDEX(AllMessages!$G$1:$G$260, SMALL(IF($W$11=AllMessages!$F$1:$F$260, ROW(AllMessages!$F$1:$F$260)-MIN(ROW(AllMessages!$F$1:$F$260))+1, ""), ROW(A23))),"") ->  | X34: =IFERROR(INDEX(AllMessages!$H$1:$H$260, SMALL(IF($W$11=AllMessages!$F$1:$F$260, ROW(AllMessages!$F$1:$F$260)-MIN(ROW(AllMessages!$F$1:$F$260))+1, ""), ROW(A23))),"") ->  | Y34: =IFERROR(INDEX(AllMessages!$I$1:$I$260, SMALL(IF($W$11=AllMessages!$F$1:$F$260, ROW(AllMessages!$F$1:$F$260)-MIN(ROW(AllMessages!$F$1:$F$260))+1, ""), ROW(A23))),"") ->  | Z34: =IFERROR(INDEX(AllMessages!$B$1:$B$260, SMALL(IF($W$11=AllMessages!$F$1:$F$260, ROW(AllMessages!$F$1:$F$260)-MIN(ROW(AllMessages!$F$1:$F$260))+1, ""), ROW(A23))),"") ->  | AA34: =IFERROR(INDEX(AllMessages!$C$1:$C$260, SMALL(IF($W$11=AllMessages!$F$1:$F$260, ROW(AllMessages!$F$1:$F$260)-MIN(ROW(AllMessages!$F$1:$F$260))+1, ""), ROW(A23))),"") ->  | AB34: 0
T35: =IFERROR(INDEX(AllMessages!$D$1:$D$260, SMALL(IF($W$11=AllMessages!$F$1:$F$260, ROW(AllMessages!$F$1:$F$260)-MIN(ROW(AllMessages!$F$1:$F$260))+1, ""), ROW(A24))),"") ->  | U35: =IFERROR(INDEX(AllMessages!$E$1:$E$260, SMALL(IF($W$11=AllMessages!$F$1:$F$260, ROW(AllMessages!$F$1:$F$260)-MIN(ROW(AllMessages!$F$1:$F$260))+1, ""), ROW(A24))),"") ->  | V35: =IFERROR(INDEX(AllMessages!$K$1:$K$260, SMALL(IF($W$11=AllMessages!$F$1:$F$260, ROW(AllMessages!$F$1:$F$260)-MIN(ROW(AllMessages!$F$1:$F$260))+1, ""), ROW(A24))),"") ->  | W35: =IFERROR(INDEX(AllMessages!$G$1:$G$260, SMALL(IF($W$11=AllMessages!$F$1:$F$260, ROW(AllMessages!$F$1:$F$260)-MIN(ROW(AllMessages!$F$1:$F$260))+1, ""), ROW(A24))),"") ->  | X35: =IFERROR(INDEX(AllMessages!$H$1:$H$260, SMALL(IF($W$11=AllMessages!$F$1:$F$260, ROW(AllMessages!$F$1:$F$260)-MIN(ROW(AllMessages!$F$1:$F$260))+1, ""), ROW(A24))),"") ->  | Y35: =IFERROR(INDEX(AllMessages!$I$1:$I$260, SMALL(IF($W$11=AllMessages!$F$1:$F$260, ROW(AllMessages!$F$1:$F$260)-MIN(ROW(AllMessages!$F$1:$F$260))+1, ""), ROW(A24))),"") ->  | Z35: =IFERROR(INDEX(AllMessages!$B$1:$B$260, SMALL(IF($W$11=AllMessages!$F$1:$F$260, ROW(AllMessages!$F$1:$F$260)-MIN(ROW(AllMessages!$F$1:$F$260))+1, ""), ROW(A24))),"") ->  | AA35: =IFERROR(INDEX(AllMessages!$C$1:$C$260, SMALL(IF($W$11=AllMessages!$F$1:$F$260, ROW(AllMessages!$F$1:$F$260)-MIN(ROW(AllMessages!$F$1:$F$260))+1, ""), ROW(A24))),"") ->  | AB35: 0
T36: =IFERROR(INDEX(AllMessages!$D$1:$D$260, SMALL(IF($W$11=AllMessages!$F$1:$F$260, ROW(AllMessages!$F$1:$F$260)-MIN(ROW(AllMessages!$F$1:$F$260))+1, ""), ROW(A25))),"") ->  | U36: =IFERROR(INDEX(AllMessages!$E$1:$E$260, SMALL(IF($W$11=AllMessages!$F$1:$F$260, ROW(AllMessages!$F$1:$F$260)-MIN(ROW(AllMessages!$F$1:$F$260))+1, ""), ROW(A25))),"") ->  | V36: =IFERROR(INDEX(AllMessages!$K$1:$K$260, SMALL(IF($W$11=AllMessages!$F$1:$F$260, ROW(AllMessages!$F$1:$F$260)-MIN(ROW(AllMessages!$F$1:$F$260))+1, ""), ROW(A25))),"") ->  | W36: =IFERROR(INDEX(AllMessages!$G$1:$G$260, SMALL(IF($W$11=AllMessages!$F$1:$F$260, ROW(AllMessages!$F$1:$F$260)-MIN(ROW(AllMessages!$F$1:$F$260))+1, ""), ROW(A25))),"") ->  | X36: =IFERROR(INDEX(AllMessages!$H$1:$H$260, SMALL(IF($W$11=AllMessages!$F$1:$F$260, ROW(AllMessages!$F$1:$F$260)-MIN(ROW(AllMessages!$F$1:$F$260))+1, ""), ROW(A25))),"") ->  | Y36: =IFERROR(INDEX(AllMessages!$I$1:$I$260, SMALL(IF($W$11=AllMessages!$F$1:$F$260, ROW(AllMessages!$F$1:$F$260)-MIN(ROW(AllMessages!$F$1:$F$260))+1, ""), ROW(A25))),"") ->  | Z36: =IFERROR(INDEX(AllMessages!$B$1:$B$260, SMALL(IF($W$11=AllMessages!$F$1:$F$260, ROW(AllMessages!$F$1:$F$260)-MIN(ROW(AllMessages!$F$1:$F$260))+1, ""), ROW(A25))),"") ->  | AA36: =IFERROR(INDEX(AllMessages!$C$1:$C$260, SMALL(IF($W$11=AllMessages!$F$1:$F$260, ROW(AllMessages!$F$1:$F$260)-MIN(ROW(AllMessages!$F$1:$F$260))+1, ""), ROW(A25))),"") ->  | AB36: 0
T37: =IFERROR(INDEX(AllMessages!$D$1:$D$260, SMALL(IF($W$11=AllMessages!$F$1:$F$260, ROW(AllMessages!$F$1:$F$260)-MIN(ROW(AllMessages!$F$1:$F$260))+1, ""), ROW(A26))),"") ->  | U37: =IFERROR(INDEX(AllMessages!$E$1:$E$260, SMALL(IF($W$11=AllMessages!$F$1:$F$260, ROW(AllMessages!$F$1:$F$260)-MIN(ROW(AllMessages!$F$1:$F$260))+1, ""), ROW(A26))),"") ->  | V37: =IFERROR(INDEX(AllMessages!$K$1:$K$260, SMALL(IF($W$11=AllMessages!$F$1:$F$260, ROW(AllMessages!$F$1:$F$260)-MIN(ROW(AllMessages!$F$1:$F$260))+1, ""), ROW(A26))),"") ->  | W37: =IFERROR(INDEX(AllMessages!$G$1:$G$260, SMALL(IF($W$11=AllMessages!$F$1:$F$260, ROW(AllMessages!$F$1:$F$260)-MIN(ROW(AllMessages!$F$1:$F$260))+1, ""), ROW(A26))),"") ->  | X37: =IFERROR(INDEX(AllMessages!$H$1:$H$260, SMALL(IF($W$11=AllMessages!$F$1:$F$260, ROW(AllMessages!$F$1:$F$260)-MIN(ROW(AllMessages!$F$1:$F$260))+1, ""), ROW(A26))),"") ->  | Y37: =IFERROR(INDEX(AllMessages!$I$1:$I$260, SMALL(IF($W$11=AllMessages!$F$1:$F$260, ROW(AllMessages!$F$1:$F$260)-MIN(ROW(AllMessages!$F$1:$F$260))+1, ""), ROW(A26))),"") ->  | Z37: =IFERROR(INDEX(AllMessages!$B$1:$B$260, SMALL(IF($W$11=AllMessages!$F$1:$F$260, ROW(AllMessages!$F$1:$F$260)-MIN(ROW(AllMessages!$F$1:$F$260))+1, ""), ROW(A26))),"") ->  | AA37: =IFERROR(INDEX(AllMessages!$C$1:$C$260, SMALL(IF($W$11=AllMessages!$F$1:$F$260, ROW(AllMessages!$F$1:$F$260)-MIN(ROW(AllMessages!$F$1:$F$260))+1, ""), ROW(A26))),"") ->  | AB37: 0
T38: =IFERROR(INDEX(AllMessages!$D$1:$D$260, SMALL(IF($W$11=AllMessages!$F$1:$F$260, ROW(AllMessages!$F$1:$F$260)-MIN(ROW(AllMessages!$F$1:$F$260))+1, ""), ROW(A27))),"") ->  | U38: =IFERROR(INDEX(AllMessages!$E$1:$E$260, SMALL(IF($W$11=AllMessages!$F$1:$F$260, ROW(AllMessages!$F$1:$F$260)-MIN(ROW(AllMessages!$F$1:$F$260))+1, ""), ROW(A27))),"") ->  | V38: =IFERROR(INDEX(AllMessages!$K$1:$K$260, SMALL(IF($W$11=AllMessages!$F$1:$F$260, ROW(AllMessages!$F$1:$F$260)-MIN(ROW(AllMessages!$F$1:$F$260))+1, ""), ROW(A27))),"") ->  | W38: =IFERROR(INDEX(AllMessages!$G$1:$G$260, SMALL(IF($W$11=AllMessages!$F$1:$F$260, ROW(AllMessages!$F$1:$F$260)-MIN(ROW(AllMessages!$F$1:$F$260))+1, ""), ROW(A27))),"") ->  | X38: =IFERROR(INDEX(AllMessages!$H$1:$H$260, SMALL(IF($W$11=AllMessages!$F$1:$F$260, ROW(AllMessages!$F$1:$F$260)-MIN(ROW(AllMessages!$F$1:$F$260))+1, ""), ROW(A27))),"") ->  | Y38: =IFERROR(INDEX(AllMessages!$I$1:$I$260, SMALL(IF($W$11=AllMessages!$F$1:$F$260, ROW(AllMessages!$F$1:$F$260)-MIN(ROW(AllMessages!$F$1:$F$260))+1, ""), ROW(A27))),"") ->  | Z38: =IFERROR(INDEX(AllMessages!$B$1:$B$260, SMALL(IF($W$11=AllMessages!$F$1:$F$260, ROW(AllMessages!$F$1:$F$260)-MIN(ROW(AllMessages!$F$1:$F$260))+1, ""), ROW(A27))),"") ->  | AA38: =IFERROR(INDEX(AllMessages!$C$1:$C$260, SMALL(IF($W$11=AllMessages!$F$1:$F$260, ROW(AllMessages!$F$1:$F$260)-MIN(ROW(AllMessages!$F$1:$F$260))+1, ""), ROW(A27))),"") ->  | AB38: 0
T39: =IFERROR(INDEX(AllMessages!$D$1:$D$260, SMALL(IF($W$11=AllMessages!$F$1:$F$260, ROW(AllMessages!$F$1:$F$260)-MIN(ROW(AllMessages!$F$1:$F$260))+1, ""), ROW(A28))),"") ->  | U39: =IFERROR(INDEX(AllMessages!$E$1:$E$260, SMALL(IF($W$11=AllMessages!$F$1:$F$260, ROW(AllMessages!$F$1:$F$260)-MIN(ROW(AllMessages!$F$1:$F$260))+1, ""), ROW(A28))),"") ->  | V39: =IFERROR(INDEX(AllMessages!$K$1:$K$260, SMALL(IF($W$11=AllMessages!$F$1:$F$260, ROW(AllMessages!$F$1:$F$260)-MIN(ROW(AllMessages!$F$1:$F$260))+1, ""), ROW(A28))),"") ->  | W39: =IFERROR(INDEX(AllMessages!$G$1:$G$260, SMALL(IF($W$11=AllMessages!$F$1:$F$260, ROW(AllMessages!$F$1:$F$260)-MIN(ROW(AllMessages!$F$1:$F$260))+1, ""), ROW(A28))),"") ->  | X39: =IFERROR(INDEX(AllMessages!$H$1:$H$260, SMALL(IF($W$11=AllMessages!$F$1:$F$260, ROW(AllMessages!$F$1:$F$260)-MIN(ROW(AllMessages!$F$1:$F$260))+1, ""), ROW(A28))),"") ->  | Y39: =IFERROR(INDEX(AllMessages!$I$1:$I$260, SMALL(IF($W$11=AllMessages!$F$1:$F$260, ROW(AllMessages!$F$1:$F$260)-MIN(ROW(AllMessages!$F$1:$F$260))+1, ""), ROW(A28))),"") ->  | Z39: =IFERROR(INDEX(AllMessages!$B$1:$B$260, SMALL(IF($W$11=AllMessages!$F$1:$F$260, ROW(AllMessages!$F$1:$F$260)-MIN(ROW(AllMessages!$F$1:$F$260))+1, ""), ROW(A28))),"") ->  | AA39: =IFERROR(INDEX(AllMessages!$C$1:$C$260, SMALL(IF($W$11=AllMessages!$F$1:$F$260, ROW(AllMessages!$F$1:$F$260)-MIN(ROW(AllMessages!$F$1:$F$260))+1, ""), ROW(A28))),"") ->  | AB39: 0
T40: =IFERROR(INDEX(AllMessages!$D$1:$D$260, SMALL(IF($W$11=AllMessages!$F$1:$F$260, ROW(AllMessages!$F$1:$F$260)-MIN(ROW(AllMessages!$F$1:$F$260))+1, ""), ROW(A29))),"") ->  | U40: =IFERROR(INDEX(AllMessages!$E$1:$E$260, SMALL(IF($W$11=AllMessages!$F$1:$F$260, ROW(AllMessages!$F$1:$F$260)-MIN(ROW(AllMessages!$F$1:$F$260))+1, ""), ROW(A29))),"") ->  | V40: =IFERROR(INDEX(AllMessages!$K$1:$K$260, SMALL(IF($W$11=AllMessages!$F$1:$F$260, ROW(AllMessages!$F$1:$F$260)-MIN(ROW(AllMessages!$F$1:$F$260))+1, ""), ROW(A29))),"") ->  | W40: =IFERROR(INDEX(AllMessages!$G$1:$G$260, SMALL(IF($W$11=AllMessages!$F$1:$F$260, ROW(AllMessages!$F$1:$F$260)-MIN(ROW(AllMessages!$F$1:$F$260))+1, ""), ROW(A29))),"") ->  | X40: =IFERROR(INDEX(AllMessages!$H$1:$H$260, SMALL(IF($W$11=AllMessages!$F$1:$F$260, ROW(AllMessages!$F$1:$F$260)-MIN(ROW(AllMessages!$F$1:$F$260))+1, ""), ROW(A29))),"") ->  | Y40: =IFERROR(INDEX(AllMessages!$I$1:$I$260, SMALL(IF($W$11=AllMessages!$F$1:$F$260, ROW(AllMessages!$F$1:$F$260)-MIN(ROW(AllMessages!$F$1:$F$260))+1, ""), ROW(A29))),"") ->  | Z40: =IFERROR(INDEX(AllMessages!$B$1:$B$260, SMALL(IF($W$11=AllMessages!$F$1:$F$260, ROW(AllMessages!$F$1:$F$260)-MIN(ROW(AllMessages!$F$1:$F$260))+1, ""), ROW(A29))),"") ->  | AA40: =IFERROR(INDEX(AllMessages!$C$1:$C$260, SMALL(IF($W$11=AllMessages!$F$1:$F$260, ROW(AllMessages!$F$1:$F$260)-MIN(ROW(AllMessages!$F$1:$F$260))+1, ""), ROW(A29))),"") ->  | AB40: 0
T41: =IFERROR(INDEX(AllMessages!$D$1:$D$260, SMALL(IF($W$11=AllMessages!$F$1:$F$260, ROW(AllMessages!$F$1:$F$260)-MIN(ROW(AllMessages!$F$1:$F$260))+1, ""), ROW(A30))),"") ->  | U41: =IFERROR(INDEX(AllMessages!$E$1:$E$260, SMALL(IF($W$11=AllMessages!$F$1:$F$260, ROW(AllMessages!$F$1:$F$260)-MIN(ROW(AllMessages!$F$1:$F$260))+1, ""), ROW(A30))),"") ->  | V41: =IFERROR(INDEX(AllMessages!$K$1:$K$260, SMALL(IF($W$11=AllMessages!$F$1:$F$260, ROW(AllMessages!$F$1:$F$260)-MIN(ROW(AllMessages!$F$1:$F$260))+1, ""), ROW(A30))),"") ->  | W41: =IFERROR(INDEX(AllMessages!$G$1:$G$260, SMALL(IF($W$11=AllMessages!$F$1:$F$260, ROW(AllMessages!$F$1:$F$260)-MIN(ROW(AllMessages!$F$1:$F$260))+1, ""), ROW(A30))),"") ->  | X41: =IFERROR(INDEX(AllMessages!$H$1:$H$260, SMALL(IF($W$11=AllMessages!$F$1:$F$260, ROW(AllMessages!$F$1:$F$260)-MIN(ROW(AllMessages!$F$1:$F$260))+1, ""), ROW(A30))),"") ->  | Y41: =IFERROR(INDEX(AllMessages!$I$1:$I$260, SMALL(IF($W$11=AllMessages!$F$1:$F$260, ROW(AllMessages!$F$1:$F$260)-MIN(ROW(AllMessages!$F$1:$F$260))+1, ""), ROW(A30))),"") ->  | Z41: =IFERROR(INDEX(AllMessages!$B$1:$B$260, SMALL(IF($W$11=AllMessages!$F$1:$F$260, ROW(AllMessages!$F$1:$F$260)-MIN(ROW(AllMessages!$F$1:$F$260))+1, ""), ROW(A30))),"") ->  | AA41: =IFERROR(INDEX(AllMessages!$C$1:$C$260, SMALL(IF($W$11=AllMessages!$F$1:$F$260, ROW(AllMessages!$F$1:$F$260)-MIN(ROW(AllMessages!$F$1:$F$260))+1, ""), ROW(A30))),"") ->  | AB41: 0
T42: =IFERROR(INDEX(AllMessages!$D$1:$D$260, SMALL(IF($W$11=AllMessages!$F$1:$F$260, ROW(AllMessages!$F$1:$F$260)-MIN(ROW(AllMessages!$F$1:$F$260))+1, ""), ROW(A31))),"") ->  | U42: =IFERROR(INDEX(AllMessages!$E$1:$E$260, SMALL(IF($W$11=AllMessages!$F$1:$F$260, ROW(AllMessages!$F$1:$F$260)-MIN(ROW(AllMessages!$F$1:$F$260))+1, ""), ROW(A31))),"") ->  | V42: =IFERROR(INDEX(AllMessages!$K$1:$K$260, SMALL(IF($W$11=AllMessages!$F$1:$F$260, ROW(AllMessages!$F$1:$F$260)-MIN(ROW(AllMessages!$F$1:$F$260))+1, ""), ROW(A31))),"") ->  | W42: =IFERROR(INDEX(AllMessages!$G$1:$G$260, SMALL(IF($W$11=AllMessages!$F$1:$F$260, ROW(AllMessages!$F$1:$F$260)-MIN(ROW(AllMessages!$F$1:$F$260))+1, ""), ROW(A31))),"") ->  | X42: =IFERROR(INDEX(AllMessages!$H$1:$H$260, SMALL(IF($W$11=AllMessages!$F$1:$F$260, ROW(AllMessages!$F$1:$F$260)-MIN(ROW(AllMessages!$F$1:$F$260))+1, ""), ROW(A31))),"") ->  | Y42: =IFERROR(INDEX(AllMessages!$I$1:$I$260, SMALL(IF($W$11=AllMessages!$F$1:$F$260, ROW(AllMessages!$F$1:$F$260)-MIN(ROW(AllMessages!$F$1:$F$260))+1, ""), ROW(A31))),"") ->  | Z42: =IFERROR(INDEX(AllMessages!$B$1:$B$260, SMALL(IF($W$11=AllMessages!$F$1:$F$260, ROW(AllMessages!$F$1:$F$260)-MIN(ROW(AllMessages!$F$1:$F$260))+1, ""), ROW(A31))),"") ->  | AA42: =IFERROR(INDEX(AllMessages!$C$1:$C$260, SMALL(IF($W$11=AllMessages!$F$1:$F$260, ROW(AllMessages!$F$1:$F$260)-MIN(ROW(AllMessages!$F$1:$F$260))+1, ""), ROW(A31))),"") ->  | AB42: 0
T43: =IFERROR(INDEX(AllMessages!$D$1:$D$260, SMALL(IF($W$11=AllMessages!$F$1:$F$260, ROW(AllMessages!$F$1:$F$260)-MIN(ROW(AllMessages!$F$1:$F$260))+1, ""), ROW(A32))),"") ->  | U43: =IFERROR(INDEX(AllMessages!$E$1:$E$260, SMALL(IF($W$11=AllMessages!$F$1:$F$260, ROW(AllMessages!$F$1:$F$260)-MIN(ROW(AllMessages!$F$1:$F$260))+1, ""), ROW(A32))),"") ->  | V43: =IFERROR(INDEX(AllMessages!$K$1:$K$260, SMALL(IF($W$11=AllMessages!$F$1:$F$260, ROW(AllMessages!$F$1:$F$260)-MIN(ROW(AllMessages!$F$1:$F$260))+1, ""), ROW(A32))),"") ->  | W43: =IFERROR(INDEX(AllMessages!$G$1:$G$260, SMALL(IF($W$11=AllMessages!$F$1:$F$260, ROW(AllMessages!$F$1:$F$260)-MIN(ROW(AllMessages!$F$1:$F$260))+1, ""), ROW(A32))),"") ->  | X43: =IFERROR(INDEX(AllMessages!$H$1:$H$260, SMALL(IF($W$11=AllMessages!$F$1:$F$260, ROW(AllMessages!$F$1:$F$260)-MIN(ROW(AllMessages!$F$1:$F$260))+1, ""), ROW(A32))),"") ->  | Y43: =IFERROR(INDEX(AllMessages!$I$1:$I$260, SMALL(IF($W$11=AllMessages!$F$1:$F$260, ROW(AllMessages!$F$1:$F$260)-MIN(ROW(AllMessages!$F$1:$F$260))+1, ""), ROW(A32))),"") ->  | Z43: =IFERROR(INDEX(AllMessages!$B$1:$B$260, SMALL(IF($W$11=AllMessages!$F$1:$F$260, ROW(AllMessages!$F$1:$F$260)-MIN(ROW(AllMessages!$F$1:$F$260))+1, ""), ROW(A32))),"") ->  | AA43: =IFERROR(INDEX(AllMessages!$C$1:$C$260, SMALL(IF($W$11=AllMessages!$F$1:$F$260, ROW(AllMessages!$F$1:$F$260)-MIN(ROW(AllMessages!$F$1:$F$260))+1, ""), ROW(A32))),"") ->  | AB43: 0
T44: =IFERROR(INDEX(AllMessages!$D$1:$D$260, SMALL(IF($W$11=AllMessages!$F$1:$F$260, ROW(AllMessages!$F$1:$F$260)-MIN(ROW(AllMessages!$F$1:$F$260))+1, ""), ROW(A33))),"") ->  | U44: =IFERROR(INDEX(AllMessages!$E$1:$E$260, SMALL(IF($W$11=AllMessages!$F$1:$F$260, ROW(AllMessages!$F$1:$F$260)-MIN(ROW(AllMessages!$F$1:$F$260))+1, ""), ROW(A33))),"") ->  | V44: =IFERROR(INDEX(AllMessages!$K$1:$K$260, SMALL(IF($W$11=AllMessages!$F$1:$F$260, ROW(AllMessages!$F$1:$F$260)-MIN(ROW(AllMessages!$F$1:$F$260))+1, ""), ROW(A33))),"") ->  | W44: =IFERROR(INDEX(AllMessages!$G$1:$G$260, SMALL(IF($W$11=AllMessages!$F$1:$F$260, ROW(AllMessages!$F$1:$F$260)-MIN(ROW(AllMessages!$F$1:$F$260))+1, ""), ROW(A33))),"") ->  | X44: =IFERROR(INDEX(AllMessages!$H$1:$H$260, SMALL(IF($W$11=AllMessages!$F$1:$F$260, ROW(AllMessages!$F$1:$F$260)-MIN(ROW(AllMessages!$F$1:$F$260))+1, ""), ROW(A33))),"") ->  | Y44: =IFERROR(INDEX(AllMessages!$I$1:$I$260, SMALL(IF($W$11=AllMessages!$F$1:$F$260, ROW(AllMessages!$F$1:$F$260)-MIN(ROW(AllMessages!$F$1:$F$260))+1, ""), ROW(A33))),"") ->  | Z44: =IFERROR(INDEX(AllMessages!$B$1:$B$260, SMALL(IF($W$11=AllMessages!$F$1:$F$260, ROW(AllMessages!$F$1:$F$260)-MIN(ROW(AllMessages!$F$1:$F$260))+1, ""), ROW(A33))),"") ->  | AA44: =IFERROR(INDEX(AllMessages!$C$1:$C$260, SMALL(IF($W$11=AllMessages!$F$1:$F$260, ROW(AllMessages!$F$1:$F$260)-MIN(ROW(AllMessages!$F$1:$F$260))+1, ""), ROW(A33))),"") ->  | AB44: 0
T45: =IFERROR(INDEX(AllMessages!$D$1:$D$260, SMALL(IF($W$11=AllMessages!$F$1:$F$260, ROW(AllMessages!$F$1:$F$260)-MIN(ROW(AllMessages!$F$1:$F$260))+1, ""), ROW(A34))),"") ->  | U45: =IFERROR(INDEX(AllMessages!$E$1:$E$260, SMALL(IF($W$11=AllMessages!$F$1:$F$260, ROW(AllMessages!$F$1:$F$260)-MIN(ROW(AllMessages!$F$1:$F$260))+1, ""), ROW(A34))),"") ->  | V45: =IFERROR(INDEX(AllMessages!$K$1:$K$260, SMALL(IF($W$11=AllMessages!$F$1:$F$260, ROW(AllMessages!$F$1:$F$260)-MIN(ROW(AllMessages!$F$1:$F$260))+1, ""), ROW(A34))),"") ->  | W45: =IFERROR(INDEX(AllMessages!$G$1:$G$260, SMALL(IF($W$11=AllMessages!$F$1:$F$260, ROW(AllMessages!$F$1:$F$260)-MIN(ROW(AllMessages!$F$1:$F$260))+1, ""), ROW(A34))),"") ->  | X45: =IFERROR(INDEX(AllMessages!$H$1:$H$260, SMALL(IF($W$11=AllMessages!$F$1:$F$260, ROW(AllMessages!$F$1:$F$260)-MIN(ROW(AllMessages!$F$1:$F$260))+1, ""), ROW(A34))),"") ->  | Y45: =IFERROR(INDEX(AllMessages!$I$1:$I$260, SMALL(IF($W$11=AllMessages!$F$1:$F$260, ROW(AllMessages!$F$1:$F$260)-MIN(ROW(AllMessages!$F$1:$F$260))+1, ""), ROW(A34))),"") ->  | Z45: =IFERROR(INDEX(AllMessages!$B$1:$B$260, SMALL(IF($W$11=AllMessages!$F$1:$F$260, ROW(AllMessages!$F$1:$F$260)-MIN(ROW(AllMessages!$F$1:$F$260))+1, ""), ROW(A34))),"") ->  | AA45: =IFERROR(INDEX(AllMessages!$C$1:$C$260, SMALL(IF($W$11=AllMessages!$F$1:$F$260, ROW(AllMessages!$F$1:$F$260)-MIN(ROW(AllMessages!$F$1:$F$260))+1, ""), ROW(A34))),"") ->  | AB45: 0
T46: =IFERROR(INDEX(AllMessages!$D$1:$D$260, SMALL(IF($W$11=AllMessages!$F$1:$F$260, ROW(AllMessages!$F$1:$F$260)-MIN(ROW(AllMessages!$F$1:$F$260))+1, ""), ROW(A35))),"") ->  | U46: =IFERROR(INDEX(AllMessages!$E$1:$E$260, SMALL(IF($W$11=AllMessages!$F$1:$F$260, ROW(AllMessages!$F$1:$F$260)-MIN(ROW(AllMessages!$F$1:$F$260))+1, ""), ROW(A35))),"") ->  | V46: =IFERROR(INDEX(AllMessages!$K$1:$K$260, SMALL(IF($W$11=AllMessages!$F$1:$F$260, ROW(AllMessages!$F$1:$F$260)-MIN(ROW(AllMessages!$F$1:$F$260))+1, ""), ROW(A35))),"") ->  | W46: =IFERROR(INDEX(AllMessages!$G$1:$G$260, SMALL(IF($W$11=AllMessages!$F$1:$F$260, ROW(AllMessages!$F$1:$F$260)-MIN(ROW(AllMessages!$F$1:$F$260))+1, ""), ROW(A35))),"") ->  | X46: =IFERROR(INDEX(AllMessages!$H$1:$H$260, SMALL(IF($W$11=AllMessages!$F$1:$F$260, ROW(AllMessages!$F$1:$F$260)-MIN(ROW(AllMessages!$F$1:$F$260))+1, ""), ROW(A35))),"") ->  | Y46: =IFERROR(INDEX(AllMessages!$I$1:$I$260, SMALL(IF($W$11=AllMessages!$F$1:$F$260, ROW(AllMessages!$F$1:$F$260)-MIN(ROW(AllMessages!$F$1:$F$260))+1, ""), ROW(A35))),"") ->  | Z46: =IFERROR(INDEX(AllMessages!$B$1:$B$260, SMALL(IF($W$11=AllMessages!$F$1:$F$260, ROW(AllMessages!$F$1:$F$260)-MIN(ROW(AllMessages!$F$1:$F$260))+1, ""), ROW(A35))),"") ->  | AA46: =IFERROR(INDEX(AllMessages!$C$1:$C$260, SMALL(IF($W$11=AllMessages!$F$1:$F$260, ROW(AllMessages!$F$1:$F$260)-MIN(ROW(AllMessages!$F$1:$F$260))+1, ""), ROW(A35))),"") ->  | AB46: 0
T47: =IFERROR(INDEX(AllMessages!$D$1:$D$260, SMALL(IF($W$11=AllMessages!$F$1:$F$260, ROW(AllMessages!$F$1:$F$260)-MIN(ROW(AllMessages!$F$1:$F$260))+1, ""), ROW(A36))),"") ->  | U47: =IFERROR(INDEX(AllMessages!$E$1:$E$260, SMALL(IF($W$11=AllMessages!$F$1:$F$260, ROW(AllMessages!$F$1:$F$260)-MIN(ROW(AllMessages!$F$1:$F$260))+1, ""), ROW(A36))),"") ->  | V47: =IFERROR(INDEX(AllMessages!$K$1:$K$260, SMALL(IF($W$11=AllMessages!$F$1:$F$260, ROW(AllMessages!$F$1:$F$260)-MIN(ROW(AllMessages!$F$1:$F$260))+1, ""), ROW(A36))),"") ->  | W47: =IFERROR(INDEX(AllMessages!$G$1:$G$260, SMALL(IF($W$11=AllMessages!$F$1:$F$260, ROW(AllMessages!$F$1:$F$260)-MIN(ROW(AllMessages!$F$1:$F$260))+1, ""), ROW(A36))),"") ->  | X47: =IFERROR(INDEX(AllMessages!$H$1:$H$260, SMALL(IF($W$11=AllMessages!$F$1:$F$260, ROW(AllMessages!$F$1:$F$260)-MIN(ROW(AllMessages!$F$1:$F$260))+1, ""), ROW(A36))),"") ->  | Y47: =IFERROR(INDEX(AllMessages!$I$1:$I$260, SMALL(IF($W$11=AllMessages!$F$1:$F$260, ROW(AllMessages!$F$1:$F$260)-MIN(ROW(AllMessages!$F$1:$F$260))+1, ""), ROW(A36))),"") ->  | Z47: =IFERROR(INDEX(AllMessages!$B$1:$B$260, SMALL(IF($W$11=AllMessages!$F$1:$F$260, ROW(AllMessages!$F$1:$F$260)-MIN(ROW(AllMessages!$F$1:$F$260))+1, ""), ROW(A36))),"") ->  | AA47: =IFERROR(INDEX(AllMessages!$C$1:$C$260, SMALL(IF($W$11=AllMessages!$F$1:$F$260, ROW(AllMessages!$F$1:$F$260)-MIN(ROW(AllMessages!$F$1:$F$260))+1, ""), ROW(A36))),"") ->  | AB47: 0
T48: =IFERROR(INDEX(AllMessages!$D$1:$D$260, SMALL(IF($W$11=AllMessages!$F$1:$F$260, ROW(AllMessages!$F$1:$F$260)-MIN(ROW(AllMessages!$F$1:$F$260))+1, ""), ROW(A37))),"") ->  | U48: =IFERROR(INDEX(AllMessages!$E$1:$E$260, SMALL(IF($W$11=AllMessages!$F$1:$F$260, ROW(AllMessages!$F$1:$F$260)-MIN(ROW(AllMessages!$F$1:$F$260))+1, ""), ROW(A37))),"") ->  | V48: =IFERROR(INDEX(AllMessages!$K$1:$K$260, SMALL(IF($W$11=AllMessages!$F$1:$F$260, ROW(AllMessages!$F$1:$F$260)-MIN(ROW(AllMessages!$F$1:$F$260))+1, ""), ROW(A37))),"") ->  | W48: =IFERROR(INDEX(AllMessages!$G$1:$G$260, SMALL(IF($W$11=AllMessages!$F$1:$F$260, ROW(AllMessages!$F$1:$F$260)-MIN(ROW(AllMessages!$F$1:$F$260))+1, ""), ROW(A37))),"") ->  | X48: =IFERROR(INDEX(AllMessages!$H$1:$H$260, SMALL(IF($W$11=AllMessages!$F$1:$F$260, ROW(AllMessages!$F$1:$F$260)-MIN(ROW(AllMessages!$F$1:$F$260))+1, ""), ROW(A37))),"") ->  | Y48: =IFERROR(INDEX(AllMessages!$I$1:$I$260, SMALL(IF($W$11=AllMessages!$F$1:$F$260, ROW(AllMessages!$F$1:$F$260)-MIN(ROW(AllMessages!$F$1:$F$260))+1, ""), ROW(A37))),"") ->  | Z48: =IFERROR(INDEX(AllMessages!$B$1:$B$260, SMALL(IF($W$11=AllMessages!$F$1:$F$260, ROW(AllMessages!$F$1:$F$260)-MIN(ROW(AllMessages!$F$1:$F$260))+1, ""), ROW(A37))),"") ->  | AA48: =IFERROR(INDEX(AllMessages!$C$1:$C$260, SMALL(IF($W$11=AllMessages!$F$1:$F$260, ROW(AllMessages!$F$1:$F$260)-MIN(ROW(AllMessages!$F$1:$F$260))+1, ""), ROW(A37))),"") ->  | AB48: 0
T49: =IFERROR(INDEX(AllMessages!$D$1:$D$260, SMALL(IF($W$11=AllMessages!$F$1:$F$260, ROW(AllMessages!$F$1:$F$260)-MIN(ROW(AllMessages!$F$1:$F$260))+1, ""), ROW(A38))),"") ->  | U49: =IFERROR(INDEX(AllMessages!$E$1:$E$260, SMALL(IF($W$11=AllMessages!$F$1:$F$260, ROW(AllMessages!$F$1:$F$260)-MIN(ROW(AllMessages!$F$1:$F$260))+1, ""), ROW(A38))),"") ->  | V49: =IFERROR(INDEX(AllMessages!$K$1:$K$260, SMALL(IF($W$11=AllMessages!$F$1:$F$260, ROW(AllMessages!$F$1:$F$260)-MIN(ROW(AllMessages!$F$1:$F$260))+1, ""), ROW(A38))),"") ->  | W49: =IFERROR(INDEX(AllMessages!$G$1:$G$260, SMALL(IF($W$11=AllMessages!$F$1:$F$260, ROW(AllMessages!$F$1:$F$260)-MIN(ROW(AllMessages!$F$1:$F$260))+1, ""), ROW(A38))),"") ->  | X49: =IFERROR(INDEX(AllMessages!$H$1:$H$260, SMALL(IF($W$11=AllMessages!$F$1:$F$260, ROW(AllMessages!$F$1:$F$260)-MIN(ROW(AllMessages!$F$1:$F$260))+1, ""), ROW(A38))),"") ->  | Y49: =IFERROR(INDEX(AllMessages!$I$1:$I$260, SMALL(IF($W$11=AllMessages!$F$1:$F$260, ROW(AllMessages!$F$1:$F$260)-MIN(ROW(AllMessages!$F$1:$F$260))+1, ""), ROW(A38))),"") ->  | Z49: =IFERROR(INDEX(AllMessages!$B$1:$B$260, SMALL(IF($W$11=AllMessages!$F$1:$F$260, ROW(AllMessages!$F$1:$F$260)-MIN(ROW(AllMessages!$F$1:$F$260))+1, ""), ROW(A38))),"") ->  | AA49: =IFERROR(INDEX(AllMessages!$C$1:$C$260, SMALL(IF($W$11=AllMessages!$F$1:$F$260, ROW(AllMessages!$F$1:$F$260)-MIN(ROW(AllMessages!$F$1:$F$260))+1, ""), ROW(A38))),"") ->  | AB49: 0
T50: =IFERROR(INDEX(AllMessages!$D$1:$D$260, SMALL(IF($W$11=AllMessages!$F$1:$F$260, ROW(AllMessages!$F$1:$F$260)-MIN(ROW(AllMessages!$F$1:$F$260))+1, ""), ROW(A39))),"") ->  | U50: =IFERROR(INDEX(AllMessages!$E$1:$E$260, SMALL(IF($W$11=AllMessages!$F$1:$F$260, ROW(AllMessages!$F$1:$F$260)-MIN(ROW(AllMessages!$F$1:$F$260))+1, ""), ROW(A39))),"") ->  | V50: =IFERROR(INDEX(AllMessages!$K$1:$K$260, SMALL(IF($W$11=AllMessages!$F$1:$F$260, ROW(AllMessages!$F$1:$F$260)-MIN(ROW(AllMessages!$F$1:$F$260))+1, ""), ROW(A39))),"") ->  | W50: =IFERROR(INDEX(AllMessages!$G$1:$G$260, SMALL(IF($W$11=AllMessages!$F$1:$F$260, ROW(AllMessages!$F$1:$F$260)-MIN(ROW(AllMessages!$F$1:$F$260))+1, ""), ROW(A39))),"") ->  | X50: =IFERROR(INDEX(AllMessages!$H$1:$H$260, SMALL(IF($W$11=AllMessages!$F$1:$F$260, ROW(AllMessages!$F$1:$F$260)-MIN(ROW(AllMessages!$F$1:$F$260))+1, ""), ROW(A39))),"") ->  | Y50: =IFERROR(INDEX(AllMessages!$I$1:$I$260, SMALL(IF($W$11=AllMessages!$F$1:$F$260, ROW(AllMessages!$F$1:$F$260)-MIN(ROW(AllMessages!$F$1:$F$260))+1, ""), ROW(A39))),"") ->  | Z50: =IFERROR(INDEX(AllMessages!$B$1:$B$260, SMALL(IF($W$11=AllMessages!$F$1:$F$260, ROW(AllMessages!$F$1:$F$260)-MIN(ROW(AllMessages!$F$1:$F$260))+1, ""), ROW(A39))),"") ->  | AA50: =IFERROR(INDEX(AllMessages!$C$1:$C$260, SMALL(IF($W$11=AllMessages!$F$1:$F$260, ROW(AllMessages!$F$1:$F$260)-MIN(ROW(AllMessages!$F$1:$F$260))+1, ""), ROW(A39))),"") ->  | AB50: 0
T51: =IFERROR(INDEX(AllMessages!$D$1:$D$260, SMALL(IF($W$11=AllMessages!$F$1:$F$260, ROW(AllMessages!$F$1:$F$260)-MIN(ROW(AllMessages!$F$1:$F$260))+1, ""), ROW(A40))),"") ->  | U51: =IFERROR(INDEX(AllMessages!$E$1:$E$260, SMALL(IF($W$11=AllMessages!$F$1:$F$260, ROW(AllMessages!$F$1:$F$260)-MIN(ROW(AllMessages!$F$1:$F$260))+1, ""), ROW(A40))),"") ->  | V51: =IFERROR(INDEX(AllMessages!$K$1:$K$260, SMALL(IF($W$11=AllMessages!$F$1:$F$260, ROW(AllMessages!$F$1:$F$260)-MIN(ROW(AllMessages!$F$1:$F$260))+1, ""), ROW(A40))),"") ->  | W51: =IFERROR(INDEX(AllMessages!$G$1:$G$260, SMALL(IF($W$11=AllMessages!$F$1:$F$260, ROW(AllMessages!$F$1:$F$260)-MIN(ROW(AllMessages!$F$1:$F$260))+1, ""), ROW(A40))),"") ->  | X51: =IFERROR(INDEX(AllMessages!$H$1:$H$260, SMALL(IF($W$11=AllMessages!$F$1:$F$260, ROW(AllMessages!$F$1:$F$260)-MIN(ROW(AllMessages!$F$1:$F$260))+1, ""), ROW(A40))),"") ->  | Y51: =IFERROR(INDEX(AllMessages!$I$1:$I$260, SMALL(IF($W$11=AllMessages!$F$1:$F$260, ROW(AllMessages!$F$1:$F$260)-MIN(ROW(AllMessages!$F$1:$F$260))+1, ""), ROW(A40))),"") ->  | Z51: =IFERROR(INDEX(AllMessages!$B$1:$B$260, SMALL(IF($W$11=AllMessages!$F$1:$F$260, ROW(AllMessages!$F$1:$F$260)-MIN(ROW(AllMessages!$F$1:$F$260))+1, ""), ROW(A40))),"") ->  | AA51: =IFERROR(INDEX(AllMessages!$C$1:$C$260, SMALL(IF($W$11=AllMessages!$F$1:$F$260, ROW(AllMessages!$F$1:$F$260)-MIN(ROW(AllMessages!$F$1:$F$260))+1, ""), ROW(A40))),"") ->  | AB51: 0
T52: =IFERROR(INDEX(AllMessages!$D$1:$D$260, SMALL(IF($W$11=AllMessages!$F$1:$F$260, ROW(AllMessages!$F$1:$F$260)-MIN(ROW(AllMessages!$F$1:$F$260))+1, ""), ROW(A41))),"") ->  | U52: =IFERROR(INDEX(AllMessages!$E$1:$E$260, SMALL(IF($W$11=AllMessages!$F$1:$F$260, ROW(AllMessages!$F$1:$F$260)-MIN(ROW(AllMessages!$F$1:$F$260))+1, ""), ROW(A41))),"") ->  | V52: =IFERROR(INDEX(AllMessages!$K$1:$K$260, SMALL(IF($W$11=AllMessages!$F$1:$F$260, ROW(AllMessages!$F$1:$F$260)-MIN(ROW(AllMessages!$F$1:$F$260))+1, ""), ROW(A41))),"") ->  | W52: =IFERROR(INDEX(AllMessages!$G$1:$G$260, SMALL(IF($W$11=AllMessages!$F$1:$F$260, ROW(AllMessages!$F$1:$F$260)-MIN(ROW(AllMessages!$F$1:$F$260))+1, ""), ROW(A41))),"") ->  | X52: =IFERROR(INDEX(AllMessages!$H$1:$H$260, SMALL(IF($W$11=AllMessages!$F$1:$F$260, ROW(AllMessages!$F$1:$F$260)-MIN(ROW(AllMessages!$F$1:$F$260))+1, ""), ROW(A41))),"") ->  | Y52: =IFERROR(INDEX(AllMessages!$I$1:$I$260, SMALL(IF($W$11=AllMessages!$F$1:$F$260, ROW(AllMessages!$F$1:$F$260)-MIN(ROW(AllMessages!$F$1:$F$260))+1, ""), ROW(A41))),"") ->  | Z52: =IFERROR(INDEX(AllMessages!$B$1:$B$260, SMALL(IF($W$11=AllMessages!$F$1:$F$260, ROW(AllMessages!$F$1:$F$260)-MIN(ROW(AllMessages!$F$1:$F$260))+1, ""), ROW(A41))),"") ->  | AA52: =IFERROR(INDEX(AllMessages!$C$1:$C$260, SMALL(IF($W$11=AllMessages!$F$1:$F$260, ROW(AllMessages!$F$1:$F$260)-MIN(ROW(AllMessages!$F$1:$F$260))+1, ""), ROW(A41))),"") ->  | AB52: 0
T53: =IFERROR(INDEX(AllMessages!$D$1:$D$260, SMALL(IF($W$11=AllMessages!$F$1:$F$260, ROW(AllMessages!$F$1:$F$260)-MIN(ROW(AllMessages!$F$1:$F$260))+1, ""), ROW(A42))),"") ->  | U53: =IFERROR(INDEX(AllMessages!$E$1:$E$260, SMALL(IF($W$11=AllMessages!$F$1:$F$260, ROW(AllMessages!$F$1:$F$260)-MIN(ROW(AllMessages!$F$1:$F$260))+1, ""), ROW(A42))),"") ->  | V53: =IFERROR(INDEX(AllMessages!$K$1:$K$260, SMALL(IF($W$11=AllMessages!$F$1:$F$260, ROW(AllMessages!$F$1:$F$260)-MIN(ROW(AllMessages!$F$1:$F$260))+1, ""), ROW(A42))),"") ->  | W53: =IFERROR(INDEX(AllMessages!$G$1:$G$260, SMALL(IF($W$11=AllMessages!$F$1:$F$260, ROW(AllMessages!$F$1:$F$260)-MIN(ROW(AllMessages!$F$1:$F$260))+1, ""), ROW(A42))),"") ->  | X53: =IFERROR(INDEX(AllMessages!$H$1:$H$260, SMALL(IF($W$11=AllMessages!$F$1:$F$260, ROW(AllMessages!$F$1:$F$260)-MIN(ROW(AllMessages!$F$1:$F$260))+1, ""), ROW(A42))),"") ->  | Y53: =IFERROR(INDEX(AllMessages!$I$1:$I$260, SMALL(IF($W$11=AllMessages!$F$1:$F$260, ROW(AllMessages!$F$1:$F$260)-MIN(ROW(AllMessages!$F$1:$F$260))+1, ""), ROW(A42))),"") ->  | Z53: =IFERROR(INDEX(AllMessages!$B$1:$B$260, SMALL(IF($W$11=AllMessages!$F$1:$F$260, ROW(AllMessages!$F$1:$F$260)-MIN(ROW(AllMessages!$F$1:$F$260))+1, ""), ROW(A42))),"") ->  | AA53: =IFERROR(INDEX(AllMessages!$C$1:$C$260, SMALL(IF($W$11=AllMessages!$F$1:$F$260, ROW(AllMessages!$F$1:$F$260)-MIN(ROW(AllMessages!$F$1:$F$260))+1, ""), ROW(A42))),"") ->  | AB53: 0
T54: =IFERROR(INDEX(AllMessages!$D$1:$D$260, SMALL(IF($W$11=AllMessages!$F$1:$F$260, ROW(AllMessages!$F$1:$F$260)-MIN(ROW(AllMessages!$F$1:$F$260))+1, ""), ROW(A43))),"") ->  | U54: =IFERROR(INDEX(AllMessages!$E$1:$E$260, SMALL(IF($W$11=AllMessages!$F$1:$F$260, ROW(AllMessages!$F$1:$F$260)-MIN(ROW(AllMessages!$F$1:$F$260))+1, ""), ROW(A43))),"") ->  | V54: =IFERROR(INDEX(AllMessages!$K$1:$K$260, SMALL(IF($W$11=AllMessages!$F$1:$F$260, ROW(AllMessages!$F$1:$F$260)-MIN(ROW(AllMessages!$F$1:$F$260))+1, ""), ROW(A43))),"") ->  | W54: =IFERROR(INDEX(AllMessages!$G$1:$G$260, SMALL(IF($W$11=AllMessages!$F$1:$F$260, ROW(AllMessages!$F$1:$F$260)-MIN(ROW(AllMessages!$F$1:$F$260))+1, ""), ROW(A43))),"") ->  | X54: =IFERROR(INDEX(AllMessages!$H$1:$H$260, SMALL(IF($W$11=AllMessages!$F$1:$F$260, ROW(AllMessages!$F$1:$F$260)-MIN(ROW(AllMessages!$F$1:$F$260))+1, ""), ROW(A43))),"") ->  | Y54: =IFERROR(INDEX(AllMessages!$I$1:$I$260, SMALL(IF($W$11=AllMessages!$F$1:$F$260, ROW(AllMessages!$F$1:$F$260)-MIN(ROW(AllMessages!$F$1:$F$260))+1, ""), ROW(A43))),"") ->  | Z54: =IFERROR(INDEX(AllMessages!$B$1:$B$260, SMALL(IF($W$11=AllMessages!$F$1:$F$260, ROW(AllMessages!$F$1:$F$260)-MIN(ROW(AllMessages!$F$1:$F$260))+1, ""), ROW(A43))),"") ->  | AA54: =IFERROR(INDEX(AllMessages!$C$1:$C$260, SMALL(IF($W$11=AllMessages!$F$1:$F$260, ROW(AllMessages!$F$1:$F$260)-MIN(ROW(AllMessages!$F$1:$F$260))+1, ""), ROW(A43))),"") ->  | AB54: 0
T55: =IFERROR(INDEX(AllMessages!$D$1:$D$260, SMALL(IF($W$11=AllMessages!$F$1:$F$260, ROW(AllMessages!$F$1:$F$260)-MIN(ROW(AllMessages!$F$1:$F$260))+1, ""), ROW(A44))),"") ->  | U55: =IFERROR(INDEX(AllMessages!$E$1:$E$260, SMALL(IF($W$11=AllMessages!$F$1:$F$260, ROW(AllMessages!$F$1:$F$260)-MIN(ROW(AllMessages!$F$1:$F$260))+1, ""), ROW(A44))),"") ->  | V55: =IFERROR(INDEX(AllMessages!$K$1:$K$260, SMALL(IF($W$11=AllMessages!$F$1:$F$260, ROW(AllMessages!$F$1:$F$260)-MIN(ROW(AllMessages!$F$1:$F$260))+1, ""), ROW(A44))),"") ->  | W55: =IFERROR(INDEX(AllMessages!$G$1:$G$260, SMALL(IF($W$11=AllMessages!$F$1:$F$260, ROW(AllMessages!$F$1:$F$260)-MIN(ROW(AllMessages!$F$1:$F$260))+1, ""), ROW(A44))),"") ->  | X55: =IFERROR(INDEX(AllMessages!$H$1:$H$260, SMALL(IF($W$11=AllMessages!$F$1:$F$260, ROW(AllMessages!$F$1:$F$260)-MIN(ROW(AllMessages!$F$1:$F$260))+1, ""), ROW(A44))),"") ->  | Y55: =IFERROR(INDEX(AllMessages!$I$1:$I$260, SMALL(IF($W$11=AllMessages!$F$1:$F$260, ROW(AllMessages!$F$1:$F$260)-MIN(ROW(AllMessages!$F$1:$F$260))+1, ""), ROW(A44))),"") ->  | Z55: =IFERROR(INDEX(AllMessages!$B$1:$B$260, SMALL(IF($W$11=AllMessages!$F$1:$F$260, ROW(AllMessages!$F$1:$F$260)-MIN(ROW(AllMessages!$F$1:$F$260))+1, ""), ROW(A44))),"") ->  | AA55: =IFERROR(INDEX(AllMessages!$C$1:$C$260, SMALL(IF($W$11=AllMessages!$F$1:$F$260, ROW(AllMessages!$F$1:$F$260)-MIN(ROW(AllMessages!$F$1:$F$260))+1, ""), ROW(A44))),"") ->  | AB55: 0
T56: =IFERROR(INDEX(AllMessages!$D$1:$D$260, SMALL(IF($W$11=AllMessages!$F$1:$F$260, ROW(AllMessages!$F$1:$F$260)-MIN(ROW(AllMessages!$F$1:$F$260))+1, ""), ROW(A45))),"") ->  | U56: =IFERROR(INDEX(AllMessages!$E$1:$E$260, SMALL(IF($W$11=AllMessages!$F$1:$F$260, ROW(AllMessages!$F$1:$F$260)-MIN(ROW(AllMessages!$F$1:$F$260))+1, ""), ROW(A45))),"") ->  | V56: =IFERROR(INDEX(AllMessages!$K$1:$K$260, SMALL(IF($W$11=AllMessages!$F$1:$F$260, ROW(AllMessages!$F$1:$F$260)-MIN(ROW(AllMessages!$F$1:$F$260))+1, ""), ROW(A45))),"") ->  | W56: =IFERROR(INDEX(AllMessages!$G$1:$G$260, SMALL(IF($W$11=AllMessages!$F$1:$F$260, ROW(AllMessages!$F$1:$F$260)-MIN(ROW(AllMessages!$F$1:$F$260))+1, ""), ROW(A45))),"") ->  | X56: =IFERROR(INDEX(AllMessages!$H$1:$H$260, SMALL(IF($W$11=AllMessages!$F$1:$F$260, ROW(AllMessages!$F$1:$F$260)-MIN(ROW(AllMessages!$F$1:$F$260))+1, ""), ROW(A45))),"") ->  | Y56: =IFERROR(INDEX(AllMessages!$I$1:$I$260, SMALL(IF($W$11=AllMessages!$F$1:$F$260, ROW(AllMessages!$F$1:$F$260)-MIN(ROW(AllMessages!$F$1:$F$260))+1, ""), ROW(A45))),"") ->  | Z56: =IFERROR(INDEX(AllMessages!$B$1:$B$260, SMALL(IF($W$11=AllMessages!$F$1:$F$260, ROW(AllMessages!$F$1:$F$260)-MIN(ROW(AllMessages!$F$1:$F$260))+1, ""), ROW(A45))),"") ->  | AA56: =IFERROR(INDEX(AllMessages!$C$1:$C$260, SMALL(IF($W$11=AllMessages!$F$1:$F$260, ROW(AllMessages!$F$1:$F$260)-MIN(ROW(AllMessages!$F$1:$F$260))+1, ""), ROW(A45))),"") ->  | AB56: 0
T57: =IFERROR(INDEX(AllMessages!$D$1:$D$260, SMALL(IF($W$11=AllMessages!$F$1:$F$260, ROW(AllMessages!$F$1:$F$260)-MIN(ROW(AllMessages!$F$1:$F$260))+1, ""), ROW(A46))),"") ->  | U57: =IFERROR(INDEX(AllMessages!$E$1:$E$260, SMALL(IF($W$11=AllMessages!$F$1:$F$260, ROW(AllMessages!$F$1:$F$260)-MIN(ROW(AllMessages!$F$1:$F$260))+1, ""), ROW(A46))),"") ->  | V57: =IFERROR(INDEX(AllMessages!$K$1:$K$260, SMALL(IF($W$11=AllMessages!$F$1:$F$260, ROW(AllMessages!$F$1:$F$260)-MIN(ROW(AllMessages!$F$1:$F$260))+1, ""), ROW(A46))),"") ->  | W57: =IFERROR(INDEX(AllMessages!$G$1:$G$260, SMALL(IF($W$11=AllMessages!$F$1:$F$260, ROW(AllMessages!$F$1:$F$260)-MIN(ROW(AllMessages!$F$1:$F$260))+1, ""), ROW(A46))),"") ->  | X57: =IFERROR(INDEX(AllMessages!$H$1:$H$260, SMALL(IF($W$11=AllMessages!$F$1:$F$260, ROW(AllMessages!$F$1:$F$260)-MIN(ROW(AllMessages!$F$1:$F$260))+1, ""), ROW(A46))),"") ->  | Y57: =IFERROR(INDEX(AllMessages!$I$1:$I$260, SMALL(IF($W$11=AllMessages!$F$1:$F$260, ROW(AllMessages!$F$1:$F$260)-MIN(ROW(AllMessages!$F$1:$F$260))+1, ""), ROW(A46))),"") ->  | Z57: =IFERROR(INDEX(AllMessages!$B$1:$B$260, SMALL(IF($W$11=AllMessages!$F$1:$F$260, ROW(AllMessages!$F$1:$F$260)-MIN(ROW(AllMessages!$F$1:$F$260))+1, ""), ROW(A46))),"") ->  | AA57: =IFERROR(INDEX(AllMessages!$C$1:$C$260, SMALL(IF($W$11=AllMessages!$F$1:$F$260, ROW(AllMessages!$F$1:$F$260)-MIN(ROW(AllMessages!$F$1:$F$260))+1, ""), ROW(A46))),"") ->  | AB57: 0
T58: =IFERROR(INDEX(AllMessages!$D$1:$D$260, SMALL(IF($W$11=AllMessages!$F$1:$F$260, ROW(AllMessages!$F$1:$F$260)-MIN(ROW(AllMessages!$F$1:$F$260))+1, ""), ROW(A47))),"") ->  | U58: =IFERROR(INDEX(AllMessages!$E$1:$E$260, SMALL(IF($W$11=AllMessages!$F$1:$F$260, ROW(AllMessages!$F$1:$F$260)-MIN(ROW(AllMessages!$F$1:$F$260))+1, ""), ROW(A47))),"") ->  | V58: =IFERROR(INDEX(AllMessages!$K$1:$K$260, SMALL(IF($W$11=AllMessages!$F$1:$F$260, ROW(AllMessages!$F$1:$F$260)-MIN(ROW(AllMessages!$F$1:$F$260))+1, ""), ROW(A47))),"") ->  | W58: =IFERROR(INDEX(AllMessages!$G$1:$G$260, SMALL(IF($W$11=AllMessages!$F$1:$F$260, ROW(AllMessages!$F$1:$F$260)-MIN(ROW(AllMessages!$F$1:$F$260))+1, ""), ROW(A47))),"") ->  | X58: =IFERROR(INDEX(AllMessages!$H$1:$H$260, SMALL(IF($W$11=AllMessages!$F$1:$F$260, ROW(AllMessages!$F$1:$F$260)-MIN(ROW(AllMessages!$F$1:$F$260))+1, ""), ROW(A47))),"") ->  | Y58: =IFERROR(INDEX(AllMessages!$I$1:$I$260, SMALL(IF($W$11=AllMessages!$F$1:$F$260, ROW(AllMessages!$F$1:$F$260)-MIN(ROW(AllMessages!$F$1:$F$260))+1, ""), ROW(A47))),"") ->  | Z58: =IFERROR(INDEX(AllMessages!$B$1:$B$260, SMALL(IF($W$11=AllMessages!$F$1:$F$260, ROW(AllMessages!$F$1:$F$260)-MIN(ROW(AllMessages!$F$1:$F$260))+1, ""), ROW(A47))),"") ->  | AA58: =IFERROR(INDEX(AllMessages!$C$1:$C$260, SMALL(IF($W$11=AllMessages!$F$1:$F$260, ROW(AllMessages!$F$1:$F$260)-MIN(ROW(AllMessages!$F$1:$F$260))+1, ""), ROW(A47))),"") ->  | AB58: 0
T59: =IFERROR(INDEX(AllMessages!$D$1:$D$260, SMALL(IF($W$11=AllMessages!$F$1:$F$260, ROW(AllMessages!$F$1:$F$260)-MIN(ROW(AllMessages!$F$1:$F$260))+1, ""), ROW(A48))),"") ->  | U59: =IFERROR(INDEX(AllMessages!$E$1:$E$260, SMALL(IF($W$11=AllMessages!$F$1:$F$260, ROW(AllMessages!$F$1:$F$260)-MIN(ROW(AllMessages!$F$1:$F$260))+1, ""), ROW(A48))),"") ->  | V59: =IFERROR(INDEX(AllMessages!$K$1:$K$260, SMALL(IF($W$11=AllMessages!$F$1:$F$260, ROW(AllMessages!$F$1:$F$260)-MIN(ROW(AllMessages!$F$1:$F$260))+1, ""), ROW(A48))),"") ->  | W59: =IFERROR(INDEX(AllMessages!$G$1:$G$260, SMALL(IF($W$11=AllMessages!$F$1:$F$260, ROW(AllMessages!$F$1:$F$260)-MIN(ROW(AllMessages!$F$1:$F$260))+1, ""), ROW(A48))),"") ->  | X59: =IFERROR(INDEX(AllMessages!$H$1:$H$260, SMALL(IF($W$11=AllMessages!$F$1:$F$260, ROW(AllMessages!$F$1:$F$260)-MIN(ROW(AllMessages!$F$1:$F$260))+1, ""), ROW(A48))),"") ->  | Y59: =IFERROR(INDEX(AllMessages!$I$1:$I$260, SMALL(IF($W$11=AllMessages!$F$1:$F$260, ROW(AllMessages!$F$1:$F$260)-MIN(ROW(AllMessages!$F$1:$F$260))+1, ""), ROW(A48))),"") ->  | Z59: =IFERROR(INDEX(AllMessages!$B$1:$B$260, SMALL(IF($W$11=AllMessages!$F$1:$F$260, ROW(AllMessages!$F$1:$F$260)-MIN(ROW(AllMessages!$F$1:$F$260))+1, ""), ROW(A48))),"") ->  | AA59: =IFERROR(INDEX(AllMessages!$C$1:$C$260, SMALL(IF($W$11=AllMessages!$F$1:$F$260, ROW(AllMessages!$F$1:$F$260)-MIN(ROW(AllMessages!$F$1:$F$260))+1, ""), ROW(A48))),"") ->  | AB59: 0
T60: =IFERROR(INDEX(AllMessages!$D$1:$D$260, SMALL(IF($W$11=AllMessages!$F$1:$F$260, ROW(AllMessages!$F$1:$F$260)-MIN(ROW(AllMessages!$F$1:$F$260))+1, ""), ROW(A49))),"") ->  | U60: =IFERROR(INDEX(AllMessages!$E$1:$E$260, SMALL(IF($W$11=AllMessages!$F$1:$F$260, ROW(AllMessages!$F$1:$F$260)-MIN(ROW(AllMessages!$F$1:$F$260))+1, ""), ROW(A49))),"") ->  | V60: =IFERROR(INDEX(AllMessages!$K$1:$K$260, SMALL(IF($W$11=AllMessages!$F$1:$F$260, ROW(AllMessages!$F$1:$F$260)-MIN(ROW(AllMessages!$F$1:$F$260))+1, ""), ROW(A49))),"") ->  | W60: =IFERROR(INDEX(AllMessages!$G$1:$G$260, SMALL(IF($W$11=AllMessages!$F$1:$F$260, ROW(AllMessages!$F$1:$F$260)-MIN(ROW(AllMessages!$F$1:$F$260))+1, ""), ROW(A49))),"") ->  | X60: =IFERROR(INDEX(AllMessages!$H$1:$H$260, SMALL(IF($W$11=AllMessages!$F$1:$F$260, ROW(AllMessages!$F$1:$F$260)-MIN(ROW(AllMessages!$F$1:$F$260))+1, ""), ROW(A49))),"") ->  | Y60: =IFERROR(INDEX(AllMessages!$I$1:$I$260, SMALL(IF($W$11=AllMessages!$F$1:$F$260, ROW(AllMessages!$F$1:$F$260)-MIN(ROW(AllMessages!$F$1:$F$260))+1, ""), ROW(A49))),"") ->  | Z60: =IFERROR(INDEX(AllMessages!$B$1:$B$260, SMALL(IF($W$11=AllMessages!$F$1:$F$260, ROW(AllMessages!$F$1:$F$260)-MIN(ROW(AllMessages!$F$1:$F$260))+1, ""), ROW(A49))),"") ->  | AA60: =IFERROR(INDEX(AllMessages!$C$1:$C$260, SMALL(IF($W$11=AllMessages!$F$1:$F$260, ROW(AllMessages!$F$1:$F$260)-MIN(ROW(AllMessages!$F$1:$F$260))+1, ""), ROW(A49))),"") ->  | AB60: 0
T61: =IFERROR(INDEX(AllMessages!$D$1:$D$260, SMALL(IF($W$11=AllMessages!$F$1:$F$260, ROW(AllMessages!$F$1:$F$260)-MIN(ROW(AllMessages!$F$1:$F$260))+1, ""), ROW(A50))),"") ->  | U61: =IFERROR(INDEX(AllMessages!$E$1:$E$260, SMALL(IF($W$11=AllMessages!$F$1:$F$260, ROW(AllMessages!$F$1:$F$260)-MIN(ROW(AllMessages!$F$1:$F$260))+1, ""), ROW(A50))),"") ->  | V61: =IFERROR(INDEX(AllMessages!$K$1:$K$260, SMALL(IF($W$11=AllMessages!$F$1:$F$260, ROW(AllMessages!$F$1:$F$260)-MIN(ROW(AllMessages!$F$1:$F$260))+1, ""), ROW(A50))),"") ->  | W61: =IFERROR(INDEX(AllMessages!$G$1:$G$260, SMALL(IF($W$11=AllMessages!$F$1:$F$260, ROW(AllMessages!$F$1:$F$260)-MIN(ROW(AllMessages!$F$1:$F$260))+1, ""), ROW(A50))),"") ->  | X61: =IFERROR(INDEX(AllMessages!$H$1:$H$260, SMALL(IF($W$11=AllMessages!$F$1:$F$260, ROW(AllMessages!$F$1:$F$260)-MIN(ROW(AllMessages!$F$1:$F$260))+1, ""), ROW(A50))),"") ->  | Y61: =IFERROR(INDEX(AllMessages!$I$1:$I$260, SMALL(IF($W$11=AllMessages!$F$1:$F$260, ROW(AllMessages!$F$1:$F$260)-MIN(ROW(AllMessages!$F$1:$F$260))+1, ""), ROW(A50))),"") ->  | Z61: =IFERROR(INDEX(AllMessages!$B$1:$B$260, SMALL(IF($W$11=AllMessages!$F$1:$F$260, ROW(AllMessages!$F$1:$F$260)-MIN(ROW(AllMessages!$F$1:$F$260))+1, ""), ROW(A50))),"") ->  | AA61: =IFERROR(INDEX(AllMessages!$C$1:$C$260, SMALL(IF($W$11=AllMessages!$F$1:$F$260, ROW(AllMessages!$F$1:$F$260)-MIN(ROW(AllMessages!$F$1:$F$260))+1, ""), ROW(A50))),"") ->  | AB61: 0
T62: =IFERROR(INDEX(AllMessages!$D$1:$D$260, SMALL(IF($W$11=AllMessages!$F$1:$F$260, ROW(AllMessages!$F$1:$F$260)-MIN(ROW(AllMessages!$F$1:$F$260))+1, ""), ROW(A51))),"") ->  | U62: =IFERROR(INDEX(AllMessages!$E$1:$E$260, SMALL(IF($W$11=AllMessages!$F$1:$F$260, ROW(AllMessages!$F$1:$F$260)-MIN(ROW(AllMessages!$F$1:$F$260))+1, ""), ROW(A51))),"") ->  | V62: =IFERROR(INDEX(AllMessages!$K$1:$K$260, SMALL(IF($W$11=AllMessages!$F$1:$F$260, ROW(AllMessages!$F$1:$F$260)-MIN(ROW(AllMessages!$F$1:$F$260))+1, ""), ROW(A51))),"") ->  | W62: =IFERROR(INDEX(AllMessages!$G$1:$G$260, SMALL(IF($W$11=AllMessages!$F$1:$F$260, ROW(AllMessages!$F$1:$F$260)-MIN(ROW(AllMessages!$F$1:$F$260))+1, ""), ROW(A51))),"") ->  | X62: =IFERROR(INDEX(AllMessages!$H$1:$H$260, SMALL(IF($W$11=AllMessages!$F$1:$F$260, ROW(AllMessages!$F$1:$F$260)-MIN(ROW(AllMessages!$F$1:$F$260))+1, ""), ROW(A51))),"") ->  | Y62: =IFERROR(INDEX(AllMessages!$I$1:$I$260, SMALL(IF($W$11=AllMessages!$F$1:$F$260, ROW(AllMessages!$F$1:$F$260)-MIN(ROW(AllMessages!$F$1:$F$260))+1, ""), ROW(A51))),"") ->  | Z62: =IFERROR(INDEX(AllMessages!$B$1:$B$260, SMALL(IF($W$11=AllMessages!$F$1:$F$260, ROW(AllMessages!$F$1:$F$260)-MIN(ROW(AllMessages!$F$1:$F$260))+1, ""), ROW(A51))),"") ->  | AA62: =IFERROR(INDEX(AllMessages!$C$1:$C$260, SMALL(IF($W$11=AllMessages!$F$1:$F$260, ROW(AllMessages!$F$1:$F$260)-MIN(ROW(AllMessages!$F$1:$F$260))+1, ""), ROW(A51))),"") ->  | AB62: 0
T63: =IFERROR(INDEX(AllMessages!$D$1:$D$260, SMALL(IF($W$11=AllMessages!$F$1:$F$260, ROW(AllMessages!$F$1:$F$260)-MIN(ROW(AllMessages!$F$1:$F$260))+1, ""), ROW(A52))),"") ->  | U63: =IFERROR(INDEX(AllMessages!$E$1:$E$260, SMALL(IF($W$11=AllMessages!$F$1:$F$260, ROW(AllMessages!$F$1:$F$260)-MIN(ROW(AllMessages!$F$1:$F$260))+1, ""), ROW(A52))),"") ->  | V63: =IFERROR(INDEX(AllMessages!$K$1:$K$260, SMALL(IF($W$11=AllMessages!$F$1:$F$260, ROW(AllMessages!$F$1:$F$260)-MIN(ROW(AllMessages!$F$1:$F$260))+1, ""), ROW(A52))),"") ->  | W63: =IFERROR(INDEX(AllMessages!$G$1:$G$260, SMALL(IF($W$11=AllMessages!$F$1:$F$260, ROW(AllMessages!$F$1:$F$260)-MIN(ROW(AllMessages!$F$1:$F$260))+1, ""), ROW(A52))),"") ->  | X63: =IFERROR(INDEX(AllMessages!$H$1:$H$260, SMALL(IF($W$11=AllMessages!$F$1:$F$260, ROW(AllMessages!$F$1:$F$260)-MIN(ROW(AllMessages!$F$1:$F$260))+1, ""), ROW(A52))),"") ->  | Y63: =IFERROR(INDEX(AllMessages!$I$1:$I$260, SMALL(IF($W$11=AllMessages!$F$1:$F$260, ROW(AllMessages!$F$1:$F$260)-MIN(ROW(AllMessages!$F$1:$F$260))+1, ""), ROW(A52))),"") ->  | Z63: =IFERROR(INDEX(AllMessages!$B$1:$B$260, SMALL(IF($W$11=AllMessages!$F$1:$F$260, ROW(AllMessages!$F$1:$F$260)-MIN(ROW(AllMessages!$F$1:$F$260))+1, ""), ROW(A52))),"") ->  | AA63: =IFERROR(INDEX(AllMessages!$C$1:$C$260, SMALL(IF($W$11=AllMessages!$F$1:$F$260, ROW(AllMessages!$F$1:$F$260)-MIN(ROW(AllMessages!$F$1:$F$260))+1, ""), ROW(A52))),"") ->  | AB63: 0
T64: =IFERROR(INDEX(AllMessages!$D$1:$D$260, SMALL(IF($W$11=AllMessages!$F$1:$F$260, ROW(AllMessages!$F$1:$F$260)-MIN(ROW(AllMessages!$F$1:$F$260))+1, ""), ROW(A53))),"") ->  | U64: =IFERROR(INDEX(AllMessages!$E$1:$E$260, SMALL(IF($W$11=AllMessages!$F$1:$F$260, ROW(AllMessages!$F$1:$F$260)-MIN(ROW(AllMessages!$F$1:$F$260))+1, ""), ROW(A53))),"") ->  | V64: =IFERROR(INDEX(AllMessages!$K$1:$K$260, SMALL(IF($W$11=AllMessages!$F$1:$F$260, ROW(AllMessages!$F$1:$F$260)-MIN(ROW(AllMessages!$F$1:$F$260))+1, ""), ROW(A53))),"") ->  | W64: =IFERROR(INDEX(AllMessages!$G$1:$G$260, SMALL(IF($W$11=AllMessages!$F$1:$F$260, ROW(AllMessages!$F$1:$F$260)-MIN(ROW(AllMessages!$F$1:$F$260))+1, ""), ROW(A53))),"") ->  | X64: =IFERROR(INDEX(AllMessages!$H$1:$H$260, SMALL(IF($W$11=AllMessages!$F$1:$F$260, ROW(AllMessages!$F$1:$F$260)-MIN(ROW(AllMessages!$F$1:$F$260))+1, ""), ROW(A53))),"") ->  | Y64: =IFERROR(INDEX(AllMessages!$I$1:$I$260, SMALL(IF($W$11=AllMessages!$F$1:$F$260, ROW(AllMessages!$F$1:$F$260)-MIN(ROW(AllMessages!$F$1:$F$260))+1, ""), ROW(A53))),"") ->  | Z64: =IFERROR(INDEX(AllMessages!$B$1:$B$260, SMALL(IF($W$11=AllMessages!$F$1:$F$260, ROW(AllMessages!$F$1:$F$260)-MIN(ROW(AllMessages!$F$1:$F$260))+1, ""), ROW(A53))),"") ->  | AA64: =IFERROR(INDEX(AllMessages!$C$1:$C$260, SMALL(IF($W$11=AllMessages!$F$1:$F$260, ROW(AllMessages!$F$1:$F$260)-MIN(ROW(AllMessages!$F$1:$F$260))+1, ""), ROW(A53))),"") ->  | AB64: 0
T65: =IFERROR(INDEX(AllMessages!$D$1:$D$260, SMALL(IF($W$11=AllMessages!$F$1:$F$260, ROW(AllMessages!$F$1:$F$260)-MIN(ROW(AllMessages!$F$1:$F$260))+1, ""), ROW(A54))),"") ->  | U65: =IFERROR(INDEX(AllMessages!$E$1:$E$260, SMALL(IF($W$11=AllMessages!$F$1:$F$260, ROW(AllMessages!$F$1:$F$260)-MIN(ROW(AllMessages!$F$1:$F$260))+1, ""), ROW(A54))),"") ->  | V65: =IFERROR(INDEX(AllMessages!$K$1:$K$260, SMALL(IF($W$11=AllMessages!$F$1:$F$260, ROW(AllMessages!$F$1:$F$260)-MIN(ROW(AllMessages!$F$1:$F$260))+1, ""), ROW(A54))),"") ->  | W65: =IFERROR(INDEX(AllMessages!$G$1:$G$260, SMALL(IF($W$11=AllMessages!$F$1:$F$260, ROW(AllMessages!$F$1:$F$260)-MIN(ROW(AllMessages!$F$1:$F$260))+1, ""), ROW(A54))),"") ->  | X65: =IFERROR(INDEX(AllMessages!$H$1:$H$260, SMALL(IF($W$11=AllMessages!$F$1:$F$260, ROW(AllMessages!$F$1:$F$260)-MIN(ROW(AllMessages!$F$1:$F$260))+1, ""), ROW(A54))),"") ->  | Y65: =IFERROR(INDEX(AllMessages!$I$1:$I$260, SMALL(IF($W$11=AllMessages!$F$1:$F$260, ROW(AllMessages!$F$1:$F$260)-MIN(ROW(AllMessages!$F$1:$F$260))+1, ""), ROW(A54))),"") ->  | Z65: =IFERROR(INDEX(AllMessages!$B$1:$B$260, SMALL(IF($W$11=AllMessages!$F$1:$F$260, ROW(AllMessages!$F$1:$F$260)-MIN(ROW(AllMessages!$F$1:$F$260))+1, ""), ROW(A54))),"") ->  | AA65: =IFERROR(INDEX(AllMessages!$C$1:$C$260, SMALL(IF($W$11=AllMessages!$F$1:$F$260, ROW(AllMessages!$F$1:$F$260)-MIN(ROW(AllMessages!$F$1:$F$260))+1, ""), ROW(A54))),"") ->  | AB65: 0
T66: =IFERROR(INDEX(AllMessages!$D$1:$D$260, SMALL(IF($W$11=AllMessages!$F$1:$F$260, ROW(AllMessages!$F$1:$F$260)-MIN(ROW(AllMessages!$F$1:$F$260))+1, ""), ROW(A55))),"") ->  | U66: =IFERROR(INDEX(AllMessages!$E$1:$E$260, SMALL(IF($W$11=AllMessages!$F$1:$F$260, ROW(AllMessages!$F$1:$F$260)-MIN(ROW(AllMessages!$F$1:$F$260))+1, ""), ROW(A55))),"") ->  | V66: =IFERROR(INDEX(AllMessages!$K$1:$K$260, SMALL(IF($W$11=AllMessages!$F$1:$F$260, ROW(AllMessages!$F$1:$F$260)-MIN(ROW(AllMessages!$F$1:$F$260))+1, ""), ROW(A55))),"") ->  | W66: =IFERROR(INDEX(AllMessages!$G$1:$G$260, SMALL(IF($W$11=AllMessages!$F$1:$F$260, ROW(AllMessages!$F$1:$F$260)-MIN(ROW(AllMessages!$F$1:$F$260))+1, ""), ROW(A55))),"") ->  | X66: =IFERROR(INDEX(AllMessages!$H$1:$H$260, SMALL(IF($W$11=AllMessages!$F$1:$F$260, ROW(AllMessages!$F$1:$F$260)-MIN(ROW(AllMessages!$F$1:$F$260))+1, ""), ROW(A55))),"") ->  | Y66: =IFERROR(INDEX(AllMessages!$I$1:$I$260, SMALL(IF($W$11=AllMessages!$F$1:$F$260, ROW(AllMessages!$F$1:$F$260)-MIN(ROW(AllMessages!$F$1:$F$260))+1, ""), ROW(A55))),"") ->  | Z66: =IFERROR(INDEX(AllMessages!$B$1:$B$260, SMALL(IF($W$11=AllMessages!$F$1:$F$260, ROW(AllMessages!$F$1:$F$260)-MIN(ROW(AllMessages!$F$1:$F$260))+1, ""), ROW(A55))),"") ->  | AA66: =IFERROR(INDEX(AllMessages!$C$1:$C$260, SMALL(IF($W$11=AllMessages!$F$1:$F$260, ROW(AllMessages!$F$1:$F$260)-MIN(ROW(AllMessages!$F$1:$F$260))+1, ""), ROW(A55))),"") ->  | AB66: 0
T67: =IFERROR(INDEX(AllMessages!$D$1:$D$260, SMALL(IF($W$11=AllMessages!$F$1:$F$260, ROW(AllMessages!$F$1:$F$260)-MIN(ROW(AllMessages!$F$1:$F$260))+1, ""), ROW(A56))),"") ->  | U67: =IFERROR(INDEX(AllMessages!$E$1:$E$260, SMALL(IF($W$11=AllMessages!$F$1:$F$260, ROW(AllMessages!$F$1:$F$260)-MIN(ROW(AllMessages!$F$1:$F$260))+1, ""), ROW(A56))),"") ->  | V67: =IFERROR(INDEX(AllMessages!$K$1:$K$260, SMALL(IF($W$11=AllMessages!$F$1:$F$260, ROW(AllMessages!$F$1:$F$260)-MIN(ROW(AllMessages!$F$1:$F$260))+1, ""), ROW(A56))),"") ->  | W67: =IFERROR(INDEX(AllMessages!$G$1:$G$260, SMALL(IF($W$11=AllMessages!$F$1:$F$260, ROW(AllMessages!$F$1:$F$260)-MIN(ROW(AllMessages!$F$1:$F$260))+1, ""), ROW(A56))),"") ->  | X67: =IFERROR(INDEX(AllMessages!$H$1:$H$260, SMALL(IF($W$11=AllMessages!$F$1:$F$260, ROW(AllMessages!$F$1:$F$260)-MIN(ROW(AllMessages!$F$1:$F$260))+1, ""), ROW(A56))),"") ->  | Y67: =IFERROR(INDEX(AllMessages!$I$1:$I$260, SMALL(IF($W$11=AllMessages!$F$1:$F$260, ROW(AllMessages!$F$1:$F$260)-MIN(ROW(AllMessages!$F$1:$F$260))+1, ""), ROW(A56))),"") ->  | Z67: =IFERROR(INDEX(AllMessages!$B$1:$B$260, SMALL(IF($W$11=AllMessages!$F$1:$F$260, ROW(AllMessages!$F$1:$F$260)-MIN(ROW(AllMessages!$F$1:$F$260))+1, ""), ROW(A56))),"") ->  | AA67: =IFERROR(INDEX(AllMessages!$C$1:$C$260, SMALL(IF($W$11=AllMessages!$F$1:$F$260, ROW(AllMessages!$F$1:$F$260)-MIN(ROW(AllMessages!$F$1:$F$260))+1, ""), ROW(A56))),"") ->  | AB67: 0
T68: =IFERROR(INDEX(AllMessages!$D$1:$D$260, SMALL(IF($W$11=AllMessages!$F$1:$F$260, ROW(AllMessages!$F$1:$F$260)-MIN(ROW(AllMessages!$F$1:$F$260))+1, ""), ROW(A57))),"") ->  | U68: =IFERROR(INDEX(AllMessages!$E$1:$E$260, SMALL(IF($W$11=AllMessages!$F$1:$F$260, ROW(AllMessages!$F$1:$F$260)-MIN(ROW(AllMessages!$F$1:$F$260))+1, ""), ROW(A57))),"") ->  | V68: =IFERROR(INDEX(AllMessages!$K$1:$K$260, SMALL(IF($W$11=AllMessages!$F$1:$F$260, ROW(AllMessages!$F$1:$F$260)-MIN(ROW(AllMessages!$F$1:$F$260))+1, ""), ROW(A57))),"") ->  | W68: =IFERROR(INDEX(AllMessages!$G$1:$G$260, SMALL(IF($W$11=AllMessages!$F$1:$F$260, ROW(AllMessages!$F$1:$F$260)-MIN(ROW(AllMessages!$F$1:$F$260))+1, ""), ROW(A57))),"") ->  | X68: =IFERROR(INDEX(AllMessages!$H$1:$H$260, SMALL(IF($W$11=AllMessages!$F$1:$F$260, ROW(AllMessages!$F$1:$F$260)-MIN(ROW(AllMessages!$F$1:$F$260))+1, ""), ROW(A57))),"") ->  | Y68: =IFERROR(INDEX(AllMessages!$I$1:$I$260, SMALL(IF($W$11=AllMessages!$F$1:$F$260, ROW(AllMessages!$F$1:$F$260)-MIN(ROW(AllMessages!$F$1:$F$260))+1, ""), ROW(A57))),"") ->  | Z68: =IFERROR(INDEX(AllMessages!$B$1:$B$260, SMALL(IF($W$11=AllMessages!$F$1:$F$260, ROW(AllMessages!$F$1:$F$260)-MIN(ROW(AllMessages!$F$1:$F$260))+1, ""), ROW(A57))),"") ->  | AA68: =IFERROR(INDEX(AllMessages!$C$1:$C$260, SMALL(IF($W$11=AllMessages!$F$1:$F$260, ROW(AllMessages!$F$1:$F$260)-MIN(ROW(AllMessages!$F$1:$F$260))+1, ""), ROW(A57))),"") ->  | AB68: 0
T69: =IFERROR(INDEX(AllMessages!$D$1:$D$260, SMALL(IF($W$11=AllMessages!$F$1:$F$260, ROW(AllMessages!$F$1:$F$260)-MIN(ROW(AllMessages!$F$1:$F$260))+1, ""), ROW(A58))),"") ->  | U69: =IFERROR(INDEX(AllMessages!$E$1:$E$260, SMALL(IF($W$11=AllMessages!$F$1:$F$260, ROW(AllMessages!$F$1:$F$260)-MIN(ROW(AllMessages!$F$1:$F$260))+1, ""), ROW(A58))),"") ->  | V69: =IFERROR(INDEX(AllMessages!$K$1:$K$260, SMALL(IF($W$11=AllMessages!$F$1:$F$260, ROW(AllMessages!$F$1:$F$260)-MIN(ROW(AllMessages!$F$1:$F$260))+1, ""), ROW(A58))),"") ->  | W69: =IFERROR(INDEX(AllMessages!$G$1:$G$260, SMALL(IF($W$11=AllMessages!$F$1:$F$260, ROW(AllMessages!$F$1:$F$260)-MIN(ROW(AllMessages!$F$1:$F$260))+1, ""), ROW(A58))),"") ->  | X69: =IFERROR(INDEX(AllMessages!$H$1:$H$260, SMALL(IF($W$11=AllMessages!$F$1:$F$260, ROW(AllMessages!$F$1:$F$260)-MIN(ROW(AllMessages!$F$1:$F$260))+1, ""), ROW(A58))),"") ->  | Y69: =IFERROR(INDEX(AllMessages!$I$1:$I$260, SMALL(IF($W$11=AllMessages!$F$1:$F$260, ROW(AllMessages!$F$1:$F$260)-MIN(ROW(AllMessages!$F$1:$F$260))+1, ""), ROW(A58))),"") ->  | Z69: =IFERROR(INDEX(AllMessages!$B$1:$B$260, SMALL(IF($W$11=AllMessages!$F$1:$F$260, ROW(AllMessages!$F$1:$F$260)-MIN(ROW(AllMessages!$F$1:$F$260))+1, ""), ROW(A58))),"") ->  | AA69: =IFERROR(INDEX(AllMessages!$C$1:$C$260, SMALL(IF($W$11=AllMessages!$F$1:$F$260, ROW(AllMessages!$F$1:$F$260)-MIN(ROW(AllMessages!$F$1:$F$260))+1, ""), ROW(A58))),"") ->  | AB69: 0
T70: =IFERROR(INDEX(AllMessages!$D$1:$D$260, SMALL(IF($W$11=AllMessages!$F$1:$F$260, ROW(AllMessages!$F$1:$F$260)-MIN(ROW(AllMessages!$F$1:$F$260))+1, ""), ROW(A59))),"") ->  | U70: =IFERROR(INDEX(AllMessages!$E$1:$E$260, SMALL(IF($W$11=AllMessages!$F$1:$F$260, ROW(AllMessages!$F$1:$F$260)-MIN(ROW(AllMessages!$F$1:$F$260))+1, ""), ROW(A59))),"") ->  | V70: =IFERROR(INDEX(AllMessages!$K$1:$K$260, SMALL(IF($W$11=AllMessages!$F$1:$F$260, ROW(AllMessages!$F$1:$F$260)-MIN(ROW(AllMessages!$F$1:$F$260))+1, ""), ROW(A59))),"") ->  | W70: =IFERROR(INDEX(AllMessages!$G$1:$G$260, SMALL(IF($W$11=AllMessages!$F$1:$F$260, ROW(AllMessages!$F$1:$F$260)-MIN(ROW(AllMessages!$F$1:$F$260))+1, ""), ROW(A59))),"") ->  | X70: =IFERROR(INDEX(AllMessages!$H$1:$H$260, SMALL(IF($W$11=AllMessages!$F$1:$F$260, ROW(AllMessages!$F$1:$F$260)-MIN(ROW(AllMessages!$F$1:$F$260))+1, ""), ROW(A59))),"") ->  | Y70: =IFERROR(INDEX(AllMessages!$I$1:$I$260, SMALL(IF($W$11=AllMessages!$F$1:$F$260, ROW(AllMessages!$F$1:$F$260)-MIN(ROW(AllMessages!$F$1:$F$260))+1, ""), ROW(A59))),"") ->  | Z70: =IFERROR(INDEX(AllMessages!$B$1:$B$260, SMALL(IF($W$11=AllMessages!$F$1:$F$260, ROW(AllMessages!$F$1:$F$260)-MIN(ROW(AllMessages!$F$1:$F$260))+1, ""), ROW(A59))),"") ->  | AA70: =IFERROR(INDEX(AllMessages!$C$1:$C$260, SMALL(IF($W$11=AllMessages!$F$1:$F$260, ROW(AllMessages!$F$1:$F$260)-MIN(ROW(AllMessages!$F$1:$F$260))+1, ""), ROW(A59))),"") ->  | AB70: 0
T71: =IFERROR(INDEX(AllMessages!$D$1:$D$260, SMALL(IF($W$11=AllMessages!$F$1:$F$260, ROW(AllMessages!$F$1:$F$260)-MIN(ROW(AllMessages!$F$1:$F$260))+1, ""), ROW(A60))),"") ->  | U71: =IFERROR(INDEX(AllMessages!$E$1:$E$260, SMALL(IF($W$11=AllMessages!$F$1:$F$260, ROW(AllMessages!$F$1:$F$260)-MIN(ROW(AllMessages!$F$1:$F$260))+1, ""), ROW(A60))),"") ->  | V71: =IFERROR(INDEX(AllMessages!$K$1:$K$260, SMALL(IF($W$11=AllMessages!$F$1:$F$260, ROW(AllMessages!$F$1:$F$260)-MIN(ROW(AllMessages!$F$1:$F$260))+1, ""), ROW(A60))),"") ->  | W71: =IFERROR(INDEX(AllMessages!$G$1:$G$260, SMALL(IF($W$11=AllMessages!$F$1:$F$260, ROW(AllMessages!$F$1:$F$260)-MIN(ROW(AllMessages!$F$1:$F$260))+1, ""), ROW(A60))),"") ->  | X71: =IFERROR(INDEX(AllMessages!$H$1:$H$260, SMALL(IF($W$11=AllMessages!$F$1:$F$260, ROW(AllMessages!$F$1:$F$260)-MIN(ROW(AllMessages!$F$1:$F$260))+1, ""), ROW(A60))),"") ->  | Y71: =IFERROR(INDEX(AllMessages!$I$1:$I$260, SMALL(IF($W$11=AllMessages!$F$1:$F$260, ROW(AllMessages!$F$1:$F$260)-MIN(ROW(AllMessages!$F$1:$F$260))+1, ""), ROW(A60))),"") ->  | Z71: =IFERROR(INDEX(AllMessages!$B$1:$B$260, SMALL(IF($W$11=AllMessages!$F$1:$F$260, ROW(AllMessages!$F$1:$F$260)-MIN(ROW(AllMessages!$F$1:$F$260))+1, ""), ROW(A60))),"") ->  | AA71: =IFERROR(INDEX(AllMessages!$C$1:$C$260, SMALL(IF($W$11=AllMessages!$F$1:$F$260, ROW(AllMessages!$F$1:$F$260)-MIN(ROW(AllMessages!$F$1:$F$260))+1, ""), ROW(A60))),"") ->  | AB71: 0
T72: =IFERROR(INDEX(AllMessages!$D$1:$D$260, SMALL(IF($W$11=AllMessages!$F$1:$F$260, ROW(AllMessages!$F$1:$F$260)-MIN(ROW(AllMessages!$F$1:$F$260))+1, ""), ROW(A61))),"") ->  | U72: =IFERROR(INDEX(AllMessages!$E$1:$E$260, SMALL(IF($W$11=AllMessages!$F$1:$F$260, ROW(AllMessages!$F$1:$F$260)-MIN(ROW(AllMessages!$F$1:$F$260))+1, ""), ROW(A61))),"") ->  | V72: =IFERROR(INDEX(AllMessages!$K$1:$K$260, SMALL(IF($W$11=AllMessages!$F$1:$F$260, ROW(AllMessages!$F$1:$F$260)-MIN(ROW(AllMessages!$F$1:$F$260))+1, ""), ROW(A61))),"") ->  | W72: =IFERROR(INDEX(AllMessages!$G$1:$G$260, SMALL(IF($W$11=AllMessages!$F$1:$F$260, ROW(AllMessages!$F$1:$F$260)-MIN(ROW(AllMessages!$F$1:$F$260))+1, ""), ROW(A61))),"") ->  | X72: =IFERROR(INDEX(AllMessages!$H$1:$H$260, SMALL(IF($W$11=AllMessages!$F$1:$F$260, ROW(AllMessages!$F$1:$F$260)-MIN(ROW(AllMessages!$F$1:$F$260))+1, ""), ROW(A61))),"") ->  | Y72: =IFERROR(INDEX(AllMessages!$I$1:$I$260, SMALL(IF($W$11=AllMessages!$F$1:$F$260, ROW(AllMessages!$F$1:$F$260)-MIN(ROW(AllMessages!$F$1:$F$260))+1, ""), ROW(A61))),"") ->  | Z72: =IFERROR(INDEX(AllMessages!$B$1:$B$260, SMALL(IF($W$11=AllMessages!$F$1:$F$260, ROW(AllMessages!$F$1:$F$260)-MIN(ROW(AllMessages!$F$1:$F$260))+1, ""), ROW(A61))),"") ->  | AA72: =IFERROR(INDEX(AllMessages!$C$1:$C$260, SMALL(IF($W$11=AllMessages!$F$1:$F$260, ROW(AllMessages!$F$1:$F$260)-MIN(ROW(AllMessages!$F$1:$F$260))+1, ""), ROW(A61))),"") ->  | AB72: 0
T73: =IFERROR(INDEX(AllMessages!$D$1:$D$260, SMALL(IF($W$11=AllMessages!$F$1:$F$260, ROW(AllMessages!$F$1:$F$260)-MIN(ROW(AllMessages!$F$1:$F$260))+1, ""), ROW(A62))),"") ->  | U73: =IFERROR(INDEX(AllMessages!$E$1:$E$260, SMALL(IF($W$11=AllMessages!$F$1:$F$260, ROW(AllMessages!$F$1:$F$260)-MIN(ROW(AllMessages!$F$1:$F$260))+1, ""), ROW(A62))),"") ->  | V73: =IFERROR(INDEX(AllMessages!$K$1:$K$260, SMALL(IF($W$11=AllMessages!$F$1:$F$260, ROW(AllMessages!$F$1:$F$260)-MIN(ROW(AllMessages!$F$1:$F$260))+1, ""), ROW(A62))),"") ->  | W73: =IFERROR(INDEX(AllMessages!$G$1:$G$260, SMALL(IF($W$11=AllMessages!$F$1:$F$260, ROW(AllMessages!$F$1:$F$260)-MIN(ROW(AllMessages!$F$1:$F$260))+1, ""), ROW(A62))),"") ->  | X73: =IFERROR(INDEX(AllMessages!$H$1:$H$260, SMALL(IF($W$11=AllMessages!$F$1:$F$260, ROW(AllMessages!$F$1:$F$260)-MIN(ROW(AllMessages!$F$1:$F$260))+1, ""), ROW(A62))),"") ->  | Y73: =IFERROR(INDEX(AllMessages!$I$1:$I$260, SMALL(IF($W$11=AllMessages!$F$1:$F$260, ROW(AllMessages!$F$1:$F$260)-MIN(ROW(AllMessages!$F$1:$F$260))+1, ""), ROW(A62))),"") ->  | Z73: =IFERROR(INDEX(AllMessages!$B$1:$B$260, SMALL(IF($W$11=AllMessages!$F$1:$F$260, ROW(AllMessages!$F$1:$F$260)-MIN(ROW(AllMessages!$F$1:$F$260))+1, ""), ROW(A62))),"") ->  | AA73: =IFERROR(INDEX(AllMessages!$C$1:$C$260, SMALL(IF($W$11=AllMessages!$F$1:$F$260, ROW(AllMessages!$F$1:$F$260)-MIN(ROW(AllMessages!$F$1:$F$260))+1, ""), ROW(A62))),"") ->  | AB73: 0
T74: =IFERROR(INDEX(AllMessages!$D$1:$D$260, SMALL(IF($W$11=AllMessages!$F$1:$F$260, ROW(AllMessages!$F$1:$F$260)-MIN(ROW(AllMessages!$F$1:$F$260))+1, ""), ROW(A63))),"") ->  | U74: =IFERROR(INDEX(AllMessages!$E$1:$E$260, SMALL(IF($W$11=AllMessages!$F$1:$F$260, ROW(AllMessages!$F$1:$F$260)-MIN(ROW(AllMessages!$F$1:$F$260))+1, ""), ROW(A63))),"") ->  | V74: =IFERROR(INDEX(AllMessages!$K$1:$K$260, SMALL(IF($W$11=AllMessages!$F$1:$F$260, ROW(AllMessages!$F$1:$F$260)-MIN(ROW(AllMessages!$F$1:$F$260))+1, ""), ROW(A63))),"") ->  | W74: =IFERROR(INDEX(AllMessages!$G$1:$G$260, SMALL(IF($W$11=AllMessages!$F$1:$F$260, ROW(AllMessages!$F$1:$F$260)-MIN(ROW(AllMessages!$F$1:$F$260))+1, ""), ROW(A63))),"") ->  | X74: =IFERROR(INDEX(AllMessages!$H$1:$H$260, SMALL(IF($W$11=AllMessages!$F$1:$F$260, ROW(AllMessages!$F$1:$F$260)-MIN(ROW(AllMessages!$F$1:$F$260))+1, ""), ROW(A63))),"") ->  | Y74: =IFERROR(INDEX(AllMessages!$I$1:$I$260, SMALL(IF($W$11=AllMessages!$F$1:$F$260, ROW(AllMessages!$F$1:$F$260)-MIN(ROW(AllMessages!$F$1:$F$260))+1, ""), ROW(A63))),"") ->  | Z74: =IFERROR(INDEX(AllMessages!$B$1:$B$260, SMALL(IF($W$11=AllMessages!$F$1:$F$260, ROW(AllMessages!$F$1:$F$260)-MIN(ROW(AllMessages!$F$1:$F$260))+1, ""), ROW(A63))),"") ->  | AA74: =IFERROR(INDEX(AllMessages!$C$1:$C$260, SMALL(IF($W$11=AllMessages!$F$1:$F$260, ROW(AllMessages!$F$1:$F$260)-MIN(ROW(AllMessages!$F$1:$F$260))+1, ""), ROW(A63))),"") ->  | AB74: 0
T75: =IFERROR(INDEX(AllMessages!$D$1:$D$260, SMALL(IF($W$11=AllMessages!$F$1:$F$260, ROW(AllMessages!$F$1:$F$260)-MIN(ROW(AllMessages!$F$1:$F$260))+1, ""), ROW(A64))),"") ->  | U75: =IFERROR(INDEX(AllMessages!$E$1:$E$260, SMALL(IF($W$11=AllMessages!$F$1:$F$260, ROW(AllMessages!$F$1:$F$260)-MIN(ROW(AllMessages!$F$1:$F$260))+1, ""), ROW(A64))),"") ->  | V75: =IFERROR(INDEX(AllMessages!$K$1:$K$260, SMALL(IF($W$11=AllMessages!$F$1:$F$260, ROW(AllMessages!$F$1:$F$260)-MIN(ROW(AllMessages!$F$1:$F$260))+1, ""), ROW(A64))),"") ->  | W75: =IFERROR(INDEX(AllMessages!$G$1:$G$260, SMALL(IF($W$11=AllMessages!$F$1:$F$260, ROW(AllMessages!$F$1:$F$260)-MIN(ROW(AllMessages!$F$1:$F$260))+1, ""), ROW(A64))),"") ->  | X75: =IFERROR(INDEX(AllMessages!$H$1:$H$260, SMALL(IF($W$11=AllMessages!$F$1:$F$260, ROW(AllMessages!$F$1:$F$260)-MIN(ROW(AllMessages!$F$1:$F$260))+1, ""), ROW(A64))),"") ->  | Y75: =IFERROR(INDEX(AllMessages!$I$1:$I$260, SMALL(IF($W$11=AllMessages!$F$1:$F$260, ROW(AllMessages!$F$1:$F$260)-MIN(ROW(AllMessages!$F$1:$F$260))+1, ""), ROW(A64))),"") ->  | Z75: =IFERROR(INDEX(AllMessages!$B$1:$B$260, SMALL(IF($W$11=AllMessages!$F$1:$F$260, ROW(AllMessages!$F$1:$F$260)-MIN(ROW(AllMessages!$F$1:$F$260))+1, ""), ROW(A64))),"") ->  | AA75: =IFERROR(INDEX(AllMessages!$C$1:$C$260, SMALL(IF($W$11=AllMessages!$F$1:$F$260, ROW(AllMessages!$F$1:$F$260)-MIN(ROW(AllMessages!$F$1:$F$260))+1, ""), ROW(A64))),"") ->  | AB75: 0
T76: =IFERROR(INDEX(AllMessages!$D$1:$D$260, SMALL(IF($W$11=AllMessages!$F$1:$F$260, ROW(AllMessages!$F$1:$F$260)-MIN(ROW(AllMessages!$F$1:$F$260))+1, ""), ROW(A65))),"") ->  | U76: =IFERROR(INDEX(AllMessages!$E$1:$E$260, SMALL(IF($W$11=AllMessages!$F$1:$F$260, ROW(AllMessages!$F$1:$F$260)-MIN(ROW(AllMessages!$F$1:$F$260))+1, ""), ROW(A65))),"") ->  | V76: =IFERROR(INDEX(AllMessages!$K$1:$K$260, SMALL(IF($W$11=AllMessages!$F$1:$F$260, ROW(AllMessages!$F$1:$F$260)-MIN(ROW(AllMessages!$F$1:$F$260))+1, ""), ROW(A65))),"") ->  | W76: =IFERROR(INDEX(AllMessages!$G$1:$G$260, SMALL(IF($W$11=AllMessages!$F$1:$F$260, ROW(AllMessages!$F$1:$F$260)-MIN(ROW(AllMessages!$F$1:$F$260))+1, ""), ROW(A65))),"") ->  | X76: =IFERROR(INDEX(AllMessages!$H$1:$H$260, SMALL(IF($W$11=AllMessages!$F$1:$F$260, ROW(AllMessages!$F$1:$F$260)-MIN(ROW(AllMessages!$F$1:$F$260))+1, ""), ROW(A65))),"") ->  | Y76: =IFERROR(INDEX(AllMessages!$I$1:$I$260, SMALL(IF($W$11=AllMessages!$F$1:$F$260, ROW(AllMessages!$F$1:$F$260)-MIN(ROW(AllMessages!$F$1:$F$260))+1, ""), ROW(A65))),"") ->  | Z76: =IFERROR(INDEX(AllMessages!$B$1:$B$260, SMALL(IF($W$11=AllMessages!$F$1:$F$260, ROW(AllMessages!$F$1:$F$260)-MIN(ROW(AllMessages!$F$1:$F$260))+1, ""), ROW(A65))),"") ->  | AA76: =IFERROR(INDEX(AllMessages!$C$1:$C$260, SMALL(IF($W$11=AllMessages!$F$1:$F$260, ROW(AllMessages!$F$1:$F$260)-MIN(ROW(AllMessages!$F$1:$F$260))+1, ""), ROW(A65))),"") ->  | AB76: 0
T77: =IFERROR(INDEX(AllMessages!$D$1:$D$260, SMALL(IF($W$11=AllMessages!$F$1:$F$260, ROW(AllMessages!$F$1:$F$260)-MIN(ROW(AllMessages!$F$1:$F$260))+1, ""), ROW(A66))),"") ->  | U77: =IFERROR(INDEX(AllMessages!$E$1:$E$260, SMALL(IF($W$11=AllMessages!$F$1:$F$260, ROW(AllMessages!$F$1:$F$260)-MIN(ROW(AllMessages!$F$1:$F$260))+1, ""), ROW(A66))),"") ->  | V77: =IFERROR(INDEX(AllMessages!$K$1:$K$260, SMALL(IF($W$11=AllMessages!$F$1:$F$260, ROW(AllMessages!$F$1:$F$260)-MIN(ROW(AllMessages!$F$1:$F$260))+1, ""), ROW(A66))),"") ->  | W77: =IFERROR(INDEX(AllMessages!$G$1:$G$260, SMALL(IF($W$11=AllMessages!$F$1:$F$260, ROW(AllMessages!$F$1:$F$260)-MIN(ROW(AllMessages!$F$1:$F$260))+1, ""), ROW(A66))),"") ->  | X77: =IFERROR(INDEX(AllMessages!$H$1:$H$260, SMALL(IF($W$11=AllMessages!$F$1:$F$260, ROW(AllMessages!$F$1:$F$260)-MIN(ROW(AllMessages!$F$1:$F$260))+1, ""), ROW(A66))),"") ->  | Y77: =IFERROR(INDEX(AllMessages!$I$1:$I$260, SMALL(IF($W$11=AllMessages!$F$1:$F$260, ROW(AllMessages!$F$1:$F$260)-MIN(ROW(AllMessages!$F$1:$F$260))+1, ""), ROW(A66))),"") ->  | Z77: =IFERROR(INDEX(AllMessages!$B$1:$B$260, SMALL(IF($W$11=AllMessages!$F$1:$F$260, ROW(AllMessages!$F$1:$F$260)-MIN(ROW(AllMessages!$F$1:$F$260))+1, ""), ROW(A66))),"") ->  | AA77: =IFERROR(INDEX(AllMessages!$C$1:$C$260, SMALL(IF($W$11=AllMessages!$F$1:$F$260, ROW(AllMessages!$F$1:$F$260)-MIN(ROW(AllMessages!$F$1:$F$260))+1, ""), ROW(A66))),"") ->  | AB77: =IF(W77="No Data",1,0) -> 0
T78: =IFERROR(INDEX(AllMessages!$D$1:$D$260, SMALL(IF($W$11=AllMessages!$F$1:$F$260, ROW(AllMessages!$F$1:$F$260)-MIN(ROW(AllMessages!$F$1:$F$260))+1, ""), ROW(A67))),"") ->  | U78: =IFERROR(INDEX(AllMessages!$E$1:$E$260, SMALL(IF($W$11=AllMessages!$F$1:$F$260, ROW(AllMessages!$F$1:$F$260)-MIN(ROW(AllMessages!$F$1:$F$260))+1, ""), ROW(A67))),"") ->  | V78: =IFERROR(INDEX(AllMessages!$K$1:$K$260, SMALL(IF($W$11=AllMessages!$F$1:$F$260, ROW(AllMessages!$F$1:$F$260)-MIN(ROW(AllMessages!$F$1:$F$260))+1, ""), ROW(A67))),"") ->  | W78: =IFERROR(INDEX(AllMessages!$G$1:$G$260, SMALL(IF($W$11=AllMessages!$F$1:$F$260, ROW(AllMessages!$F$1:$F$260)-MIN(ROW(AllMessages!$F$1:$F$260))+1, ""), ROW(A67))),"") ->  | X78: =IFERROR(INDEX(AllMessages!$H$1:$H$260, SMALL(IF($W$11=AllMessages!$F$1:$F$260, ROW(AllMessages!$F$1:$F$260)-MIN(ROW(AllMessages!$F$1:$F$260))+1, ""), ROW(A67))),"") ->  | Y78: =IFERROR(INDEX(AllMessages!$I$1:$I$260, SMALL(IF($W$11=AllMessages!$F$1:$F$260, ROW(AllMessages!$F$1:$F$260)-MIN(ROW(AllMessages!$F$1:$F$260))+1, ""), ROW(A67))),"") ->  | Z78: =IFERROR(INDEX(AllMessages!$B$1:$B$260, SMALL(IF($W$11=AllMessages!$F$1:$F$260, ROW(AllMessages!$F$1:$F$260)-MIN(ROW(AllMessages!$F$1:$F$260))+1, ""), ROW(A67))),"") ->  | AA78: =IFERROR(INDEX(AllMessages!$C$1:$C$260, SMALL(IF($W$11=AllMessages!$F$1:$F$260, ROW(AllMessages!$F$1:$F$260)-MIN(ROW(AllMessages!$F$1:$F$260))+1, ""), ROW(A67))),"") ->  | AB78: 0
B79: =IF(T76="","",IF(Y76="Disability",HYPERLINK(CONCATENATE("#","'Disability'!",T76),W76),IF(Y76="RaceEthnicity",HYPERLINK(CONCATENATE("#","'Racial Ethnic'!",T76),W76),IF(Y76="Gender",HYPERLINK(CONCATENATE("#","'Sex'!",T76),W76),IF(Y76="LEP",HYPERLINK(CONCATENATE("#","'English Learner Status'!",T76),W76),""))))) ->  | C79: =IF(U76="","",IF(Y76="Disability",HYPERLINK(CONCATENATE("#","'Disability'!",U76),AA76),IF(Y76="RaceEthnicity",HYPERLINK(CONCATENATE("#","'Racial Ethnic'!",U76),AA76),IF(Y76="Gender",HYPERLINK(CONCATENATE("#","'Sex'!",U76),AA76),IF(Y76="LEP",HYPERLINK(CONCATENATE("#","'English Learner Status'!",U76),AA76),""))))) ->  | D79: =IF(U76="","",IF(Y76="Disability",HYPERLINK(CONCATENATE("#","'Disability'!",U76),X76),IF(Y76="RaceEthnicity",HYPERLINK(CONCATENATE("#","'Racial Ethnic'!",U76),X76),IF(Y76="Gender",HYPERLINK(CONCATENATE("#","'Sex'!",U76),X76),IF(Y76="LEP",HYPERLINK(CONCATENATE("#","'English Learner Status'!",U76),X76),""))))) ->  | T79: =IFERROR(INDEX(AllMessages!$D$1:$D$260, SMALL(IF($W$11=AllMessages!$F$1:$F$260, ROW(AllMessages!$F$1:$F$260)-MIN(ROW(AllMessages!$F$1:$F$260))+1, ""), ROW(A68))),"") ->  | U79: =IFERROR(INDEX(AllMessages!$E$1:$E$260, SMALL(IF($W$11=AllMessages!$F$1:$F$260, ROW(AllMessages!$F$1:$F$260)-MIN(ROW(AllMessages!$F$1:$F$260))+1, ""), ROW(A68))),"") ->  | V79: =IFERROR(INDEX(AllMessages!$K$1:$K$260, SMALL(IF($W$11=AllMessages!$F$1:$F$260, ROW(AllMessages!$F$1:$F$260)-MIN(ROW(AllMessages!$F$1:$F$260))+1, ""), ROW(A68))),"") ->  | W79: =IFERROR(INDEX(AllMessages!$G$1:$G$260, SMALL(IF($W$11=AllMessages!$F$1:$F$260, ROW(AllMessages!$F$1:$F$260)-MIN(ROW(AllMessages!$F$1:$F$260))+1, ""), ROW(A68))),"") ->  | X79: =IFERROR(INDEX(AllMessages!$H$1:$H$260, SMALL(IF($W$11=AllMessages!$F$1:$F$260, ROW(AllMessages!$F$1:$F$260)-MIN(ROW(AllMessages!$F$1:$F$260))+1, ""), ROW(A68))),"") ->  | Y79: =IFERROR(INDEX(AllMessages!$I$1:$I$260, SMALL(IF($W$11=AllMessages!$F$1:$F$260, ROW(AllMessages!$F$1:$F$260)-MIN(ROW(AllMessages!$F$1:$F$260))+1, ""), ROW(A68))),"") ->  | Z79: =IFERROR(INDEX(AllMessages!$B$1:$B$260, SMALL(IF($W$11=AllMessages!$F$1:$F$260, ROW(AllMessages!$F$1:$F$260)-MIN(ROW(AllMessages!$F$1:$F$260))+1, ""), ROW(A68))),"") ->  | AA79: =IFERROR(INDEX(AllMessages!$C$1:$C$260, SMALL(IF($W$11=AllMessages!$F$1:$F$260, ROW(AllMessages!$F$1:$F$260)-MIN(ROW(AllMessages!$F$1:$F$260))+1, ""), ROW(A68))),"") ->  | AB79: 0
A80: =Z77 ->  | E80: =IF(AB77=1,"No Data",V77) ->  | T80: =IFERROR(INDEX(AllMessages!$D$1:$D$260, SMALL(IF($W$11=AllMessages!$F$1:$F$260, ROW(AllMessages!$F$1:$F$260)-MIN(ROW(AllMessages!$F$1:$F$260))+1, ""), ROW(A69))),"") ->  | U80: =IFERROR(INDEX(AllMessages!$E$1:$E$260, SMALL(IF($W$11=AllMessages!$F$1:$F$260, ROW(AllMessages!$F$1:$F$260)-MIN(ROW(AllMessages!$F$1:$F$260))+1, ""), ROW(A69))),"") ->  | V80: =IFERROR(INDEX(AllMessages!$K$1:$K$260, SMALL(IF($W$11=AllMessages!$F$1:$F$260, ROW(AllMessages!$F$1:$F$260)-MIN(ROW(AllMessages!$F$1:$F$260))+1, ""), ROW(A69))),"") ->  | W80: =IFERROR(INDEX(AllMessages!$G$1:$G$260, SMALL(IF($W$11=AllMessages!$F$1:$F$260, ROW(AllMessages!$F$1:$F$260)-MIN(ROW(AllMessages!$F$1:$F$260))+1, ""), ROW(A69))),"") ->  | X80: =IFERROR(INDEX(AllMessages!$H$1:$H$260, SMALL(IF($W$11=AllMessages!$F$1:$F$260, ROW(AllMessages!$F$1:$F$260)-MIN(ROW(AllMessages!$F$1:$F$260))+1, ""), ROW(A69))),"") ->  | Y80: =IFERROR(INDEX(AllMessages!$I$1:$I$260, SMALL(IF($W$11=AllMessages!$F$1:$F$260, ROW(AllMessages!$F$1:$F$260)-MIN(ROW(AllMessages!$F$1:$F$260))+1, ""), ROW(A69))),"") ->  | Z80: =IFERROR(INDEX(AllMessages!$B$1:$B$260, SMALL(IF($W$11=AllMessages!$F$1:$F$260, ROW(AllMessages!$F$1:$F$260)-MIN(ROW(AllMessages!$F$1:$F$260))+1, ""), ROW(A69))),"") ->  | AA80: =IFERROR(INDEX(AllMessages!$C$1:$C$260, SMALL(IF($W$11=AllMessages!$F$1:$F$260, ROW(AllMessages!$F$1:$F$260)-MIN(ROW(AllMessages!$F$1:$F$260))+1, ""), ROW(A69))),"") ->  | AB80: 0
T81: =IFERROR(INDEX(AllMessages!$D$1:$D$260, SMALL(IF($W$11=AllMessages!$F$1:$F$260, ROW(AllMessages!$F$1:$F$260)-MIN(ROW(AllMessages!$F$1:$F$260))+1, ""), ROW(A70))),"") ->  | U81: =IFERROR(INDEX(AllMessages!$E$1:$E$260, SMALL(IF($W$11=AllMessages!$F$1:$F$260, ROW(AllMessages!$F$1:$F$260)-MIN(ROW(AllMessages!$F$1:$F$260))+1, ""), ROW(A70))),"") ->  | V81: =IFERROR(INDEX(AllMessages!$K$1:$K$260, SMALL(IF($W$11=AllMessages!$F$1:$F$260, ROW(AllMessages!$F$1:$F$260)-MIN(ROW(AllMessages!$F$1:$F$260))+1, ""), ROW(A70))),"") ->  | W81: =IFERROR(INDEX(AllMessages!$G$1:$G$260, SMALL(IF($W$11=AllMessages!$F$1:$F$260, ROW(AllMessages!$F$1:$F$260)-MIN(ROW(AllMessages!$F$1:$F$260))+1, ""), ROW(A70))),"") ->  | X81: =IFERROR(INDEX(AllMessages!$H$1:$H$260, SMALL(IF($W$11=AllMessages!$F$1:$F$260, ROW(AllMessages!$F$1:$F$260)-MIN(ROW(AllMessages!$F$1:$F$260))+1, ""), ROW(A70))),"") ->  | Y81: =IFERROR(INDEX(AllMessages!$I$1:$I$260, SMALL(IF($W$11=AllMessages!$F$1:$F$260, ROW(AllMessages!$F$1:$F$260)-MIN(ROW(AllMessages!$F$1:$F$260))+1, ""), ROW(A70))),"") ->  | Z81: =IFERROR(INDEX(AllMessages!$B$1:$B$260, SMALL(IF($W$11=AllMessages!$F$1:$F$260, ROW(AllMessages!$F$1:$F$260)-MIN(ROW(AllMessages!$F$1:$F$260))+1, ""), ROW(A70))),"") ->  | AA81: =IFERROR(INDEX(AllMessages!$C$1:$C$260, SMALL(IF($W$11=AllMessages!$F$1:$F$260, ROW(AllMessages!$F$1:$F$260)-MIN(ROW(AllMessages!$F$1:$F$260))+1, ""), ROW(A70))),"") ->  | AB81: 0
T82: =IFERROR(INDEX(AllMessages!$D$1:$D$260, SMALL(IF($W$11=AllMessages!$F$1:$F$260, ROW(AllMessages!$F$1:$F$260)-MIN(ROW(AllMessages!$F$1:$F$260))+1, ""), ROW(A71))),"") ->  | U82: =IFERROR(INDEX(AllMessages!$E$1:$E$260, SMALL(IF($W$11=AllMessages!$F$1:$F$260, ROW(AllMessages!$F$1:$F$260)-MIN(ROW(AllMessages!$F$1:$F$260))+1, ""), ROW(A71))),"") ->  | V82: =IFERROR(INDEX(AllMessages!$K$1:$K$260, SMALL(IF($W$11=AllMessages!$F$1:$F$260, ROW(AllMessages!$F$1:$F$260)-MIN(ROW(AllMessages!$F$1:$F$260))+1, ""), ROW(A71))),"") ->  | W82: =IFERROR(INDEX(AllMessages!$G$1:$G$260, SMALL(IF($W$11=AllMessages!$F$1:$F$260, ROW(AllMessages!$F$1:$F$260)-MIN(ROW(AllMessages!$F$1:$F$260))+1, ""), ROW(A71))),"") ->  | X82: =IFERROR(INDEX(AllMessages!$H$1:$H$260, SMALL(IF($W$11=AllMessages!$F$1:$F$260, ROW(AllMessages!$F$1:$F$260)-MIN(ROW(AllMessages!$F$1:$F$260))+1, ""), ROW(A71))),"") ->  | Y82: =IFERROR(INDEX(AllMessages!$I$1:$I$260, SMALL(IF($W$11=AllMessages!$F$1:$F$260, ROW(AllMessages!$F$1:$F$260)-MIN(ROW(AllMessages!$F$1:$F$260))+1, ""), ROW(A71))),"") ->  | Z82: =IFERROR(INDEX(AllMessages!$B$1:$B$260, SMALL(IF($W$11=AllMessages!$F$1:$F$260, ROW(AllMessages!$F$1:$F$260)-MIN(ROW(AllMessages!$F$1:$F$260))+1, ""), ROW(A71))),"") ->  | AA82: =IFERROR(INDEX(AllMessages!$C$1:$C$260, SMALL(IF($W$11=AllMessages!$F$1:$F$260, ROW(AllMessages!$F$1:$F$260)-MIN(ROW(AllMessages!$F$1:$F$260))+1, ""), ROW(A71))),"") ->  | AB82: 0
T83: =IFERROR(INDEX(AllMessages!$D$1:$D$260, SMALL(IF($W$11=AllMessages!$F$1:$F$260, ROW(AllMessages!$F$1:$F$260)-MIN(ROW(AllMessages!$F$1:$F$260))+1, ""), ROW(A72))),"") ->  | U83: =IFERROR(INDEX(AllMessages!$E$1:$E$260, SMALL(IF($W$11=AllMessages!$F$1:$F$260, ROW(AllMessages!$F$1:$F$260)-MIN(ROW(AllMessages!$F$1:$F$260))+1, ""), ROW(A72))),"") ->  | V83: =IFERROR(INDEX(AllMessages!$K$1:$K$260, SMALL(IF($W$11=AllMessages!$F$1:$F$260, ROW(AllMessages!$F$1:$F$260)-MIN(ROW(AllMessages!$F$1:$F$260))+1, ""), ROW(A72))),"") ->  | W83: =IFERROR(INDEX(AllMessages!$G$1:$G$260, SMALL(IF($W$11=AllMessages!$F$1:$F$260, ROW(AllMessages!$F$1:$F$260)-MIN(ROW(AllMessages!$F$1:$F$260))+1, ""), ROW(A72))),"") ->  | X83: =IFERROR(INDEX(AllMessages!$H$1:$H$260, SMALL(IF($W$11=AllMessages!$F$1:$F$260, ROW(AllMessages!$F$1:$F$260)-MIN(ROW(AllMessages!$F$1:$F$260))+1, ""), ROW(A72))),"") ->  | Y83: =IFERROR(INDEX(AllMessages!$I$1:$I$260, SMALL(IF($W$11=AllMessages!$F$1:$F$260, ROW(AllMessages!$F$1:$F$260)-MIN(ROW(AllMessages!$F$1:$F$260))+1, ""), ROW(A72))),"") ->  | Z83: =IFERROR(INDEX(AllMessages!$B$1:$B$260, SMALL(IF($W$11=AllMessages!$F$1:$F$260, ROW(AllMessages!$F$1:$F$260)-MIN(ROW(AllMessages!$F$1:$F$260))+1, ""), ROW(A72))),"") ->  | AA83: =IFERROR(INDEX(AllMessages!$C$1:$C$260, SMALL(IF($W$11=AllMessages!$F$1:$F$260, ROW(AllMessages!$F$1:$F$260)-MIN(ROW(AllMessages!$F$1:$F$260))+1, ""), ROW(A72))),"") ->  | AB83: 0
T84: =IFERROR(INDEX(AllMessages!$D$1:$D$260, SMALL(IF($W$11=AllMessages!$F$1:$F$260, ROW(AllMessages!$F$1:$F$260)-MIN(ROW(AllMessages!$F$1:$F$260))+1, ""), ROW(A73))),"") ->  | U84: =IFERROR(INDEX(AllMessages!$E$1:$E$260, SMALL(IF($W$11=AllMessages!$F$1:$F$260, ROW(AllMessages!$F$1:$F$260)-MIN(ROW(AllMessages!$F$1:$F$260))+1, ""), ROW(A73))),"") ->  | V84: =IFERROR(INDEX(AllMessages!$K$1:$K$260, SMALL(IF($W$11=AllMessages!$F$1:$F$260, ROW(AllMessages!$F$1:$F$260)-MIN(ROW(AllMessages!$F$1:$F$260))+1, ""), ROW(A73))),"") ->  | W84: =IFERROR(INDEX(AllMessages!$G$1:$G$260, SMALL(IF($W$11=AllMessages!$F$1:$F$260, ROW(AllMessages!$F$1:$F$260)-MIN(ROW(AllMessages!$F$1:$F$260))+1, ""), ROW(A73))),"") ->  | X84: =IFERROR(INDEX(AllMessages!$H$1:$H$260, SMALL(IF($W$11=AllMessages!$F$1:$F$260, ROW(AllMessages!$F$1:$F$260)-MIN(ROW(AllMessages!$F$1:$F$260))+1, ""), ROW(A73))),"") ->  | Y84: =IFERROR(INDEX(AllMessages!$I$1:$I$260, SMALL(IF($W$11=AllMessages!$F$1:$F$260, ROW(AllMessages!$F$1:$F$260)-MIN(ROW(AllMessages!$F$1:$F$260))+1, ""), ROW(A73))),"") ->  | Z84: =IFERROR(INDEX(AllMessages!$B$1:$B$260, SMALL(IF($W$11=AllMessages!$F$1:$F$260, ROW(AllMessages!$F$1:$F$260)-MIN(ROW(AllMessages!$F$1:$F$260))+1, ""), ROW(A73))),"") ->  | AA84: =IFERROR(INDEX(AllMessages!$C$1:$C$260, SMALL(IF($W$11=AllMessages!$F$1:$F$260, ROW(AllMessages!$F$1:$F$260)-MIN(ROW(AllMessages!$F$1:$F$260))+1, ""), ROW(A73))),"") ->  | AB84: 0
T85: =IFERROR(INDEX(AllMessages!$D$1:$D$260, SMALL(IF($W$11=AllMessages!$F$1:$F$260, ROW(AllMessages!$F$1:$F$260)-MIN(ROW(AllMessages!$F$1:$F$260))+1, ""), ROW(A74))),"") ->  | U85: =IFERROR(INDEX(AllMessages!$E$1:$E$260, SMALL(IF($W$11=AllMessages!$F$1:$F$260, ROW(AllMessages!$F$1:$F$260)-MIN(ROW(AllMessages!$F$1:$F$260))+1, ""), ROW(A74))),"") ->  | V85: =IFERROR(INDEX(AllMessages!$K$1:$K$260, SMALL(IF($W$11=AllMessages!$F$1:$F$260, ROW(AllMessages!$F$1:$F$260)-MIN(ROW(AllMessages!$F$1:$F$260))+1, ""), ROW(A74))),"") ->  | W85: =IFERROR(INDEX(AllMessages!$G$1:$G$260, SMALL(IF($W$11=AllMessages!$F$1:$F$260, ROW(AllMessages!$F$1:$F$260)-MIN(ROW(AllMessages!$F$1:$F$260))+1, ""), ROW(A74))),"") ->  | X85: =IFERROR(INDEX(AllMessages!$H$1:$H$260, SMALL(IF($W$11=AllMessages!$F$1:$F$260, ROW(AllMessages!$F$1:$F$260)-MIN(ROW(AllMessages!$F$1:$F$260))+1, ""), ROW(A74))),"") ->  | Y85: =IFERROR(INDEX(AllMessages!$I$1:$I$260, SMALL(IF($W$11=AllMessages!$F$1:$F$260, ROW(AllMessages!$F$1:$F$260)-MIN(ROW(AllMessages!$F$1:$F$260))+1, ""), ROW(A74))),"") ->  | Z85: =IFERROR(INDEX(AllMessages!$B$1:$B$260, SMALL(IF($W$11=AllMessages!$F$1:$F$260, ROW(AllMessages!$F$1:$F$260)-MIN(ROW(AllMessages!$F$1:$F$260))+1, ""), ROW(A74))),"") ->  | AA85: =IFERROR(INDEX(AllMessages!$C$1:$C$260, SMALL(IF($W$11=AllMessages!$F$1:$F$260, ROW(AllMessages!$F$1:$F$260)-MIN(ROW(AllMessages!$F$1:$F$260))+1, ""), ROW(A74))),"") ->  | AB85: 0
T86: =IFERROR(INDEX(AllMessages!$D$1:$D$260, SMALL(IF($W$11=AllMessages!$F$1:$F$260, ROW(AllMessages!$F$1:$F$260)-MIN(ROW(AllMessages!$F$1:$F$260))+1, ""), ROW(A75))),"") ->  | U86: =IFERROR(INDEX(AllMessages!$E$1:$E$260, SMALL(IF($W$11=AllMessages!$F$1:$F$260, ROW(AllMessages!$F$1:$F$260)-MIN(ROW(AllMessages!$F$1:$F$260))+1, ""), ROW(A75))),"") ->  | V86: =IFERROR(INDEX(AllMessages!$K$1:$K$260, SMALL(IF($W$11=AllMessages!$F$1:$F$260, ROW(AllMessages!$F$1:$F$260)-MIN(ROW(AllMessages!$F$1:$F$260))+1, ""), ROW(A75))),"") ->  | W86: =IFERROR(INDEX(AllMessages!$G$1:$G$260, SMALL(IF($W$11=AllMessages!$F$1:$F$260, ROW(AllMessages!$F$1:$F$260)-MIN(ROW(AllMessages!$F$1:$F$260))+1, ""), ROW(A75))),"") ->  | X86: =IFERROR(INDEX(AllMessages!$H$1:$H$260, SMALL(IF($W$11=AllMessages!$F$1:$F$260, ROW(AllMessages!$F$1:$F$260)-MIN(ROW(AllMessages!$F$1:$F$260))+1, ""), ROW(A75))),"") ->  | Y86: =IFERROR(INDEX(AllMessages!$I$1:$I$260, SMALL(IF($W$11=AllMessages!$F$1:$F$260, ROW(AllMessages!$F$1:$F$260)-MIN(ROW(AllMessages!$F$1:$F$260))+1, ""), ROW(A75))),"") ->  | Z86: =IFERROR(INDEX(AllMessages!$B$1:$B$260, SMALL(IF($W$11=AllMessages!$F$1:$F$260, ROW(AllMessages!$F$1:$F$260)-MIN(ROW(AllMessages!$F$1:$F$260))+1, ""), ROW(A75))),"") ->  | AA86: =IFERROR(INDEX(AllMessages!$C$1:$C$260, SMALL(IF($W$11=AllMessages!$F$1:$F$260, ROW(AllMessages!$F$1:$F$260)-MIN(ROW(AllMessages!$F$1:$F$260))+1, ""), ROW(A75))),"") ->  | AB86: 0
T87: =IFERROR(INDEX(AllMessages!$D$1:$D$260, SMALL(IF($W$11=AllMessages!$F$1:$F$260, ROW(AllMessages!$F$1:$F$260)-MIN(ROW(AllMessages!$F$1:$F$260))+1, ""), ROW(A76))),"") ->  | U87: =IFERROR(INDEX(AllMessages!$E$1:$E$260, SMALL(IF($W$11=AllMessages!$F$1:$F$260, ROW(AllMessages!$F$1:$F$260)-MIN(ROW(AllMessages!$F$1:$F$260))+1, ""), ROW(A76))),"") ->  | V87: =IFERROR(INDEX(AllMessages!$K$1:$K$260, SMALL(IF($W$11=AllMessages!$F$1:$F$260, ROW(AllMessages!$F$1:$F$260)-MIN(ROW(AllMessages!$F$1:$F$260))+1, ""), ROW(A76))),"") ->  | W87: =IFERROR(INDEX(AllMessages!$G$1:$G$260, SMALL(IF($W$11=AllMessages!$F$1:$F$260, ROW(AllMessages!$F$1:$F$260)-MIN(ROW(AllMessages!$F$1:$F$260))+1, ""), ROW(A76))),"") ->  | X87: =IFERROR(INDEX(AllMessages!$H$1:$H$260, SMALL(IF($W$11=AllMessages!$F$1:$F$260, ROW(AllMessages!$F$1:$F$260)-MIN(ROW(AllMessages!$F$1:$F$260))+1, ""), ROW(A76))),"") ->  | Y87: =IFERROR(INDEX(AllMessages!$I$1:$I$260, SMALL(IF($W$11=AllMessages!$F$1:$F$260, ROW(AllMessages!$F$1:$F$260)-MIN(ROW(AllMessages!$F$1:$F$260))+1, ""), ROW(A76))),"") ->  | Z87: =IFERROR(INDEX(AllMessages!$B$1:$B$260, SMALL(IF($W$11=AllMessages!$F$1:$F$260, ROW(AllMessages!$F$1:$F$260)-MIN(ROW(AllMessages!$F$1:$F$260))+1, ""), ROW(A76))),"") ->  | AA87: =IFERROR(INDEX(AllMessages!$C$1:$C$260, SMALL(IF($W$11=AllMessages!$F$1:$F$260, ROW(AllMessages!$F$1:$F$260)-MIN(ROW(AllMessages!$F$1:$F$260))+1, ""), ROW(A76))),"") ->  | AB87: 0
T88: =IFERROR(INDEX(AllMessages!$D$1:$D$260, SMALL(IF($W$11=AllMessages!$F$1:$F$260, ROW(AllMessages!$F$1:$F$260)-MIN(ROW(AllMessages!$F$1:$F$260))+1, ""), ROW(A77))),"") ->  | U88: =IFERROR(INDEX(AllMessages!$E$1:$E$260, SMALL(IF($W$11=AllMessages!$F$1:$F$260, ROW(AllMessages!$F$1:$F$260)-MIN(ROW(AllMessages!$F$1:$F$260))+1, ""), ROW(A77))),"") ->  | V88: =IFERROR(INDEX(AllMessages!$K$1:$K$260, SMALL(IF($W$11=AllMessages!$F$1:$F$260, ROW(AllMessages!$F$1:$F$260)-MIN(ROW(AllMessages!$F$1:$F$260))+1, ""), ROW(A77))),"") ->  | W88: =IFERROR(INDEX(AllMessages!$G$1:$G$260, SMALL(IF($W$11=AllMessages!$F$1:$F$260, ROW(AllMessages!$F$1:$F$260)-MIN(ROW(AllMessages!$F$1:$F$260))+1, ""), ROW(A77))),"") ->  | X88: =IFERROR(INDEX(AllMessages!$H$1:$H$260, SMALL(IF($W$11=AllMessages!$F$1:$F$260, ROW(AllMessages!$F$1:$F$260)-MIN(ROW(AllMessages!$F$1:$F$260))+1, ""), ROW(A77))),"") ->  | Y88: =IFERROR(INDEX(AllMessages!$I$1:$I$260, SMALL(IF($W$11=AllMessages!$F$1:$F$260, ROW(AllMessages!$F$1:$F$260)-MIN(ROW(AllMessages!$F$1:$F$260))+1, ""), ROW(A77))),"") ->  | Z88: =IFERROR(INDEX(AllMessages!$B$1:$B$260, SMALL(IF($W$11=AllMessages!$F$1:$F$260, ROW(AllMessages!$F$1:$F$260)-MIN(ROW(AllMessages!$F$1:$F$260))+1, ""), ROW(A77))),"") ->  | AA88: =IFERROR(INDEX(AllMessages!$C$1:$C$260, SMALL(IF($W$11=AllMessages!$F$1:$F$260, ROW(AllMessages!$F$1:$F$260)-MIN(ROW(AllMessages!$F$1:$F$260))+1, ""), ROW(A77))),"") ->  | AB88: 0
T89: =IFERROR(INDEX(AllMessages!$D$1:$D$260, SMALL(IF($W$11=AllMessages!$F$1:$F$260, ROW(AllMessages!$F$1:$F$260)-MIN(ROW(AllMessages!$F$1:$F$260))+1, ""), ROW(A78))),"") ->  | U89: =IFERROR(INDEX(AllMessages!$E$1:$E$260, SMALL(IF($W$11=AllMessages!$F$1:$F$260, ROW(AllMessages!$F$1:$F$260)-MIN(ROW(AllMessages!$F$1:$F$260))+1, ""), ROW(A78))),"") ->  | V89: =IFERROR(INDEX(AllMessages!$K$1:$K$260, SMALL(IF($W$11=AllMessages!$F$1:$F$260, ROW(AllMessages!$F$1:$F$260)-MIN(ROW(AllMessages!$F$1:$F$260))+1, ""), ROW(A78))),"") ->  | W89: =IFERROR(INDEX(AllMessages!$G$1:$G$260, SMALL(IF($W$11=AllMessages!$F$1:$F$260, ROW(AllMessages!$F$1:$F$260)-MIN(ROW(AllMessages!$F$1:$F$260))+1, ""), ROW(A78))),"") ->  | X89: =IFERROR(INDEX(AllMessages!$H$1:$H$260, SMALL(IF($W$11=AllMessages!$F$1:$F$260, ROW(AllMessages!$F$1:$F$260)-MIN(ROW(AllMessages!$F$1:$F$260))+1, ""), ROW(A78))),"") ->  | Y89: =IFERROR(INDEX(AllMessages!$I$1:$I$260, SMALL(IF($W$11=AllMessages!$F$1:$F$260, ROW(AllMessages!$F$1:$F$260)-MIN(ROW(AllMessages!$F$1:$F$260))+1, ""), ROW(A78))),"") ->  | Z89: =IFERROR(INDEX(AllMessages!$B$1:$B$260, SMALL(IF($W$11=AllMessages!$F$1:$F$260, ROW(AllMessages!$F$1:$F$260)-MIN(ROW(AllMessages!$F$1:$F$260))+1, ""), ROW(A78))),"") ->  | AA89: =IFERROR(INDEX(AllMessages!$C$1:$C$260, SMALL(IF($W$11=AllMessages!$F$1:$F$260, ROW(AllMessages!$F$1:$F$260)-MIN(ROW(AllMessages!$F$1:$F$260))+1, ""), ROW(A78))),"") ->  | AB89: 0
T90: =IFERROR(INDEX(AllMessages!$D$1:$D$260, SMALL(IF($W$11=AllMessages!$F$1:$F$260, ROW(AllMessages!$F$1:$F$260)-MIN(ROW(AllMessages!$F$1:$F$260))+1, ""), ROW(A79))),"") ->  | U90: =IFERROR(INDEX(AllMessages!$E$1:$E$260, SMALL(IF($W$11=AllMessages!$F$1:$F$260, ROW(AllMessages!$F$1:$F$260)-MIN(ROW(AllMessages!$F$1:$F$260))+1, ""), ROW(A79))),"") ->  | V90: =IFERROR(INDEX(AllMessages!$K$1:$K$260, SMALL(IF($W$11=AllMessages!$F$1:$F$260, ROW(AllMessages!$F$1:$F$260)-MIN(ROW(AllMessages!$F$1:$F$260))+1, ""), ROW(A79))),"") ->  | W90: =IFERROR(INDEX(AllMessages!$G$1:$G$260, SMALL(IF($W$11=AllMessages!$F$1:$F$260, ROW(AllMessages!$F$1:$F$260)-MIN(ROW(AllMessages!$F$1:$F$260))+1, ""), ROW(A79))),"") ->  | X90: =IFERROR(INDEX(AllMessages!$H$1:$H$260, SMALL(IF($W$11=AllMessages!$F$1:$F$260, ROW(AllMessages!$F$1:$F$260)-MIN(ROW(AllMessages!$F$1:$F$260))+1, ""), ROW(A79))),"") ->  | Y90: =IFERROR(INDEX(AllMessages!$I$1:$I$260, SMALL(IF($W$11=AllMessages!$F$1:$F$260, ROW(AllMessages!$F$1:$F$260)-MIN(ROW(AllMessages!$F$1:$F$260))+1, ""), ROW(A79))),"") ->  | Z90: =IFERROR(INDEX(AllMessages!$B$1:$B$260, SMALL(IF($W$11=AllMessages!$F$1:$F$260, ROW(AllMessages!$F$1:$F$260)-MIN(ROW(AllMessages!$F$1:$F$260))+1, ""), ROW(A79))),"") ->  | AA90: =IFERROR(INDEX(AllMessages!$C$1:$C$260, SMALL(IF($W$11=AllMessages!$F$1:$F$260, ROW(AllMessages!$F$1:$F$260)-MIN(ROW(AllMessages!$F$1:$F$260))+1, ""), ROW(A79))),"") ->  | AB90: 0
T91: =IFERROR(INDEX(AllMessages!$D$1:$D$260, SMALL(IF($W$11=AllMessages!$F$1:$F$260, ROW(AllMessages!$F$1:$F$260)-MIN(ROW(AllMessages!$F$1:$F$260))+1, ""), ROW(A80))),"") ->  | U91: =IFERROR(INDEX(AllMessages!$E$1:$E$260, SMALL(IF($W$11=AllMessages!$F$1:$F$260, ROW(AllMessages!$F$1:$F$260)-MIN(ROW(AllMessages!$F$1:$F$260))+1, ""), ROW(A80))),"") ->  | V91: =IFERROR(INDEX(AllMessages!$K$1:$K$260, SMALL(IF($W$11=AllMessages!$F$1:$F$260, ROW(AllMessages!$F$1:$F$260)-MIN(ROW(AllMessages!$F$1:$F$260))+1, ""), ROW(A80))),"") ->  | W91: =IFERROR(INDEX(AllMessages!$G$1:$G$260, SMALL(IF($W$11=AllMessages!$F$1:$F$260, ROW(AllMessages!$F$1:$F$260)-MIN(ROW(AllMessages!$F$1:$F$260))+1, ""), ROW(A80))),"") ->  | X91: =IFERROR(INDEX(AllMessages!$H$1:$H$260, SMALL(IF($W$11=AllMessages!$F$1:$F$260, ROW(AllMessages!$F$1:$F$260)-MIN(ROW(AllMessages!$F$1:$F$260))+1, ""), ROW(A80))),"") ->  | Y91: =IFERROR(INDEX(AllMessages!$I$1:$I$260, SMALL(IF($W$11=AllMessages!$F$1:$F$260, ROW(AllMessages!$F$1:$F$260)-MIN(ROW(AllMessages!$F$1:$F$260))+1, ""), ROW(A80))),"") ->  | Z91: =IFERROR(INDEX(AllMessages!$B$1:$B$260, SMALL(IF($W$11=AllMessages!$F$1:$F$260, ROW(AllMessages!$F$1:$F$260)-MIN(ROW(AllMessages!$F$1:$F$260))+1, ""), ROW(A80))),"") ->  | AA91: =IFERROR(INDEX(AllMessages!$C$1:$C$260, SMALL(IF($W$11=AllMessages!$F$1:$F$260, ROW(AllMessages!$F$1:$F$260)-MIN(ROW(AllMessages!$F$1:$F$260))+1, ""), ROW(A80))),"") ->  | AB91: 0
T92: =IFERROR(INDEX(AllMessages!$D$1:$D$260, SMALL(IF($W$11=AllMessages!$F$1:$F$260, ROW(AllMessages!$F$1:$F$260)-MIN(ROW(AllMessages!$F$1:$F$260))+1, ""), ROW(A81))),"") ->  | U92: =IFERROR(INDEX(AllMessages!$E$1:$E$260, SMALL(IF($W$11=AllMessages!$F$1:$F$260, ROW(AllMessages!$F$1:$F$260)-MIN(ROW(AllMessages!$F$1:$F$260))+1, ""), ROW(A81))),"") ->  | V92: =IFERROR(INDEX(AllMessages!$K$1:$K$260, SMALL(IF($W$11=AllMessages!$F$1:$F$260, ROW(AllMessages!$F$1:$F$260)-MIN(ROW(AllMessages!$F$1:$F$260))+1, ""), ROW(A81))),"") ->  | W92: =IFERROR(INDEX(AllMessages!$G$1:$G$260, SMALL(IF($W$11=AllMessages!$F$1:$F$260, ROW(AllMessages!$F$1:$F$260)-MIN(ROW(AllMessages!$F$1:$F$260))+1, ""), ROW(A81))),"") ->  | X92: =IFERROR(INDEX(AllMessages!$H$1:$H$260, SMALL(IF($W$11=AllMessages!$F$1:$F$260, ROW(AllMessages!$F$1:$F$260)-MIN(ROW(AllMessages!$F$1:$F$260))+1, ""), ROW(A81))),"") ->  | Y92: =IFERROR(INDEX(AllMessages!$I$1:$I$260, SMALL(IF($W$11=AllMessages!$F$1:$F$260, ROW(AllMessages!$F$1:$F$260)-MIN(ROW(AllMessages!$F$1:$F$260))+1, ""), ROW(A81))),"") ->  | Z92: =IFERROR(INDEX(AllMessages!$B$1:$B$260, SMALL(IF($W$11=AllMessages!$F$1:$F$260, ROW(AllMessages!$F$1:$F$260)-MIN(ROW(AllMessages!$F$1:$F$260))+1, ""), ROW(A81))),"") ->  | AA92: =IFERROR(INDEX(AllMessages!$C$1:$C$260, SMALL(IF($W$11=AllMessages!$F$1:$F$260, ROW(AllMessages!$F$1:$F$260)-MIN(ROW(AllMessages!$F$1:$F$260))+1, ""), ROW(A81))),"") ->  | AB92: 0
T93: =IFERROR(INDEX(AllMessages!$D$1:$D$260, SMALL(IF($W$11=AllMessages!$F$1:$F$260, ROW(AllMessages!$F$1:$F$260)-MIN(ROW(AllMessages!$F$1:$F$260))+1, ""), ROW(A82))),"") ->  | U93: =IFERROR(INDEX(AllMessages!$E$1:$E$260, SMALL(IF($W$11=AllMessages!$F$1:$F$260, ROW(AllMessages!$F$1:$F$260)-MIN(ROW(AllMessages!$F$1:$F$260))+1, ""), ROW(A82))),"") ->  | V93: =IFERROR(INDEX(AllMessages!$K$1:$K$260, SMALL(IF($W$11=AllMessages!$F$1:$F$260, ROW(AllMessages!$F$1:$F$260)-MIN(ROW(AllMessages!$F$1:$F$260))+1, ""), ROW(A82))),"") ->  | W93: =IFERROR(INDEX(AllMessages!$G$1:$G$260, SMALL(IF($W$11=AllMessages!$F$1:$F$260, ROW(AllMessages!$F$1:$F$260)-MIN(ROW(AllMessages!$F$1:$F$260))+1, ""), ROW(A82))),"") ->  | X93: =IFERROR(INDEX(AllMessages!$H$1:$H$260, SMALL(IF($W$11=AllMessages!$F$1:$F$260, ROW(AllMessages!$F$1:$F$260)-MIN(ROW(AllMessages!$F$1:$F$260))+1, ""), ROW(A82))),"") ->  | Y93: =IFERROR(INDEX(AllMessages!$I$1:$I$260, SMALL(IF($W$11=AllMessages!$F$1:$F$260, ROW(AllMessages!$F$1:$F$260)-MIN(ROW(AllMessages!$F$1:$F$260))+1, ""), ROW(A82))),"") ->  | Z93: =IFERROR(INDEX(AllMessages!$B$1:$B$260, SMALL(IF($W$11=AllMessages!$F$1:$F$260, ROW(AllMessages!$F$1:$F$260)-MIN(ROW(AllMessages!$F$1:$F$260))+1, ""), ROW(A82))),"") ->  | AA93: =IFERROR(INDEX(AllMessages!$C$1:$C$260, SMALL(IF($W$11=AllMessages!$F$1:$F$260, ROW(AllMessages!$F$1:$F$260)-MIN(ROW(AllMessages!$F$1:$F$260))+1, ""), ROW(A82))),"") ->  | AB93: 0
T94: =IFERROR(INDEX(AllMessages!$D$1:$D$260, SMALL(IF($W$11=AllMessages!$F$1:$F$260, ROW(AllMessages!$F$1:$F$260)-MIN(ROW(AllMessages!$F$1:$F$260))+1, ""), ROW(A83))),"") ->  | U94: =IFERROR(INDEX(AllMessages!$E$1:$E$260, SMALL(IF($W$11=AllMessages!$F$1:$F$260, ROW(AllMessages!$F$1:$F$260)-MIN(ROW(AllMessages!$F$1:$F$260))+1, ""), ROW(A83))),"") ->  | V94: =IFERROR(INDEX(AllMessages!$K$1:$K$260, SMALL(IF($W$11=AllMessages!$F$1:$F$260, ROW(AllMessages!$F$1:$F$260)-MIN(ROW(AllMessages!$F$1:$F$260))+1, ""), ROW(A83))),"") ->  | W94: =IFERROR(INDEX(AllMessages!$G$1:$G$260, SMALL(IF($W$11=AllMessages!$F$1:$F$260, ROW(AllMessages!$F$1:$F$260)-MIN(ROW(AllMessages!$F$1:$F$260))+1, ""), ROW(A83))),"") ->  | X94: =IFERROR(INDEX(AllMessages!$H$1:$H$260, SMALL(IF($W$11=AllMessages!$F$1:$F$260, ROW(AllMessages!$F$1:$F$260)-MIN(ROW(AllMessages!$F$1:$F$260))+1, ""), ROW(A83))),"") ->  | Y94: =IFERROR(INDEX(AllMessages!$I$1:$I$260, SMALL(IF($W$11=AllMessages!$F$1:$F$260, ROW(AllMessages!$F$1:$F$260)-MIN(ROW(AllMessages!$F$1:$F$260))+1, ""), ROW(A83))),"") ->  | Z94: =IFERROR(INDEX(AllMessages!$B$1:$B$260, SMALL(IF($W$11=AllMessages!$F$1:$F$260, ROW(AllMessages!$F$1:$F$260)-MIN(ROW(AllMessages!$F$1:$F$260))+1, ""), ROW(A83))),"") ->  | AA94: =IFERROR(INDEX(AllMessages!$C$1:$C$260, SMALL(IF($W$11=AllMessages!$F$1:$F$260, ROW(AllMessages!$F$1:$F$260)-MIN(ROW(AllMessages!$F$1:$F$260))+1, ""), ROW(A83))),"") ->  | AB94: 0
T95: =IFERROR(INDEX(AllMessages!$D$1:$D$260, SMALL(IF($W$11=AllMessages!$F$1:$F$260, ROW(AllMessages!$F$1:$F$260)-MIN(ROW(AllMessages!$F$1:$F$260))+1, ""), ROW(A84))),"") ->  | U95: =IFERROR(INDEX(AllMessages!$E$1:$E$260, SMALL(IF($W$11=AllMessages!$F$1:$F$260, ROW(AllMessages!$F$1:$F$260)-MIN(ROW(AllMessages!$F$1:$F$260))+1, ""), ROW(A84))),"") ->  | V95: =IFERROR(INDEX(AllMessages!$K$1:$K$260, SMALL(IF($W$11=AllMessages!$F$1:$F$260, ROW(AllMessages!$F$1:$F$260)-MIN(ROW(AllMessages!$F$1:$F$260))+1, ""), ROW(A84))),"") ->  | W95: =IFERROR(INDEX(AllMessages!$G$1:$G$260, SMALL(IF($W$11=AllMessages!$F$1:$F$260, ROW(AllMessages!$F$1:$F$260)-MIN(ROW(AllMessages!$F$1:$F$260))+1, ""), ROW(A84))),"") ->  | X95: =IFERROR(INDEX(AllMessages!$H$1:$H$260, SMALL(IF($W$11=AllMessages!$F$1:$F$260, ROW(AllMessages!$F$1:$F$260)-MIN(ROW(AllMessages!$F$1:$F$260))+1, ""), ROW(A84))),"") ->  | Y95: =IFERROR(INDEX(AllMessages!$I$1:$I$260, SMALL(IF($W$11=AllMessages!$F$1:$F$260, ROW(AllMessages!$F$1:$F$260)-MIN(ROW(AllMessages!$F$1:$F$260))+1, ""), ROW(A84))),"") ->  | Z95: =IFERROR(INDEX(AllMessages!$B$1:$B$260, SMALL(IF($W$11=AllMessages!$F$1:$F$260, ROW(AllMessages!$F$1:$F$260)-MIN(ROW(AllMessages!$F$1:$F$260))+1, ""), ROW(A84))),"") ->  | AA95: =IFERROR(INDEX(AllMessages!$C$1:$C$260, SMALL(IF($W$11=AllMessages!$F$1:$F$260, ROW(AllMessages!$F$1:$F$260)-MIN(ROW(AllMessages!$F$1:$F$260))+1, ""), ROW(A84))),"") ->  | AB95: 0
T96: =IFERROR(INDEX(AllMessages!$D$1:$D$260, SMALL(IF($W$11=AllMessages!$F$1:$F$260, ROW(AllMessages!$F$1:$F$260)-MIN(ROW(AllMessages!$F$1:$F$260))+1, ""), ROW(A85))),"") ->  | U96: =IFERROR(INDEX(AllMessages!$E$1:$E$260, SMALL(IF($W$11=AllMessages!$F$1:$F$260, ROW(AllMessages!$F$1:$F$260)-MIN(ROW(AllMessages!$F$1:$F$260))+1, ""), ROW(A85))),"") ->  | V96: =IFERROR(INDEX(AllMessages!$K$1:$K$260, SMALL(IF($W$11=AllMessages!$F$1:$F$260, ROW(AllMessages!$F$1:$F$260)-MIN(ROW(AllMessages!$F$1:$F$260))+1, ""), ROW(A85))),"") ->  | W96: =IFERROR(INDEX(AllMessages!$G$1:$G$260, SMALL(IF($W$11=AllMessages!$F$1:$F$260, ROW(AllMessages!$F$1:$F$260)-MIN(ROW(AllMessages!$F$1:$F$260))+1, ""), ROW(A85))),"") ->  | X96: =IFERROR(INDEX(AllMessages!$H$1:$H$260, SMALL(IF($W$11=AllMessages!$F$1:$F$260, ROW(AllMessages!$F$1:$F$260)-MIN(ROW(AllMessages!$F$1:$F$260))+1, ""), ROW(A85))),"") ->  | Y96: =IFERROR(INDEX(AllMessages!$I$1:$I$260, SMALL(IF($W$11=AllMessages!$F$1:$F$260, ROW(AllMessages!$F$1:$F$260)-MIN(ROW(AllMessages!$F$1:$F$260))+1, ""), ROW(A85))),"") ->  | Z96: =IFERROR(INDEX(AllMessages!$B$1:$B$260, SMALL(IF($W$11=AllMessages!$F$1:$F$260, ROW(AllMessages!$F$1:$F$260)-MIN(ROW(AllMessages!$F$1:$F$260))+1, ""), ROW(A85))),"") ->  | AA96: =IFERROR(INDEX(AllMessages!$C$1:$C$260, SMALL(IF($W$11=AllMessages!$F$1:$F$260, ROW(AllMessages!$F$1:$F$260)-MIN(ROW(AllMessages!$F$1:$F$260))+1, ""), ROW(A85))),"") ->  | AB96: 0
T97: =IFERROR(INDEX(AllMessages!$D$1:$D$260, SMALL(IF($W$11=AllMessages!$F$1:$F$260, ROW(AllMessages!$F$1:$F$260)-MIN(ROW(AllMessages!$F$1:$F$260))+1, ""), ROW(A86))),"") ->  | U97: =IFERROR(INDEX(AllMessages!$E$1:$E$260, SMALL(IF($W$11=AllMessages!$F$1:$F$260, ROW(AllMessages!$F$1:$F$260)-MIN(ROW(AllMessages!$F$1:$F$260))+1, ""), ROW(A86))),"") ->  | V97: =IFERROR(INDEX(AllMessages!$K$1:$K$260, SMALL(IF($W$11=AllMessages!$F$1:$F$260, ROW(AllMessages!$F$1:$F$260)-MIN(ROW(AllMessages!$F$1:$F$260))+1, ""), ROW(A86))),"") ->  | W97: =IFERROR(INDEX(AllMessages!$G$1:$G$260, SMALL(IF($W$11=AllMessages!$F$1:$F$260, ROW(AllMessages!$F$1:$F$260)-MIN(ROW(AllMessages!$F$1:$F$260))+1, ""), ROW(A86))),"") ->  | X97: =IFERROR(INDEX(AllMessages!$H$1:$H$260, SMALL(IF($W$11=AllMessages!$F$1:$F$260, ROW(AllMessages!$F$1:$F$260)-MIN(ROW(AllMessages!$F$1:$F$260))+1, ""), ROW(A86))),"") ->  | Y97: =IFERROR(INDEX(AllMessages!$I$1:$I$260, SMALL(IF($W$11=AllMessages!$F$1:$F$260, ROW(AllMessages!$F$1:$F$260)-MIN(ROW(AllMessages!$F$1:$F$260))+1, ""), ROW(A86))),"") ->  | Z97: =IFERROR(INDEX(AllMessages!$B$1:$B$260, SMALL(IF($W$11=AllMessages!$F$1:$F$260, ROW(AllMessages!$F$1:$F$260)-MIN(ROW(AllMessages!$F$1:$F$260))+1, ""), ROW(A86))),"") ->  | AA97: =IFERROR(INDEX(AllMessages!$C$1:$C$260, SMALL(IF($W$11=AllMessages!$F$1:$F$260, ROW(AllMessages!$F$1:$F$260)-MIN(ROW(AllMessages!$F$1:$F$260))+1, ""), ROW(A86))),"") ->  | AB97: 0
T98: =IFERROR(INDEX(AllMessages!$D$1:$D$260, SMALL(IF($W$11=AllMessages!$F$1:$F$260, ROW(AllMessages!$F$1:$F$260)-MIN(ROW(AllMessages!$F$1:$F$260))+1, ""), ROW(A87))),"") ->  | U98: =IFERROR(INDEX(AllMessages!$E$1:$E$260, SMALL(IF($W$11=AllMessages!$F$1:$F$260, ROW(AllMessages!$F$1:$F$260)-MIN(ROW(AllMessages!$F$1:$F$260))+1, ""), ROW(A87))),"") ->  | V98: =IFERROR(INDEX(AllMessages!$K$1:$K$260, SMALL(IF($W$11=AllMessages!$F$1:$F$260, ROW(AllMessages!$F$1:$F$260)-MIN(ROW(AllMessages!$F$1:$F$260))+1, ""), ROW(A87))),"") ->  | W98: =IFERROR(INDEX(AllMessages!$G$1:$G$260, SMALL(IF($W$11=AllMessages!$F$1:$F$260, ROW(AllMessages!$F$1:$F$260)-MIN(ROW(AllMessages!$F$1:$F$260))+1, ""), ROW(A87))),"") ->  | X98: =IFERROR(INDEX(AllMessages!$H$1:$H$260, SMALL(IF($W$11=AllMessages!$F$1:$F$260, ROW(AllMessages!$F$1:$F$260)-MIN(ROW(AllMessages!$F$1:$F$260))+1, ""), ROW(A87))),"") ->  | Y98: =IFERROR(INDEX(AllMessages!$I$1:$I$260, SMALL(IF($W$11=AllMessages!$F$1:$F$260, ROW(AllMessages!$F$1:$F$260)-MIN(ROW(AllMessages!$F$1:$F$260))+1, ""), ROW(A87))),"") ->  | Z98: =IFERROR(INDEX(AllMessages!$B$1:$B$260, SMALL(IF($W$11=AllMessages!$F$1:$F$260, ROW(AllMessages!$F$1:$F$260)-MIN(ROW(AllMessages!$F$1:$F$260))+1, ""), ROW(A87))),"") ->  | AA98: =IFERROR(INDEX(AllMessages!$C$1:$C$260, SMALL(IF($W$11=AllMessages!$F$1:$F$260, ROW(AllMessages!$F$1:$F$260)-MIN(ROW(AllMessages!$F$1:$F$260))+1, ""), ROW(A87))),"") ->  | AB98: 0
T99: =IFERROR(INDEX(AllMessages!$D$1:$D$260, SMALL(IF($W$11=AllMessages!$F$1:$F$260, ROW(AllMessages!$F$1:$F$260)-MIN(ROW(AllMessages!$F$1:$F$260))+1, ""), ROW(A88))),"") ->  | U99: =IFERROR(INDEX(AllMessages!$E$1:$E$260, SMALL(IF($W$11=AllMessages!$F$1:$F$260, ROW(AllMessages!$F$1:$F$260)-MIN(ROW(AllMessages!$F$1:$F$260))+1, ""), ROW(A88))),"") ->  | V99: =IFERROR(INDEX(AllMessages!$K$1:$K$260, SMALL(IF($W$11=AllMessages!$F$1:$F$260, ROW(AllMessages!$F$1:$F$260)-MIN(ROW(AllMessages!$F$1:$F$260))+1, ""), ROW(A88))),"") ->  | W99: =IFERROR(INDEX(AllMessages!$G$1:$G$260, SMALL(IF($W$11=AllMessages!$F$1:$F$260, ROW(AllMessages!$F$1:$F$260)-MIN(ROW(AllMessages!$F$1:$F$260))+1, ""), ROW(A88))),"") ->  | X99: =IFERROR(INDEX(AllMessages!$H$1:$H$260, SMALL(IF($W$11=AllMessages!$F$1:$F$260, ROW(AllMessages!$F$1:$F$260)-MIN(ROW(AllMessages!$F$1:$F$260))+1, ""), ROW(A88))),"") ->  | Y99: =IFERROR(INDEX(AllMessages!$I$1:$I$260, SMALL(IF($W$11=AllMessages!$F$1:$F$260, ROW(AllMessages!$F$1:$F$260)-MIN(ROW(AllMessages!$F$1:$F$260))+1, ""), ROW(A88))),"") ->  | Z99: =IFERROR(INDEX(AllMessages!$B$1:$B$260, SMALL(IF($W$11=AllMessages!$F$1:$F$260, ROW(AllMessages!$F$1:$F$260)-MIN(ROW(AllMessages!$F$1:$F$260))+1, ""), ROW(A88))),"") ->  | AA99: =IFERROR(INDEX(AllMessages!$C$1:$C$260, SMALL(IF($W$11=AllMessages!$F$1:$F$260, ROW(AllMessages!$F$1:$F$260)-MIN(ROW(AllMessages!$F$1:$F$260))+1, ""), ROW(A88))),"") ->  | AB99: 0
T100: =IFERROR(INDEX(AllMessages!$D$1:$D$260, SMALL(IF($W$11=AllMessages!$F$1:$F$260, ROW(AllMessages!$F$1:$F$260)-MIN(ROW(AllMessages!$F$1:$F$260))+1, ""), ROW(A89))),"") ->  | U100: =IFERROR(INDEX(AllMessages!$E$1:$E$260, SMALL(IF($W$11=AllMessages!$F$1:$F$260, ROW(AllMessages!$F$1:$F$260)-MIN(ROW(AllMessages!$F$1:$F$260))+1, ""), ROW(A89))),"") ->  | V100: =IFERROR(INDEX(AllMessages!$K$1:$K$260, SMALL(IF($W$11=AllMessages!$F$1:$F$260, ROW(AllMessages!$F$1:$F$260)-MIN(ROW(AllMessages!$F$1:$F$260))+1, ""), ROW(A89))),"") ->  | W100: =IFERROR(INDEX(AllMessages!$G$1:$G$260, SMALL(IF($W$11=AllMessages!$F$1:$F$260, ROW(AllMessages!$F$1:$F$260)-MIN(ROW(AllMessages!$F$1:$F$260))+1, ""), ROW(A89))),"") ->  | X100: =IFERROR(INDEX(AllMessages!$H$1:$H$260, SMALL(IF($W$11=AllMessages!$F$1:$F$260, ROW(AllMessages!$F$1:$F$260)-MIN(ROW(AllMessages!$F$1:$F$260))+1, ""), ROW(A89))),"") ->  | Y100: =IFERROR(INDEX(AllMessages!$I$1:$I$260, SMALL(IF($W$11=AllMessages!$F$1:$F$260, ROW(AllMessages!$F$1:$F$260)-MIN(ROW(AllMessages!$F$1:$F$260))+1, ""), ROW(A89))),"") ->  | Z100: =IFERROR(INDEX(AllMessages!$B$1:$B$260, SMALL(IF($W$11=AllMessages!$F$1:$F$260, ROW(AllMessages!$F$1:$F$260)-MIN(ROW(AllMessages!$F$1:$F$260))+1, ""), ROW(A89))),"") ->  | AA100: =IFERROR(INDEX(AllMessages!$C$1:$C$260, SMALL(IF($W$11=AllMessages!$F$1:$F$260, ROW(AllMessages!$F$1:$F$260)-MIN(ROW(AllMessages!$F$1:$F$260))+1, ""), ROW(A89))),"") ->  | AB100: 0
T101: =IFERROR(INDEX(AllMessages!$D$1:$D$260, SMALL(IF($W$11=AllMessages!$F$1:$F$260, ROW(AllMessages!$F$1:$F$260)-MIN(ROW(AllMessages!$F$1:$F$260))+1, ""), ROW(A90))),"") ->  | U101: =IFERROR(INDEX(AllMessages!$E$1:$E$260, SMALL(IF($W$11=AllMessages!$F$1:$F$260, ROW(AllMessages!$F$1:$F$260)-MIN(ROW(AllMessages!$F$1:$F$260))+1, ""), ROW(A90))),"") ->  | V101: =IFERROR(INDEX(AllMessages!$K$1:$K$260, SMALL(IF($W$11=AllMessages!$F$1:$F$260, ROW(AllMessages!$F$1:$F$260)-MIN(ROW(AllMessages!$F$1:$F$260))+1, ""), ROW(A90))),"") ->  | W101: =IFERROR(INDEX(AllMessages!$G$1:$G$260, SMALL(IF($W$11=AllMessages!$F$1:$F$260, ROW(AllMessages!$F$1:$F$260)-MIN(ROW(AllMessages!$F$1:$F$260))+1, ""), ROW(A90))),"") ->  | X101: =IFERROR(INDEX(AllMessages!$H$1:$H$260, SMALL(IF($W$11=AllMessages!$F$1:$F$260, ROW(AllMessages!$F$1:$F$260)-MIN(ROW(AllMessages!$F$1:$F$260))+1, ""), ROW(A90))),"") ->  | Y101: =IFERROR(INDEX(AllMessages!$I$1:$I$260, SMALL(IF($W$11=AllMessages!$F$1:$F$260, ROW(AllMessages!$F$1:$F$260)-MIN(ROW(AllMessages!$F$1:$F$260))+1, ""), ROW(A90))),"") ->  | Z101: =IFERROR(INDEX(AllMessages!$B$1:$B$260, SMALL(IF($W$11=AllMessages!$F$1:$F$260, ROW(AllMessages!$F$1:$F$260)-MIN(ROW(AllMessages!$F$1:$F$260))+1, ""), ROW(A90))),"") ->  | AA101: =IFERROR(INDEX(AllMessages!$C$1:$C$260, SMALL(IF($W$11=AllMessages!$F$1:$F$260, ROW(AllMessages!$F$1:$F$260)-MIN(ROW(AllMessages!$F$1:$F$260))+1, ""), ROW(A90))),"") ->  | AB101: 0
T102: =IFERROR(INDEX(AllMessages!$D$1:$D$260, SMALL(IF($W$11=AllMessages!$F$1:$F$260, ROW(AllMessages!$F$1:$F$260)-MIN(ROW(AllMessages!$F$1:$F$260))+1, ""), ROW(A91))),"") ->  | U102: =IFERROR(INDEX(AllMessages!$E$1:$E$260, SMALL(IF($W$11=AllMessages!$F$1:$F$260, ROW(AllMessages!$F$1:$F$260)-MIN(ROW(AllMessages!$F$1:$F$260))+1, ""), ROW(A91))),"") ->  | V102: =IFERROR(INDEX(AllMessages!$K$1:$K$260, SMALL(IF($W$11=AllMessages!$F$1:$F$260, ROW(AllMessages!$F$1:$F$260)-MIN(ROW(AllMessages!$F$1:$F$260))+1, ""), ROW(A91))),"") ->  | W102: =IFERROR(INDEX(AllMessages!$G$1:$G$260, SMALL(IF($W$11=AllMessages!$F$1:$F$260, ROW(AllMessages!$F$1:$F$260)-MIN(ROW(AllMessages!$F$1:$F$260))+1, ""), ROW(A91))),"") ->  | X102: =IFERROR(INDEX(AllMessages!$H$1:$H$260, SMALL(IF($W$11=AllMessages!$F$1:$F$260, ROW(AllMessages!$F$1:$F$260)-MIN(ROW(AllMessages!$F$1:$F$260))+1, ""), ROW(A91))),"") ->  | Y102: =IFERROR(INDEX(AllMessages!$I$1:$I$260, SMALL(IF($W$11=AllMessages!$F$1:$F$260, ROW(AllMessages!$F$1:$F$260)-MIN(ROW(AllMessages!$F$1:$F$260))+1, ""), ROW(A91))),"") ->  | Z102: =IFERROR(INDEX(AllMessages!$B$1:$B$260, SMALL(IF($W$11=AllMessages!$F$1:$F$260, ROW(AllMessages!$F$1:$F$260)-MIN(ROW(AllMessages!$F$1:$F$260))+1, ""), ROW(A91))),"") ->  | AA102: =IFERROR(INDEX(AllMessages!$C$1:$C$260, SMALL(IF($W$11=AllMessages!$F$1:$F$260, ROW(AllMessages!$F$1:$F$260)-MIN(ROW(AllMessages!$F$1:$F$260))+1, ""), ROW(A91))),"") ->  | AB102: 0
